Workbook

Sheet Cover
B6: التقرير الاحصائي السنوي عن نشاط قطاع التأمين بدولة الإمارات العربية المتحدة
B7: ANNUAL STATISTICAL REPORT FOR THE
B8: .INSURANCE SECTOR OF THE U.A.E
B9: 2023
B11: جدول رقم | I11: Table
B12: 1 | C12: تطور نشاط قطاع التأمين | H12: Insurance Sector Developments | I12: 1
B13: 1A | C13: اجمالي الأقساط المكتتبة لتأمين الممتلكات والمسؤوليات والتأمين على الأشخاص وتكوين الأموال وفقاً لشركات التأمين الوطنية وشركات التأمين الأجنبية. | H13: Gross Written Premium - Non-Life / Life - National vs Foreign | I13: 1A
B14: 1B | C14: اجمالي الأقساط المكتتبة لتأمين الممتلكات والمسؤوليات والتأمين على الأشخاص وتكوين الأموال وفقا لشركات التأمين التقليدي الوطنية وشركات التأمين التكافلي. | H14: Gross Written Premium - Non-Life / Life - National Traditional vs Takaful | I14: 1B
B15: 1C | C15: اجمالي الأقساط المكتتبة لتأمين الممتلكات والمسؤوليات والتأمين على الأشخاص وتكوين الأموال للشركات الوطنية والشركات الأجنبية خلال عشر سنوات. | H15: Gross Written Premium - Non-Life / Life - National vs Foreign | I15: 1C
B16: 2A | C16: اجمالي الأقساط المكتتبة وفقا لشركات التأمين الوطنية وشركات التأمين الاجنبية ووفقا لكل فرع من فروع التأمين. | H16: GWP by LOB - National vs Foreign | I16: 2A
B17: 2B | C17: اجمالي الأقساط المكتتبة وفقا لشركات التأمين التقليدي الوطنية وشركات التأمين التكافلي ووفقا لكل فرع من فروع التأمين. | H17: GWP by LOB - National Traditional vs Takaful | I17: 2B
B18: 2C | C18: اجمالي الأقساط المكتتبة لشركات التامين على الأشخاص وتكوين الأموال وشركات تامين الممتلكات والمسؤوليات والشركات التي تمارس النوعين معا. | H18: GWP by LOB - Life, Non-Life & Composite | I18: 2C
B19: 3A | C19: صافي الأقساط المكتتبة وفقا لشركات التأمين الوطنية والأجنبية. | H19: NWP by LOB - National vs Foreign | I19: 3A
B20: 3B | C20: صافي الأقساط المكتتبة وفقا لشركات التأمين التقليدي الوطنية وشركات التأمين التكافلي الوطنية. | H20: NWP by LOB - National Traditional vs Takaful | I20: 3B
B21: 4A | C21: نسبة الأقساط المحتفظ بها وفقا لشركات التأمين الوطنية وشركات التأمين الأجنبية. | H21: Premium Retention by LOB - National vs Foreign | I21: 4A
B22: 4B | C22: نسبة الأقساط المحتفظ بها وفقا لشركات التأمين التقليدي الوطنية وشركات التأمين التكافلي الوطنية. | H22: Premium Retention by LOB - National Traditional vs Takaful | I22: 4B
B23: 4C | C23: توزيع أقساط إعادة التأمين حسب التوزيع الجغرافي والتصنيف لكافة شركات التأمين العاملة في القطاع | H23: Ceded premiums per geographic location and rating - All Companies | I23: 4C
B24: 4D | C24: توزيع أقساط إعادة التأمين حسب التوزيع الجغرافي - شركات التأمين التقليدي الوطنية وشركات التأمين التكافلي الوطنية | H24: Ceded premiums per geographic location and rating - Traditional & Takaful National Companies | I24: 4D
B25: 4E | C25: توزيع أقساط إعادة التأمين حسب التوزيع الجغرافي والتصنيف لشركات التامين على الأشخاص وتكوين الأموال وشركات تامين الممتلكات والمسؤوليات والشركات التي تمارس النوعين معاً | H25: Ceded premiums per geographic location and rating - Life, Non-Life & Composite | I25: 4E
B26: 5A | C26: اجمالي الأقساط المكتسبة وفقا لشركات التأمين الوطنية وشركات التأمين الأجنبية. | H26: GEP by LOB - National vs Foreign | I26: 5A
B27: 5B | C27: اجمالي الأقساط المكتسبة وفقا لشركات التأمين التقليدي الوطنية وشركات التأمين التكافلي. | H27: GEP by LOB - National Traditional vs Takaful | I27: 5B
B28: 6A | C28: صافي الأقساط المكتسبة وفقا لشركات التأمين الوطنية وشركات التأمين الأجنبية. | H28: NEP by LOB - National vs Foreign | I28: 6A
B29: 6B | C29: صافي الأقساط المكتسبة وفقا لشركات التأمين التقليدي الوطنية وشركات التأمين التكافلي الوطنية. | H29: NEP by LOB - National Traditional vs Takaful | I29: 6B
B30: 7 | C30: اجمالي الأقساط المكتتبة وأعداد وثائق التأمين ومعدل القسط لكل وثيقة من كل فرع من فروع التامين. | H30: No of Policies & GWP per Policy by LOB | I30: 7
B31: 8 | C31: اجمالي الأقساط المكتتبة والعمولات المدفوعة حسب قنوات التوزيع لشركات التأمين الوطنية وشركات التأمين الأجنبية. | H31: GWP & Commission Paid by Distribution Channel - National vs Foreign | I31: 8
B32: 9A | C32: اجمالي المخصصات الفنية وفقا لشركات التأمين الوطنية وشركات التأمين الأجنبية. | H32: Gross Tech Prov by LOB - National vs Foreign | I32: 9A
B33: 9B | C33: اجمالي المخصصات الفنية وفقا لشركات التأمين التقليدي الوطنية وشركات التأمين التكافلي الوطنية. | H33: Gross Tech Prov by LOB - National Traditional vs Takaful | I33: 9B
B34: 9C | C34: اجمالي المخصصات الفنية لشركات التامين على الأشخاص وتكوين الأموال وشركات تامين الممتلكات والمسؤوليات والشركات التي تمارس النوعين معا. | H34: Gross Tech Prov by LOB - Life, Non-Life & Composite | I34: 9C
B35: 10A | C35: صافي المخصصات الفنية حسب فرع التأمين وفقا لشركات التأمين الوطنية والأجنبية. | H35: Net Tech Prov by LOB - National vs Foreign | I35: 10A
B36: 10B | C36: صافي المخصصات الفنية وفقا لشركات التأمين التقليدي الوطنية وشركات التأمين التكافلي. | H36: Net Tech Prov by LOB - National Traditional vs Takaful | I36: 10B
B37: 11A | C37: إجمالي انواع المخصصات الفنية قبل استبعاد إعادة التامين ووفقا لكل نوع من المخصصات الفنية. | H37: Gross / Net Tech Prov by Type by LOB - National vs Foreign | I37: 11A
B38: 11B | C38: صافي انواع المخصصات الفنية بعد استبعاد إعادة التامين ووفقا لكل نوع من المخصصات الفنية. | H38: Gross / Net Tech Prov by Type by LOB - National Traditional vs Takaful | I38: 11B
B39: 12A | C39: اجمالي المطالبات المدفوعة والمتكبدة وفقا لشركات التأمين الوطنية وشركات التأمين الأجنبية. | H39: Gross Claims Paid & Incurred by LOB - National vs Foreign | I39: 12A
B40: 12B | C40: اجمالي المطالبات المدفوعة والمتكبدة وفقا لشركات التأمين التقليدي الوطنية وشركات التأمين التكافلي الوطنية. | H40: Gross Claims Paid & Incurred by LOB - National Traditional vs Takaful | I40: 12B
B41: 13A | C41: صافي المطالبات المدفوعة والمتكبدة وفقا لشركات التأمين الوطنية وشركات التأمين الأجنبية. | H41: Net Claims Paid & Incurred by LOB - National vs Foreign | I41: 13A
B42: 13B | C42: صافي المطالبات المدفوعة والمتكبدة وفقا لشركات التأمين التقليدي الوطنية وشركات التأمين التكافلي الوطنية. | H42: Net Claims Paid & Incurred by LOB - National Traditional vs Takaful | I42: 13B
B43: 14A | C43: نسب الخسارة "الإجمالية" قبل استبعاد إعادة التأمين وفقا لشركات التأمين الوطنية والاجنبية. | H43: Gross Loss Ratios by LOB - National vs Foreign | I43: 14A
B44: 14B | C44: نسب الخسارة "الإجمالية" قبل استبعاد إعادة التأمين وفقا لشركات التأمين التقليدي الوطنية وشركات التأمين التكافلي الوطنية. | H44: Gross Loss Ratios by LOB - National Traditional vs Takaful | I44: 14B
B45: 15A | C45: نسب الخسارة "الصافية" بعد استبعاد إعادة التامين وفقا لشركات التأمين الوطنية وشركات التأمين الأجنبية. | H45: Net Loss Ratios by LOB - National vs Foreign | I45: 15A
B46: 15B | C46: نسب الخسارة "الصافية" بعد استبعاد إعادة التامين وفقا لشركات التأمين التقليدي الوطنية وشركات التأمين التكافلي الوطنية ووفقا لكل فرع من فروع التأمين. | H46: Net Loss Ratios by LOB - National Traditional vs Takaful | I46: 15B
B47: 16A | C47: نسبة العمولات ونسبة المصاريف والنسبة المجمعة "الإجمالية" قبل استبعاد إعادة التأمين وفقا لشركات التأمين الوطنية والاجنبية ووفقا لكل فرع من فروع التأمين. | H47: Gross Combined Ratios by LOB - National vs Foreign | I47: 16A
B48: 16B | C48: نسبة العمولات ونسبة المصاريف والنسبة المجمعة "الإجمالية" قبل استبعاد إعادة التأمين لشركات التأمين التقليدي الوطنية وشركات التأمين التكافلي الوطنية ووفقا لكل فرع من فروع التأمين. | H48: Gross Combined Ratios by LOB - National Traditional vs Takaful | I48: 16B
B49: 17A | C49: نسبة العمولات ونسبة المصاريف والنسبة المجمعة "الصافية" بعد استبعاد إعادة التأمين وفقا لشركات التأمين الوطنية وشركات التأمين الاجنبية ووفقا لكل فرع من فروع التأمين. | H49: Net Combined Ratios by LOB - National vs Foreign | I49: 17A
B50: 17B | C50: نسبة العمولات ونسبة المصاريف والنسبة المجمعة "الصافية" بعد استبعاد إعادة التأمين لشركات التأمين التقليدي الوطنية وشركات التأمين التكافلي ووفقا لكل فرع من فروع التأمين. | H50: Net Combined Ratios by LOB - National Traditional vs Takaful | I50: 17B
B51: 18 | C51: تحليل ربحية فرع تأمين المركبات “إجمالي" قبل استبعاد إعادة التأمين وبعد استبعاد إعادة التامين "صافي". | H51: Motor Profitability by Policy Type - Gross / Net | I51: 18
B52: 19 | C52: تحليل ربحية فرع التأمين الصحي “إجمالي" قبل استبعاد إعادة التأمين و"صافي" بعد استبعاد إعادة التامين. | H52: Medical Profitability by Policy Type - Gross / Net | I52: 19
B53: 20A | C53: اجمالي الأموال المستثمرة للشركات وفقا للفئات الاستثمارية وفقا لشركات التأمين الوطنية وشركات التأمين الأجنبية. | H53: Invested Assets by Class - National vs Foreign | I53: 20A
B54: 20B | C54: اجمالي الأموال المستثمرة للشركات وفقا للفئات الاستثمارية لشركات التأمين التقليدي الوطنية وشركات التأمين التكافلي. | H54: Invested Assets by Class - National Traditional vs Takaful | I54: 20B
B55: 21A | C55: قائمة المركز المالي للشركات وفقا لشركات التأمين الوطنية وشركات الاجنبية العاملة في الدولة. | H55: Balance Sheet Key Figures - National vs Foreign | I55: 21A
B56: 21B | C56: قائمة المركز المالي لشركات التأمين التقليدي الوطنية وشركات التأمين التكافلي الوطنية. | H56: Balance Sheet Key Figures - National Traditional vs Takaful | I56: 21B
B57: 22A | C57: قائمة الدخل للشركات وفقا لشركات التأمين الوطنية والأجنبية. | H57: Income Statement Key Figures - National vs Foreign | I57: 22A
B58: 22B | C58: قائمة الدخل لشركات التأمين التقليدي الوطنية وشركات التأمين التكافلي الوطنية. | H58: Income Statement Key Figures - National Traditional vs Takaful | I58: 22B
B59: 23A | C59: تحليل الملاءة المالية لكافة شركات التأمين العاملة في القطاع. | H59: Solvency Analysis - All Companies | I59: 23A
B60: 23B | C60: تحليل الملاءة المالية لشركات التأمين الوطنية. | H60: Solvency Analysis - National Companies | I60: 23B
B61: 24A | C61: اجمالي الأقساط المكتتبة حسب الامارة ووفقا لكل فرع من فروع التأمين. | H61: GWP by LOB by Emirate | I61: 24A
B62: 24B | C62: صافي الأقساط المكتتبة حسب الامارة ووفقا لكل فرع من فروع التأمين. | H62: NWP by LOB by Emirate | I62: 24B
B63: 25 | C63: عدد وثائق التأمين حسب الامارة ووفقا لكل فرع من فروع التأمين. | H63: Number of Policies by Emirate | I63: 25
B64: 26A | C64: اجمالي الأقساط غير المكتسبة حسب الامارة ووفقا لكل فرع من فروع التأمين. | H64: Gross UPR by LOB by Emirate | I64: 26A
B65: 26B | C65: صافي الأقساط غير المكتسبة حسب الامارة ووفقا لكل فرع من فروع التأمين. | H65: Net UPR by LOB by Emirate | I65: 26B
B66: 27A | C66: اجمالي المطالبات المدفوعة حسب الامارة ووفقا لكل فرع من فروع التأمين. | H66: Gross Paid Claims by LOB by Emirate | I66: 27A
B67: 27B | C67: صافي المطالبات المدفوعة حسب الامارة ووفقا لكل فرع من فروع التأمين. | H67: Net Paid Claims by LOB by Emirate | I67: 27B
B68: 28A | C68: بيانات التأمين لإمارة دبي بالقيمة الاجمالية. | H68: Gross Results for Dubai | I68: 28A
B69: 28B | C69: بيانات التأمين لإمارة دبي بالقيمة الصافية. | H69: Net Results for Dubai | I69: 28B
B70: 29A | C70: بيانات التأمين لإمارة أبو ظبي بالقيمة الاجمالية. | H70: Gross Results for Abu Dhabi | I70: 29A
B71: 29B | C71: بيانات التأمين لإمارة أبو ظبي بالقيمة الصافية. | H71: Net Results for Abu Dhabi | I71: 29B
B72: 30A | C72: بيانات التأمين لإمارة عجمان بالقيمة الاجمالية. | H72: Gross Results for Ajman | I72: 30A
B73: 30B | C73: بيانات التأمين لإمارة عجمان بالقيمة الصافية. | H73: Net Results for Ajman | I73: 30B
B74: 31A | C74: بيانات التأمين لإمارة أم القيوين بالقيمة الاجمالية. | H74: Gross Results for Umm Al Quwain | I74: 31A
B75: 31B | C75: بيانات التأمين لإمارة ام القيوين بالقيمة الصافية. | H75: Net Results for Umm Al Quwain | I75: 31B
B76: 32A | C76: بيانات التأمين لإمارة الشارقة بالقيمة الاجمالية. | H76: Gross Results for Sharjah | I76: 32A
B77: 32B | C77: بيانات التأمين لإمارة الشارقة بالقيمة الصافية. | H77: Net Results for Sharjah | I77: 32B
B78: 33A | C78: بيانات التأمين لإمارة رأس الخيمة بالقيمة الاجمالية. | H78: Gross Results for Ras Al Khaimah | I78: 33A
B79: 33B | C79: بيانات التأمين لإمارة رأس الخيمة بالقيمة الصافية. | H79: Net Results for Ras Al Khaimah | I79: 33B
B80: 34A | C80: بيانات التأمين لإمارة الفجيرة بالقيمة الاجمالية. | H80: Gross Results for Fujairah | I80: 34A
B81: 34B | C81: بيانات التأمين لإمارة الفجيرة بالقيمة الصافية. | H81: Net Results for Fujairah | I81: 34B
B82: 35 | C82: دليل شركات التأمين في دولة الإمارات العربية المتحدة | H82: Directory of insurance companies in the UAE | I82: 35
B83: 36 | C83: قائمة مُصطلحات التأمين المُستخدمة في التقرير | H83: Glossary of Insurance Terms Used in The Report | I83: 36

Sheet Insurance Sector Development

Sheet 1A
B6: إجمالي الاقساط المكتتبة
B7: Gross Written Premium
B8: (2018 - 2023)
B11: جدول رقم 1A | I11: TABLE 1A
B12: بالألف درهم | I12: AED in 000's
B13: البيــــــــان | C13: 2018 | D13: 2019 | E13: 2020 | F13: 2021 | G13: 2022 | H13: 2023 | I13: DESCRIPTION
B14: تأمين الممتلكات والمسؤوليات | C14: 31747732.61 | D14: 32526275.99 | E14: 32166056.18 | F14: 32940064.95 | G14: 37106523.92 | H14: 43837231.3 | I14: Property and Liability Insurance
B15: التأمين على الأشخاص وتكوين الأموال | C15: 11970700.23 | D15: 11494538.22 | E15: 10330736.22 | F15: 11376964.14 | G15: 10139921.51 | H15: 9540611.513 | I15: Insurance of Persons & Fund Accumulation
B16: اجمالي الأقساط | C16: =SUM(C14:C15) -> 43718432.84 | D16: 44020814.21 | E16: 42496792.4 | F16: 44317029.09 | G16: 47246445.43 | H16: 53377842.82 | I16: TOTAL
B18: جدول رقم 1AA | C18: National Companies الشركات الوطنية | I18: TABLE 1AA
B19: بالألف درهم | I19: AED in 000's
B20: البيــــــــان | C20: 2018 | D20: 2019 | E20: 2020 | F20: 2021 | G20: 2022 | H20: 2023 | I20: DESCRIPTION
B21: تأمين الممتلكات والمسؤوليات | C21: 24692124.36 | D21: 25988129.04 | E21: 26054212.76 | F21: 26629539.15 | G21: 30289262.55 | H21: 35811365.73 | I21: Property and Liability Insurance
B22: التأمين على الأشخاص وتكوين الأموال | C22: 2990432.688 | D22: 3049857.184 | E22: 3008326.207 | F22: 3639522.35 | G22: 3438475.659 | H22: 3328659.48 | I22: Insurance of Persons & Fund Accumulation
B23: اجمالي الأقساط | C23: =SUM(C21:C22) -> 27682557.05 | D23: 29037986.23 | E23: 29062538.96 | F23: 30269061.5 | G23: 33727738.21 | H23: 39140025.21 | I23: TOTAL
B25: حصة الشركات الوطنية | I25: Share of National Companies
B26: البيــــــــان | C26: 2018 | D26: 2019 | E26: 2020 | F26: 2021 | G26: 2022 | H26: 2023 | I26: DESCRIPTION
B27: تأمين الممتلكات والمسؤوليات | C27: =C21/C14 -> 0.7777602471 | D27: 0.7989887638 | E27: 0.8099908988 | F27: 0.8084240025 | G27: 0.8162786311 | H27: =H21/H14 -> 0.8169166862 | I27: Property and Liability Insurance
B28: التأمين على الأشخاص وتكوين الأموال | C28: 0.2498126786 | D28: 0.2653309881 | E28: 0.2912015314 | F28: 0.3199027706 | G28: 0.3391027886 | H28: =H22/H15 -> 0.348893724 | I28: Insurance of Persons & Fund Accumulation
B29: اجمالي الأقساط | C29: 0.6332010379 | D29: 0.6596421885 | E29: 0.6838760604 | F29: 0.6830119735 | G29: 0.7138682689 | H29: =H23/H16 -> 0.7332635255 | I29: TOTAL
B31: جدول رقم 1AB | C31: Foreign Branches الشركات الأجنبية | I31: TABLE 1AB
B32: بالألف درهم | I32: AED in 000's
B33: البيــــــــان | C33: 2018 | D33: 2019 | E33: 2020 | F33: 2021 | G33: 2022 | H33: 2023 | I33: DESCRIPTION
B34: تأمين الممتلكات والمسؤوليات | C34: 7055608 | D34: 6538147 | E34: 6111843 | F34: 6310526 | G34: 6817261.37 | H34: 8025865.574 | I34: Property and Liability Insurance
B35: التأمين على الأشخاص وتكوين الأموال | C35: 8980268 | D35: 8444681 | E35: 7322410 | F35: 7737442 | G35: 6701445.849 | H35: 6211952.033 | I35: Insurance of Persons & Fund Accumulation
B36: اجمالي الأقساط | C36: =SUM(C34:C35) -> 16035876 | D36: 14982828 | E36: 13434253 | F36: =SUM(F34:F35) -> 14047968 | G36: =SUM(G34:G35) -> 13518707.22 | H36: =SUM(H34:H35) -> 14237817.61 | I36: TOTAL
B38: حصة الشركات الأجنبية | I38: Share of Foreign Companies
B39: البيــــــــان | C39: 2018 | D39: 2019 | E39: 2020 | F39: 2021 | G39: 2022 | H39: 2023 | I39: DESCRIPTION
B40: تأمين الممتلكات والمسؤوليات | C40: =C34/C14 -> 0.222239745 | D40: 0.2010112379 | E40: 0.190009088 | F40: 0.1915760036 | G40: 0.1837213689 | H40: =H34/H14 -> 0.1830833138 | I40: Property and Liability Insurance
B41: التأمين على الأشخاص وتكوين الأموال | C41: 0.75018736 | D41: 0.7346690086 | E41: 0.7087984676 | F41: 0.6800972477 | G41: 0.6608972114 | H41: =H35/H15 -> 0.651106276 | I41: Insurance of Persons & Fund Accumulation
B42: اجمالي الأقساط | C42: 0.3667989669 | D42: 0.3403578118 | E42: 0.3161239294 | F42: 0.3169880357 | G42: 0.2861317311 | H42: =H36/H16 -> 0.2667364745 | I42: TOTAL

Sheet 1B
B6: إجمالي الاقساط المكتتبة
B7: Gross Written Premium
B8: (2018 - 2023)
B11: جدول رقم 1B | I11: TABLE 1B
B12: بالألف درهم | I12: AED in 000's
B13: البيــــــــان | C13: 2018 | D13: 2019 | E13: 2020 | F13: 2021 | G13: 2022 | H13: 2023 | I13: DESCRIPTION
B14: تأمين الممتلكات والمسؤوليات | C14: 24692124.36 | D14: 25988129.04 | E14: 26054212.76 | F14: 26629539.15 | G14: 30289262.55 | H14: 35811365.73 | I14: Property and Liability Insurance
B15: التأمين على الأشخاص وتكوين الأموال | C15: 2990432.688 | D15: 3049857.184 | E15: 3008326.207 | F15: 3639522.35 | G15: 3438475.659 | H15: 3328659.48 | I15: Insurance of Persons & Fund Accumulation
B16: اجمالي الأقساط | C16: =SUM(C14:C15) -> 27682557.05 | D16: 29037986.23 | E16: 29062538.96 | F16: 30269061.5 | G16: 33727738.21 | H16: 39140025.21 | I16: TOTAL
B18: جدول رقم 1BA | C18: National Traditional Insurance Companies شركات التأمين التقليدي الوطنية | I18: TABLE 1BA
B19: بالألف درهم | I19: AED in 000's
B20: البيــــــــان | C20: 2018 | D20: 2019 | E20: 2020 | F20: 2021 | G20: 2022 | H20: 2023 | I20: DESCRIPTION
B21: تأمين الممتلكات والمسؤوليات | C21: 21909074.99 | D21: 23090567.86 | E21: 23247009.88 | F21: 23874472.57 | G21: 27430471.11 | H21: 32309076.19 | I21: Property and Liability Insurance
B22: التأمين على الأشخاص وتكوين الأموال | C22: 1347855.84 | D22: 1352897.674 | E22: 1487048.125 | F22: 2043977.188 | G22: 2127418.427 | H22: 1976398.59 | I22: Insurance of Persons & Fund Accumulation
B23: اجمالي الأقساط | C23: =SUM(C21:C22) -> 23256930.83 | D23: 24443465.53 | E23: 24734058.01 | F23: 25918449.76 | G23: 29557889.53 | H23: 34285474.78 | I23: TOTAL
B25: حصة شركات التأمين التقليدي | I25: Share of Traditional Insurance Companies
B26: البيــــــــان | C26: 2018 | D26: 2019 | E26: 2020 | F26: 2021 | G26: 2022 | H26: 2023 | I26: DESCRIPTION
B27: تأمين الممتلكات والمسؤوليات | C27: =C21/C14 -> 0.8872899987 | D27: 0.8885044329 | E27: 0.8922553177 | F27: 0.896540959 | G27: 0.9056170007 | H27: =H21/H14 -> 0.9022017322 | I27: Property and Liability Insurance
B28: التأمين على الأشخاص وتكوين الأموال | C28: 0.4507226817 | D28: 0.4435937791 | E28: 0.4943107972 | F28: 0.56160589 | G28: 0.6187097535 | H28: =H22/H15 -> 0.5937521102 | I28: Insurance of Persons & Fund Accumulation
B29: اجمالي الأقساط | C29: 0.8401294285 | D29: 0.8417755053 | E29: 0.8510632205 | F29: 0.8562686939 | G29: 0.8763673789 | H29: =H23/H16 -> 0.8759696653 | I29: TOTAL
B31: جدول رقم 1BB | C31: National Takaful Insurance Companies شركات التأمين التكافلي الوطنية | I31: TABLE 1BB
B32: بالألف درهم | I32: AED in 000's
B33: البيــــــــان | C33: 2018 | D33: 2019 | E33: 2020 | F33: 2021 | G33: 2022 | H33: 2023 | I33: DESCRIPTION
B34: تأمين الممتلكات والمسؤوليات | C34: 2783049.368 | D34: 2897561.187 | E34: 2807202.876 | F34: 2755066.582 | G34: 2858791.447 | H34: 3502289.537 | I34: Property and Liability Insurance
B35: التأمين على الأشخاص وتكوين الأموال | C35: 1642576.847 | D35: 1696959.51 | E35: 1521278.081 | F35: 1595545.161 | G35: 1311057.232 | H35: 1352260.89 | I35: Insurance of Persons & Fund Accumulation
B36: اجمالي الأقساط | C36: =SUM(C34:C35) -> 4425626.215 | D36: 4594520.697 | E36: 4328480.957 | F36: 4350611.743 | G36: 4169848.679 | H36: 4854550.427 | I36: TOTAL
B38: حصة شركات التأمين التكافلي | I38: Share of Takaful Insurance Companies
B39: البيــــــــان | C39: 2018 | D39: 2019 | E39: 2020 | F39: 2021 | G39: 2022 | H39: 2023 | I39: DESCRIPTION
B40: تأمين الممتلكات والمسؤوليات | C40: =C34/C14 -> 0.1127100013 | D40: =D34/D14 -> 0.1114955671 | E40: 0.1077446823 | F40: 0.103459041 | G40: 0.09438299934 | H40: =H34/H14 -> 0.09779826783 | I40: Property and Liability Insurance
B41: التأمين على الأشخاص وتكوين الأموال | C41: 0.5492773183 | D41: 0.5564062209 | E41: 0.5056892028 | F41: 0.43839411 | G41: 0.3812902465 | H41: =H35/H15 -> 0.4062478898 | I41: Insurance of Persons & Fund Accumulation
B42: اجمالي الأقساط | C42: 0.1598705715 | D42: 0.1582244947 | E42: 0.1489367795 | F42: 0.1437313061 | G42: 0.1236326211 | H42: =H36/H16 -> 0.1240303347 | I42: TOTAL

Sheet 1C
B6: إجمالي الاقساط المكتتبة
B7: Gross Written Premium
B8: (2013 - 2023)
B10: جدول رقم 1C | N10: TABLE 1C
B11: بالألف درهم | N11: AED in 000's
B12: البيــــــــان | C12: 2013 | D12: 2014 | E12: 2015 | F12: 2016 | G12: 2017 | H12: 2018 | I12: 2019 | J12: 2020 | K12: 2021 | L12: 2022 | M12: 2023 | N12: DESCRIPTION
B13: تأمين الممتلكات والمسؤوليات | C13: 22473259 | D13: 24888224 | E13: 27464821.68 | F13: 29863254.12 | G13: 33079472.07 | H13: 31747732.61 | I13: 32526275.99 | J13: 32166056.18 | K13: 32940064.95 | L13: 37106523.92 | M13: 43837231.3 | N13: Property and Liability Insurance
B14: التأمين على الأشخاص وتكوين الأموال | C14: 7030665 | D14: 8645603 | E14: 9488889.281 | F14: 10145897.15 | G14: 11744756.07 | H14: 11970700.23 | I14: 11494538.22 | J14: 10330736.22 | K14: 11376964.14 | L14: 10139921.51 | M14: 9540611.513 | N14: Insurance of Persons & Fund Accumulation
B15: اجمالي الأقساط | C15: =SUM(C13:C14) -> 29503924 | D15: =SUM(D13:D14) -> 33533827 | E15: 36953710.97 | F15: 40009151.27 | G15: 44824228.14 | H15: 43718432.84 | I15: 44020814.21 | J15: 42496792.4 | K15: 44317029.09 | L15: 47246445.43 | M15: 53377842.82 | N15: TOTAL
B17: جدول رقم 1CA | C17: National Companies الشركات الوطنية | N17: TABLE 1CA
B18: بالألف درهم | N18: AED in 000's
B19: البيــــــــان | C19: 2013 | D19: 2014 | E19: 2015 | F19: 2016 | G19: 2017 | H19: 2018 | I19: 2019 | J19: 2020 | K19: 2021 | L19: 2022 | M19: 2023 | N19: DESCRIPTION
B20: تأمين الممتلكات والمسؤوليات | C20: 16714660 | D20: 18658198 | E20: 20347929 | F20: 22691772.4 | G20: 25771056.49 | H20: 24692124.36 | I20: 25988129.04 | J20: 26054212.76 | K20: 26629539.15 | L20: 30289262.55 | M20: 35811365.73 | N20: Property and Liability Insurance
B21: التأمين على الأشخاص وتكوين الأموال | C21: 1533114 | D21: 1563509 | E21: 1953052 | F21: 2203769.705 | G21: 2372508.936 | H21: 2990432.688 | I21: 3049857.184 | J21: 3008326.207 | K21: 3639522.35 | L21: 3438475.659 | M21: 3328659.48 | N21: Insurance of Persons & Fund Accumulation
B22: اجمالي الأقساط | C22: =SUM(C20:C21) -> 18247774 | D22: =SUM(D20:D21) -> 20221707 | E22: 22300981 | F22: 24895542.1 | G22: 28143565.43 | H22: 27682557.05 | I22: 29037986.23 | J22: 29062538.96 | K22: 30269061.5 | L22: 33727738.21 | M22: 39140025.21 | N22: TOTAL
B24: حصة الشركات الوطنية | N24: Share of National Companies
B25: البيــــــــان | C25: 2013 | D25: 2014 | E25: 2015 | F25: 2016 | G25: 2017 | H25: 2018 | I25: 2019 | J25: 2020 | K25: 2021 | L25: 2022 | M25: 2023 | N25: DESCRIPTION
B26: تأمين الممتلكات والمسؤوليات | C26: =C20/C13 -> 0.7437577256 | D26: 0.7496797682 | E26: 0.7408724234 | F26: 0.7598559857 | G26: 0.779064927 | H26: 0.7777602471 | I26: 0.7989887638 | J26: 0.8099908988 | K26: 0.8084240025 | L26: 0.8162786311 | M26: =M20/M13 -> 0.8169166862 | N26: Property and Liability Insurance
B27: التأمين على الأشخاص وتكوين الأموال | C27: =C21/C14 -> 0.2180610227 | D27: 0.1808444131 | E27: 0.2058251437 | F27: 0.2172079682 | G27: 0.2020058076 | H27: 0.2498126786 | I27: 0.2653309881 | J27: 0.2912015314 | K27: 0.3199027706 | L27: 0.3391027886 | M27: =M21/M14 -> 0.348893724 | N27: Insurance of Persons & Fund Accumulation
B28: اجمالي الأقساط | C28: =C22/C15 -> 0.618486341 | D28: 0.6030241344 | E28: 0.6034842081 | F28: 0.6222461939 | G28: 0.6278650318 | H28: 0.6332010379 | I28: 0.6596421885 | J28: 0.6838760604 | K28: 0.6830119735 | L28: 0.7138682689 | M28: =M22/M15 -> 0.7332635255 | N28: TOTAL
B30: جدول رقم 1CB | C30: Foreign Branches الشركات الأجنبية | N30: TABLE 1CB
B31: بالألف درهم | N31: AED in 000's
B32: البيــــــــان | C32: 2013 | D32: 2014 | E32: 2015 | F32: 2016 | G32: 2017 | H32: 2018 | I32: 2019 | J32: 2020 | K32: 2021 | L32: 2022 | M32: 2023 | N32: DESCRIPTION
B33: تأمين الممتلكات والمسؤوليات | C33: 5758599 | D33: 6230026 | E33: 7116892 | F33: 7171481.725 | G33: 7308415.578 | H33: 7055608.25 | I33: 6538146.946 | J33: 6111843.423 | K33: 6310525.8 | L33: 6817261.37 | M33: 8025865.574 | N33: Property and Liability Insurance
B34: التأمين على الأشخاص وتكوين الأموال | C34: 5497551 | D34: 7082094 | E34: 7535837 | F34: 7942127.445 | G34: 9372247.136 | H34: 8980267.538 | I34: 8444681.037 | J34: 7322410.01 | K34: 7737441.791 | L34: 6701445.849 | M34: 6211952.033 | N34: Insurance of Persons & Fund Accumulation
B35: اجمالي الأقساط | C35: =SUM(C33:C34) -> 11256150 | D35: =SUM(D33:D34) -> 13312120 | E35: 14652729 | F35: 15113609.17 | G35: 16680662.71 | H35: 16035875.79 | I35: 14982827.98 | J35: 13434253.43 | K35: 14047967.59 | L35: 13518707.22 | M35: 14237817.61 | N35: TOTAL
B37: حصة الشركات الأجنبية | N37: Share of Foreign Companies
B38: البيــــــــان | C38: 2013 | D38: 2014 | E38: 2015 | F38: 2016 | G38: 2017 | H38: 2018 | I38: 2019 | J38: 2020 | K38: 2021 | L38: 2022 | M38: 2023 | N38: DESCRIPTION
B39: تأمين الممتلكات والمسؤوليات | C39: =C33/C13 -> 0.2562422744 | D39: 0.2503202318 | E39: 0.2591275517 | F39: 0.2401440143 | G39: 0.220935073 | H39: 0.2222397529 | I39: 0.2010112362 | J39: 0.1900091012 | K39: 0.1915759975 | L39: 0.1837213689 | M39: =M33/M13 -> 0.1830833138 | N39: Property and Liability Insurance
B40: التأمين على الأشخاص وتكوين الأموال | C40: =C34/C14 -> 0.7819389773 | D40: 0.8191555869 | E40: 0.7941748266 | F40: 0.7827920318 | G40: 0.7979941924 | H40: 0.7501873214 | I40: 0.7346690119 | J40: 0.7087984686 | K40: 0.6800972294 | L40: 0.6608972114 | M40: =M34/M14 -> 0.651106276 | N40: Insurance of Persons & Fund Accumulation
B41: اجمالي الأقساط | C41: =C35/C15 -> 0.381513659 | D41: 0.3969758656 | E41: 0.3965157657 | F41: 0.3777538061 | G41: 0.3721349682 | H41: 0.3667989621 | I41: 0.3403578115 | J41: 0.3161239396 | K41: 0.3169880265 | L41: 0.2861317311 | M41: =M35/M15 -> 0.2667364745 | N41: TOTAL

Sheet 2A
B6: إجمالي الأقساط المكتتبة حسب فرع التأمين
B7: الشركات الوطنية والاجنبية
B8: Gross Written Premium by Line of Business
B9: National & Foreign Companies
B11: جدول رقم 2A | I11: TABLE 2A
B12: بالألف درهم | I12: AED in 000's
B13: فروع التأمين | C13: الشركات الوطنية | E13: الشركات الأجنبية | G13: الاجمالي | I13: Line of Business
C14: NATIONAL COMPANIES | E14: FOREIGN COMPANIES | G14: TOTAL
C15: 2022 | D15: 2023 | E15: 2022 | F15: 2023 | G15: 2022 | H15: 2023
B16: تأمين الحريق | C16: 3717305.093 | D16: 3896252.003 | E16: 586025.5849 | F16: 633390.9815 | G16: =E16+C16 -> 4303330.678 | H16: =F16+D16 -> 4529642.984 | I16: Fire
B17: التأمين البحري والطيران | C17: 1505313.444 | D17: 1881747.873 | E17: 314019.9794 | F17: 334045.0072 | G17: 1819333.424 | H17: 2215792.881 | I17: Marine & Aviation
B18: تأمين السيارات والمركبات الأخرى | C18: 3494243.657 | D18: 4318643.825 | E18: 1264617.05 | F18: 1567919.593 | G18: 4758860.707 | H18: 5886563.418 | I18: Motor & Transportation
B19: التأمين الهندسي والانشاءات والطاقة | C19: 3103775.44 | D19: 3162435.288 | E19: 118896.5704 | F19: 154579.8515 | G19: 3222672.011 | H19: 3317015.139 | I19: Engineering, Construction & Energy
B20: أخرى | C20: 3209566.038 | D20: 4285899.469 | E20: 497395.0506 | F20: 531065.5098 | G20: 3706961.089 | H20: 4816964.979 | I20: Other
B21: اعادة التأمين غير النسبية - المسؤوليات والممتلكات | C21: 5710.81882 | D21: 5989.4324 | E21: 0 | F21: 0 | G21: 5710.81882 | H21: 5989.4324 | I21: Reinsurance - Property & Liability
B22: المجموع - تأمين الممتلكات والمسؤوليات | C22: =C16+C17+C18+C19+C20+C21 -> 15035914.49 | D22: 17550967.89 | E22: 2780954.236 | F22: 3221000.943 | G22: =G16+G17+G18+G19+G20+G21 -> 17816868.73 | H22: 20771968.83 | I22: Total - Property & Liability Insurance
B24: المجموع - تأمين صحي | C24: 15959199.56 | D24: 18983394.64 | E24: 5782769.967 | F24: 6913648.708 | G24: =E24+C24 -> 21741969.53 | H24: 25897043.35 | I24: Total - Health Insurance
B26: تأمين حياة جماعي | C26: 740245.5426 | D26: 817542.1435 | E26: 172663.315 | F26: 202734.9294 | G26: =E26+C26 -> 912908.8576 | H26: 1020277.073 | I26: Group Life
B27: تأمين ائتمان حياة جماعي | C27: 807626.1132 | D27: 541284.1291 | E27: 20818 | F27: 19901 | G27: 828444.1132 | H27: 561185.1291 | I27: Group Credit Life
B28: تأمين حياة فردي | C28: 1184752.507 | D28: 1246836.409 | E28: 4614934.563 | F28: 3832384.539 | G28: 5799687.069 | H28: 5079220.948 | I28: Individual Life
B29: دفعات الحياة وتكوين الأموال | C29: 0 | D29: 0 | E29: 146567.1386 | F29: 48147.48767 | G29: 146567.1386 | H29: 48147.48767 | I29: Annuities & Fund Accumulation
B30: المجموع - تأمين الأشخاص وعمليات تكوين الأموال | C30: =C26+C27+C28+C29 -> 2732624.162 | D30: 2605662.681 | E30: 4954983.016 | F30: 4103167.956 | G30: =SUM(G26:G29) -> 7687607.179 | H30: =SUM(H26:H29) -> 6708830.638 | I30: Total - Insurance of Persons & Fund Accumulation
B32: المجموع - كافة فروع التأمين | C32: =C22+C24+C30 -> 33727738.21 | D32: 39140025.21 | E32: 13518707.22 | F32: 14237817.61 | G32: =G22+G24+G30 -> 47246445.43 | H32: =H22+H24+H30 -> 53377842.82 | I32: TOTAL - All Types of Business Combined

Sheet 2B
B6: إجمالي الأقساط المكتتبة حسب فرع التأمين
B7: شركات التأمين التقليدي الوطنية وشركات التأمين التكافلي الوطنية
B8: Gross Written Premium by Line of Business
B9: Traditional & Takaful National Companies
B11: جدول رقم 2B | I11: TABLE 2B
B12: بالألف درهم | I12: AED in 000's
B13: فروع التأمين | C13: شركات التأمين التقليدي الوطنية | E13: شركات التأمين التكافلي الوطنية | G13: الشركات الوطنية | I13: Line of Business
C14: TRADITIONAL COMPANIES | E14: TAKAFUL COMPANIES | G14: NATIONAL COMPANIES
C15: 2022 | D15: 2023 | E15: 2022 | F15: 2023 | G15: 2022 | H15: 2023
B16: تأمين الحريق | C16: 3307409.054 | D16: 3394877.671 | E16: 409896.039 | F16: 501374.3319 | G16: =E16+C16 -> 3717305.093 | H16: =F16+D16 -> 3896252.003 | I16: Fire
B17: التأمين البحري والطيران | C17: 1409521.278 | D17: 1758771.824 | E17: 95792.16667 | F17: 122976.0493 | G17: =E17+C17 -> 1505313.444 | H17: 1881747.873 | I17: Marine & Aviation
B18: تأمين السيارات والمركبات الأخرى | C18: 2598717.523 | D18: 3216766.898 | E18: 895526.1335 | F18: 1101876.927 | G18: 3494243.657 | H18: 4318643.825 | I18: Motor & Transportation
B19: التأمين الهندسي والانشاءات والطاقة | C19: 2982862.144 | D19: 2989971.871 | E19: 120913.2963 | F19: 172463.4163 | G19: 3103775.44 | H19: 3162435.288 | I19: Engineering, Construction & Energy
B20: أخرى | C20: 2840968.229 | D20: 3841607.987 | E20: 368597.8093 | F20: 444291.4824 | G20: 3209566.038 | H20: 4285899.469 | I20: Other
B21: اعادة التأمين غير النسبية - المسؤوليات والممتلكات | C21: 5710.81882 | D21: 5989.4324 | E21: 0 | F21: 0 | G21: =E21+C21 -> 5710.81882 | H21: 5989.4324 | I21: Reinsurance - Property & Liability
B22: المجموع - تأمين الممتلكات والمسؤوليات | C22: =C16+C17+C18+C19+C20+C21 -> 13145189.05 | D22: =D16+D17+D18+D19+D20+D21 -> 15207985.68 | E22: =E16+E17+E18+E19+E20+E21 -> 1890725.445 | F22: 2342982.207 | G22: =G16+G17+G18+G19+G20+G21 -> 15035914.49 | H22: =H16+H17+H18+H19+H20+H21 -> 17550967.89 | I22: Total - Property & Liability Insurance
B24: المجموع - تأمين صحي | C24: 14338584.57 | D24: 17176409.55 | E24: 1620614.989 | F24: 1806985.085 | G24: =E24+C24 -> 15959199.56 | H24: =F24+D24 -> 18983394.64 | I24: Total - Health Insurance
B26: تأمين حياة جماعي | C26: 584436.7123 | D26: 670581.1566 | E26: 155808.8303 | F26: 146960.9868 | G26: =E26+C26 -> 740245.5426 | H26: 817542.1435 | I26: Group Life
B27: تأمين ائتمان حياة جماعي | C27: 645669.2958 | D27: 311872.434 | E27: 161956.8174 | F27: 229411.6951 | G27: 807626.1132 | H27: 541284.1291 | I27: Group Credit Life
B28: تأمين حياة فردي | C28: 844009.909 | D28: 918625.9552 | E28: 340742.5978 | F28: 328210.4534 | G28: 1184752.507 | H28: 1246836.409 | I28: Individual Life
B29: دفعات الحياة وتكوين الأموال | C29: 0 | D29: 0 | E29: 0 | F29: 0 | G29: 0 | H29: 0 | I29: Annuities & Fund Accumulation
B30: المجموع - تأمين الأشخاص وعمليات تكوين الأموال | C30: =C26+C27+C28+C29 -> 2074115.917 | D30: =D26+D27+D28+D29 -> 1901079.546 | E30: =E26+E27+E28+E29 -> 658508.2454 | F30: 704583.1352 | G30: 2732624.162 | H30: 2605662.681 | I30: Total - Insurance of Persons & Fund Accumulation
B32: المجموع - كافة فروع التأمين | C32: =C22+C24+C30 -> 29557889.53 | D32: =D22+D24+D30 -> 34285474.78 | E32: =E22+E24+E30 -> 4169848.679 | F32: 4854550.427 | G32: 33727738.21 | H32: 39140025.21 | I32: TOTAL - All Types of Business Combined

Sheet 2C
B6: إجمالي الأقساط المكتتبة حسب فرع التأمين
B7: شركات التأمين على الحياة وشركات التأمينات العامة وشركات التأمين على الحياة والتأمينات العامة
B8: Gross Written Premium by Line of Business
B9: Life, Non-Life & Composite Companies
B11: جدول رقم 2C | K11: TABLE 2C
B12: بالألف درهم | K12: AED in 000's
B13: فروع التأمين | C13: شركات التأمين على الأشخاص وتكوين الأموال | E13: شركات تأمين الممتلكات والمسؤوليات | G13: شركات التأمين (النوعين معاً) | I13: الاجمالي | K13: Line of Business
C14: LIFE COMPANIES | E14: NON-LIFE COMPANIES | G14: COMPOSITE COMPANIES | I14: TOTAL
C15: 2022 | D15: 2023 | E15: 2022 | F15: 2023 | G15: 2022 | H15: 2023 | I15: 2022 | J15: 2023
B16: تأمين الحريق | C16: 0 | D16: 0 | E16: 1076014.865 | F16: 1213934.977 | G16: 3227315.812 | H16: 3315708.007 | I16: =G16+E16+C16 -> 4303330.678 | J16: =H16+F16+D16 -> 4529642.984 | K16: Fire
B17: التأمين البحري والطيران | C17: 0 | D17: 0 | E17: 403549.8076 | F17: 467836.0057 | G17: 1415783.616 | H17: 1747956.875 | I17: =G17+E17+C17 -> 1819333.424 | J17: 2215792.881 | K17: Marine & Aviation
B18: تأمين السيارات والمركبات الأخرى | C18: 0 | D18: 0 | E18: 2235925.039 | F18: 2548343.156 | G18: 2522935.668 | H18: 3338220.262 | I18: 4758860.707 | J18: 5886563.418 | K18: Motor & Transportation
B19: التأمين الهندسي والانشاءات والطاقة | C19: 0 | D19: 0 | E19: 373605.8322 | F19: 434107.6912 | G19: 2849066.179 | H19: 2882907.448 | I19: 3222672.011 | J19: 3317015.139 | K19: Engineering, Construction & Energy
B20: أخرى | C20: 0 | D20: 0 | E20: 690520.2967 | F20: 1028779 | G20: 3016440.792 | H20: 3788185.979 | I20: 3706961.089 | J20: 4816964.979 | K20: Other
B21: اعادة التأمين غير النسبية - المسؤوليات والممتلكات | C21: 0 | D21: 0 | E21: 5710.81882 | F21: 5989.4324 | G21: 0 | H21: 0 | I21: =G21+E21+C21 -> 5710.81882 | J21: =H21+F21+D21 -> 5989.4324 | K21: Reinsurance - Property & Liability
B22: المجموع - تأمين الممتلكات والمسؤوليات | C22: =C16+C17+C18+C19+C20+C21 -> 0 | D22: 0 | E22: =E16+E17+E18+E19+E20+E21 -> 4785326.66 | F22: 5698990.263 | G22: =G16+G17+G18+G19+G20+G21 -> 13031542.07 | H22: 15072978.57 | I22: =I16+I17+I18+I19+I20+I21 -> 17816868.73 | J22: =J16+J17+J18+J19+J20+J21 -> 20771968.83 | K22: Total - Property & Liability Insurance
B24: المجموع - تأمين صحي | C24: 1550855.115 | D24: 1700132.975 | E24: 9464642.611 | F24: 10798607.37 | G24: 10726471.8 | H24: 13398303 | I24: =G24+E24+C24 -> 21741969.53 | J24: =H24+F24+D24 -> 25897043.35 | K24: Total - Health Insurance
B26: تأمين حياة جماعي | C26: 270842.091 | D26: 306881.8588 | E26: 5364.631 | F26: 0 | G26: 636702.1356 | H26: 713395.2141 | I26: =G26+E26+C26 -> 912908.8576 | J26: =H26+F26+D26 -> 1020277.073 | K26: Group Life
B27: تأمين ائتمان حياة جماعي | C27: -2290.24732 | D27: 6869.468546 | E27: 0 | F27: 0 | G27: 830734.3605 | H27: 554315.6605 | I27: =G27+E27+C27 -> 828444.1132 | J27: =H27+F27+D27 -> 561185.1291 | K27: Group Credit Life
B28: تأمين حياة فردي | C28: 3683939.547 | D28: 2974403.381 | E28: 0 | F28: 0 | G28: 2115747.522 | H28: 2104817.567 | I28: 5799687.069 | J28: 5079220.948 | K28: Individual Life
B29: دفعات الحياة وتكوين الأموال | C29: 7330.138596 | D29: 3369.487671 | E29: 0 | F29: 0 | G29: 139237 | H29: 44778 | I29: 146567.1386 | J29: 48147.48767 | K29: Annuities & Fund Accumulation
B30: المجموع - تأمين الأشخاص وعمليات تكوين الأموال | C30: =C26+C27+C28+C29 -> 3959821.53 | D30: 3291524.196 | E30: 5364.631 | F30: 0 | G30: =G26+G27+G28+G29 -> 3722421.018 | H30: 3417306.442 | I30: =I26+I27+I28+I29 -> 7687607.179 | J30: =J26+J27+J28+J29 -> 6708830.638 | K30: Total - Insurance of Persons & Fund Accumulation
B32: المجموع - كافة فروع التأمين | C32: =C22+C24+C30 -> 5510676.645 | D32: 4991657.171 | E32: =E22+E24+E30 -> 14255333.9 | F32: 16497597.63 | G32: =G22+G24+G30 -> 27480434.88 | H32: =H22+H24+H30 -> 31888588.01 | I32: =I22+I24+I30 -> 47246445.43 | J32: 53377842.82 | K32: TOTAL - All Types of Business Combined

Sheet 3A
B6: صافي الأقساط المكتتبة حسب فرع التأمين
B7: الشركات الوطنية والاجنبية
B8: Net Written Premium by Line of Business
B9: National & Foreign Companies
B11: جدول رقم 3A | I11: TABLE 3A
B12: بالألف درهم | I12: AED in 000's
B13: فروع التأمين | C13: الشركات الوطنية | E13: الشركات الأجنبية | G13: الاجمالي | I13: Line of Business
C14: NATIONAL COMPANIES | E14: FOREIGN COMPANIES | G14: TOTAL
C15: 2022 | D15: 2023 | E15: 2022 | F15: 2023 | G15: 2022 | H15: 2023
B16: تأمين الحريق | C16: 490047.3485 | D16: 610766.7843 | E16: 309724.498 | F16: 343694.8874 | G16: =E16+C16 -> 799771.8466 | H16: =F16+D16 -> 954461.6716 | I16: Fire
B17: التأمين البحري والطيران | C17: 241798.9753 | D17: 310805.1846 | E17: 177337.4103 | F17: 191629.0872 | G17: 419136.3856 | H17: 502434.2718 | I17: Marine & Aviation
B18: تأمين السيارات والمركبات الأخرى | C18: 2477725.633 | D18: 3229632.869 | E18: 1212623.878 | F18: 1509623.05 | G18: 3690349.51 | H18: 4739255.919 | I18: Motor & Transportation
B19: التأمين الهندسي والانشاءات والطاقة | C19: 462248.9081 | D19: 552521.5952 | E19: 63341.05455 | F19: 87623.25468 | G19: 525589.9626 | H19: 640144.8499 | I19: Engineering, Construction & Energy
B20: أخرى | C20: 802975.8993 | D20: 1077889.408 | E20: 219492.9734 | F20: 247259.3724 | G20: 1022468.873 | H20: 1325148.78 | I20: Other
B21: اعادة التأمين غير النسبية - المسؤوليات والممتلكات | C21: 4115.782985 | D21: 1800.348215 | E21: 0 | F21: 0 | G21: 4115.782985 | H21: 1800.348215 | I21: Reinsurance - Property & Liability
B22: المجموع - تأمين الممتلكات والمسؤوليات | C22: =C16+C17+C18+C19+C20+C21 -> 4478912.547 | D22: =D16+D17+D18+D19+D20+D21 -> 5783416.189 | E22: =E16+E17+E18+E19+E20+E21 -> 1982519.814 | F22: =F16+F17+F18+F19+F20+F21 -> 2379829.652 | G22: =G16+G17+G18+G19+G20+G21 -> 6461432.361 | H22: 8163245.841 | I22: Total - Property & Liability Insurance
B24: المجموع - تأمين صحي | C24: 9031127.26 | D24: 10409701.66 | E24: 4028828.063 | F24: 4777806.975 | G24: =E24+C24 -> 13059955.32 | H24: =F24+D24 -> 15187508.64 | I24: Total - Health Insurance
B26: تأمين حياة جماعي | C26: 281621.0611 | D26: 307258.0887 | E26: 39792.87355 | F26: 57674.27119 | G26: =E26+C26 -> 321413.9346 | H26: =F26+D26 -> 364932.3599 | I26: Group Life
B27: تأمين ائتمان حياة جماعي | C27: 398034.3486 | D27: 207303.8678 | E27: 4573 | F27: 4555 | G27: 402607.3486 | H27: 211858.8678 | I27: Group Credit Life
B28: تأمين حياة فردي | C28: 1070909.59 | D28: 1146372.244 | E28: 4459570.431 | F28: 3654909.755 | G28: 5530480.022 | H28: 4801281.999 | I28: Individual Life
B29: دفعات الحياة وتكوين الأموال | C29: -0.87356 | D29: -0.16998 | E29: 146537.8143 | F29: 48056.55475 | G29: 146536.9407 | H29: 48056.38477 | I29: Annuities & Fund Accumulation
B30: المجموع - تأمين الأشخاص وعمليات تكوين الأموال | C30: =C26+C27+C28+C29 -> 1750564.126 | D30: =D26+D27+D28+D29 -> 1660934.03 | E30: =E26+E27+E28+E29 -> 4650474.119 | F30: 3765195.581 | G30: 6401038.246 | H30: 5426129.612 | I30: Total - Insurance of Persons & Fund Accumulation
B32: المجموع - كافة فروع التأمين | C32: =C22+C24+C30 -> 15260603.93 | D32: =D22+D24+D30 -> 17854051.88 | E32: =E22+E24+E30 -> 10661822 | F32: 10922832.21 | G32: 25922425.93 | H32: 28776884.09 | I32: TOTAL - All Types of Business Combined

Sheet 3B
B6: صافي الأقساط المكتتبة حسب فرع التأمين
B7: شركات التأمين التقليدي الوطنية وشركات التأمين التكافلي الوطنية
B8: Net Written Premium by Line of Business
B9: Traditional & Takaful National Companies
B11: جدول رقم 3B | I11: TABLE 3B
B12: بالألف درهم | I12: AED in 000's
B13: فروع التأمين | C13: شركات التأمين التقليدي الوطنية | E13: شركات التأمين التكافلي الوطنية | G13: الشركات الوطنية | I13: Line of Business
C14: TRADITIONAL COMPANIES | E14: TAKAFUL OPERATORS | G14: NATIONAL COMPANIES
C15: 2022 | D15: 2023 | E15: 2022 | F15: 2023 | G15: 2022 | H15: 2023
B16: تأمين الحريق | C16: 439927.018 | D16: 535344.1756 | E16: 50120.33058 | F16: 75422.60871 | G16: =E16+C16 -> 490047.3485 | H16: =F16+D16 -> 610766.7843 | I16: Fire
B17: التأمين البحري والطيران | C17: 221390.1764 | D17: 285830.0868 | E17: 20408.7989 | F17: 24975.09778 | G17: =E17+C17 -> 241798.9753 | H17: =F17+D17 -> 310805.1846 | I17: Marine & Aviation
B18: تأمين السيارات والمركبات الأخرى | C18: 1718890.109 | D18: 2392033.173 | E18: 758835.5238 | F18: 837599.6957 | G18: 2477725.633 | H18: =F18+D18 -> 3229632.869 | I18: Motor & Transportation
B19: التأمين الهندسي والانشاءات والطاقة | C19: 437759.9537 | D19: 495098.1693 | E19: 24488.95438 | F19: 57423.4259 | G19: 462248.9081 | H19: =F19+D19 -> 552521.5952 | I19: Engineering, Construction & Energy
B20: أخرى | C20: 678487.9364 | D20: 945320.9573 | E20: 124487.9629 | F20: 132568.4505 | G20: 802975.8993 | H20: =F20+D20 -> 1077889.408 | I20: Other
B21: اعادة التأمين غير النسبية - المسؤوليات والممتلكات | C21: 4115.782985 | D21: 1800.348215 | E21: 0 | F21: 0 | G21: 4115.782985 | H21: =F21+D21 -> 1800.348215 | I21: Reinsurance - Property & Liability
B22: المجموع - تأمين الممتلكات والمسؤوليات | C22: =C16+C17+C18+C19+C20+C21 -> 3500570.976 | D22: =D16+D17+D18+D19+D20+D21 -> 4655426.911 | E22: 978341.5706 | F22: 1127989.279 | G22: 4478912.547 | H22: 5783416.189 | I22: Total - Property & Liability Insurance
B24: المجموع - تأمين صحي | C24: 7987984.564 | D24: 9349917.384 | E24: 1043142.696 | F24: 1059784.279 | G24: =E24+C24 -> 9031127.26 | H24: =F24+D24 -> 10409701.66 | I24: Total - Health Insurance
B26: تأمين حياة جماعي | C26: 253026.4249 | D26: 284977.7525 | E26: 28594.63615 | F26: 22280.3362 | G26: =E26+C26 -> 281621.0611 | H26: 307258.0887 | I26: Group Life
B27: تأمين ائتمان حياة جماعي | C27: 345729.8312 | D27: 101597.531 | E27: 52304.51738 | F27: 105706.3368 | G27: 398034.3486 | H27: 207303.8678 | I27: Group Credit Life
B28: تأمين حياة فردي | C28: 767034.9461 | D28: 848762.5421 | E28: 303874.6443 | F28: 297609.7015 | G28: 1070909.59 | H28: 1146372.244 | I28: Individual Life
B29: دفعات الحياة وتكوين الأموال | C29: 0 | D29: 0 | E29: -0.87356 | F29: -0.16998 | G29: -0.87356 | H29: -0.16998 | I29: Annuities & Fund Accumulation
B30: المجموع - تأمين الأشخاص وعمليات تكوين الأموال | C30: =C26+C27+C28+C29 -> 1365791.202 | D30: =D26+D27+D28+D29 -> 1235337.826 | E30: 384772.9242 | F30: 425596.2046 | G30: 1750564.126 | H30: 1660934.03 | I30: Total - Insurance of Persons & Fund Accumulation
B32: المجموع - كافة فروع التأمين | C32: =C22+C24+C30 -> 12854346.74 | D32: 15240682.12 | E32: 2406257.191 | F32: 2613369.763 | G32: 15260603.93 | H32: 17854051.88 | I32: TOTAL - All Types of Business Combined

Sheet 4A
B6: نسب الاحتفاظ بالاقساط المكتتبة حسب فرع التأمين
B7: (صافي الأقساط المكتتبة الى إجمالي الاقساط المكتتبة)
B8: Retention Ratios of Written Premium by Line of Business
B9: (Net Written Premium ÷ Gross Written Premium)
B11: جدول رقم 4A | I11: TABLE 4A
B12: بالألف درهم | I12: AED in 000's
B13: فروع التأمين | C13: الشركات الوطنية | E13: الشركات الأجنبية | G13: الاجمالي | I13: Line of Business
C14: NATIONAL COMPANIES | E14: FOREIGN COMPANIES | G14: TOTAL
C15: 2022 | D15: 2023 | E15: 2022 | F15: 2023 | G15: 2022 | H15: 2023
B16: تأمين الحريق | C16: =IFERROR('3A'!C16/'2A'!C16,"") -> 0.1318286598 | D16: =IFERROR('3A'!D16/'2A'!D16,"") -> 0.1567575156 | E16: =IFERROR('3A'!E16/'2A'!E16,"") -> 0.5285170239 | F16: =IFERROR('3A'!F16/'2A'!F16,"") -> 0.5426267462 | G16: =IFERROR('3A'!G16/'2A'!G16,"") -> 0.1858494981 | H16: =IFERROR('3A'!H16/'2A'!H16,"") -> 0.2107145475 | I16: Fire
B17: التأمين البحري والطيران | C17: =IFERROR('3A'!C17/'2A'!C17,"") -> 0.1606303167 | D17: =IFERROR('3A'!D17/'2A'!D17,"") -> 0.1651683464 | E17: =IFERROR('3A'!E17/'2A'!E17,"") -> 0.5647328894 | F17: =IFERROR('3A'!F17/'2A'!F17,"") -> 0.5736624799 | G17: =IFERROR('3A'!G17/'2A'!G17,"") -> 0.2303790939 | H17: =IFERROR('3A'!H17/'2A'!H17,"") -> 0.2267514605 | I17: Marine & Aviation
B18: تأمين السيارات والمركبات الأخرى | C18: =IFERROR('3A'!C18/'2A'!C18,"") -> 0.7090878245 | D18: =IFERROR('3A'!D18/'2A'!D18,"") -> 0.7478349686 | E18: =IFERROR('3A'!E18/'2A'!E18,"") -> 0.9588862314 | F18: =IFERROR('3A'!F18/'2A'!F18,"") -> 0.9628191756 | G18: =IFERROR('3A'!G18/'2A'!G18,"") -> 0.775469117 | H18: =IFERROR('3A'!H18/'2A'!H18,"") -> 0.8050972329 | I18: Motor & Transportation
B19: التأمين الهندسي والانشاءات والطاقة | C19: =IFERROR('3A'!C19/'2A'!C19,"") -> 0.1489311701 | D19: =IFERROR('3A'!D19/'2A'!D19,"") -> 0.1747139609 | E19: =IFERROR('3A'!E19/'2A'!E19,"") -> 0.5327408043 | F19: =IFERROR('3A'!F19/'2A'!F19,"") -> 0.5668478386 | G19: =IFERROR('3A'!G19/'2A'!G19,"") -> 0.1630913605 | H19: =IFERROR('3A'!H19/'2A'!H19,"") -> 0.1929882207 | I19: Engineering, Construction & Energy
B20: أخرى | C20: =IFERROR('3A'!C20/'2A'!C20,"") -> 0.2501820775 | D20: =IFERROR('3A'!D20/'2A'!D20,"") -> 0.2514966615 | E20: =IFERROR('3A'!E20/'2A'!E20,"") -> 0.441284997 | F20: =IFERROR('3A'!F20/'2A'!F20,"") -> 0.4655910954 | G20: =IFERROR('3A'!G20/'2A'!G20,"") -> 0.2758240101 | H20: =IFERROR('3A'!H20/'2A'!H20,"") -> 0.275100356 | I20: Other
B21: اعادة التأمين غير النسبية - المسؤوليات والممتلكات | C21: =IFERROR('3A'!C21/'2A'!C21,"") -> 0.7206992753 | D21: =IFERROR('3A'!D21/'2A'!D21,"") -> 0.3005874505 | E21: =IFERROR('3A'!E21/'2A'!E21,"") ->  | F21: =IFERROR('3A'!F21/'2A'!F21,"") ->  | G21: =IFERROR('3A'!G21/'2A'!G21,"") -> 0.7206992753 | H21: =IFERROR('3A'!H21/'2A'!H21,"") -> 0.3005874505 | I21: Reinsurance - Property & Liability
B22: المجموع - تأمين الممتلكات والمسؤوليات | C22: =IFERROR('3A'!C22/'2A'!C22,"") -> 0.2978809536 | D22: =IFERROR('3A'!D22/'2A'!D22,"") -> 0.3295212108 | E22: =IFERROR('3A'!E22/'2A'!E22,"") -> 0.7128919234 | F22: =IFERROR('3A'!F22/'2A'!F22,"") -> 0.7388478594 | G22: =IFERROR('3A'!G22/'2A'!G22,"") -> 0.3626581337 | H22: =IFERROR('3A'!H22/'2A'!H22,"") -> 0.3929933607 | I22: Total - Property & Liability Insurance
B24: المجموع - تأمين صحي | C24: =IFERROR('3A'!C24/'2A'!C24,"") -> 0.565888485 | D24: =IFERROR('3A'!D24/'2A'!D24,"") -> 0.5483582816 | E24: =IFERROR('3A'!E24/'2A'!E24,"") -> 0.6966951973 | F24: =IFERROR('3A'!F24/'2A'!F24,"") -> 0.6910688085 | G24: =IFERROR('3A'!G24/'2A'!G24,"") -> 0.6006794972 | H24: =IFERROR('3A'!H24/'2A'!H24,"") -> 0.5864572428 | I24: Total - Health Insurance
B26: تأمين حياة جماعي | C26: =IFERROR('3A'!C26/'2A'!C26,"") -> 0.3804427651 | D26: =IFERROR('3A'!D26/'2A'!D26,"") -> 0.3758314984 | E26: =IFERROR('3A'!E26/'2A'!E26,"") -> 0.2304651312 | F26: =IFERROR('3A'!F26/'2A'!F26,"") -> 0.2844811762 | G26: =IFERROR('3A'!G26/'2A'!G26,"") -> 0.3520766963 | H26: =IFERROR('3A'!H26/'2A'!H26,"") -> 0.3576796633 | I26: Group Life
B27: تأمين ائتمان حياة جماعي | C27: =IFERROR('3A'!C27/'2A'!C27,"") -> 0.4928448227 | D27: =IFERROR('3A'!D27/'2A'!D27,"") -> 0.382985306 | E27: =IFERROR('3A'!E27/'2A'!E27,"") -> 0.2196656739 | F27: =IFERROR('3A'!F27/'2A'!F27,"") -> 0.2288829707 | G27: =IFERROR('3A'!G27/'2A'!G27,"") -> 0.4859800947 | H27: =IFERROR('3A'!H27/'2A'!H27,"") -> 0.3775204595 | I27: Group Credit Life
B28: تأمين حياة فردي | C28: =IFERROR('3A'!C28/'2A'!C28,"") -> 0.9039099595 | D28: =IFERROR('3A'!D28/'2A'!D28,"") -> 0.9194247423 | E28: =IFERROR('3A'!E28/'2A'!E28,"") -> 0.9663344888 | F28: =IFERROR('3A'!F28/'2A'!F28,"") -> 0.9536907682 | G28: =IFERROR('3A'!G28/'2A'!G28,"") -> 0.9535824874 | H28: =IFERROR('3A'!H28/'2A'!H28,"") -> 0.9452792167 | I28: Individual Life
B29: دفعات الحياة وتكوين الأموال | C29: =IFERROR('3A'!C29/'2A'!C29,"") ->  | D29: =IFERROR('3A'!D29/'2A'!D29,"") ->  | E29: =IFERROR('3A'!E29/'2A'!E29,"") -> 0.9997999258 | F29: =IFERROR('3A'!F29/'2A'!F29,"") -> 0.9981113672 | G29: =IFERROR('3A'!G29/'2A'!G29,"") -> 0.9997939657 | H29: =IFERROR('3A'!H29/'2A'!H29,"") -> 0.9981078368 | I29: Annuities & Fund Accumulation
B30: المجموع - تأمين الأشخاص وعمليات تكوين الأموال | C30: =IFERROR('3A'!C30/'2A'!C30,"") -> 0.6406164999 | D30: =IFERROR('3A'!D30/'2A'!D30,"") -> 0.637432482 | E30: =IFERROR('3A'!E30/'2A'!E30,"") -> 0.9385449161 | F30: =IFERROR('3A'!F30/'2A'!F30,"") -> 0.9176313574 | G30: =IFERROR('3A'!G30/'2A'!G30,"") -> 0.8326437729 | H30: =IFERROR('3A'!H30/'2A'!H30,"") -> 0.808804083 | I30: Total - Insurance of Persons & Fund Accumulation
B32: المجموع - كافة فروع التأمين | C32: =IFERROR('3A'!C32/'2A'!C32,"") -> 0.4524644919 | D32: =IFERROR('3A'!D32/'2A'!D32,"") -> 0.4561584155 | E32: =IFERROR('3A'!E32/'2A'!E32,"") -> 0.7886717142 | F32: =IFERROR('3A'!F32/'2A'!F32,"") -> 0.7671703985 | G32: =IFERROR('3A'!G32/'2A'!G32,"") -> 0.5486640464 | H32: =IFERROR('3A'!H32/'2A'!H32,"") -> 0.5391166554 | I32: TOTAL - All Types of Business Combined

Sheet 4B
B6: نسب الاحتفاظ بالاقساط المكتتبة حسب فرع التأمين
B7: (صافي الأقساط المكتتبة الى إجمالي الاقساط المكتتبة)
B8: Retention Ratios of Written Premium by Line of Business
B9: (Net Written Premium ÷ Gross Written Premium)
B11: جدول رقم 4B | I11: TABLE 4B
B12: بالألف درهم | I12: AED in 000's
B13: فروع التأمين | C13: شركات التأمين التقليدي الوطنية | E13: شركات التأمين التكافلي الوطنية | G13: الشركات الوطنية | I13: Line of Business
C14: TRADITIONAL COMPANIES | E14: TAKAFUL OPERATORS | G14: NATIONAL COMPANIES
C15: 2022 | D15: 2023 | E15: 2022 | F15: 2023 | G15: 2022 | H15: 2023
B16: تأمين الحريق | C16: =IFERROR('3B'!C16/'2B'!C16,"") -> 0.133012582 | D16: =IFERROR('3B'!D16/'2B'!D16,"") -> 0.1576917425 | E16: =IFERROR('3B'!E16/'2B'!E16,"") -> 0.1222757134 | F16: =IFERROR('3B'!F16/'2B'!F16,"") -> 0.1504317312 | G16: =IFERROR('3B'!G16/'2B'!G16,"") -> 0.1318286598 | H16: =IFERROR('3B'!H16/'2B'!H16,"") -> 0.1567575156 | I16: Fire
B17: التأمين البحري والطيران | C17: =IFERROR('3B'!C17/'2B'!C17,"") -> 0.157067637 | D17: =IFERROR('3B'!D17/'2B'!D17,"") -> 0.1625168671 | E17: =IFERROR('3B'!E17/'2B'!E17,"") -> 0.2130528999 | F17: =IFERROR('3B'!F17/'2B'!F17,"") -> 0.2030891212 | G17: =IFERROR('3B'!G17/'2B'!G17,"") -> 0.1606303167 | H17: =IFERROR('3B'!H17/'2B'!H17,"") -> 0.1651683464 | I17: Marine & Aviation
B18: تأمين السيارات والمركبات الأخرى | C18: =IFERROR('3B'!C18/'2B'!C18,"") -> 0.6614378414 | D18: =IFERROR('3B'!D18/'2B'!D18,"") -> 0.7436140849 | E18: =IFERROR('3B'!E18/'2B'!E18,"") -> 0.8473627909 | F18: =IFERROR('3B'!F18/'2B'!F18,"") -> 0.7601572147 | G18: =IFERROR('3B'!G18/'2B'!G18,"") -> 0.7090878245 | H18: =IFERROR('3B'!H18/'2B'!H18,"") -> 0.7478349686 | I18: Motor & Transportation
B19: التأمين الهندسي والانشاءات والطاقة | C19: =IFERROR('3B'!C19/'2B'!C19,"") -> 0.1467583591 | D19: =IFERROR('3B'!D19/'2B'!D19,"") -> 0.1655862298 | E19: =IFERROR('3B'!E19/'2B'!E19,"") -> 0.2025331798 | F19: =IFERROR('3B'!F19/'2B'!F19,"") -> 0.3329600394 | G19: =IFERROR('3B'!G19/'2B'!G19,"") -> 0.1489311701 | H19: =IFERROR('3B'!H19/'2B'!H19,"") -> 0.1747139609 | I19: Engineering, Construction & Energy
B20: أخرى | C20: =IFERROR('3B'!C20/'2B'!C20,"") -> 0.2388227821 | D20: =IFERROR('3B'!D20/'2B'!D20,"") -> 0.2460742899 | E20: =IFERROR('3B'!E20/'2B'!E20,"") -> 0.3377338653 | F20: =IFERROR('3B'!F20/'2B'!F20,"") -> 0.2983817061 | G20: =IFERROR('3B'!G20/'2B'!G20,"") -> 0.2501820775 | H20: =IFERROR('3B'!H20/'2B'!H20,"") -> 0.2514966615 | I20: Other
B21: اعادة التأمين غير النسبية - المسؤوليات والممتلكات | C21: =IFERROR('3B'!C21/'2B'!C21,"") -> 0.7206992753 | D21: =IFERROR('3B'!D21/'2B'!D21,"") -> 0.3005874505 | E21: =IFERROR('3B'!E21/'2B'!E21,"") ->  | F21: =IFERROR('3B'!F21/'2B'!F21,"") ->  | G21: =IFERROR('3B'!G21/'2B'!G21,"") -> 0.7206992753 | H21: =IFERROR('3B'!H21/'2B'!H21,"") -> 0.3005874505 | I21: Reinsurance - Property & Liability
B22: المجموع - تأمين الممتلكات والمسؤوليات | C22: =IFERROR('3B'!C22/'2B'!C22,"") -> 0.2663005427 | D22: =IFERROR('3B'!D22/'2B'!D22,"") -> 0.3061172602 | E22: =IFERROR('3B'!E22/'2B'!E22,"") -> 0.517442431 | F22: =IFERROR('3B'!F22/'2B'!F22,"") -> 0.4814331391 | G22: =IFERROR('3B'!G22/'2B'!G22,"") -> 0.2978809536 | H22: =IFERROR('3B'!H22/'2B'!H22,"") -> 0.3295212108 | I22: Total - Property & Liability Insurance
B24: المجموع - تأمين صحي | C24: =IFERROR('3B'!C24/'2B'!C24,"") -> 0.5570971476 | D24: =IFERROR('3B'!D24/'2B'!D24,"") -> 0.5443464395 | E24: =IFERROR('3B'!E24/'2B'!E24,"") -> 0.6436708923 | F24: =IFERROR('3B'!F24/'2B'!F24,"") -> 0.5864930974 | G24: =IFERROR('3B'!G24/'2B'!G24,"") -> 0.565888485 | H24: =IFERROR('3B'!H24/'2B'!H24,"") -> 0.5483582816 | I24: Total - Health Insurance
B26: تأمين حياة جماعي | C26: =IFERROR('3B'!C26/'2B'!C26,"") -> 0.4329406754 | D26: =IFERROR('3B'!D26/'2B'!D26,"") -> 0.4249713099 | E26: =IFERROR('3B'!E26/'2B'!E26,"") -> 0.1835238484 | F26: =IFERROR('3B'!F26/'2B'!F26,"") -> 0.1516071488 | G26: =IFERROR('3B'!G26/'2B'!G26,"") -> 0.3804427651 | H26: =IFERROR('3B'!H26/'2B'!H26,"") -> 0.3758314984 | I26: Group Life
B27: تأمين ائتمان حياة جماعي | C27: =IFERROR('3B'!C27/'2B'!C27,"") -> 0.5354596129 | D27: =IFERROR('3B'!D27/'2B'!D27,"") -> 0.3257663066 | E27: =IFERROR('3B'!E27/'2B'!E27,"") -> 0.3229534775 | F27: =IFERROR('3B'!F27/'2B'!F27,"") -> 0.4607713518 | G27: =IFERROR('3B'!G27/'2B'!G27,"") -> 0.4928448227 | H27: =IFERROR('3B'!H27/'2B'!H27,"") -> 0.382985306 | I27: Group Credit Life
B28: تأمين حياة فردي | C28: =IFERROR('3B'!C28/'2B'!C28,"") -> 0.908798508 | D28: =IFERROR('3B'!D28/'2B'!D28,"") -> 0.9239479216 | E28: =IFERROR('3B'!E28/'2B'!E28,"") -> 0.891801161 | F28: =IFERROR('3B'!F28/'2B'!F28,"") -> 0.906764847 | G28: =IFERROR('3B'!G28/'2B'!G28,"") -> 0.9039099595 | H28: =IFERROR('3B'!H28/'2B'!H28,"") -> 0.9194247423 | I28: Individual Life
B29: دفعات الحياة وتكوين الأموال | C29: =IFERROR('3B'!C29/'2B'!C29,"") ->  | D29: =IFERROR('3B'!D29/'2B'!D29,"") ->  | E29: =IFERROR('3B'!E29/'2B'!E29,"") ->  | F29: =IFERROR('3B'!F29/'2B'!F29,"") ->  | G29: =IFERROR('3B'!G29/'2B'!G29,"") ->  | H29: =IFERROR('3B'!H29/'2B'!H29,"") ->  | I29: Annuities & Fund Accumulation
B30: المجموع - تأمين الأشخاص وعمليات تكوين الأموال | C30: =IFERROR('3B'!C30/'2B'!C30,"") -> 0.6584931878 | D30: =IFERROR('3B'!D30/'2B'!D30,"") -> 0.6498085934 | E30: =IFERROR('3B'!E30/'2B'!E30,"") -> 0.5843099565 | F30: =IFERROR('3B'!F30/'2B'!F30,"") -> 0.6040397269 | G30: =IFERROR('3B'!G30/'2B'!G30,"") -> 0.6406164999 | H30: =IFERROR('3B'!H30/'2B'!H30,"") -> 0.637432482 | I30: Total - Insurance of Persons & Fund Accumulation
B32: المجموع - كافة فروع التأمين | C32: =IFERROR('3B'!C32/'2B'!C32,"") -> 0.4348871636 | D32: =IFERROR('3B'!D32/'2B'!D32,"") -> 0.4445230004 | E32: =IFERROR('3B'!E32/'2B'!E32,"") -> 0.5770610341 | F32: =IFERROR('3B'!F32/'2B'!F32,"") -> 0.5383340439 | G32: =IFERROR('3B'!G32/'2B'!G32,"") -> 0.4524644919 | H32: =IFERROR('3B'!H32/'2B'!H32,"") -> 0.4561584155 | I32: TOTAL - All Types of Business Combined

Sheet 4C
B6: توزيع أقساط إعادة التأمين حسب التوزيع الجغرافي والتصنيف لكافة شركات التأمين العاملة في القطاع
B7: Ceded premiums per geographic location and rating - All Companies
B8: (2023)
B10: جدول رقم 4C | F10: TABLE 4C
B11: بالألف درهم | F11: AED in 000's
B12: البيــــــــان | C12: الشركات الوطنية | D12: الشركات الأجنبية | E12: الاجمالي | F12: DESCRIPTION
C13: NATIONAL COMPANIES | D13: FOREIGN COMPANIES | E13: TOTAL
B14: داخل الدولة | F14: Inside UAE
B15: AAA | C15: 33629.67329 | D15: 404.560045 | E15: =C15+D15 -> 34034.23333 | F15: AAA
B16: AA | C16: 968028.5508 | D16: 29782.92382 | E16: =C16+D16 -> 997811.4747 | F16: AA
B17: A | C17: 1857831.966 | D17: 67494.39627 | E17: 1925326.362 | F17: A
B18: BBB | C18: 128916.5073 | D18: 11573.10218 | E18: 140489.6095 | F18: BBB
B19: BB | C19: 15983.63607 | D19: 2689.542836 | E19: 18673.17891 | F19: BB
B20: B | C20: 196335.78 | D20: 7420.87487 | E20: 203756.6548 | F20: B
B21: أخري | C21: 14691.53787 | D21: 854.9425 | E21: 15546.48037 | F21: Other
B22: غير مُصنفة | C22: 206377.0221 | D22: 1268.532325 | E22: 207645.5544 | F22: Unrated
B23: الاجمالي حسب نوع التصنيف | C23: =C15+C16+C17+C18+C19+C20+C21+C22 -> 3421794.674 | D23: =D15+D16+D17+D18+D19+D20+D21+D22 -> 121488.8748 | E23: =E15+E16+E17+E18+E19+E20+E21+E22 -> 3543283.548 | F23: Totals for All Rating Types
B25: مجلس التعاون الخليجي عدا دولة الإمارات | F25: GCC Excl UAE
B26: AAA | C26: 0 | D26: 0 | E26: =C26+D26 -> 0 | F26: AAA
B27: AA | C27: 227236.9883 | D27: 0 | E27: 227236.9883 | F27: AA
B28: A | C28: 303215.9219 | D28: 66625.5858 | E28: 369841.5077 | F28: A
B29: BBB | C29: 108972.8715 | D29: 1113.991442 | E29: 110086.8629 | F29: BBB
B30: BB | C30: 20598.25261 | D30: 793.2537081 | E30: 21391.50632 | F30: BB
B31: B | C31: 5639.534667 | D31: 0 | E31: 5639.534667 | F31: B
B32: أخري | C32: 430.6737527 | D32: 11.171 | E32: 441.8447527 | F32: Other
B33: غير مُصنفة | C33: 21891.34914 | D33: 2716.28755 | E33: 24607.63669 | F33: Unrated
B34: الاجمالي حسب نوع التصنيف | C34: =C26+C27+C28+C29+C30+C31+C32+C33 -> 687985.5918 | D34: =D26+D27+D28+D29+D30+D31+D32+D33 -> 71260.2895 | E34: =E26+E27+E28+E29+E30+E31+E32+E33 -> 759245.8813 | F34: Totals for All Rating Types
B36: منطقة الشرق الأوسط وشمال أفريقيا عدا منطقة مجلس التعاون الخليجي | F36: MENA Excl GCC
B37: AAA | C37: 7288.740353 | D37: 0 | E37: =C37+D37 -> 7288.740353 | F37: AAA
B38: AA | C38: 29072.87665 | D38: 47.02722861 | E38: =C38+D38 -> 29119.90388 | F38: AA
B39: A | C39: 497412.9876 | D39: 2590.070956 | E39: 500003.0585 | F39: A
B40: BBB | C40: 34501.30288 | D40: 17123.97732 | E40: 51625.2802 | F40: BBB
B41: BB | C41: 120400.5834 | D41: 1736.34514 | E41: 122136.9285 | F41: BB
B42: B | C42: 227130.2842 | D42: 228.4925714 | E42: 227358.7768 | F42: B
B43: أخري | C43: 4315.939965 | D43: 5191.635 | E43: 9507.574965 | F43: Other
B44: غير مُصنفة | C44: 3298.201316 | D44: 231.5885687 | E44: 3529.789885 | F44: Unrated
B45: الاجمالي حسب نوع التصنيف | C45: =C37+C38+C39+C40+C41+C42+C43+C44 -> 923420.9163 | D45: =D37+D38+D39+D40+D41+D42+D43+D44 -> 27149.13679 | E45: 950570.0531 | F45: Totals for All Rating Types
B47: خارج منطقة الشرق الأوسط وشمال أفريقيا | F47: Outside MENA
B48: AAA | C48: 240016.3127 | D48: 4486.484935 | E48: =C48+D48 -> 244502.7977 | F48: AAA
B49: AA | C49: 4838718.996 | D49: 1286216.667 | E49: 6124935.663 | F49: AA
B50: A | C50: 9957645.845 | D50: 1443882.582 | E50: 11401528.43 | F50: A
B51: BBB | C51: 500641.9439 | D51: 179924.298 | E51: 680566.2419 | F51: BBB
B52: BB | C52: 100356.0229 | D52: 634.8677186 | E52: 100990.8906 | F52: BB
B53: B | C53: 152864.9046 | D53: 1914.222297 | E53: 154779.1269 | F53: B
B54: أخري | C54: 28257.78946 | D54: 81972.57357 | E54: 110230.363 | F54: Other
B55: غير مُصنفة | C55: 434270.327 | D55: 96055.40148 | E55: 530325.7285 | F55: Unrated
B56: الاجمالي حسب نوع التصنيف | C56: =C48+C49+C50+C51+C52+C53+C54+C55 -> 16252772.14 | D56: =D48+D49+D50+D51+D52+D53+D54+D55 -> 3095087.097 | E56: 19347859.24 | F56: Totals for All Rating Types
B58: كافة المناطق حسب التوزيع الجغرافي | F58: Totals for All Regions
B59: AAA | C59: 280934.7264 | D59: 4891.04498 | E59: =C59+D59 -> 285825.7714 | F59: AAA
B60: AA | C60: 6063057.412 | D60: 1316046.618 | E60: 7379104.03 | F60: AA
B61: A | C61: 12616106.72 | D61: 1580592.635 | E61: 14196699.36 | F61: A
B62: BBB | C62: 773032.6255 | D62: 209735.3689 | E62: 982767.9944 | F62: BBB
B63: BB | C63: 257338.4949 | D63: 5854.009403 | E63: 263192.5043 | F63: BB
B64: B | C64: 581970.5034 | D64: 9563.589739 | E64: 591534.0932 | F64: B
B65: أخري | C65: 47695.94104 | D65: 88030.32207 | E65: =C65+D65 -> 135726.2631 | F65: Other
B66: غير مُصنفة | C66: 665836.8996 | D66: 100271.8099 | E66: =C66+D66 -> 766108.7095 | F66: Unrated
B67: الاجمالي حسب نوع التصنيف | C67: =C59+C60+C61+C62+C63+C64+C65+C66 -> 21285973.32 | D67: =D59+D60+D61+D62+D63+D64+D65+D66 -> 3314985.398 | E67: =E59+E60+E61+E62+E63+E64+E65+E66 -> 24600958.72 | F67: Totals for All Rating Types

Sheet 4D
B6: توزيع أقساط إعادة التأمين حسب التوزيع الجغرافي
B7: شركات التأمين التقليدي الوطنية وشركات التأمين التكافلي الوطنية
B8: Ceded premiums per geographic location and rating
B9: Traditional & Takaful National Companies
B10: (2023)
B12: جدول رقم 4D | F12: TABLE 4D
B13: بالألف درهم | F13: AED in 000's
B14: البيــــــــان | C14: شركات التأمين التقليدي الوطنية | D14: شركات التأمين التكافلي الوطنية | E14: إجمالي الشركات الوطنية | F14: DESCRIPTION
C15: TRADITIONAL COMPANIES | D15: TAKAFUL OPERATORS | E15: TOTAL of NATIONAL COMPANIES
B16: داخل الدولة | F16: Inside UAE
B17: AAA | C17: 32699.06906 | D17: 930.60423 | E17: =C17+D17 -> 33629.67329 | F17: AAA
B18: AA | C18: 681732.4888 | D18: 286296.0621 | E18: =C18+D18 -> 968028.5508 | F18: AA
B19: A | C19: 1517804.215 | D19: 340027.7515 | E19: 1857831.966 | F19: A
B20: BBB | C20: 63307.57232 | D20: 65608.93495 | E20: 128916.5073 | F20: BBB
B21: BB | C21: 1362.954085 | D21: 14620.68198 | E21: 15983.63607 | F21: BB
B22: B | C22: -6.548361853e-11 | D22: 196335.78 | E22: 196335.78 | F22: B
B23: أخري | C23: 10768.34284 | D23: 3923.195022 | E23: =C23+D23 -> 14691.53787 | F23: Other
B24: غير مُصنفة | C24: 150387.9874 | D24: 55989.0347 | E24: 206377.0221 | F24: Unrated
B25: الاجمالي حسب نوع التصنيف | C25: =C17+C18+C19+C20+C21+C22+C23+C24 -> 2458062.629 | D25: =D17+D18+D19+D20+D21+D22+D23+D24 -> 963732.0444 | E25: =E17+E18+E19+E20+E21+E22+E23+E24 -> 3421794.674 | F25: Totals for All Rating Types
B27: مجلس التعاون الخليجي عدا دولة الإمارات | F27: GCC Excl UAE
B28: AAA | C28: 0 | D28: 0 | E28: =C28+D28 -> 0 | F28: AAA
B29: AA | C29: 83498.7199 | D29: 143738.2684 | E29: =C29+D29 -> 227236.9883 | F29: AA
B30: A | C30: 213874.3954 | D30: 89341.5265 | E30: =C30+D30 -> 303215.9219 | F30: A
B31: BBB | C31: 107845.4964 | D31: 1127.375013 | E31: 108972.8715 | F31: BBB
B32: BB | C32: 19786.041 | D32: 812.2116074 | E32: 20598.25261 | F32: BB
B33: B | C33: 5420.482247 | D33: 219.05242 | E33: 5639.534667 | F33: B
B34: أخري | C34: 368.3405457 | D34: 62.33320694 | E34: 430.6737527 | F34: Other
B35: غير مُصنفة | C35: 21492.61459 | D35: 398.7345495 | E35: 21891.34914 | F35: Unrated
B36: الاجمالي حسب نوع التصنيف | C36: =C28+C29+C30+C31+C32+C33+C34+C35 -> 452286.0901 | D36: =D28+D29+D30+D31+D32+D33+D34+D35 -> 235699.5017 | E36: =E28+E29+E30+E31+E32+E33+E34+E35 -> 687985.5918 | F36: Totals for All Rating Types
B38: منطقة الشرق الأوسط وشمال أفريقيا عدا منطقة مجلس التعاون الخليجي | F38: MENA Excl GCC
B39: AAA | C39: 7208.498293 | D39: 80.24206 | E39: =C39+D39 -> 7288.740353 | F39: AAA
B40: AA | C40: 25086.96576 | D40: 3985.910885 | E40: =C40+D40 -> 29072.87665 | F40: AA
B41: A | C41: 469059.5267 | D41: 28353.46085 | E41: =C41+D41 -> 497412.9876 | F41: A
B42: BBB | C42: 33655.63299 | D42: 845.6698908 | E42: 34501.30288 | F42: BBB
B43: BB | C43: 120400.5834 | D43: 2.046363079e-12 | E43: 120400.5834 | F43: BB
B44: B | C44: 179040.3594 | D44: 48089.92479 | E44: 227130.2842 | F44: B
B45: أخري | C45: 4290.214151 | D45: 25.72581436 | E45: 4315.939965 | F45: Other
B46: غير مُصنفة | C46: 1719.14874 | D46: 1579.052576 | E46: 3298.201316 | F46: Unrated
B47: الاجمالي حسب نوع التصنيف | C47: =C39+C40+C41+C42+C43+C44+C45+C46 -> 840460.9295 | D47: =D39+D40+D41+D42+D43+D44+D45+D46 -> 82959.98687 | E47: =E39+E40+E41+E42+E43+E44+E45+E46 -> 923420.9163 | F47: Totals for All Rating Types
B49: خارج منطقة الشرق الأوسط وشمال أفريقيا | F49: Outside MENA
B50: AAA | C50: 156587.1447 | D50: 83429.16808 | E50: =C50+D50 -> 240016.3127 | F50: AAA
B51: AA | C51: 4545868.331 | D51: 292850.6648 | E51: =C51+D51 -> 4838718.996 | F51: AA
B52: A | C52: 9469169.531 | D52: 488476.3132 | E52: 9957645.845 | F52: A
B53: BBB | C53: 474383.3104 | D53: 26258.63355 | E53: 500641.9439 | F53: BBB
B54: BB | C54: 67971.122 | D54: 32384.90086 | E54: 100356.0229 | F54: BB
B55: B | C55: 149789.6853 | D55: 3075.219286 | E55: 152864.9046 | F55: B
B56: أخري | C56: 27054.64705 | D56: 1203.142406 | E56: 28257.78946 | F56: Other
B57: غير مُصنفة | C57: 403159.2424 | D57: 31111.08462 | E57: =C57+D57 -> 434270.327 | F57: Unrated
B58: الاجمالي حسب نوع التصنيف | C58: =C50+C51+C52+C53+C54+C55+C56+C57 -> 15293983.01 | D58: =D50+D51+D52+D53+D54+D55+D56+D57 -> 958789.1268 | E58: =E50+E51+E52+E53+E54+E55+E56+E57 -> 16252772.14 | F58: Totals for All Rating Types
B60: كافة المناطق حسب التوزيع الجغرافي | F60: Totals for All Regions
B61: AAA | C61: =C17+C28+C39+C50 -> 196494.712 | D61: =D17+D28+D39+D50 -> 84440.01437 | E61: =C61+D61 -> 280934.7264 | F61: AAA
B62: AA | C62: =C18+C29+C40+C51 -> 5336186.506 | D62: 726870.9062 | E62: =C62+D62 -> 6063057.412 | F62: AA
B63: A | C63: =C19+C30+C41+C52 -> 11669907.67 | D63: 946199.052 | E63: 12616106.72 | F63: A
B64: BBB | C64: =C20+C31+C42+C53 -> 679192.0121 | D64: 93840.6134 | E64: 773032.6255 | F64: BBB
B65: BB | C65: =C21+C32+C43+C54 -> 209520.7005 | D65: 47817.79446 | E65: 257338.4949 | F65: BB
B66: B | C66: =C22+C33+C44+C55 -> 334250.527 | D66: 247719.9764 | E66: 581970.5034 | F66: B
B67: أخري | C67: =C23+C34+C45+C56 -> 42481.54459 | D67: 5214.396449 | E67: =C67+D67 -> 47695.94104 | F67: Other
B68: غير مُصنفة | C68: =C24+C35+C46+C57 -> 576758.9931 | D68: 89077.90645 | E68: 665836.8996 | F68: Unrated
B69: الاجمالي حسب نوع التصنيف | C69: =C61+C62+C63+C64+C65+C66+C67+C68 -> 19044792.66 | D69: =D61+D62+D63+D64+D65+D66+D67+D68 -> 2241180.66 | E69: =E61+E62+E63+E64+E65+E66+E67+E68 -> 21285973.32 | F69: Totals for All Rating Types

Sheet 4E
B6: توزيع أقساط إعادة التأمين حسب التوزيع الجغرافي والتصنيف
B7: لشركات التامين على الأشخاص وتكوين الأموال وشركات تامين الممتلكات والمسؤوليات والشركات التي تمارس النوعين معاً
B8: Ceded premiums per geographic location and rating -
B9: Life, Non-Life & Composite
B11: جدول رقم 4E | K11: TABLE 4E
B12: بالألف درهم | K12: AED in 000's
B13: البيــــــــان | C13: شركات التأمين على الأشخاص وتكوين الأموال | E13: شركات تأمين الممتلكات والمسؤوليات | G13: شركات التأمين (النوعين معاً) | I13: الاجمالي | K13: DESCRIPTION
C14: LIFE COMPANIES | E14: NON-LIFE COMPANIES | G14: COMPOSITE COMPANIES | I14: TOTAL
C15: 2022 | D15: 2023 | E15: 2022 | F15: 2023 | G15: 2022 | H15: 2023 | I15: 2022 | J15: 2023
B16: داخل الدولة | K16: Inside UAE
B17: AAA | C17: 243.953 | D17: 0 | E17: 26023.00223 | F17: 33746.01471 | G17: 78.25864986 | H17: 288.2186234 | I17: =C17+E17+G17 -> 26345.21388 | J17: =D17+F17+H17 -> 34034.23333 | K17: AAA
B18: AA | C18: 53756.11672 | D18: 68246.01916 | E18: 92467.78795 | F18: 124720.2342 | G18: 646591.2532 | H18: 804845.2213 | I18: =C18+E18+G18 -> 792815.1579 | J18: =D18+F18+H18 -> 997811.4747 | K18: AA
B19: A | C19: 65128.05066 | D19: 62915.39195 | E19: 418321.5184 | F19: 566104.2274 | G19: 871255.0873 | H19: 1296306.743 | I19: 1354704.656 | J19: 1925326.362 | K19: A
B20: BBB | C20: 926.02045 | D20: 2512.660919 | E20: 61688.95427 | F20: 61294.83184 | G20: 55325.92089 | H20: 76682.1167 | I20: 117940.8956 | J20: 140489.6095 | K20: BBB
B21: BB | C21: 629.50814 | D21: 127.572337 | E21: 16510.4377 | F21: 18369.89652 | G21: 795.3087049 | H21: 175.7100509 | I21: 17935.25454 | J21: 18673.17891 | K21: BB
B22: B | C22: 0 | D22: 0 | E22: 90466.15425 | F22: 198030.6835 | G22: 16593.56606 | H22: 5725.971302 | I22: 107059.7203 | J22: 203756.6548 | K22: B
B23: أخري | C23: 0 | D23: 189.318 | E23: 789.526503 | F23: 806.65036 | G23: 15158.08341 | H23: 14550.51201 | I23: 15947.60991 | J23: 15546.48037 | K23: Other
B24: غير مُصنفة | C24: 2516.763875 | D24: 2877.259832 | E24: 112244.1848 | F24: 109227.5584 | G24: 322051.2152 | H24: 95540.73617 | I24: 436812.1639 | J24: 207645.5544 | K24: Unrated
B25: الاجمالي حسب نوع التصنيف | C25: =C17+C18+C19+C20+C21+C22+C23+C24 -> 123200.4128 | D25: =D17+D18+D19+D20+D21+D22+D23+D24 -> 136868.2222 | E25: 818511.5661 | F25: 1112300.097 | G25: 1927848.693 | H25: 2294115.229 | I25: 2869560.672 | J25: 3543283.548 | K25: Totals for All Rating Types
B27: مجلس التعاون الخليجي عدا دولة الإمارات | K27: GCC Excl UAE
B28: AAA | C28: 0 | D28: 0 | E28: 0 | F28: 0 | G28: 0 | H28: 0 | I28: =C28+E28+G28 -> 0 | J28: =D28+F28+H28 -> 0 | K28: AAA
B29: AA | C29: 0 | D29: 234.8765616 | E29: 2686.079538 | F29: 16649.68843 | G29: 195479.4656 | H29: 210352.4233 | I29: 198165.5452 | J29: 227236.9883 | K29: AA
B30: A | C30: 26406.89269 | D30: 49689.63208 | E30: 158493.9493 | F30: 141739.5577 | G30: 138934.9654 | H30: 178412.3178 | I30: 323835.8073 | J30: 369841.5077 | K30: A
B31: BBB | C31: 303.0674 | D31: 0 | E31: 681.3425242 | F31: 6593.068216 | G31: 134585.2899 | H31: 103493.7947 | I31: 135569.6999 | J31: 110086.8629 | K31: BBB
B32: BB | C32: 0 | D32: 0 | E32: 7589.597367 | F32: 933.1525509 | G32: 12103.5694 | H32: 20458.35376 | I32: 19693.16677 | J32: 21391.50632 | K32: BB
B33: B | C33: 0 | D33: 0 | E33: 192.5813859 | F33: 615.97378 | G33: 2587.560674 | H33: 5023.560887 | I33: 2780.14206 | J33: 5639.534667 | K33: B
B34: أخري | C34: 0 | D34: 0 | E34: 18.3010377 | F34: 11.171 | G34: 2316.888582 | H34: 430.6737527 | I34: 2335.18962 | J34: 441.8447527 | K34: Other
B35: غير مُصنفة | C35: 0 | D35: 0 | E35: 2583.228197 | F35: 2128.01501 | G35: 33325.27694 | H35: 22479.62168 | I35: 35908.50514 | J35: 24607.63669 | K35: Unrated
B36: الاجمالي حسب نوع التصنيف | C36: =C28+C29+C30+C31+C32+C33+C34+C35 -> 26709.96009 | D36: =D28+D29+D30+D31+D32+D33+D34+D35 -> 49924.50864 | E36: 172245.0793 | F36: 168670.6267 | G36: 519333.0166 | H36: 540650.7459 | I36: 718288.056 | J36: 759245.8813 | K36: Totals for All Rating Types
B38: منطقة الشرق الأوسط وشمال أفريقيا عدا منطقة مجلس التعاون الخليجي | K38: MENA Excl GCC
B39: AAA | C39: 0 | D39: 0 | E39: 186.8335475 | F39: 80.24206 | G39: 4881.080749 | H39: 7208.498293 | I39: =C39+E39+G39 -> 5067.914297 | J39: =D39+F39+H39 -> 7288.740353 | K39: AAA
B40: AA | C40: 0 | D40: 0 | E40: 0 | F40: 1224.99077 | G40: 145544.7315 | H40: 27894.91311 | I40: 145544.7315 | J40: 29119.90388 | K40: AA
B41: A | C41: 0 | D41: 0 | E41: 5411.807136 | F41: 11146.67883 | G41: 378798.7441 | H41: 488856.3797 | I41: 384210.5513 | J41: 500003.0585 | K41: A
B42: BBB | C42: 0 | D42: 0 | E42: 7651.647684 | F42: 5318.367642 | G42: 41792.17623 | H42: 46306.91256 | I42: 49443.82391 | J42: 51625.2802 | K42: BBB
B43: BB | C43: 0 | D43: 0 | E43: 2843.610337 | F43: 1439.467896 | G43: 33330.39678 | H43: 119475.7741 | I43: 36174.00712 | J43: 120915.242 | K43: BB
B44: B | C44: 0 | D44: 0 | E44: 18023.05328 | F44: 21297.03402 | G44: 356347.8471 | H44: 211787.7141 | I44: 374370.9004 | J44: 233084.7481 | K44: B
B45: أخري | C45: 0 | D45: 0 | E45: 4746.032 | F45: 5191.635 | G45: 3708.055983 | H45: 4315.939965 | I45: 8454.087983 | J45: 9507.574965 | K45: Other
B46: غير مُصنفة | C46: 32.8446 | D46: 11.9706 | E46: 278.8547346 | F46: 1585.13041 | G46: 28125.55534 | H46: 1932.688875 | I46: 28437.25468 | J46: 3529.789885 | K46: Unrated
B47: الاجمالي حسب نوع التصنيف | C47: =C39+C40+C41+C42+C43+C44+C45+C46 -> 32.8446 | D47: =D39+D40+D41+D42+D43+D44+D45+D46 -> 11.9706 | E47: 39141.83872 | F47: 47283.54662 | G47: 992528.5878 | H47: 907778.8207 | I47: 1031703.271 | J47: 955074.3379 | K47: Totals for All Rating Types
B49: خارج منطقة الشرق الأوسط وشمال أفريقيا | K49: Outside MENA
B50: AAA | C50: 16546.45476 | D50: 21945.35866 | E50: 35967.17416 | F50: 27190.32873 | G50: 131167.3226 | H50: 195367.1103 | I50: =C50+E50+G50 -> 183680.9515 | J50: =D50+F50+H50 -> 244502.7977 | K50: AAA
B51: AA | C51: 479506.4485 | D51: 568429.6204 | E51: 1319726.702 | F51: 1390026.361 | G51: 2661604.589 | H51: 4166479.681 | I51: 4460837.739 | J51: 6124935.663 | K51: AA
B52: A | C52: 102293.2488 | D52: 75688.93901 | E52: 1575253.257 | F52: 1794871.688 | G52: 8871997.909 | H52: 9530967.8 | I52: 10549544.41 | J52: 11401528.43 | K52: A
B53: BBB | C53: 5197.462914 | D53: 10605.77182 | E53: 66882.35955 | F53: 236312.3841 | G53: 309084.9767 | H53: 433648.086 | I53: 381164.7992 | J53: 680566.2419 | K53: BBB
B54: BB | C54: 10733.09624 | D54: 33486.82424 | E54: 2452.830323 | F54: 288.3974257 | G54: 48957.50048 | H54: 68437.35544 | I54: =C54+E54+G54 -> 62143.42704 | J54: =D54+F54+H54 -> 102212.5771 | K54: BB
B55: B | C55: 0 | D55: 0 | E55: 8885.351707 | F55: 9779.5122 | G55: 96099.20258 | H55: 144999.6147 | I55: 104984.5543 | J55: 154779.1269 | K55: B
B56: أخري | C56: 0 | D56: 0 | E56: 50636.67105 | F56: 82068.44291 | G56: 25905.78013 | H56: 28161.92012 | I56: 76542.45118 | J56: 110230.363 | K56: Other
B57: غير مُصنفة | C57: 8777.260613 | D57: 25471.16381 | E57: 51531.10824 | F57: 36124.60204 | G57: 825260.8007 | H57: 468729.9626 | I57: 885569.1696 | J57: 530325.7285 | K57: Unrated
B58: الاجمالي حسب نوع التصنيف | C58: =C50+C51+C52+C53+C54+C55+C56+C57 -> 623053.9719 | D58: =D50+D51+D52+D53+D54+D55+D56+D57 -> 735627.678 | E58: 3111335.454 | F58: 3576661.717 | G58: 12970078.08 | H58: 15036791.53 | I58: 16704467.51 | J58: 19349080.92 | K58: Totals for All Rating Types
B60: كافة المناطق حسب التوزيع الجغرافي | K60: Totals for All Regions
B61: AAA | C61: 16790.40776 | D61: 21945.35866 | E61: 62177.00993 | F61: 61016.5855 | G61: 136126.662 | H61: 202863.8272 | I61: =C61+E61+G61 -> 215094.0797 | J61: =D61+F61+H61 -> 285825.7714 | K61: AAA
B62: AA | C62: 533262.5652 | D62: 636910.5161 | E62: 1414880.57 | F62: 1532621.275 | G62: 3649220.039 | H62: 5209572.239 | I62: 5597363.174 | J62: 7379104.03 | K62: AA
B63: A | C63: 193828.1922 | D63: 188293.963 | E63: 2157480.532 | F63: 2513862.152 | G63: 10260986.71 | H63: 11494543.24 | I63: 12612295.43 | J63: 14196699.36 | K63: A
B64: BBB | C64: 6426.550764 | D64: 13118.43274 | E64: 136904.304 | F64: 309518.6518 | G64: 540788.3638 | H64: 660130.9099 | I64: 684119.2186 | J64: 982767.9944 | K64: BBB
B65: BB | C65: 11362.60438 | D65: 33614.39658 | E65: 29396.47572 | F65: 21030.91439 | G65: 95186.77537 | H65: 208547.1933 | I65: =C65+E65+G65 -> 135945.8555 | J65: =D65+F65+H65 -> 263192.5043 | K65: BB
B66: B | C66: 0 | D66: 0 | E66: 117567.1406 | F66: 229723.2035 | G66: 471628.1764 | H66: 361810.8897 | I66: =C66+E66+G66 -> 589195.3171 | J66: =D66+F66+H66 -> 591534.0932 | K66: B
B67: أخري | C67: 0 | D67: 189.318 | E67: 56190.5306 | F67: 88077.89927 | G67: 47088.8081 | H67: 47459.04584 | I67: 103279.3387 | J67: 135726.2631 | K67: Other
B68: غير مُصنفة | C68: 11326.86909 | D68: 28360.39424 | E68: 166637.376 | F68: 149065.3059 | G68: 1208762.848 | H68: 588683.0094 | I68: 1386727.093 | J68: =D68+F68+H68 -> 766108.7095 | K68: Unrated
B69: الاجمالي حسب نوع التصنيف | C69: =C61+C62+C63+C64+C65+C66+C67+C68 -> 772997.1894 | D69: =D61+D62+D63+D64+D65+D66+D67+D68 -> 922432.3794 | E69: 4141233.938 | F69: 4904915.987 | G69: 16409788.38 | H69: 18773610.35 | I69: 21324019.51 | J69: 24600958.72 | K69: Totals for All Rating Types

Sheet 5A
B6: إجمالي الأقساط المكتسبة حسب فرع التأمين
B7: الشركات الوطنية والاجنبية
B8: Gross Earned Premium by Line of Business
B9: National & Foreign Companies
B11: جدول رقم 5A | I11: TABLE 5A
B12: بالألف درهم | I12: AED in 000's
B13: فروع التأمين | C13: الشركات الوطنية | E13: الشركات الأجنبية | G13: الاجمالي | I13: Line of Business
C14: NATIONAL COMPANIES | E14: FOREIGN COMPANIES | G14: TOTAL
C15: 2022 | D15: 2023 | E15: 2022 | F15: 2023 | G15: 2022 | H15: 2023
B16: تأمين الحريق | C16: 3378622.473 | D16: 3971834.162 | E16: 589064.9996 | F16: 628668.2774 | G16: =E16+C16 -> 3967687.473 | H16: =F16+D16 -> 4600502.439 | I16: Fire
B17: التأمين البحري والطيران | C17: 1404662.927 | D17: 1731231.065 | E17: 318087.7649 | F17: 333901.5417 | G17: =E17+C17 -> 1722750.692 | H17: =F17+D17 -> 2065132.607 | I17: Marine & Aviation
B18: تأمين السيارات والمركبات الأخرى | C18: 3278751.225 | D18: 3537419.3 | E18: 1280399.76 | F18: 1392375.427 | G18: 4559150.985 | H18: =F18+D18 -> 4929794.727 | I18: Motor & Transportation
B19: التأمين الهندسي والانشاءات والطاقة | C19: 2547503.021 | D19: 2939175.536 | E19: 157321.4012 | F19: 177457.3697 | G19: 2704824.422 | H19: =F19+D19 -> 3116632.906 | I19: Engineering, Construction & Energy
B20: أخرى | C20: 2922347.794 | D20: 3653455.271 | E20: 488018.1244 | F20: 517346.7159 | G20: 3410365.918 | H20: =F20+D20 -> 4170801.987 | I20: Other
B21: اعادة التأمين غير النسبية - المسؤوليات والممتلكات | C21: 5559.613754 | D21: 5858.643684 | E21: 0 | F21: 0 | G21: 5559.613754 | H21: =F21+D21 -> 5858.643684 | I21: Reinsurance - Property & Liability
B22: المجموع - تأمين الممتلكات والمسؤوليات | C22: =C16+C17+C18+C19+C20+C21 -> 13537447.05 | D22: =D16+D17+D18+D19+D20+D21 -> 15838973.98 | E22: =E16+E17+E18+E19+E20+E21 -> 2832892.05 | F22: =F16+F17+F18+F19+F20+F21 -> 3049749.331 | G22: =G16+G17+G18+G19+G20+G21 -> 16370339.1 | H22: =H16+H17+H18+H19+H20+H21 -> 18888723.31 | I22: Total - Property & Liability Insurance
B24: المجموع - تأمين صحي | C24: 15296843.73 | D24: 18035973.21 | E24: 5672664.417 | F24: 6527747.204 | G24: =E24+C24 -> 20969508.15 | H24: =F24+D24 -> 24563720.41 | I24: Total - Health Insurance
B26: تأمين حياة جماعي | C26: 747418.2845 | D26: 801551.8068 | E26: 169719.372 | F26: 195316.9358 | G26: =E26+C26 -> 917137.6565 | H26: 996868.7426 | I26: Group Life
B27: تأمين ائتمان حياة جماعي | C27: 807387.7753 | D27: 566306.4021 | E27: 21661 | F27: 20732 | G27: 829048.7753 | H27: 587038.4021 | I27: Group Credit Life
B28: تأمين حياة فردي | C28: 1217507.922 | D28: 1198547.72 | E28: 4615024.993 | F28: 3832447.194 | G28: 5832532.915 | H28: 5030994.914 | I28: Individual Life
B29: دفعات الحياة وتكوين الأموال | C29: 0 | D29: 0 | E29: 146567.1386 | F29: 48147.48767 | G29: 146567.1386 | H29: 48147.48767 | I29: Annuities & Fund Accumulation
B30: المجموع - تأمين الأشخاص وعمليات تكوين الأموال | C30: =C26+C27+C28+C29 -> 2772313.982 | D30: =D26+D27+D28+D29 -> 2566405.929 | E30: =E26+E27+E28+E29 -> 4952972.504 | F30: 4096643.618 | G30: =G26+G27+G28+G29 -> 7725286.485 | H30: =H26+H27+H28+H29 -> 6663049.546 | I30: Total - Insurance of Persons & Fund Accumulation
B32: المجموع - كافة فروع التأمين | C32: =C22+C24+C30 -> 31606604.77 | D32: =D22+D24+D30 -> 36441353.11 | E32: =E22+E24+E30 -> 13458528.97 | F32: 13674140.15 | G32: =G22+G24+G30 -> 45065133.74 | H32: =H22+H24+H30 -> 50115493.26 | I32: TOTAL - All Types of Business Combined

Sheet 5B
B6: إجمالي الأقساط المكتسبة حسب فرع التأمين
B7: شركات التأمين التقليدي الوطنية وشركات التأمين التكافلي الوطنية
B8: Gross Earned Premium by Line of Business
B9: Traditional & Takaful National Companies
B11: جدول رقم 5B | I11: TABLE 5B
B12: بالألف درهم | I12: AED in 000's
B13: فروع التأمين | C13: شركات التأمين التقليدي الوطنية | E13: شركات التأمين التكافلي الوطنية | G13: الشركات الوطنية | I13: Line of Business
C14: TRADITIONAL COMPANIES | E14: TAKAFUL OPERATORS | G14: NATIONAL COMPANIES
C15: 2022 | D15: 2023 | E15: 2022 | F15: 2023 | G15: 2022 | H15: 2023
B16: تأمين الحريق | C16: 2994945.621 | D16: 3497565.159 | E16: 383676.852 | F16: 474269.0025 | G16: =E16+C16 -> 3378622.473 | H16: 3971834.162 | I16: Fire
B17: التأمين البحري والطيران | C17: 1335504.626 | D17: 1600501.513 | E17: 69158.30053 | F17: 130729.5517 | G17: 1404662.927 | H17: 1731231.065 | I17: Marine & Aviation
B18: تأمين السيارات والمركبات الأخرى | C18: 2597633.701 | D18: 2716965.311 | E18: 681117.5238 | F18: 820453.9888 | G18: 3278751.225 | H18: 3537419.3 | I18: Motor & Transportation
B19: التأمين الهندسي والانشاءات والطاقة | C19: 2458128.821 | D19: 2798470.065 | E19: 89374.20045 | F19: 140705.471 | G19: 2547503.021 | H19: 2939175.536 | I19: Engineering, Construction & Energy
B20: أخرى | C20: 2602438.679 | D20: 3275646.96 | E20: 319909.1149 | F20: 377808.3118 | G20: 2922347.794 | H20: 3653455.271 | I20: Other
B21: اعادة التأمين غير النسبية - المسؤوليات والممتلكات | C21: 5559.613754 | D21: 5858.643684 | E21: 0 | F21: 0 | G21: 5559.613754 | H21: 5858.643684 | I21: Reinsurance - Property & Liability
B22: المجموع - تأمين الممتلكات والمسؤوليات | C22: =C16+C17+C18+C19+C20+C21 -> 11994211.06 | D22: 13895007.65 | E22: =E16+E17+E18+E19+E20+E21 -> 1543235.992 | F22: =F16+F17+F18+F19+F20+F21 -> 1943966.326 | G22: =G16+G17+G18+G19+G20+G21 -> 13537447.05 | H22: 15838973.98 | I22: Total - Property & Liability Insurance
B24: المجموع - تأمين صحي | C24: 13760568.78 | D24: 16298176.57 | E24: 1536274.948 | F24: 1737796.64 | G24: =E24+C24 -> 15296843.73 | H24: 18035973.21 | I24: Total - Health Insurance
B26: تأمين حياة جماعي | C26: 589804.6521 | D26: 651462.1622 | E26: 157613.6324 | F26: 150089.6446 | G26: =E26+C26 -> 747418.2845 | H26: =F26+D26 -> 801551.8068 | I26: Group Life
B27: تأمين ائتمان حياة جماعي | C27: 642659.1587 | D27: 318077.3185 | E27: 164728.6166 | F27: 248229.0836 | G27: 807387.7753 | H27: 566306.4021 | I27: Group Credit Life
B28: تأمين حياة فردي | C28: 861116.5733 | D28: 865314.6656 | E28: 356391.3484 | F28: 333233.0541 | G28: 1217507.922 | H28: 1198547.72 | I28: Individual Life
B29: دفعات الحياة وتكوين الأموال | C29: 0 | D29: 0 | E29: 0 | F29: 0 | G29: 0 | H29: 0 | I29: Annuities & Fund Accumulation
B30: المجموع - تأمين الأشخاص وعمليات تكوين الأموال | C30: =C26+C27+C28+C29 -> 2093580.384 | D30: =D26+D27+D28+D29 -> 1834854.146 | E30: =E26+E27+E28+E29 -> 678733.5974 | F30: 731551.7823 | G30: =G26+G27+G28+G29 -> 2772313.982 | H30: =H26+H27+H28+H29 -> 2566405.929 | I30: Total - Insurance of Persons & Fund Accumulation
B32: المجموع - كافة فروع التأمين | C32: =C22+C24+C30 -> 27848360.23 | D32: =D22+D24+D30 -> 32028038.36 | E32: =E22+E24+E30 -> 3758244.537 | F32: 4413314.748 | G32: =G22+G24+G30 -> 31606604.77 | H32: =H22+H24+H30 -> 36441353.11 | I32: TOTAL - All Types of Business Combined

Sheet 6A
B6: صافي الأقساط المكتسبة حسب فرع التأمين
B7: الشركات الوطنية والاجنبية
B8: Net Earned Premium by Line of Business
B9: National & Foreign Companies
B11: جدول رقم 6A | I11: TABLE 6A
B12: بالألف درهم | I12: AED in 000's
B13: فروع التأمين | C13: الشركات الوطنية | E13: الشركات الأجنبية | G13: الاجمالي | I13: Line of Business
C14: NATIONAL COMPANIES | E14: FOREIGN COMPANIES | G14: TOTAL
C15: 2022 | D15: 2023 | E15: 2022 | F15: 2023 | G15: 2022 | H15: 2023
B16: تأمين الحريق | C16: 467616.7081 | D16: 588582.065 | E16: 351946.3057 | F16: 337557.1654 | G16: =E16+C16 -> 819563.0138 | H16: =F16+D16 -> 926139.2304 | I16: Fire
B17: التأمين البحري والطيران | C17: 237775.8495 | D17: 265440.2549 | E17: 184218.3265 | F17: 193938.9725 | G17: 421994.1761 | H17: 459379.2274 | I17: Marine & Aviation
B18: تأمين السيارات والمركبات الأخرى | C18: 2342975.523 | D18: 2668653.234 | E18: 1236642.88 | F18: 1337051.628 | G18: 3579618.403 | H18: 4005704.862 | I18: Motor & Transportation
B19: التأمين الهندسي والانشاءات والطاقة | C19: 407767.8709 | D19: 488871.6962 | E19: 90540.65814 | F19: 98880.0506 | G19: 498308.529 | H19: 587751.7468 | I19: Engineering, Construction & Energy
B20: أخرى | C20: 714061.4521 | D20: 905305.8169 | E20: 221758.1219 | F20: 237830.6679 | G20: 935819.5739 | H20: 1143136.485 | I20: Other
B21: اعادة التأمين غير النسبية - المسؤوليات والممتلكات | C21: 2430.470667 | D21: 2405.24819 | E21: 0 | F21: 0 | G21: 2430.470667 | H21: 2405.24819 | I21: Reinsurance - Property & Liability
B22: المجموع - تأمين الممتلكات والمسؤوليات | C22: =C16+C17+C18+C19+C20+C21 -> 4172627.875 | D22: =D16+D17+D18+D19+D20+D21 -> 4919258.315 | E22: =E16+E17+E18+E19+E20+E21 -> 2085106.292 | F22: 2205258.484 | G22: 6257734.166 | H22: 7124516.8 | I22: Total - Property & Liability Insurance
B24: المجموع - تأمين صحي | C24: 8695088.839 | D24: 9917691.132 | E24: 3897724.655 | F24: 4483219.17 | G24: =E24+C24 -> 12592813.49 | H24: =F24+D24 -> 14400910.3 | I24: Total - Health Insurance
B26: تأمين حياة جماعي | C26: 276453.0032 | D26: 280833.3203 | E26: 40216.08055 | F26: 55219.03188 | G26: =E26+C26 -> 316669.0837 | H26: =F26+D26 -> 336052.3522 | I26: Group Life
B27: تأمين ائتمان حياة جماعي | C27: 396757.3343 | D27: 213215.5013 | E27: 4951 | F27: 4952 | G27: 401708.3343 | H27: 218167.5013 | I27: Group Credit Life
B28: تأمين حياة فردي | C28: 1104755.713 | D28: 1096825.18 | E28: 4459659.075 | F28: 3654957.064 | G28: 5564414.789 | H28: 4751782.244 | I28: Individual Life
B29: دفعات الحياة وتكوين الأموال | C29: -0.87356 | D29: -0.16998 | E29: 146537.8143 | F29: 48056.55475 | G29: 146536.9407 | H29: 48056.38477 | I29: Annuities & Fund Accumulation
B30: المجموع - تأمين الأشخاص وعمليات تكوين الأموال | C30: =C26+C27+C28+C29 -> 1777965.177 | D30: =D26+D27+D28+D29 -> 1590873.832 | E30: =E26+E27+E28+E29 -> 4651363.97 | F30: 3763184.651 | G30: 6429329.148 | H30: 5354058.482 | I30: Total - Insurance of Persons & Fund Accumulation
B32: المجموع - كافة فروع التأمين | C32: =C22+C24+C30 -> 14645681.89 | D32: =D22+D24+D30 -> 16427823.28 | E32: =E22+E24+E30 -> 10634194.92 | F32: 10451662.31 | G32: 25279876.81 | H32: 26879485.58 | I32: TOTAL - All Types of Business Combined

Sheet 6B
B6: صافي الأقساط المكتسبة حسب فرع التأمين
B7: شركات التأمين التقليدي الوطنية وشركات التأمين التكافلي الوطنية
B8: Net Earned Premium by Line of Business
B9: Traditional & Takaful National Companies
B11: جدول رقم 6B | I11: TABLE 6B
B12: بالألف درهم | I12: AED in 000's
B13: فروع التأمين | C13: شركات التأمين التقليدي الوطنية | E13: شركات التأمين التكافلي الوطنية | G13: الشركات الوطنية | I13: Line of Business
C14: TRADITIONAL COMPANIES | E14: TAKAFUL OPERATORS | G14: NATIONAL COMPANIES
C15: 2022 | D15: 2023 | E15: 2022 | F15: 2023 | G15: 2022 | H15: 2023
B16: تأمين الحريق | C16: 421117.0718 | D16: 518577.3365 | E16: 46499.63628 | F16: 70004.72852 | G16: =C16+E16 -> 467616.7081 | H16: =D16+F16 -> 588582.065 | I16: Fire
B17: التأمين البحري والطيران | C17: 225725.2455 | D17: 232348.338 | E17: 12050.60403 | F17: 33091.91691 | G17: =C17+E17 -> 237775.8495 | H17: =D17+F17 -> 265440.2549 | I17: Marine & Aviation
B18: تأمين السيارات والمركبات الأخرى | C18: 1713957.05 | D18: 1900718.287 | E18: 629018.473 | F18: 767934.9473 | G18: =C18+E18 -> 2342975.523 | H18: =D18+F18 -> 2668653.234 | I18: Motor & Transportation
B19: التأمين الهندسي والانشاءات والطاقة | C19: 401908.0254 | D19: 443891.4421 | E19: 5859.845492 | F19: 44980.25412 | G19: 407767.8709 | H19: 488871.6962 | I19: Engineering, Construction & Energy
B20: أخرى | C20: 612821.6731 | D20: 806750.435 | E20: 101239.779 | F20: 98555.38196 | G20: 714061.4521 | H20: 905305.8169 | I20: Other
B21: اعادة التأمين غير النسبية - المسؤوليات والممتلكات | C21: 2430.470667 | D21: 2405.24819 | E21: 0 | F21: 0 | G21: 2430.470667 | H21: 2405.24819 | I21: Reinsurance - Property & Liability
B22: المجموع - تأمين الممتلكات والمسؤوليات | C22: =C16+C17+C18+C19+C20+C21 -> 3377959.537 | D22: =D16+D17+D18+D19+D20+D21 -> 3904691.087 | E22: =E16+E17+E18+E19+E20+E21 -> 794668.3378 | F22: 1014567.229 | G22: 4172627.875 | H22: 4919258.315 | I22: Total - Property & Liability Insurance
B24: المجموع - تأمين صحي | C24: 7696021.761 | D24: 8858613.09 | E24: 999067.0782 | F24: 1059078.043 | G24: =C24+E24 -> 8695088.839 | H24: =D24+F24 -> 9917691.132 | I24: Total - Health Insurance
B26: تأمين حياة جماعي | C26: 246553.9179 | D26: 257260.5706 | E26: 29899.08524 | F26: 23572.74975 | G26: =C26+E26 -> 276453.0032 | H26: =D26+F26 -> 280833.3203 | I26: Group Life
B27: تأمين ائتمان حياة جماعي | C27: 346171.7393 | D27: 102976.2845 | E27: 50585.59508 | F27: 110239.2168 | G27: 396757.3343 | H27: 213215.5013 | I27: Group Credit Life
B28: تأمين حياة فردي | C28: 785399.4623 | D28: 794212.2644 | E28: 319356.2512 | F28: 302612.9157 | G28: 1104755.713 | H28: 1096825.18 | I28: Individual Life
B29: دفعات الحياة وتكوين الأموال | C29: 0 | D29: 0 | E29: -0.87356 | F29: -0.16998 | G29: -0.87356 | H29: -0.16998 | I29: Annuities & Fund Accumulation
B30: المجموع - تأمين الأشخاص وعمليات تكوين الأموال | C30: =C26+C27+C28+C29 -> 1378125.119 | D30: =D26+D27+D28+D29 -> 1154449.119 | E30: =E26+E27+E28+E29 -> 399840.0579 | F30: 436424.7122 | G30: 1777965.177 | H30: 1590873.832 | I30: Total - Insurance of Persons & Fund Accumulation
B32: المجموع - كافة فروع التأمين | C32: =C22+C24+C30 -> 12452106.42 | D32: =D22+D24+D30 -> 13917753.3 | E32: =E22+E24+E30 -> 2193575.474 | F32: 2510069.984 | G32: 14645681.89 | H32: 16427823.28 | I32: TOTAL - All Types of Business Combined

Sheet 7
B6: عدد وثائق التأمين ومعدل إجمالي الأقساط المكتتبة حسب فرع التأمين
B7: No. of Policies and Average Gross Written Premium
B8: (2023)
B10: جدول رقم 7 | L10: TABLE 7
B12: فروع التأمين | C12: الشركات الوطنية | F12: الشركات الأجنبية | I12: الاجمالي | L12: Line of Business
C13: NATIONAL COMPANIES | F13: FOREIGN COMPANIES | I13: TOTAL
C14: إجمالي الأقساط بالألف درهم | D14: عدد الوثائق | E14: معدل الأقساط | F14: إجمالي الأقساط بالألف درهم | G14: عدد الوثائق | H14: معدل الأقساط | I14: إجمالي الأقساط بالألف درهم | J14: عدد الوثائق | K14: معدل الأقساط
C15: GWP | D15: No. of Pols. | E15: Avg GWP | F15: GWP | G15: No. of Pols. | H15: Avg GWP | I15: GWP | J15: No. of Pols. | K15: Avg GWP
B16: تأمين الحريق | C16: 3896252.003 | D16: 146305 | E16: 26631.02425 | F16: 633390.9815 | G16: 51438 | H16: 12313.67824 | I16: =F16+C16 -> 4529642.984 | J16: =G16+D16 -> 197743 | K16: =I16*1000/J16 -> 22906.71723 | L16: Fire
B17: التأمين البحري والطيران | C17: 1881747.873 | D17: 145509 | E17: 12932.17515 | F17: 334045.0072 | G17: 126689 | H17: 2636.732528 | I17: =F17+C17 -> 2215792.881 | J17: =G17+D17 -> 272198 | K17: =I17*1000/J17 -> 8140.371643 | L17: Marine & Aviation
B18: تأمين السيارات والمركبات الأخرى | C18: 4318643.825 | D18: 3908479 | E18: 1104.942313 | F18: 1567919.593 | G18: 941011 | H18: 1666.207508 | I18: 5886563.418 | J18: =G18+D18 -> 4849490 | K18: 1213.852058 | L18: Motor & Transportation
B19: التأمين الهندسي والانشاءات والطاقة | C19: 3162435.288 | D19: 58892 | E19: 53698.89438 | F19: 154579.8515 | G19: 8333 | H19: 18550.32419 | I19: 3317015.139 | J19: =G19+D19 -> 67225 | K19: 49341.98794 | L19: Engineering, Construction & Energy
B20: أخرى | C20: 4285899.469 | D20: 8200293.111 | E20: 522.6519847 | F20: 531065.5098 | G20: 345491 | H20: 1537.132689 | I20: 4816964.979 | J20: =G20+D20 -> 8545784.111 | K20: 563.6656527 | L20: Other
B21: اعادة التأمين غير النسبية - المسؤوليات والممتلكات | C21: 5989.4324 | D21: 1198 | E21: 4999.52621 | F21: 0 | G21: 0 | I21: 5989.4324 | J21: =G21+D21 -> 1198 | K21: 4999.52621 | L21: Reinsurance - Property & Liability
B22: المجموع - تأمين الممتلكات والمسؤوليات | C22: =C16+C17+C18+C19+C20+C21 -> 17550967.89 | D22: =D16+D17+D18+D19+D20+D21 -> 12460676.11 | E22: =C22*1000/D22 -> 1408.508474 | F22: 3221000.943 | G22: 1472962 | H22: =F22*1000/G22 -> 2186.750876 | I22: =C22+F22 -> 20771968.83 | J22: =D22+G22 -> 13933638.11 | K22: 1490.778551 | L22: Total - Property & Liability Insurance
B24: المجموع - تأمين صحي | C24: 18983394.64 | D24: 1094926 | E24: 17337.60513 | F24: 6913648.708 | G24: 311927 | H24: 22164.31635 | I24: =F24+C24 -> 25897043.35 | J24: =G24+D24 -> 1406853 | K24: =I24*1000/J24 -> 18407.78201 | L24: Total - Health Insurance
B26: تأمين حياة جماعي | C26: 817542.1435 | D26: 9404 | E26: 86935.57459 | F26: 202734.9294 | G26: 3234 | H26: 62688.59909 | I26: 912908.8576 | J26: =G26+D26 -> 12638 | K26: =I26*1000/J26 -> 72235.23165 | L26: Group Life
B27: تأمين ائتمان حياة جماعي | C27: 541284.1291 | D27: 1462 | E27: 370235.3824 | F27: 19901 | G27: 17 | H27: 1170647.059 | I27: 828444.1132 | J27: 1479 | K27: 560138.0075 | L27: Group Credit Life
B28: تأمين حياة فردي | C28: 1246836.409 | D28: 188541 | E28: 6613.078368 | F28: 3832384.539 | G28: 99135 | H28: 38658.23916 | I28: 5799687.069 | J28: 287676 | K28: 20160.48287 | L28: Individual Life
B29: دفعات الحياة وتكوين الأموال | C29: 0 | D29: 0 | F29: 48147.48767 | G29: 751 | H29: 64111.16867 | I29: 146567.1386 | J29: 751 | K29: 195162.6346 | L29: Annuities & Fund Accumulation
B30: المجموع - تأمين الأشخاص وعمليات تكوين الأموال | C30: =C26+C27+C28+C29 -> 2605662.681 | D30: =D26+D27+D28+D29 -> 199407 | E30: =C30*1000/D30 -> 13067.05723 | F30: 4103167.956 | G30: 103137 | H30: =F30*1000/G30 -> 39783.66596 | I30: =C30+F30 -> 6708830.638 | J30: =D30+G30 -> 302544 | K30: 22174.72711 | L30: Total - Insurance of Persons & Fund Accumulation
B32: المجموع - كافة فروع التأمين | C32: =C22+C24+C30 -> 39140025.21 | D32: =D22+D24+D30 -> 13755009.11 | E32: =C32*1000/D32 -> 2845.510672 | F32: =F22+F24+F30 -> 14237817.61 | G32: =G22+G24+G30 -> 1888026 | H32: =F32*1000/G32 -> 7541.113103 | I32: =I22+I24+I30 -> 53377842.82 | J32: =J22+J24+J30 -> 15643035.11 | K32: =I32*1000/J32 -> 3412.243368 | L32: TOTAL - All Types of Business Combined

Sheet 8
B6: إجمالي الأقساط المكتتبة والعمولات المدفوعة حسب قنوات التوزيع الشركات الوطنية والاجنبية
B7: Gross Written Premium & Commission Paid by Distribution Channel
B8: (2023)
B10: جدول رقم 8 | I10: TABLE 8
B11: بالألف درهم | C11: Gross Written Premiums (اجمالي الاقساط المكتتبة) | I11: AED in 000's
B12: فروع التأمين | C12: الشركات الوطنية | E12: الشركات الأجنبية | G12: الاجمالي | I12: Distribution Channel
C13: NATIONAL COMPANIES | E13: FOREIGN COMPANIES | G13: TOTAL
C14: تأمينات عامة | D14: تأمين على الحياة | E14: تأمينات عامة | F14: تأمين على الحياة | G14: تأمينات عامة | H14: تأمين على الحياة
C15: Non-Life | D15: Life | E15: Non-Life | F15: Life | G15: Non-Life | H15: Life
B16: الوثائق المباعة من خلال الوكلاء | C16: 1666293.356 | D16: 204986.5067 | E16: 409499.2916 | F16: 515901.3015 | G16: =E16+C16 -> 2075792.648 | H16: =F16+D16 -> 720887.8082 | I16: Policies Sold Through Agents
B17: الوثائق المباعة من خلال الوسطاء | C17: 15563592.71 | D17: 1064924.929 | E17: 5399911.442 | F17: 4591917.988 | G17: 20963504.15 | H17: 5656842.917 | I17: Policies Sold Through Brokers
B18: الوثائق المباعة من خلال البنوك | C18: 110139.5445 | D18: 1038477.22 | E18: 129087.4125 | F18: 983848.2266 | G18: 239226.957 | H18: 2022325.447 | I18: Policies Sold Through Banks
B19: الوثائق المباعة من خلال شركات التمويل | C19: 0 | D19: 0 | E19: 34108.50931 | F19: 0 | G19: 34108.50931 | H19: 0 | I19: Policies Sold Through Financial Institutions
B20: الوثائق المباعة عبر الانترنت | C20: 56875.55938 | D20: 0 | E20: 149093.2477 | F20: 0 | G20: =E20+C20 -> 205968.8071 | H20: =F20+D20 -> 0 | I20: Policies Sold Online
B21: الأخرى | C21: 18414464.56 | D21: 1020270.822 | E21: 1904165.669 | F21: 120284.518 | G21: 20318630.23 | H21: 1140555.34 | I21: Others
B22: كافة قنوات التوزيع | C22: =SUM(C16:C21) -> 35811365.73 | D22: 3328659.479 | E22: 8025865.572 | F22: 6211952.034 | G22: 43837231.3 | H22: 9540611.512 | I22: All Distribution Channels
C23: Percent of Total Gross Premium (توزيع إجمالي الأقساط)
B24: الوكلاء | C24: 0.04652973497 | D24: 0.06158230003 | E24: 0.05102244585 | F24: 0.08304978833 | G24: 0.04735227537 | H24: 0.07555991639 | I24: Agents
B25: الوسطاء | C25: 0.4345992505 | D25: 0.3199260652 | E25: 0.6728135916 | F25: 0.7392069293 | G25: 0.4782123215 | H25: 0.5929224673 | I25: Brokers
B26: البنوك (المصارف) | C26: 0.003075547168 | D26: 0.3119806117 | E26: 0.01608392408 | F26: 0.1583798814 | G26: 0.005457163919 | H26: 0.2119702122 | I26: Banks
B27: المؤسسات الاستثمارية والمالية | C27: 0 | D27: 0 | E27: 0.00424982315 | F27: 0 | G27: 0.0007780717052 | H27: 0 | I27: Investment / Financial Institutions
B28: الوثائق المباعة عبر الانترنت | C28: 0.001588198557 | D28: 0 | E28: 0.01857659419 | F28: 0 | G28: 0.004698490324 | H28: 0 | I28: Policies Sold Online
B29: الأخرى | C29: 0.5142072688 | D29: 0.3065110231 | E29: 0.2372536211 | F29: 0.01936340096 | G29: 0.4635016772 | H29: 0.1195474041 | I29: Others
B30: كافة قنوات التوزيع | C30: =C24+C25+C26+C27+C28+C29 -> 1 | D30: 1 | E30: 1 | F30: 1 | G30: 1 | H30: 1 | I30: All Distribution Channels
C31: Commission Paid (العمولات المدفوعة)
B32: الوكلاء | C32: 179522.4134 | D32: 19480.45997 | E32: 95853.25744 | F32: 20262.95154 | G32: =E32+C32 -> 275375.6709 | H32: =F32+D32 -> 39743.41151 | I32: Agents
B33: الوسطاء | C33: 1492063.457 | D33: 101030.5347 | E33: 727748.5679 | F33: 294929.419 | G33: 2219812.025 | H33: 395959.9537 | I33: Brokers
B34: البنوك (المصارف) | C34: 12380.45531 | D34: 129564.9595 | E34: 33055.96151 | F34: 31459.7 | G34: 45436.41682 | H34: 161024.6595 | I34: Banks
B35: المؤسسات الاستثمارية والمالية | C35: 0 | D35: 0 | E35: 5221.52427 | F35: 0 | G35: 5221.52427 | H35: 0 | I35: Investment / Financial Institutions
B36: الوثائق المباعة عبر الانترنت | C36: 1384.15816 | D36: 0 | E36: 67.01174 | F36: 0 | G36: =E36+C36 -> 1451.1699 | H36: =F36+D36 -> 0 | I36: Policies Sold Online
B37: الأخرى | C37: 840284.5466 | D37: 127142.7821 | E37: 157443.4316 | F37: 9420.27375 | G37: 997727.9782 | H37: 136563.0558 | I37: Others
B38: كافة قنوات التوزيع | C38: =SUM(C32:C37) -> 2525635.031 | D38: =SUM(D32:D37) -> 377218.7362 | E38: 1019389.755 | F38: 356072.3443 | G38: 3545024.785 | H38: 733291.0805 | I38: All Distribution Channels
C39: Commission Ratio (نسبة العمولات )
B40: الوكلاء | C40: =C32/C16 -> 0.1077375798 | D40: =D32/D16 -> 0.09503288915 | E40: 0.2340742937 | F40: 0.03927679865 | G40: 0.1326604905 | H40: 0.05513120219 | I40: Agents
B41: الوسطاء | C41: =C33/C17 -> 0.09586883219 | D41: 0.09487103914 | E41: 0.1347704635 | F41: 0.06422793695 | G41: 0.1058893594 | H41: 0.0699966323 | I41: Brokers
B42: البنوك (المصارف) | C42: =C34/C18 -> 0.1124069958 | D42: 0.1247643732 | E42: 0.2560742435 | F42: 0.03197617188 | G42: 0.1899301709 | H42: 0.07962351449 | I42: Banks
B43: المؤسسات الاستثمارية والمالية | E43: =E35/E19 -> 0.1530856779 | G43: 0.1530856779 | I43: Investment / Financial Institutions
B44: الوثائق المباعة عبر الانترنت | C44: =C36/C20 -> 0.02433660741 | E44: 0.0004494619375 | G44: 0.007045580932 | I44: Policies Sold Online
B45: الأخرى | C45: =C37/C21 -> 0.04563176646 | D45: 0.1246166991 | E45: 0.08268368355 | F45: 0.07831659391 | G45: 0.04910409642 | H45: 0.119733827 | I45: Others
B46: كافة قنوات التوزيع | C46: =C38/C22 -> 0.07052607404 | D46: =D38/D22 -> 0.1133245196 | E46: 0.1270130611 | F46: 0.05732052378 | G46: 0.08086789882 | H46: 0.07685996643 | I46: All Distribution Channels

Sheet 9A
B6: إجمالي المُخصصات الفنية حسب فرع التأمين
B7: الشركات الوطنية والاجنبية
B8: Gross Technical Provisions by Line of Business
B9: National & Foreign Companies
B11: جدول رقم 9A | I11: TABLE 9A
B12: بالألف درهم | I12: AED in 000's
B13: فروع التأمين | C13: الشركات الوطنية | E13: الشركات الأجنبية | G13: الاجمالي | I13: Line of Business
C14: NATIONAL COMPANIES | E14: FOREIGN COMPANIES | G14: TOTAL
C15: 2022 | D15: 2023 | E15: 2022 | F15: 2023 | G15: 2022 | H15: 2023
B16: تأمين الحريق | C16: 4550578.166 | D16: 5172978.665 | E16: 1178344.376 | F16: 1250004.498 | G16: =E16+C16 -> 5728922.542 | H16: =F16+D16 -> 6422983.163 | I16: Fire
B17: التأمين البحري والطيران | C17: 1777818.294 | D17: 2636394.596 | E17: 416634.5856 | F17: 418473.2532 | G17: 2194452.879 | H17: 3054867.85 | I17: Marine & Aviation
B18: تأمين السيارات والمركبات الأخرى | C18: 3436753.59 | D18: 4045228.256 | E18: 1438526.347 | F18: 1611109.385 | G18: 4875279.938 | H18: 5656337.641 | I18: Motor & Transportation
B19: التأمين الهندسي والانشاءات والطاقة | C19: 5149558.078 | D19: 5417350.316 | E19: 742065.832 | F19: 660348.5917 | G19: 5891623.91 | H19: 6077698.908 | I19: Engineering, Construction & Energy
B20: أخرى | C20: 3412591.614 | D20: 4022833.863 | E20: 649063.2771 | F20: 680414.2955 | G20: 4061654.891 | H20: 4703248.158 | I20: Other
B21: اعادة التأمين غير النسبية - المسؤوليات والممتلكات | C21: 3790.876015 | D21: 10317.8625 | E21: 0 | F21: 0 | G21: 3790.876015 | H21: 10317.8625 | I21: Reinsurance - Property & Liability
B22: المجموع - تأمين الممتلكات والمسؤوليات | C22: =C16+C17+C18+C19+C20+C21 -> 18331090.62 | D22: =D16+D17+D18+D19+D20+D21 -> 21305103.56 | E22: =E16+E17+E18+E19+E20+E21 -> 4424634.418 | F22: =F16+F17+F18+F19+F20+F21 -> 4620350.023 | G22: =G16+G17+G18+G19+G20+G21 -> 22755725.04 | H22: 25925453.58 | I22: Total - Property & Liability Insurance
B24: المجموع - تأمين صحي | C24: 9062913.144 | D24: 10886969.79 | E24: 2264988.035 | F24: 2799001.524 | G24: =E24+C24 -> 11327901.18 | H24: =F24+D24 -> 13685971.32 | I24: Total - Health Insurance
B26: تأمين حياة جماعي | C26: 607339.5475 | D26: 565170.7466 | E26: 170072.166 | F26: 149653.6095 | G26: =E26+C26 -> 777411.7135 | H26: =F26+D26 -> 714824.3561 | I26: Group Life
B27: تأمين ائتمان حياة جماعي | C27: 1103694.802 | D27: 1019641.244 | E27: 14216 | F27: 12433 | G27: 1117910.802 | H27: 1032074.244 | I27: Group Credit Life
B28: تأمين حياة فردي | C28: 6072178.985 | D28: 6807643.294 | E28: 25915252.36 | F28: 27583831.84 | G28: 31987431.35 | H28: 34391475.14 | I28: Individual Life
B29: دفعات الحياة وتكوين الأموال | C29: 0 | D29: 0 | E29: 584732.4042 | F29: 528141.5952 | G29: 584732.4042 | H29: 528141.5952 | I29: Annuities & Fund Accumulation
B30: المجموع - تأمين الأشخاص وعمليات تكوين الأموال | C30: =C26+C27+C28+C29 -> 7783213.335 | D30: =D26+D27+D28+D29 -> 8392455.284 | E30: =E26+E27+E28+E29 -> 26684272.93 | F30: 28274060.05 | G30: 34467486.27 | H30: 36666515.33 | I30: Total - Insurance of Persons & Fund Accumulation
B32: المجموع - كافة فروع التأمين | C32: =C22+C24+C30 -> 35177217.1 | D32: =D22+D24+D30 -> 40584528.64 | E32: =E22+E24+E30 -> 33373895.38 | F32: 35693411.59 | G32: 68551112.48 | H32: 76277940.23 | I32: TOTAL - All Types of Business Combined

Sheet 9B
B6: إجمالي المُخصصات الفنية حسب فرع التأمين
B7: شركات التأمين التقليدي الوطنية وشركات التأمين التكافلي الوطنية
B8: Gross Technical Provisions by Line of Business
B9: Traditional & Takaful National Companies
B11: جدول رقم 9B | I11: TABLE 9B
B12: بالألف درهم | I12: AED in 000's
B13: فروع التأمين | C13: شركات التأمين التقليدي الوطنية | E13: شركات التأمين التكافلي الوطنية | G13: الشركات الوطنية | I13: Line of Business
C14: TRADITIONAL COMPANIES | E14: TAKAFUL OPERATORS | G14: NATIONAL COMPANIES
C15: 2022 | D15: 2023 | E15: 2022 | F15: 2023 | G15: 2022 | H15: 2023
B16: تأمين الحريق | C16: 4051703.945 | D16: 4580696.089 | E16: 498874.2209 | F16: 592282.5759 | G16: =E16+C16 -> 4550578.166 | H16: =F16+D16 -> 5172978.665 | I16: Fire
B17: التأمين البحري والطيران | C17: 1704865.605 | D17: 2560044.572 | E17: 72952.68889 | F17: 76350.02491 | G17: 1777818.294 | H17: 2636394.596 | I17: Marine & Aviation
B18: تأمين السيارات والمركبات الأخرى | C18: 2395727.499 | D18: 2937236.663 | E18: 1041026.092 | F18: 1107991.593 | G18: 3436753.59 | H18: 4045228.256 | I18: Motor & Transportation
B19: التأمين الهندسي والانشاءات والطاقة | C19: 4907221.453 | D19: 5118672.841 | E19: 242336.6251 | F19: 298677.475 | G19: 5149558.078 | H19: 5417350.316 | I19: Engineering, Construction & Energy
B20: أخرى | C20: 3057742.681 | D20: 3582990.477 | E20: 354848.9332 | F20: 439843.3862 | G20: 3412591.614 | H20: 4022833.863 | I20: Other
B21: اعادة التأمين غير النسبية - المسؤوليات والممتلكات | C21: 3790.876015 | D21: 10317.8625 | E21: 0 | F21: 0 | G21: 3790.876015 | H21: 10317.8625 | I21: Reinsurance - Property & Liability
B22: المجموع - تأمين الممتلكات والمسؤوليات | C22: =C16+C17+C18+C19+C20+C21 -> 16121052.06 | D22: =D16+D17+D18+D19+D20+D21 -> 18789958.5 | E22: =E16+E17+E18+E19+E20+E21 -> 2210038.56 | F22: =F16+F17+F18+F19+F20+F21 -> 2515145.055 | G22: =G16+G17+G18+G19+G20+G21 -> 18331090.62 | H22: 21305103.56 | I22: Total - Property & Liability Insurance
B24: المجموع - تأمين صحي | C24: 8057247.328 | D24: 9802070.48 | E24: 1005665.816 | F24: 1084899.313 | G24: =E24+C24 -> 9062913.144 | H24: =F24+D24 -> 10886969.79 | I24: Total - Health Insurance
B26: تأمين حياة جماعي | C26: 543337.5417 | D26: 510840.9807 | E26: 64002.00573 | F26: 54329.76591 | G26: =E26+C26 -> 607339.5475 | H26: =F26+D26 -> 565170.7466 | I26: Group Life
B27: تأمين ائتمان حياة جماعي | C27: 807270.7737 | D27: 713088.5944 | E27: 296424.0284 | F27: 306552.6495 | G27: 1103694.802 | H27: 1019641.244 | I27: Group Credit Life
B28: تأمين حياة فردي | C28: 3301000.933 | D28: 3883698.133 | E28: 2771178.052 | F28: 2923945.161 | G28: 6072178.985 | H28: 6807643.294 | I28: Individual Life
B29: دفعات الحياة وتكوين الأموال | C29: 0 | D29: 0 | E29: 0 | F29: 0 | G29: 0 | H29: 0 | I29: Annuities & Fund Accumulation
B30: المجموع - تأمين الأشخاص وعمليات تكوين الأموال | C30: =C26+C27+C28+C29 -> 4651609.248 | D30: =D26+D27+D28+D29 -> 5107627.708 | E30: =E26+E27+E28+E29 -> 3131604.087 | F30: 3284827.576 | G30: 7783213.335 | H30: 8392455.284 | I30: Total - Insurance of Persons & Fund Accumulation
B32: المجموع - كافة فروع التأمين | C32: =C22+C24+C30 -> 28829908.63 | D32: =D22+D24+D30 -> 33699656.69 | E32: =E22+E24+E30 -> 6347308.462 | F32: 6884871.944 | G32: 35177217.1 | H32: 40584528.64 | I32: TOTAL - All Types of Business Combined

Sheet 9C
B6: إجمالي المُخصصات الفنية حسب فرع التأمين
B7: شركات التأمين على الحياة وشركات التأمينات العامة وشركات التأمين على الحياة والتأمينات العامة
B8: Gross Technical Provisions by Line of Business
B9: Life, Non-Life & Composite Companies
B11: جدول رقم 9C | K11: TABLE 9C
B12: بالألف درهم | K12: AED in 000's
B13: فروع التأمين | C13: شركات التأمين على الأشخاص وتكوين الأموال | E13: شركات تأمين الممتلكات والمسؤوليات | G13: شركات التأمين (النوعين معاً) | I13: الاجمالي | K13: Line of Business
C14: LIFE COMPANIES | E14: NON-LIFE COMPANIES | G14: COMPOSITE COMPANIES | I14: TOTAL
C15: 2022 | D15: 2023 | E15: 2022 | F15: 2023 | G15: 2022 | H15: 2023 | I15: 2022 | J15: 2023
B16: تأمين الحريق | C16: 0 | D16: 0 | E16: 1839468.031 | F16: 2004044.416 | G16: 3889454.511 | H16: 4418938.747 | I16: =G16+E16+C16 -> 5728922.542 | J16: =H16+F16+D16 -> 6422983.163 | K16: Fire
B17: التأمين البحري والطيران | C17: 0 | D17: 0 | E17: 468739.9823 | F17: 496185.0222 | G17: 1725712.897 | H17: 2558682.828 | I17: 2194452.879 | J17: 3054867.85 | K17: Marine & Aviation
B18: تأمين السيارات والمركبات الأخرى | C18: 0.001 | D18: 0.001 | E18: 2483700.139 | F18: 2515283.643 | G18: 2391579.798 | H18: 3141053.997 | I18: 4875279.938 | J18: 5656337.641 | K18: Motor & Transportation
B19: التأمين الهندسي والانشاءات والطاقة | C19: 0 | D19: 0 | E19: 1052119.068 | F19: 1240144.978 | G19: 4839504.842 | H19: 4837553.93 | I19: 5891623.91 | J19: 6077698.908 | K19: Engineering, Construction & Energy
B20: أخرى | C20: 0 | D20: 0 | E20: 596137.1244 | F20: 989732.9038 | G20: 3465517.767 | H20: 3713515.255 | I20: 4061654.891 | J20: 4703248.158 | K20: Other
B21: اعادة التأمين غير النسبية - المسؤوليات والممتلكات | C21: 0 | D21: 0 | E21: 3790.876015 | F21: 10317.8625 | G21: 0 | H21: 0 | I21: 3790.876015 | J21: 10317.8625 | K21: Reinsurance - Property & Liability
B22: المجموع - تأمين الممتلكات والمسؤوليات | C22: =C16+C17+C18+C19+C20+C21 -> 0.001 | D22: =D16+D17+D18+D19+D20+D21 -> 0.001 | E22: =E16+E17+E18+E19+E20+E21 -> 6443955.221 | F22: 7255708.826 | G22: =G16+G17+G18+G19+G20+G21 -> 16311769.81 | H22: 18669744.76 | I22: 22755725.04 | J22: 25925453.58 | K22: Total - Property & Liability Insurance
B24: المجموع - تأمين صحي | C24: 867531.0159 | D24: 986405.3918 | E24: 4661559.334 | F24: 5457949.833 | G24: 5798810.829 | H24: 7241616.092 | I24: =G24+E24+C24 -> 11327901.18 | J24: 13685971.32 | K24: Total - Health Insurance
B26: تأمين حياة جماعي | C26: 177632.4804 | D26: 155842.0446 | E26: 3299.644256 | F26: 0 | G26: 596479.5888 | H26: 558982.3116 | I26: =G26+E26+C26 -> 777411.7135 | J26: 714824.3561 | K26: Group Life
B27: تأمين ائتمان حياة جماعي | C27: 35175.24024 | D27: 44680.83682 | E27: 0 | F27: 0 | G27: 1082735.562 | H27: 987393.4071 | I27: 1117910.802 | J27: 1032074.244 | K27: Group Credit Life
B28: تأمين حياة فردي | C28: 22410244.53 | D28: 23589865.48 | E28: 0 | F28: 0 | G28: 9577186.82 | H28: 10801609.65 | I28: 31987431.35 | J28: 34391475.14 | K28: Individual Life
B29: دفعات الحياة وتكوين الأموال | C29: 236809.4042 | D29: 217304.5952 | E29: 0 | F29: 0 | G29: 347923 | H29: 310837 | I29: 584732.4042 | J29: 528141.5952 | K29: Annuities & Fund Accumulation
B30: المجموع - تأمين الأشخاص وعمليات تكوين الأموال | C30: =C26+C27+C28+C29 -> 22859861.65 | D30: =D26+D27+D28+D29 -> 24007692.96 | E30: =E26+E27+E28+E29 -> 3299.644256 | F30: 0 | G30: =G26+G27+G28+G29 -> 11604324.97 | H30: 12658822.37 | I30: 34467486.27 | J30: 36666515.33 | K30: Total - Insurance of Persons & Fund Accumulation
B32: المجموع - كافة فروع التأمين | C32: =C22+C24+C30 -> 23727392.67 | D32: =D22+D24+D30 -> 24994098.35 | E32: =E22+E24+E30 -> 11108814.2 | F32: 12713658.66 | G32: =G22+G24+G30 -> 33714905.61 | H32: 38570183.22 | I32: 68551112.48 | J32: 76277940.23 | K32: TOTAL - All Types of Business Combined

Sheet 10A
B6: صافي المُخصصات الفنية حسب فرع التأمين
B7: الشركات الوطنية والاجنبية
B8: Net Technical Provisions by Line of Business
B9: National & Foreign Companies
B11: جدول رقم 10A | I11: TABLE 10A
B12: بالألف درهم | I12: AED in 000's
B13: فروع التأمين | C13: الشركات الوطنية | E13: الشركات الأجنبية | G13: الاجمالي | I13: Line of Business
C14: NATIONAL COMPANIES | E14: FOREIGN COMPANIES | G14: TOTAL
C15: 2022 | D15: 2023 | E15: 2022 | F15: 2023 | G15: 2022 | H15: 2023
B16: تأمين الحريق | C16: 627642.8325 | D16: 730299.6525 | E16: 756192.5655 | F16: 765727.9179 | G16: =E16+C16 -> 1383835.398 | H16: 1496027.57 | I16: Fire
B17: التأمين البحري والطيران | C17: 328061.7664 | D17: 452277.8782 | E17: 260964.709 | F17: 265662.7426 | G17: 589026.4753 | H17: 717940.6208 | I17: Marine & Aviation
B18: تأمين السيارات والمركبات الأخرى | C18: 2265319.04 | D18: 2870870.095 | E18: 1384983.882 | F18: 1536860.786 | G18: 3650302.922 | H18: 4407730.881 | I18: Motor & Transportation
B19: التأمين الهندسي والانشاءات والطاقة | C19: 878395.1914 | D19: 896285.1671 | E19: 414740.5079 | F19: 393695.5242 | G19: 1293135.699 | H19: 1289980.691 | I19: Engineering, Construction & Energy
B20: أخرى | C20: 650575.6936 | D20: 857741.391 | E20: 252319.6913 | F20: 258439.5926 | G20: 902895.385 | H20: 1116180.984 | I20: Other
B21: اعادة التأمين غير النسبية - المسؤوليات والممتلكات | C21: 2448.163181 | D21: 3235.111516 | E21: 0 | F21: 0 | G21: 2448.163181 | H21: 3235.111516 | I21: Reinsurance - Property & Liability
B22: المجموع - تأمين الممتلكات والمسؤوليات | C22: =C16+C17+C18+C19+C20+C21 -> 4752442.687 | D22: =D16+D17+D18+D19+D20+D21 -> 5810709.295 | E22: 3069201.356 | F22: 3220386.563 | G22: 7821644.043 | H22: 9031095.859 | I22: Total - Property & Liability Insurance
B24: المجموع - تأمين صحي | C24: 5095910.489 | D24: 5964876.536 | E24: 1679344.377 | F24: 2078572.007 | G24: =E24+C24 -> 6775254.866 | H24: =F24+D24 -> 8043448.543 | I24: Total - Health Insurance
B26: تأمين حياة جماعي | C26: 194030.6926 | D26: 211238.3351 | E26: 26842.921 | F26: 26568.32549 | G26: =E26+C26 -> 220873.6136 | H26: =F26+D26 -> 237806.6606 | I26: Group Life
B27: تأمين ائتمان حياة جماعي | C27: 500487.9596 | D27: 479654.9948 | E27: 4686 | F27: 3752 | G27: 505173.9596 | H27: 483406.9948 | I27: Group Credit Life
B28: تأمين حياة فردي | C28: 5969514.035 | D28: 6672737.888 | E28: 24238529 | F28: 25981696.55 | G28: 30208043.03 | H28: 32654434.44 | I28: Individual Life
B29: دفعات الحياة وتكوين الأموال | C29: 0 | D29: 0 | E29: 584732.4042 | F29: 528141.5952 | G29: 584732.4042 | H29: 528141.5952 | I29: Annuities & Fund Accumulation
B30: المجموع - تأمين الأشخاص وعمليات تكوين الأموال | C30: =C26+C27+C28+C29 -> 6664032.688 | D30: 7363631.218 | E30: 24854790.32 | F30: =F26+F27+F28+F29 -> 26540158.47 | G30: =G26+G27+G28+G29 -> 31518823.01 | H30: 33903789.69 | I30: Total - Insurance of Persons & Fund Accumulation
B32: المجموع - كافة فروع التأمين | C32: =C22+C24+C30 -> 16512385.86 | D32: 19139217.05 | E32: 29603336.05 | F32: =F22+F24+F30 -> 31839117.05 | G32: =G22+G24+G30 -> 46115721.92 | H32: 50978334.09 | I32: TOTAL - All Types of Business Combined

Sheet 10B
B6: صافي المُخصصات الفنية حسب فرع التأمين
B7: شركات التأمين التقليدي الوطنية وشركات التأمين التكافلي الوطنية
B8: Net Technical Provisions by Line of Business
B9: Traditional & Takaful National Companies
B11: جدول رقم 10B | I11: TABLE 10B
B12: بالألف درهم | I12: AED in 000's
B13: فروع التأمين | C13: شركات التأمين التقليدي الوطنية | E13: شركات التأمين التكافلي الوطنية | G13: الشركات الوطنية | I13: Line of Business
C14: TRADITIONAL COMPANIES | E14: TAKAFUL OPERATORS | G14: NATIONAL COMPANIES
C15: 2022 | D15: 2023 | E15: 2022 | F15: 2023 | G15: 2022 | H15: 2023
B16: تأمين الحريق | C16: 591239.0971 | D16: 672490.8586 | E16: 36403.73535 | F16: 57808.79396 | G16: =E16+C16 -> 627642.8325 | H16: =F16+D16 -> 730299.6525 | I16: Fire
B17: التأمين البحري والطيران | C17: 312776.8028 | D17: 442493.9441 | E17: 15284.96355 | F17: 9783.934056 | G17: 328061.7664 | H17: 452277.8782 | I17: Marine & Aviation
B18: تأمين السيارات والمركبات الأخرى | C18: 1549324.938 | D18: 2100259.324 | E18: 715994.1027 | F18: 770610.7709 | G18: 2265319.04 | H18: 2870870.095 | I18: Motor & Transportation
B19: التأمين الهندسي والانشاءات والطاقة | C19: 844673.5424 | D19: 845503.2463 | E19: 33721.64901 | F19: 50781.9208 | G19: 878395.1914 | H19: 896285.1671 | I19: Engineering, Construction & Energy
B20: أخرى | C20: 554546.2182 | D20: 719033.2694 | E20: 96029.47545 | F20: 138708.1217 | G20: 650575.6936 | H20: 857741.391 | I20: Other
B21: اعادة التأمين غير النسبية - المسؤوليات والممتلكات | C21: 2448.163181 | D21: 3235.111516 | E21: 0 | F21: 0 | G21: 2448.163181 | H21: 3235.111516 | I21: Reinsurance - Property & Liability
B22: المجموع - تأمين الممتلكات والمسؤوليات | C22: =C16+C17+C18+C19+C20+C21 -> 3855008.761 | D22: =D16+D17+D18+D19+D20+D21 -> 4783015.754 | E22: =E16+E17+E18+E19+E20+E21 -> 897433.9261 | F22: 1027693.541 | G22: 4752442.687 | H22: 5810709.295 | I22: Total - Property & Liability Insurance
B24: المجموع - تأمين صحي | C24: 4474641.262 | D24: 5371723.419 | E24: 621269.2267 | F24: 593153.1174 | G24: =E24+C24 -> 5095910.489 | H24: =F24+D24 -> 5964876.536 | I24: Total - Health Insurance
B26: تأمين حياة جماعي | C26: 181106.2696 | D26: 200738.6524 | E26: 12924.42297 | F26: 10499.68266 | G26: =E26+C26 -> 194030.6926 | H26: 211238.3351 | I26: Group Life
B27: تأمين ائتمان حياة جماعي | C27: 457891.4541 | D27: 435138.086 | E27: 42596.50556 | F27: 44516.9087 | G27: 500487.9596 | H27: 479654.9948 | I27: Group Credit Life
B28: تأمين حياة فردي | C28: 3227427.376 | D28: 3774444.045 | E28: 2742086.66 | F28: 2898293.843 | G28: 5969514.035 | H28: 6672737.888 | I28: Individual Life
B29: دفعات الحياة وتكوين الأموال | C29: 0 | D29: 0 | E29: 0 | F29: 0 | G29: 0 | H29: 0 | I29: Annuities & Fund Accumulation
B30: المجموع - تأمين الأشخاص وعمليات تكوين الأموال | C30: =C26+C27+C28+C29 -> 3866425.1 | D30: =D26+D27+D28+D29 -> 4410320.783 | E30: 2797607.588 | F30: 2953310.434 | G30: 6664032.688 | H30: 7363631.218 | I30: Total - Insurance of Persons & Fund Accumulation
B32: المجموع - كافة فروع التأمين | C32: =C22+C24+C30 -> 12196075.12 | D32: =D22+D24+D30 -> 14565059.96 | E32: 4316310.741 | F32: 4574157.093 | G32: 16512385.86 | H32: 19139217.05 | I32: TOTAL - All Types of Business Combined

Sheet 11A
B6: إجمالي المُخصصات الفنية حسب فرع التأمين
B7: Gross Technical Provisions by Line of Business
B8: (2023)
B11: جدول رقم 11A | K11: TABLE 11A
B12: بالألف درهم | K12: AED in 000's
B13: فروع التأمين | C13: مخصص الأقساط غير المكتسبة | D13: مخصص المخاطر غير المنتهية | E13: مخصص المطالبات تحت التسوية | F13: مخصص المطالبات المتكبدة غير المبلغة | G13: مصاريف تسوية المطالبات الموزعة | H13: مصاريف تسوية المطالبات غير الموزعة | I13: المخصص الحسابي | J13: المجموع | K13: Line of Business
C15: UPR | D15: URR | E15: OSLR | F15: IBNR | G15: ALAE | H15: ULAE | I15: MATH | J15: Total
B16: تأمين الحريق | C16: 1524321.974 | D16: 13827.92647 | E16: 3799421.462 | F16: 984878.386 | G16: 62709.89998 | H16: 37823.51447 | I16: 0 | J16: =C16+D16+E16+F16+G16+H16+I16 -> 6422983.163 | K16: Fire
B17: التأمين البحري والطيران | C17: 843718.0708 | D17: 1084.009931 | E17: 1774361.812 | F17: 407927.9232 | G17: 10984.1311 | H17: 16791.90321 | I17: 0 | J17: =C17+D17+E17+F17+G17+H17+I17 -> 3054867.85 | K17: Marine & Aviation
B18: تأمين السيارات والمركبات الأخرى | C18: 3064375.257 | D18: 128206.7051 | E18: 1454309.566 | F18: 935777.9064 | G18: 10318.9528 | H18: 63349.25667 | I18: 0.001 | J18: 5656337.645 | K18: Motor & Transportation
B19: التأمين الهندسي والانشاءات والطاقة | C19: 1779468.952 | D19: 9730.11024 | E19: 3678890.331 | F19: 559381.1762 | G19: 15940.24741 | H19: 34288.0903 | I19: 0 | J19: 6077698.908 | K19: Engineering, Construction & Energy
B20: أخرى | C20: 2594740.624 | D20: 7972.965163 | E20: 1389859.519 | F20: 651496.2839 | G20: 26166.74329 | H20: 33012.02311 | I20: 0 | J20: 4703248.158 | K20: Other
B21: اعادة التأمين غير النسبية - المسؤوليات والممتلكات | C21: 2832.819799 | D21: 0 | E21: 5326.67565 | F21: 1928.762056 | G21: 0 | H21: 229.6049941 | I21: 0 | J21: 10317.8625 | K21: Reinsurance - Property & Liability
B22: المجموع - تأمين الممتلكات والمسؤوليات | C22: =C16+C17+C18+C19+C20+C21 -> 9809457.698 | D22: 160821.7169 | E22: 12102169.37 | F22: 3541390.438 | G22: 126119.9746 | H22: 185494.3928 | I22: 0.001 | J22: =J16+J17+J18+J19+J20+J21 -> 25925453.59 | K22: Total - Property & Liability Insurance
B24: المجموع - تأمين صحي | C24: 8462382.828 | D24: 48407.91833 | E24: 2617657.965 | F24: 2506776.109 | G24: 2080.3381 | H24: 48666.15862 | I24: 0 | J24: =C24+D24+E24+F24+G24+H24+I24 -> 13685971.32 | K24: Total - Health Insurance
B26: تأمين حياة جماعي | C26: 230391.5811 | D26: 5154.87186 | E26: 353963.3434 | F26: 117475.347 | G26: 0 | H26: 5022.949877 | I26: 2816.26288 | J26: =C26+D26+E26+F26+G26+H26+I26 -> 714824.3561 | K26: Group Life
B27: تأمين ائتمان حياة جماعي | C27: 21767.9783 | D27: 0 | E27: 296325.5436 | F27: 120492.4356 | G27: 0 | H27: 2236.310248 | I27: 591251.9761 | J27: 1032074.244 | K27: Group Credit Life
B28: تأمين حياة فردي | C28: 444464.0218 | D28: 0 | E28: 134029.0899 | F28: 37844.47887 | G28: 0 | H28: 26.10718527 | I28: 33775111.44 | J28: 34391475.14 | K28: Individual Life
B29: دفعات الحياة وتكوين الأموال | C29: 0 | D29: 0 | E29: 413 | F29: 0 | G29: 0 | H29: 0 | I29: 527728.5952 | J29: 528141.5952 | K29: Annuities & Fund Accumulation
B30: المجموع - تأمين الأشخاص وعمليات تكوين الأموال | C30: =C26+C27+C28+C29 -> 696623.5811 | D30: 5154.87186 | E30: 784730.9769 | F30: 275812.2615 | G30: 0 | H30: 7285.367311 | I30: 34896908.27 | J30: =J26+J27+J28+J29 -> 36666515.33 | K30: Total - Insurance of Persons & Fund Accumulation
B32: المجموع - كافة فروع التأمين | C32: =C22+C24+C30 -> 18968464.11 | D32: 214384.5071 | E32: 15504558.31 | F32: 6323978.808 | G32: 128200.3127 | H32: 241445.9187 | I32: 34896908.27 | J32: =J22+J24+J30 -> 76277940.23 | K32: TOTAL - All Types of Business Combined

Sheet 11B
B6: صافي المخصصات الفنية حسب فرع التأمين
B7: Net Technical Provisions by Line of Business
B8: (2023)
B11: جدول رقم 11B | K11: TABLE 11B
B12: بالألف درهم | K12: AED in 000's
B13: فروع التأمين | C13: مخصص الأقساط غير المكتسبة | D13: مخصص المخاطر غير المنتهية | E13: مخصص المطالبات تحت التسوية | F13: مخصص المطالبات المتكبدة غير المبلغة | G13: مصاريف تسوية المطالبات الموزعة | H13: مصاريف تسوية المطالبات غير الموزعة | I13: المخصص الحسابي | J13: المجموع | K13: Line of Business
C15: UPR | D15: URR | E15: OSLR | F15: IBNR | G15: ALAE | H15: ULAE | I15: MATH | J15: Total
B16: تأمين الحريق | C16: 349819.7266 | D16: 8728.660573 | E16: 817211.3076 | F16: 273157.1835 | G16: 9287.177581 | H16: 37823.51447 | I16: 0 | J16: =C16+D16+E16+F16+G16+H16+I16 -> 1496027.57 | K16: Fire
B17: التأمين البحري والطيران | C17: 176961.0183 | D17: 1722.53809 | E17: 402329.2916 | F17: 115843.5033 | G17: 4292.366303 | H17: 16791.90321 | I17: 0 | J17: =C17+D17+E17+F17+G17+H17+I17 -> 717940.6208 | K17: Marine & Aviation
B18: تأمين السيارات والمركبات الأخرى | C18: 2544340.752 | D18: 128532.7436 | E18: 1075533.375 | F18: 586724.1889 | G18: 9250.568743 | H18: 63349.25667 | I18: 0.001 | J18: 4407730.885 | K18: Motor & Transportation
B19: التأمين الهندسي والانشاءات والطاقة | C19: 412576.3748 | D19: 10290.02574 | E19: 689334.3739 | F19: 139970.8923 | G19: 3520.934227 | H19: 34288.0903 | I19: 0 | J19: 1289980.691 | K19: Engineering, Construction & Energy
B20: أخرى | C20: 618182.1611 | D20: 9780.497635 | E20: 274108.5766 | F20: 171884.9551 | G20: 9212.770033 | H20: 33012.02311 | I20: 0 | J20: 1116180.984 | K20: Other
B21: اعادة التأمين غير النسبية - المسؤوليات والممتلكات | C21: 1360.324566 | D21: 0 | E21: 1388.302913 | F21: 256.8790429 | G21: 0 | H21: 229.6049941 | I21: 0 | J21: 3235.111516 | K21: Reinsurance - Property & Liability
B22: المجموع - تأمين الممتلكات والمسؤوليات | C22: =C16+C17+C18+C19+C20+C21 -> 4103240.357 | D22: 159054.4657 | E22: 3259905.227 | F22: 1287837.602 | G22: 35563.81689 | H22: 185494.3928 | I22: 0.001 | J22: =J16+J17+J18+J19+J20+J21 -> 9031095.863 | K22: Total - Property & Liability Insurance
B24: المجموع - تأمين صحي | C24: 5136981.776 | D24: 43462.15741 | E24: 1465168.434 | F24: 1347089.679 | G24: 2080.3381 | H24: 48666.15862 | I24: 0 | J24: =C24+D24+E24+F24+G24+H24+I24 -> 8043448.543 | K24: Total - Health Insurance
B26: تأمين حياة جماعي | C26: 104307.295 | D26: 2487.502391 | E26: 92361.03568 | F26: 33346.25153 | G26: 0 | H26: 5022.949877 | I26: 281.6261316 | J26: =C26+D26+E26+F26+G26+H26+I26 -> 237806.6606 | K26: Group Life
B27: تأمين ائتمان حياة جماعي | C27: 8015.175383 | D27: 0 | E27: 38036.43571 | F27: 30684.72361 | G27: 0 | H27: 2236.310248 | I27: 404434.3498 | J27: 483406.9948 | K27: Group Credit Life
B28: تأمين حياة فردي | C28: 441216.1187 | D28: 0 | E28: 79466.18685 | F28: 26975.77286 | G28: 0 | H28: 26.10718527 | I28: 32106750.26 | J28: 32654434.44 | K28: Individual Life
B29: دفعات الحياة وتكوين الأموال | C29: 0 | D29: 0 | E29: 413 | F29: 0 | G29: 0 | H29: 0 | I29: 527728.5952 | J29: 528141.5952 | K29: Annuities & Fund Accumulation
B30: المجموع - تأمين الأشخاص وعمليات تكوين الأموال | C30: =C26+C27+C28+C29 -> 553538.589 | D30: 2487.502391 | E30: 210276.6582 | F30: 91006.748 | G30: 0 | H30: 7285.367311 | I30: 33039194.83 | J30: =J26+J27+J28+J29 -> 33903789.69 | K30: Total - Insurance of Persons & Fund Accumulation
B32: المجموع - كافة فروع التأمين | C32: =C22+C24+C30 -> 9793760.722 | D32: 205004.1255 | E32: 4935350.319 | F32: 2725934.03 | G32: 37644.15499 | H32: 241445.9187 | I32: 33039194.83 | J32: =J22+J24+J30 -> 50978334.1 | K32: TOTAL - All Types of Business Combined

Sheet 12A
B6: إجمالي المُطالبات المدفوعة والمتكبدة حسب فرع التأمين
B7: الشركات الوطنية والاجنبية
B8: Gross Paid and Incurred Claims by Line of Business
B9: National & Foreign Companies
B10: (2023)
B11: جدول رقم 12A | I11: TABLE 12A
B12: بالألف درهم | I12: AED in 000's
B13: فروع التأمين | C13: الشركات الوطنية | E13: الشركات الأجنبية | G13: الاجمالي | I13: Line of Business
C14: NATIONAL COMPANIES | E14: FOREIGN COMPANIES | G14: TOTAL
C15: المدفوعة | D15: المتكبدة | E15: المدفوعة | F15: المتكبدة | G15: المدفوعة | H15: المتكبدة
C16: Paid | D16: Incurred | E16: Paid | F16: Incurred | G16: Paid | H16: Incurred
B17: تأمين الحريق | C17: 1108984.351 | D17: 1871638.632 | E17: 304413.7607 | F17: 372593.3305 | G17: =C17+E17 -> 1413398.112 | H17: =D17+F17 -> 2244231.962 | I17: Fire
B18: التأمين البحري والطيران | C18: 391842.9346 | D18: 1105270.539 | E18: 96530.2449 | F18: 98169.0925 | G18: =C18+E18 -> 488373.1795 | H18: =D18+F18 -> 1203439.631 | I18: Marine & Aviation
B19: تأمين السيارات والمركبات الأخرى | C19: 2925842.924 | D19: 3315147.131 | E19: 1076265.209 | F19: 1055961.003 | G19: 4002108.133 | H19: 4371108.133 | I19: Motor & Transportation
B20: التأمين الهندسي والانشاءات والطاقة | C20: 946167.9694 | D20: 1000527.389 | E20: 83404.07344 | F20: 22143.83676 | G20: 1029572.043 | H20: 1022671.226 | I20: Engineering, Construction & Energy
B21: أخرى | C21: 489744.4239 | D21: 484227.3856 | E21: 92427.98812 | F21: 105422.0022 | G21: 582172.412 | H21: 589649.3878 | I21: Other
B22: اعادة التأمين غير النسبية - المسؤوليات والممتلكات | C22: 1296.262 | D22: 7692.459768 | E22: 0 | F22: 0 | G22: 1296.262 | H22: 7692.459768 | I22: Reinsurance - Property & Liability
B23: المجموع - تأمين الممتلكات والمسؤوليات | C23: =C17+C18+C19+C20+C21+C22 -> 5863878.865 | D23: 7784503.536 | E23: =E17+E18+E19+E20+E21+E22 -> 1653041.276 | F23: =F17+F18+F19+F20+F21+F22 -> 1654289.265 | G23: =G17+G18+G19+G20+G21+G22 -> 7516920.141 | H23: =H17+H18+H19+H20+H21+H22 -> 9438792.801 | I23: Total - Property & Liability Insurance
B25: المجموع - تأمين صحي | C25: 14805346.22 | D25: 15731500.64 | E25: 5211922.867 | F25: 5297399.3 | G25: =C25+E25 -> 20017269.09 | H25: =D25+F25 -> 21028899.94 | I25: Total - Health Insurance
B27: تأمين حياة جماعي | C27: 429049.1313 | D27: 378005.3918 | E27: 75018.53107 | F27: 45602.79787 | G27: =C27+E27 -> 504067.6624 | H27: =D27+F27 -> 423608.1896 | I27: Group Life
B28: تأمين ائتمان حياة جماعي | C28: 231295.0485 | D28: 176270.4394 | E28: 7965 | F28: 7013 | G28: 239260.0485 | H28: 183283.4394 | I28: Group Credit Life
B29: تأمين حياة فردي | C29: 460412.6437 | D29: 1075441.22 | E29: 2740815.751 | F29: 4409457.888 | G29: 3201228.395 | H29: 5484899.108 | I29: Individual Life
B30: دفعات الحياة وتكوين الأموال | C30: 0 | D30: 0 | E30: 138701.5858 | F30: 82110.77675 | G30: 138701.5858 | H30: 82110.77675 | I30: Annuities & Fund Accumulation
B31: المجموع - تأمين الأشخاص وعمليات تكوين الأموال | C31: =C27+C28+C29+C30 -> 1120756.823 | D31: 1629717.051 | E31: 2962500.868 | F31: 4544184.463 | G31: =G27+G28+G29+G30 -> 4083257.692 | H31: =H27+H28+H29+H30 -> 6173901.514 | I31: Total - Insurance of Persons & Fund Accumulation
B33: المجموع - كافة فروع التأمين | C33: =C23+C25+C31 -> 21789981.91 | D33: 25145721.23 | E33: 9827465.011 | F33: 11495873.03 | G33: 31617446.92 | H33: 36641594.26 | I33: TOTAL - All Types of Business Combined

Sheet 12B
B6: إجمالي المُطالبات المدفوعة والمتكبدة حسب فرع التأمين
B7: شركات التأمين التقليدي الوطنية وشركات التأمين التكافلي الوطنية
B8: Gross Paid and Incurred Claims by Line of Business
B9: Traditional & Takaful National Companies
B10: (2023)
B11: جدول رقم 12B | I11: TABLE 12B
B12: بالألف درهم | I12: AED in 000's
B13: فروع التأمين | C13: شركات التأمين التقليدي الوطنية | E13: شركات التأمين التكافلي الوطنية | G13: الشركات الوطنية | I13: Line of Business
C14: TRADITIONAL COMPANIES | E14: TAKAFUL OPERATORS | G14: NATIONAL COMPANIES
C15: المدفوعة | D15: المتكبدة | E15: المدفوعة | F15: المتكبدة | G15: المدفوعة | H15: المتكبدة
C16: Paid | D16: Incurred | E16: Paid | F16: Incurred | G16: Paid | H16: Incurred
B17: تأمين الحريق | C17: 958506.701 | D17: 1628188.149 | E17: 150477.6498 | F17: 243450.4828 | G17: =C17+E17 -> 1108984.351 | H17: =D17+F17 -> 1871638.632 | I17: Fire
B18: التأمين البحري والطيران | C18: 377039.3951 | D18: 1079357.726 | E18: 14803.53948 | F18: 25912.8125 | G18: =C18+E18 -> 391842.9346 | H18: =D18+F18 -> 1105270.539 | I18: Marine & Aviation
B19: تأمين السيارات والمركبات الأخرى | C19: 2137600.957 | D19: 2253225.131 | E19: 788241.9671 | F19: 1061922 | G19: 2925842.924 | H19: 3315147.131 | I19: Motor & Transportation
B20: التأمين الهندسي والانشاءات والطاقة | C20: 922374.4957 | D20: 951986.5743 | E20: 23793.47367 | F20: 48540.81514 | G20: 946167.9694 | H20: 1000527.389 | I20: Engineering, Construction & Energy
B21: أخرى | C21: 439392.693 | D21: 408069.3579 | E21: 50351.73083 | F21: 76158.02771 | G21: 489744.4239 | H21: 484227.3856 | I21: Other
B22: اعادة التأمين غير النسبية - المسؤوليات والممتلكات | C22: 1296.262 | D22: 7692.459768 | E22: 0 | F22: 0 | G22: 1296.262 | H22: 7692.459768 | I22: Reinsurance - Property & Liability
B23: المجموع - تأمين الممتلكات والمسؤوليات | C23: =C17+C18+C19+C20+C21+C22 -> 4836210.504 | D23: =D17+D18+D19+D20+D21+D22 -> 6328519.398 | E23: 1027668.361 | F23: 1455984.138 | G23: =G17+G18+G19+G20+G21+G22 -> 5863878.865 | H23: =H17+H18+H19+H20+H21+H22 -> 7784503.536 | I23: Total - Property & Liability Insurance
B25: المجموع - تأمين صحي | C25: 13340801.55 | D25: 14234631.89 | E25: 1464544.67 | F25: 1496868.756 | G25: =C25+E25 -> 14805346.22 | H25: =D25+F25 -> 15731500.64 | I25: Total - Health Insurance
B27: تأمين حياة جماعي | C27: 353228.1596 | D27: 308828.7627 | E27: 75820.97174 | F27: 69176.62906 | G27: =C27+E27 -> 429049.1313 | H27: =D27+F27 -> 378005.3918 | I27: Group Life
B28: تأمين ائتمان حياة جماعي | C28: 184320.6005 | D28: 100349.9818 | E28: 46974.44799 | F28: 75920.45765 | G28: 231295.0485 | H28: 176270.4394 | I28: Group Credit Life
B29: تأمين حياة فردي | C29: 450402.337 | D29: 979807.2417 | E29: 10010.30662 | F29: 95633.97792 | G29: 460412.6437 | H29: 1075441.22 | I29: Individual Life
B30: دفعات الحياة وتكوين الأموال | C30: 0 | D30: 0 | E30: 0 | F30: 0 | G30: 0 | H30: 0 | I30: Annuities & Fund Accumulation
B31: المجموع - تأمين الأشخاص وعمليات تكوين الأموال | C31: =C27+C28+C29+C30 -> 987951.0971 | D31: =D27+D28+D29+D30 -> 1388985.986 | E31: 132805.7264 | F31: 240731.0646 | G31: =G27+G28+G29+G30 -> 1120756.823 | H31: =H27+H28+H29+H30 -> 1629717.051 | I31: Total - Insurance of Persons & Fund Accumulation
B33: المجموع - كافة فروع التأمين | C33: =C23+C25+C31 -> 19164963.15 | D33: 21952137.27 | E33: 2625018.757 | F33: 3193583.959 | G33: 21789981.91 | H33: 25145721.23 | I33: TOTAL - All Types of Business Combined

Sheet 13A
B6: صافي المُطالبات المدفوعة والمتكبدة حسب فرع التأمين
B7: الشركات الوطنية والاجنبية
B8: Net Paid and Incurred Claims by Line of Business
B9: National & Foreign Companies
B10: (2023)
B11: جدول رقم 13A | I11: TABLE 13A
B12: بالألف درهم | I12: AED in 000's
B13: فروع التأمين | C13: الشركات الوطنية | E13: الشركات الأجنبية | G13: الاجمالي | I13: Line of Business
C14: NATIONAL COMPANIES | E14: FOREIGN COMPANIES | G14: TOTAL
C15: المدفوعة | D15: المتكبدة | E15: المدفوعة | F15: المتكبدة | G15: المدفوعة | H15: المتكبدة
C16: Paid | D16: Incurred | E16: Paid | F16: Incurred | G16: Paid | H16: Incurred
B17: تأمين الحريق | C17: 99638.91816 | D17: 180978.6582 | E17: 214181.149 | F17: 217578.7794 | G17: =C17+E17 -> 313820.0672 | H17: 398557.4376 | I17: Fire
B18: التأمين البحري والطيران | C18: 65742.28196 | D18: 145270.2679 | E18: 56035.55197 | F18: 63043.47092 | G18: 121777.8339 | H18: 208313.7388 | I18: Marine & Aviation
B19: تأمين السيارات والمركبات الأخرى | C19: 1959045.022 | D19: 2128275.079 | E19: 1055377.394 | F19: 1034535.598 | G19: 3014422.416 | H19: 3162810.677 | I19: Motor & Transportation
B20: التأمين الهندسي والانشاءات والطاقة | C20: 195606.4219 | D20: 150849.4511 | E20: 44924.3204 | F20: 35136.13255 | G20: 240530.7423 | H20: 185985.5836 | I20: Engineering, Construction & Energy
B21: أخرى | C21: 93379.17607 | D21: 133296.4685 | E21: 51923.56607 | F21: 48614.76281 | G21: 145302.7421 | H21: 181911.2314 | I21: Other
B22: اعادة التأمين غير النسبية - المسؤوليات والممتلكات | C22: 348.4755 | D22: 1740.32381 | E22: 0 | F22: 0 | G22: 348.4755 | H22: 1740.32381 | I22: Reinsurance - Property & Liability
B23: المجموع - تأمين الممتلكات والمسؤوليات | C23: =C17+C18+C19+C20+C21+C22 -> 2413760.295 | D23: 2740410.249 | E23: 1422441.982 | F23: =F17+F18+F19+F20+F21+F22 -> 1398908.744 | G23: =G17+G18+G19+G20+G21+G22 -> 3836202.277 | H23: =H17+H18+H19+H20+H21+H22 -> 4139318.993 | I23: Total - Property & Liability Insurance
B25: المجموع - تأمين صحي | C25: 7975684.25 | D25: 8383968.932 | E25: 3509869.348 | F25: 3568020.739 | G25: =E25+C25 -> 11485553.6 | H25: =F25+D25 -> 11951989.67 | I25: Total - Health Insurance
B27: تأمين حياة جماعي | C27: 139393.1412 | D27: 130467.6341 | E27: 10301.30566 | F27: 7113.180841 | G27: =E27+C27 -> 149694.4469 | H27: =F27+D27 -> 137580.815 | I27: Group Life
B28: تأمين ائتمان حياة جماعي | C28: 24230.59852 | D28: 9310.008278 | E28: 2000 | F28: 1463 | G28: =E28+C28 -> 26230.59852 | H28: =F28+D28 -> 10773.00828 | I28: Group Credit Life
B29: تأمين حياة فردي | C29: 439782.807 | D29: 1021294.029 | E29: 2298719.691 | F29: 4041934.558 | G29: 2738502.498 | H29: 5063228.587 | I29: Individual Life
B30: دفعات الحياة وتكوين الأموال | C30: 0 | D30: 0 | E30: 138701.5858 | F30: 82110.77675 | G30: 138701.5858 | H30: 82110.77675 | I30: Annuities & Fund Accumulation
B31: المجموع - تأمين الأشخاص وعمليات تكوين الأموال | C31: =C27+C28+C29+C30 -> 603406.5467 | D31: 1161071.672 | E31: 2449722.582 | F31: =F27+F28+F29+F30 -> 4132621.515 | G31: =G27+G28+G29+G30 -> 3053129.129 | H31: =H27+H28+H29+H30 -> 5293693.187 | I31: Total - Insurance of Persons & Fund Accumulation
B33: المجموع - كافة فروع التأمين | C33: =C23+C25+C31 -> 10992851.09 | D33: 12285450.85 | E33: 7382033.912 | F33: 9099550.998 | G33: 18374885 | H33: 21385001.85 | I33: TOTAL - All Types of Business Combined

Sheet 13B
B6: صافي المُطالبات المدفوعة والمتكبدة حسب فرع التأمين
B7: شركات التأمين التقليدي الوطنية وشركات التأمين التكافلي الوطنية
B8: Net Paid and Incurred Claims by Line of Business
B9: Traditional & Takaful National Companies
B10: (2023)
B11: جدول رقم 13B | I11: TABLE 13B
B12: بالألف درهم | I12: AED in 000's
B13: فروع التأمين | C13: شركات التأمين التقليدي الوطنية | E13: شركات التأمين التكافلي الوطنية | G13: الشركات الوطنية | I13: Line of Business
C14: TRADITIONAL COMPANIES | E14: TAKAFUL OPERATORS | G14: NATIONAL COMPANIES
C15: المدفوعة | D15: المتكبدة | E15: المدفوعة | F15: المتكبدة | G15: المدفوعة | H15: المتكبدة
C16: Paid | D16: Incurred | E16: Paid | F16: Incurred | G16: Paid | H16: Incurred
B17: تأمين الحريق | C17: 88714.50648 | D17: 153260.3099 | E17: 10924.41168 | F17: 27718.34839 | G17: =C17+E17 -> 99638.91816 | H17: =D17+F17 -> 180978.6582 | I17: Fire
B18: التأمين البحري والطيران | C18: 64284.19677 | D18: 141185.3005 | E18: 1458.085181 | F18: 4084.967325 | G18: =C18+E18 -> 65742.28196 | H18: =D18+F18 -> 145270.2679 | I18: Marine & Aviation
B19: تأمين السيارات والمركبات الأخرى | C19: 1421742.277 | D19: 1539897.467 | E19: 537302.7447 | F19: 588377.6117 | G19: 1959045.022 | H19: 2128275.079 | I19: Motor & Transportation
B20: التأمين الهندسي والانشاءات والطاقة | C20: 189678.7739 | D20: 139980.9159 | E20: 5927.648026 | F20: 10868.53517 | G20: 195606.4219 | H20: 150849.4511 | I20: Engineering, Construction & Energy
B21: أخرى | C21: 83662.73605 | D21: 113740.5077 | E21: 9716.440017 | F21: 19555.9608 | G21: 93379.17607 | H21: 133296.4685 | I21: Other
B22: اعادة التأمين غير النسبية - المسؤوليات والممتلكات | C22: 348.4755 | D22: 1740.32381 | E22: 0 | F22: 0 | G22: 348.4755 | H22: 1740.32381 | I22: Reinsurance - Property & Liability
B23: المجموع - تأمين الممتلكات والمسؤوليات | C23: =C17+C18+C19+C20+C21+C22 -> 1848430.966 | D23: 2089804.825 | E23: 565329.3296 | F23: 650605.4234 | G23: =G17+G18+G19+G20+G21+G22 -> 2413760.295 | H23: =H17+H18+H19+H20+H21+H22 -> 2740410.249 | I23: Total - Property & Liability Insurance
B25: المجموع - تأمين صحي | C25: 7144116.729 | D25: 7574536.263 | E25: 831567.5208 | F25: 809432.6683 | G25: =C25+E25 -> 7975684.25 | H25: =D25+F25 -> 8383968.932 | I25: Total - Health Insurance
B27: تأمين حياة جماعي | C27: 132314.7508 | D27: 124521.5705 | E27: 7078.390401 | F27: 5946.063649 | G27: =C27+E27 -> 139393.1412 | H27: =D27+F27 -> 130467.6341 | I27: Group Life
B28: تأمين ائتمان حياة جماعي | C28: 19060.55226 | D28: -2313.321054 | E28: 5170.046262 | F28: 11623.32933 | G28: =C28+E28 -> 24230.59852 | H28: =D28+F28 -> 9310.008278 | I28: Group Credit Life
B29: تأمين حياة فردي | C29: 437290.6251 | D29: 929757.4878 | E29: 2492.18189 | F29: 91536.54156 | G29: 439782.807 | H29: 1021294.029 | I29: Individual Life
B30: دفعات الحياة وتكوين الأموال | C30: 0 | D30: 0 | E30: 0 | F30: 0 | G30: 0 | H30: 0 | I30: Annuities & Fund Accumulation
B31: المجموع - تأمين الأشخاص وعمليات تكوين الأموال | C31: =C27+C28+C29+C30 -> 588665.9282 | D31: 1051965.737 | E31: 14740.61855 | F31: 109105.9345 | G31: =G27+G28+G29+G30 -> 603406.5467 | H31: =H27+H28+H29+H30 -> 1161071.672 | I31: Total - Insurance of Persons & Fund Accumulation
B33: المجموع - كافة فروع التأمين | C33: =C23+C25+C31 -> 9581213.623 | D33: 10716306.83 | E33: 1411637.469 | F33: 1569144.026 | G33: 10992851.09 | H33: 12285450.85 | I33: TOTAL - All Types of Business Combined

Sheet 14A
B6: نسبة الخسارة (الإجمالية) حسب فرع التأمين
B7: الشركات الوطنية والاجنبية
B8: Gross Loss Ratios by Line of Business
B9: National & Foreign Companies
B10: (2023)
B11: جدول رقم 14A | I11: TABLE 14A
B13: فروع التأمين | C13: الشركات الوطنية | E13: الشركات الأجنبية | G13: الاجمالي | I13: Line of Business
C14: NATIONAL COMPANIES | E14: FOREIGN COMPANIES | G14: TOTAL
C15: المدفوعة | D15: المتكبدة | E15: المدفوعة | F15: المتكبدة | G15: المدفوعة | H15: المتكبدة
C16: Paid | D16: Incurred | E16: Paid | F16: Incurred | G16: Paid | H16: Incurred
B17: تأمين الحريق | C17: 0.2792121487 | D17: 0.4712277894 | E17: 0.4842200119 | F17: 0.5926707993 | G17: 0.3072269019 | H17: 0.4878232306 | I17: Fire
B18: التأمين البحري والطيران | C18: 0.2263377446 | D18: 0.6384303986 | E18: 0.2890979311 | F18: 0.2940061073 | G18: 0.2364851429 | H18: 0.582742061 | I18: Marine & Aviation
B19: تأمين السيارات والمركبات الأخرى | C19: 0.8271122748 | D19: 0.9371654446 | E19: 0.7729705567 | F19: 0.7583881347 | G19: 0.8118204418 | H19: 0.8866714287 | I19: Motor & Transportation
B20: التأمين الهندسي والانشاءات والطاقة | C20: 0.3219161148 | D20: 0.3404109 | E20: 0.4699949831 | F20: 0.1247839794 | G20: 0.3303475494 | H20: 0.3281333596 | I20: Engineering, Construction & Energy
B21: أخرى | C21: 0.1340496564 | D21: 0.1325395686 | E21: 0.1786577266 | F21: 0.2037743721 | G21: 0.1395828461 | H21: 0.1413755411 | I21: Other
B22: اعادة التأمين غير النسبية - المسؤوليات والممتلكات | C22: 0.22125633 | D22: 1.313010346 | G22: 0.22125633 | H22: 1.313010346 | I22: Reinsurance - Property & Liability
B23: المجموع - تأمين الممتلكات والمسؤوليات | C23: 0.3702183533 | D23: 0.4914777654 | E23: 0.5420252933 | F23: 0.5424345036 | G23: 0.3979580842 | H23: 0.4997051757 | I23: Total - Property & Liability Insurance
B25: المجموع - تأمين صحي | C25: 0.820878699 | D25: 0.8722290982 | E25: 0.7984259659 | F25: 0.8115202894 | G25: 0.8149119414 | H25: 0.8560958842 | I25: Total - Health Insurance
B27: تأمين حياة جماعي | C27: 0.5352731136 | D27: 0.4715919652 | E27: 0.384086156 | F27: 0.2334810225 | G27: 0.5056509858 | H27: 0.4249387823 | I27: Group Life
B28: تأمين ائتمان حياة جماعي | C28: 0.4084273948 | D28: 0.3112633704 | E28: 0.3841886938 | F28: 0.3382693421 | G28: 0.4075713746 | H28: 0.3122171203 | I28: Group Credit Life
B29: تأمين حياة فردي | C29: 0.3841421047 | D29: 0.8972869431 | E29: 0.7151607347 | F29: 1.150559333 | G29: 0.6363012584 | H29: 1.090221557 | I29: Individual Life
B30: دفعات الحياة وتكوين الأموال | E30: 2.88076476 | F30: 1.705401065 | G30: 2.88076476 | H30: 1.705401065 | I30: Annuities & Fund Accumulation
B31: المجموع - تأمين الأشخاص وعمليات تكوين الأموال | C31: 0.4367028657 | D31: 0.6350192043 | E31: 0.7231531821 | F31: 1.109245736 | G31: 0.6128211509 | H31: 0.9265879641 | I31: Total - Insurance of Persons & Fund Accumulation
B33: المجموع - كافة فروع التأمين | C33: 0.5979465648 | D33: 0.6900325889 | E33: 0.718689797 | F33: 0.8407017114 | G33: 0.6308916636 | H33: 0.7311430432 | I33: TOTAL - All Types of Business Combined

Sheet 14B
B6: نسبة الخسارة (الإجمالية) حسب فرع التأمين
B7: شركات التأمين التقليدي الوطنية وشركات التأمين التكافلي الوطنية
B8: Gross Loss Ratios by Line of Business
B9: Traditional & Takaful National Companies
B10: (2023)
B11: جدول رقم 14B | I11: TABLE 14B
B13: فروع التأمين | C13: شركات التأمين التقليدي الوطنية | E13: شركات التأمين التكافلي الوطنية | G13: الشركات الوطنية | I13: Line of Business
C14: TRADITIONAL COMPANIES | E14: TAKAFUL OPERATORS | G14: NATIONAL COMPANIES
C15: المدفوعة | D15: المتكبدة | E15: المدفوعة | F15: المتكبدة | G15: المدفوعة | H15: المتكبدة
C16: Paid | D16: Incurred | E16: Paid | F16: Incurred | G16: Paid | H16: Incurred
B17: تأمين الحريق | C17: 0.2740497052 | D17: 0.4655204621 | E17: 0.3172833329 | F17: 0.5133172978 | G17: 0.2792121487 | H17: 0.4712277894 | I17: Fire
B18: التأمين البحري والطيران | C18: 0.2355757817 | D18: 0.6743871952 | E18: 0.1132378968 | F18: 0.1982169462 | G18: 0.2263377446 | H18: 0.6384303986 | I18: Marine & Aviation
B19: تأمين السيارات والمركبات الأخرى | C19: 0.7867604891 | D19: 0.8293168564 | E19: 0.9607387834 | F19: 1.294310241 | G19: 0.8271122748 | H19: 0.9371654446 | I19: Motor & Transportation
B20: التأمين الهندسي والانشاءات والطاقة | C20: 0.3295995577 | D20: 0.3401810818 | E20: 0.1691012688 | F20: 0.3449817182 | G20: 0.3219161148 | H20: 0.3404109 | I20: Engineering, Construction & Energy
B21: أخرى | C21: 0.1341392093 | D21: 0.1245767212 | E21: 0.1332732215 | F21: 0.2015784866 | G21: 0.1340496564 | H21: 0.1325395686 | I21: Other
B22: اعادة التأمين غير النسبية - المسؤوليات والممتلكات | C22: 0.22125633 | D22: 1.313010346 | G22: 0.22125633 | H22: 1.313010346 | I22: Reinsurance - Property & Liability
B23: المجموع - تأمين الممتلكات والمسؤوليات | C23: 0.3480538208 | D23: 0.4554527465 | E23: 0.5286451454 | F23: 0.7489760078 | G23: 0.3702183533 | H23: 0.4914777654 | I23: Total - Property & Liability Insurance
B25: المجموع - تأمين صحي | C25: 0.8185456512 | D25: 0.8733880033 | E25: 0.8427595244 | F25: 0.8613601393 | G25: 0.820878699 | H25: 0.8722290982 | I25: Total - Health Insurance
B27: تأمين حياة جماعي | C27: 0.542208251 | D27: 0.4740547964 | E27: 0.5051712393 | F27: 0.460902078 | G27: 0.5352731136 | H27: 0.4715919652 | I27: Group Life
B28: تأمين ائتمان حياة جماعي | C28: 0.5794836343 | D28: 0.3154892723 | E28: 0.1892382927 | F28: 0.3058483581 | G28: 0.4084273948 | H28: 0.3112633704 | I28: Group Credit Life
B29: تأمين حياة فردي | C29: 0.5205069958 | D29: 1.132313227 | E29: 0.03003995701 | F29: 0.2869882707 | G29: 0.3841421047 | H29: 0.8972869431 | I29: Individual Life
B30: دفعات الحياة وتكوين الأموال | I30: Annuities & Fund Accumulation
B31: المجموع - تأمين الأشخاص وعمليات تكوين الأموال | C31: 0.5384357656 | D31: 0.7570007616 | E31: 0.1815397482 | F31: 0.32906907 | G31: 0.4367028657 | H31: 0.6350192043 | I31: Total - Insurance of Persons & Fund Accumulation
B33: المجموع - كافة فروع التأمين | C33: 0.5983807979 | D33: 0.6854037398 | E33: 0.5947952745 | F33: 0.7236247902 | G33: 0.5979465648 | H33: 0.6900325889 | I33: TOTAL - All Types of Business Combined

Sheet 15A
B6: نسبة الخسارة (الصافية) حسب فرع التأمين
B7: الشركات الوطنية والاجنبية
B8: Net Loss Ratios by Line of Business
B9: National & Foreign Companies
B10: (2023)
B11: جدول رقم 15A | I11: TABLE 15A
B13: فروع التأمين | C13: الشركات الوطنية | E13: الشركات الأجنبية | G13: الاجمالي | I13: Line of Business
C14: NATIONAL COMPANIES | E14: FOREIGN COMPANIES | G14: TOTAL
C15: المدفوعة | D15: المتكبدة | E15: المدفوعة | F15: المتكبدة | G15: المدفوعة | H15: المتكبدة
C16: Paid | D16: Incurred | E16: Paid | F16: Incurred | G16: Paid | H16: Incurred
B17: تأمين الحريق | C17: 0.1692863648 | D17: 0.3074824549 | E17: 0.6345033405 | F17: 0.6445686886 | G17: 0.3388476126 | H17: 0.4303428951 | I17: Fire
B18: التأمين البحري والطيران | C18: 0.2476726146 | D18: 0.5472804715 | E18: 0.2889339427 | F18: 0.3250686032 | G18: 0.2650921649 | H18: 0.4534679113 | I18: Marine & Aviation
B19: تأمين السيارات والمركبات الأخرى | C19: 0.7340950096 | D19: 0.7975090401 | E19: 0.7893318195 | F19: 0.7737439429 | G19: 0.7525323307 | H19: 0.789576563 | I19: Motor & Transportation
B20: التأمين الهندسي والانشاءات والطاقة | C20: 0.4001181158 | D20: 0.3085665468 | E20: 0.4543314867 | F20: 0.3553409645 | G20: 0.4092386686 | H20: 0.3164356119 | I20: Engineering, Construction & Energy
B21: أخرى | C21: 0.1031465548 | D21: 0.1472391606 | E21: 0.2183215752 | F21: 0.2044091422 | G21: 0.1271088309 | H21: 0.1591334314 | I21: Other
B22: اعادة التأمين غير النسبية - المسؤوليات والممتلكات | C22: 0.1448813064 | D22: 0.723552695 | G22: 0.1448813064 | H22: 0.723552695 | I22: Reinsurance - Property & Liability
B23: المجموع - تأمين الممتلكات والمسؤوليات | C23: 0.4906756548 | D23: 0.5570779319 | E23: 0.6450227907 | F23: 0.6343513715 | G23: 0.5384508711 | H23: 0.5809964534 | I23: Total - Property & Liability Insurance
B25: المجموع - تأمين صحي | C25: 0.8041876021 | D25: 0.8453549137 | E25: 0.7828904219 | F25: 0.7958613227 | G25: 0.7975574708 | H25: 0.8299468172 | I25: Total - Health Insurance
B27: تأمين حياة جماعي | C27: 0.496355422 | D27: 0.4645731994 | E27: 0.1865535362 | F27: 0.128817558 | G27: 0.4454497815 | H27: 0.4094029221 | I27: Group Life
B28: تأمين ائتمان حياة جماعي | C28: 0.1136437002 | D28: 0.0436647815 | E28: 0.4038772213 | F28: 0.2954361874 | G28: 0.120231466 | H28: 0.04937952818 | I28: Group Credit Life
B29: تأمين حياة فردي | C29: 0.400959802 | D29: 0.9311365639 | E29: 0.6289320642 | F29: 1.105877439 | G29: 0.5763106045 | H29: 1.065543059 | I29: Individual Life
B30: دفعات الحياة وتكوين الأموال | C30: 0 | D30: 0 | E30: 2.886215762 | F30: 1.708628036 | G30: 2.886225971 | H30: 1.708634079 | I30: Annuities & Fund Accumulation
B31: المجموع - تأمين الأشخاص وعمليات تكوين الأموال | C31: 0.3792925213 | D31: 0.7298326546 | E31: 0.6509706032 | F31: 1.098171336 | G31: 0.5702457564 | H31: 0.9887253201 | I31: Total - Insurance of Persons & Fund Accumulation
B33: المجموع - كافة فروع التأمين | C33: 0.6691605397 | D33: 0.7478441083 | E33: 0.7063023753 | F33: 0.870631937 | G33: 0.6836025543 | H33: 0.795588211 | I33: TOTAL - All Types of Business Combined

Sheet 15B
B6: نسبة الخسارة (الصافية) حسب فرع التأمين
B7: شركات التأمين التقليدي الوطنية وشركات التأمين التكافلي الوطنية
B8: Net Loss Ratios by Line of Business
B9: Traditional & Takaful National Companies
B10: (2023)
B11: جدول رقم 15B | I11: TABLE 15B
B13: فروع التأمين | C13: شركات التأمين التقليدي الوطنية | E13: شركات التأمين التكافلي الوطنية | G13: الشركات الوطنية | I13: Line of Business
C14: TRADITIONAL COMPANIES | E14: TAKAFUL OPERATORS | G14: NATIONAL COMPANIES
C15: المدفوعة | D15: المتكبدة | E15: المدفوعة | F15: المتكبدة | G15: المدفوعة | H15: المتكبدة
C16: Paid | D16: Incurred | E16: Paid | F16: Incurred | G16: Paid | H16: Incurred
B17: تأمين الحريق | C17: 0.1710728569 | D17: 0.2955399302 | E17: 0.1560524826 | F17: 0.395949659 | G17: 0.1692863648 | H17: 0.3074824549 | I17: Fire
B18: التأمين البحري والطيران | C18: 0.2766716445 | D18: 0.6076449772 | E18: 0.04406167176 | F18: 0.1234430552 | G18: 0.2476726146 | H18: 0.5472804715 | I18: Marine & Aviation
B19: تأمين السيارات والمركبات الأخرى | C19: 0.7480026297 | D19: 0.8101660714 | E19: 0.6996722139 | F19: 0.7661815806 | G19: 0.7340950096 | H19: 0.7975090401 | I19: Motor & Transportation
B20: التأمين الهندسي والانشاءات والطاقة | C20: 0.4273089227 | D20: 0.3153494361 | E20: 0.1317833379 | F20: 0.2416290299 | G20: 0.4001181158 | H20: 0.3085665468 | I20: Engineering, Construction & Energy
B21: أخرى | C21: 0.1037033665 | D21: 0.1409859887 | E21: 0.0985886293 | F21: 0.1984261074 | G21: 0.1031465548 | H21: 0.1472391606 | I21: Other
B22: اعادة التأمين غير النسبية - المسؤوليات والممتلكات | C22: 0.1448813064 | D22: 0.723552695 | G22: 0.1448813064 | H22: 0.723552695 | I22: Reinsurance - Property & Liability
B23: المجموع - تأمين الممتلكات والمسؤوليات | C23: 0.4733872474 | D23: 0.5352036253 | E23: 0.5572122907 | F23: 0.6412639842 | G23: 0.4906756548 | H23: 0.5570779319 | I23: Total - Property & Liability Insurance
B25: المجموع - تأمين صحي | C25: 0.8064599567 | D25: 0.8550476453 | E25: 0.7851805885 | F25: 0.764280474 | G25: 0.8041876021 | H25: 0.8453549137 | I25: Total - Health Insurance
B27: تأمين حياة جماعي | C27: 0.5143219208 | D27: 0.4840289758 | E27: 0.3002785197 | F27: 0.2522431074 | G27: 0.496355422 | H27: 0.4645731994 | I27: Group Life
B28: تأمين ائتمان حياة جماعي | C28: 0.1850965233 | D28: -0.02246460012 | E28: 0.04689843065 | F28: 0.1054373359 | G28: 0.1136437002 | H28: 0.0436647815 | I28: Group Credit Life
B29: تأمين حياة فردي | C29: 0.5505966663 | D29: 1.170666243 | E29: 0.008235543695 | F29: 0.3024872265 | G29: 0.400959802 | H29: 0.9311365639 | I29: Individual Life
B30: دفعات الحياة وتكوين الأموال | E30: 0 | F30: 0 | G30: 0 | H30: 0 | I30: Annuities & Fund Accumulation
B31: المجموع - تأمين الأشخاص وعمليات تكوين الأموال | C31: 0.5099106736 | D31: 0.9112274586 | E31: 0.03377585673 | F31: 0.249999442 | G31: 0.3792925213 | H31: 0.7298326546 | I31: Total - Insurance of Persons & Fund Accumulation
B33: المجموع - كافة فروع التأمين | C33: 0.6884166876 | D33: 0.769973903 | E33: 0.5623896856 | F33: 0.6251395525 | G33: 0.6691605397 | H33: 0.7478441083 | I33: TOTAL - All Types of Business Combined

Sheet 16A
B6: نسبة العمولات ونسبة المصاريف والنسبة المجمعة (الإجمالية) حسب فرع التأمين
B7: الشركات الوطنية والاجنبية
B8: Gross Commission, Expense & Combined Ratios by Line of Business
B9: National & Foreign Companies
B10: (2023)
B11: جدول رقم 16A | L11: TABLE 16A
B13: فروع التأمين | C13: الشركات الوطنية | F13: الشركات الأجنبية | I13: الاجمالي | L13: Line of Business
C14: NATIONAL COMPANIES | F14: FOREIGN COMPANIES | I14: TOTAL
C15: نسبة العمولات | D15: نسبة المصاريف | E15: النسبة المجمعة | F15: نسبة العمولات | G15: نسبة المصاريف | H15: النسبة المجمعة | I15: نسبة العمولات | J15: نسبة المصاريف | K15: النسبة المجمعة
C16: Commission Ratio | D16: Expense Ratio | E16: Combined Ratio | F16: Commission Ratio | G16: Expense Ratio | H16: Combined Ratio | I16: Commission Ratio | J16: Expense Ratio | K16: Combined Ratio
B17: تأمين الحريق | C17: 0.07484940861 | D17: 0.05978872226 | E17: 0.6058659203 | F17: 0.186779376 | G17: 0.1210478433 | H17: 0.9004980187 | I17: 0.09014487269 | J17: 0.06815990924 | K17: 0.6461280125 | L17: Fire
B18: التأمين البحري والطيران | C18: 0.08561402792 | D18: 0.06146417727 | E18: 0.7855086038 | F18: 0.1927115135 | G18: 0.1758548469 | H18: 0.6625724677 | I18: 0.1029301148 | J18: 0.0799594646 | K18: 0.7656316403 | L18: Marine & Aviation
B19: تأمين السيارات والمركبات الأخرى | C19: 0.1486183361 | D19: 0.130546837 | E19: 1.216330618 | F19: 0.1802365611 | G19: 0.1137856162 | H19: 1.052410312 | I19: 0.1575486145 | J19: 0.1258127835 | K19: 1.170032827 | L19: Motor & Transportation
B20: التأمين الهندسي والانشاءات والطاقة | C20: 0.06411191285 | D20: 0.06696195596 | E20: 0.4714847688 | F20: 0.1499494224 | G20: 0.09334451532 | H20: 0.3680779172 | I20: 0.06899939852 | J20: 0.0684641475 | K20: 0.4655969057 | L20: Engineering, Construction & Energy
B21: أخرى | C21: 0.07492329559 | D21: 0.108160911 | E21: 0.3156237752 | F21: 0.2013610566 | G21: 0.2280156023 | H21: 0.6331510309 | I21: 0.09060664872 | J21: 0.1230276994 | K21: 0.3550098893 | L21: Other
B22: اعادة التأمين غير النسبية - المسؤوليات والممتلكات | C22: 0.2728634406 | D22: 0.1316046329 | E22: 1.717478419 | I22: 0.2728634406 | J22: 0.1316046329 | K22: 1.717478419 | L22: Reinsurance - Property & Liability
B23: المجموع - تأمين الممتلكات والمسؤوليات | C23: 0.09059906027 | D23: 0.08829003084 | E23: 0.6703668565 | F23: 0.1847722383 | G23: 0.140266359 | H23: 0.8674731009 | I23: 0.1058041423 | J23: 0.09668206293 | K23: 0.7021913809 | L23: Total - Property & Liability Insurance
B25: المجموع - تأمين صحي | C25: 0.04051239186 | D25: 0.0609420882 | E25: 0.9736835782 | F25: 0.08294009726 | G25: 0.1191711682 | H25: 1.013631555 | I25: 0.05178744835 | J25: 0.07641632043 | K25: 0.984299653 | L25: Total - Health Insurance
B27: تأمين حياة جماعي | C27: 0.06272102637 | D27: 0.0851189185 | E27: 0.61943191 | F27: 0.0834798224 | G27: 0.08293962782 | H27: 0.3999004727 | I27: 0.0667883065 | J27: 0.08469192911 | K27: 0.5764190179 | L27: Group Life
B28: تأمين ائتمان حياة جماعي | C28: 0.1477707137 | D28: 0.1474762341 | E28: 0.6065103182 | F28: 0.0971445109 | G28: 0.153241366 | H28: 0.588655219 | I28: 0.1459827857 | J28: 0.147679837 | K28: 0.6058797429 | L28: Group Credit Life
B29: تأمين حياة فردي | C29: 0.1596828926 | D29: 0.08438166459 | E29: 1.1413515 | F29: 0.01813068636 | G29: 0.1085619052 | H29: 1.277251925 | I29: 0.05185305676 | J29: 0.1028013801 | K29: 1.244875994 | L29: Individual Life
B30: دفعات الحياة وتكوين الأموال | F30: 0.03576091264 | G30: 0.05639048453 | H30: 1.797552462 | I30: 0.03576091264 | J30: 0.05639048453 | K30: 1.797552462 | L30: Annuities & Fund Accumulation
B31: المجموع - تأمين الأشخاص وعمليات تكوين الأموال | C31: 0.1267707561 | D31: 0.09853445525 | E31: 0.8603244157 | F31: 0.02185343116 | G31: 0.1069532485 | H31: 1.238052415 | I31: 0.06226442358 | J31: 0.103710583 | K31: 1.092562971 | L31: Total - Insurance of Persons & Fund Accumulation
B33: المجموع - كافة فروع التأمين | C33: 0.06835700597 | D33: 0.07547614306 | E33: 0.8338657379 | F33: 0.08735077336 | G33: 0.120215664 | H33: 1.048268149 | I33: 0.07353950384 | J33: 0.08768343544 | K33: 0.8923659825 | L33: TOTAL - All Types of Business Combined

Sheet 16B
B6: نسبة العمولات ونسبة المصاريف والنسبة المجمعة (الإجمالية) حسب فرع التأمين
B7: شركات التأمين التقليدي الوطنية وشركات التأمين التكافلي الوطنية
B8: Gross Commission, Expense & Combined Ratios by Line of Business
B9: Traditional & Takaful National Companies
B10: (2023)
B11: جدول رقم 16B | L11: TABLE 16B
B13: فروع التأمين | C13: شركات التأمين التقليدي الوطنية | F13: شركات التأمين التكافلي الوطنية | I13: الشركات الوطنية | L13: Line of Business
C14: TRADITIONAL COMPANIES | F14: TAKAFUL OPERATORS | I14: NATIONAL COMPANIES
C15: نسبة العمولات | D15: نسبة المصاريف | E15: النسبة المجمعة | F15: نسبة العمولات | G15: نسبة المصاريف | H15: النسبة المجمعة | I15: نسبة العمولات | J15: نسبة المصاريف | K15: النسبة المجمعة
C16: Commission Ratio | D16: Expense Ratio | E16: Combined Ratio | F16: Commission Ratio | G16: Expense Ratio | H16: Combined Ratio | I16: Commission Ratio | J16: Expense Ratio | K16: Combined Ratio
B17: تأمين الحريق | C17: 0.0697294696 | D17: 0.05224211163 | E17: 0.5874920433 | F17: 0.1126071372 | G17: 0.1154422908 | H17: 0.7413667258 | I17: 0.07484940861 | J17: 0.05978872226 | K17: 0.6058659203 | L17: Fire
B18: التأمين البحري والطيران | C18: 0.07875699886 | D18: 0.06058462256 | E18: 0.8137288166 | F18: 0.1695635653 | G18: 0.07223242839 | H18: 0.4400129399 | I18: 0.08561402792 | J18: 0.06146417727 | K18: 0.7855086038 | L18: Marine & Aviation
B19: تأمين السيارات والمركبات الأخرى | C19: 0.1346470112 | D19: 0.131448682 | E19: 1.09541255 | F19: 0.1948849222 | G19: 0.1275603419 | H19: 1.616755505 | I19: 0.1486183361 | J19: 0.130546837 | K19: 1.216330618 | L19: Motor & Transportation
B20: التأمين الهندسي والانشاءات والطاقة | C20: 0.05813391641 | D20: 0.06505857071 | E20: 0.463373569 | F20: 0.1830073899 | G20: 0.1048181003 | H20: 0.6328072084 | I20: 0.06411191285 | J20: 0.06696195596 | K20: 0.4714847688 | L20: Engineering, Construction & Energy
B21: أخرى | C21: 0.07702338724 | D21: 0.1037662358 | E21: 0.3053663442 | F21: 0.05671522914 | G21: 0.1462633131 | H21: 0.4045570288 | I21: 0.07492329559 | J21: 0.108160911 | K21: 0.3156237752 | L21: Other
B22: اعادة التأمين غير النسبية - المسؤوليات والممتلكات | C22: 0.2728634406 | D22: 0.1316046329 | E22: 1.717478419 | I22: 0.2728634406 | J22: 0.1316046329 | K22: 1.717478419 | L22: Reinsurance - Property & Liability
B23: المجموع - تأمين الممتلكات والمسؤوليات | C23: 0.08293276302 | D23: 0.08345188071 | E23: 0.6218373903 | F23: 0.1453959246 | G23: 0.1228719741 | H23: 1.017243906 | I23: 0.09059906027 | J23: 0.08829003084 | K23: 0.6703668565 | L23: Total - Property & Liability Insurance
B25: المجموع - تأمين صحي | C25: 0.03807058604 | D25: 0.05563296403 | E25: 0.9670915533 | F25: 0.06341322015 | G25: 0.1107344753 | H25: 1.035507835 | I25: 0.04051239186 | J25: 0.0609420882 | K25: 0.9736835782 | L25: Total - Health Insurance
B27: تأمين حياة جماعي | C27: 0.06182815339 | D27: 0.08773444442 | E27: 0.6236173942 | F27: 0.06659652999 | G27: 0.07376626204 | H27: 0.60126487 | I27: 0.06272102637 | J27: 0.0851189185 | K27: 0.61943191 | L27: Group Life
B28: تأمين ائتمان حياة جماعي | C28: 0.05611625269 | D28: 0.1359381035 | E28: 0.5075436285 | F28: 0.2652154739 | G28: 0.1622610353 | H28: 0.7333248672 | I28: 0.1477707137 | J28: 0.1474762341 | K28: 0.6065103182 | L28: Group Credit Life
B29: تأمين حياة فردي | C29: 0.07609511746 | D29: 0.08228689131 | E29: 1.290695236 | F29: 0.3767373738 | G29: 0.08982121511 | H29: 0.7535468595 | I29: 0.1596828926 | J29: 0.08438166459 | K29: 1.1413515 | L29: Individual Life
B30: دفعات الحياة وتكوين الأموال | L30: Annuities & Fund Accumulation
B31: المجموع - تأمين الأشخاص وعمليات تكوين الأموال | C31: 0.06756625917 | D31: 0.09352163085 | E31: 0.9180886516 | F31: 0.2752655302 | G31: 0.1111074567 | H31: 0.7154420569 | I31: 0.1267707561 | J31: 0.09853445525 | K31: 0.8603244157 | L31: Total - Insurance of Persons & Fund Accumulation
B33: المجموع - كافة فروع التأمين | C33: 0.05922331924 | D33: 0.06987249479 | E33: 0.8144995538 | F33: 0.1346414397 | G33: 0.1161425972 | H33: 0.974408827 | I33: 0.06835700597 | J33: 0.07547614306 | K33: 0.8338657379 | L33: TOTAL - All Types of Business Combined

Sheet 17A
B6: نسبة العمولات ونسبة المصاريف والنسبة المجمعة (الصافية) حسب فرع التأمين
B7: الشركات الوطنية والاجنبية
B8: Net Commission, Expense & Combined Ratios by Line of Business
B9: National & Foreign Companies
B10: (2023)
B11: جدول رقم 17A | L11: TABLE 17A
B13: فروع التأمين | C13: الشركات الوطنية | F13: الشركات الأجنبية | I13: الاجمالي | L13: Line of Business
C14: NATIONAL COMPANIES | F14: FOREIGN COMPANIES | I14: TOTAL
C15: نسبة العمولات | D15: نسبة المصاريف | E15: النسبة المجمعة | F15: نسبة العمولات | G15: نسبة المصاريف | H15: النسبة المجمعة | I15: نسبة العمولات | J15: نسبة المصاريف | K15: النسبة المجمعة
C16: Commission Ratio | D16: Expense Ratio | E16: Combined Ratio | F16: Commission Ratio | G16: Expense Ratio | H16: Combined Ratio | I16: Commission Ratio | J16: Expense Ratio | K16: Combined Ratio
B17: تأمين الحريق | C17: -0.1315710977 | D17: 0.4034626668 | E17: 0.5793740239 | F17: 0.2431627277 | G17: 0.2254401534 | H17: 1.11317157 | I17: 0.005011052927 | J17: 0.3385774173 | K17: 0.7739313653 | L17: Fire
B18: التأمين البحري والطيران | C18: 0.01478723909 | D18: 0.4008762465 | E18: 0.9629439571 | F18: 0.1932533943 | G18: 0.3027663998 | H18: 0.8210883973 | I18: 0.09013140074 | J18: 0.3594566051 | K18: 0.9030559172 | L18: Marine & Aviation
B19: تأمين السيارات والمركبات الأخرى | C19: 0.1586887193 | D19: 0.1730456751 | E19: 1.129243434 | F19: 0.1829310574 | G19: 0.1184937758 | H19: 1.075168776 | I19: 0.1667804931 | J19: 0.1548369682 | K19: 1.111194024 | L19: Motor & Transportation
B20: التأمين الهندسي والانشاءات والطاقة | C20: -0.01411342456 | D20: 0.4025860862 | E20: 0.6970392084 | F20: 0.1663339011 | G20: 0.1675228932 | H20: 0.6891977588 | I20: 0.01624401936 | J20: 0.3630403757 | K20: 0.695720007 | L20: Engineering, Construction & Energy
B21: أخرى | C21: -0.1282545198 | D21: 0.4364945446 | E21: 0.4554791854 | F21: 0.1226341831 | G21: 0.495996265 | H21: 0.8230395902 | I21: -0.07605687886 | J21: 0.448873936 | K21: 0.5319504885 | L21: Other
B22: اعادة التأمين غير النسبية - المسؤوليات والممتلكات | C22: 0.649164839 | D22: 0.3205592895 | E22: 1.693276824 | I22: 0.649164839 | J22: 0.3205592895 | K22: 1.693276824 | L22: Reinsurance - Property & Liability
B23: المجموع - تأمين الممتلكات والمسؤوليات | C23: 0.04645458225 | D23: 0.2842752731 | E23: 0.8878077872 | F23: 0.1858114281 | G23: 0.1939805414 | H23: 1.014143341 | I23: 0.08958983972 | J23: 0.2563262586 | K23: 0.9269125517 | L23: Total - Property & Liability Insurance
B25: المجموع - تأمين صحي | C25: 0.03416339106 | D25: 0.1108271931 | E25: 0.9903454978 | F25: 0.04806660668 | G25: 0.173518008 | H25: 1.017445937 | I25: 0.03849167042 | J25: 0.1303437831 | K25: 0.9987822708 | L25: Total - Health Insurance
B27: تأمين حياة جماعي | C27: 0.1130845213 | D27: 0.2429456121 | E27: 0.8206033329 | F27: 0.1140855319 | G27: 0.2933683082 | H27: 0.536271398 | I27: 0.1132490041 | J27: 0.2512309059 | K27: 0.7738828322 | L27: Group Life
B28: تأمين ائتمان حياة جماعي | C28: 0.3035927239 | D28: 0.391701049 | E28: 0.7389585544 | F28: -0.2104200323 | G28: 0.6415589661 | H28: 0.7265751212 | I28: 0.2919255821 | J28: 0.397372363 | K28: 0.7386774733 | L28: Group Credit Life
B29: تأمين حياة فردي | C29: 0.1575014142 | D29: 0.09220744884 | E29: 1.180845427 | F29: 0.01720750627 | G29: 0.1138338321 | H29: 1.236918777 | I29: 0.04959070122 | J29: 0.1088419448 | K29: 1.223975705 | L29: Individual Life
B30: دفعات الحياة وتكوين الأموال | C30: 0 | D30: 0 | E30: 0 | F30: 0.03582857967 | G30: 0.05649718697 | H30: 1.800953802 | I30: 0.0358287064 | J30: 0.05649738681 | K30: 1.800960173 | L30: Annuities & Fund Accumulation
B31: المجموع - تأمين الأشخاص وعمليات تكوين الأموال | C31: 0.169240381 | D31: 0.158956295 | E31: 1.058029331 | F31: 0.01856730238 | G31: 0.1164304661 | H31: 1.233169104 | I31: 0.06333742558 | J31: 0.1290663439 | K31: 1.18112909 | L31: Total - Insurance of Persons & Fund Accumulation
B33: المجموع - كافة فروع التأمين | C33: 0.0509248322 | D33: 0.1674264894 | E33: 0.96619543 | F33: 0.06650880288 | G33: 0.1572808028 | H33: 1.094421543 | I33: 0.05698441241 | J33: 0.1634814998 | K33: 1.016054123 | L33: TOTAL - All Types of Business Combined

Sheet 17B
B6: نسبة العمولات ونسبة المصاريف والنسبة المجمعة (الصافية) حسب فرع التأمين
B7: شركات التأمين التقليدي الوطنية وشركات التأمين التكافلي الوطنية
B8: Net Commission, Expense & Combined Ratios by Line of Business
B9: Traditional & Takaful National Companies
B10: (2023)
B11: جدول رقم 17B | L11: TABLE 17B
B13: فروع التأمين | C13: شركات التأمين التقليدي الوطنية | F13: شركات التأمين التكافلي الوطنية | I13: الشركات الوطنية | L13: Line of Business
C14: TRADITIONAL COMPANIES | F14: TAKAFUL OPERATORS | I14: NATIONAL COMPANIES
C15: نسبة العمولات | D15: نسبة المصاريف | E15: النسبة المجمعة | F15: نسبة العمولات | G15: نسبة المصاريف | H15: النسبة المجمعة | I15: نسبة العمولات | J15: نسبة المصاريف | K15: النسبة المجمعة
C16: Commission Ratio | D16: Expense Ratio | E16: Combined Ratio | F16: Commission Ratio | G16: Expense Ratio | H16: Combined Ratio | I16: Commission Ratio | J16: Expense Ratio | K16: Combined Ratio
B17: تأمين الحريق | C17: -0.1236897411 | D17: 0.3523489682 | E17: 0.5241991574 | F17: -0.1899541957 | G17: 0.7821000276 | H17: 0.988095491 | I17: -0.1315710977 | J17: 0.4034626668 | K17: 0.5793740239 | L17: Fire
B18: التأمين البحري والطيران | C18: -0.02953583966 | D18: 0.4173293466 | E18: 0.9954384841 | F18: 0.3259929547 | G18: 0.2853540641 | H18: 0.7347900739 | I18: 0.01478723909 | J18: 0.4008762465 | K18: 0.9629439571 | L18: Marine & Aviation
B19: تأمين السيارات والمركبات الأخرى | C19: 0.136881916 | D19: 0.1878981813 | E19: 1.134946169 | F19: 0.2126628092 | G19: 0.1362841888 | H19: 1.115128579 | I19: 0.1586887193 | J19: 0.1730456751 | K19: 1.129243434 | L19: Motor & Transportation
B20: التأمين الهندسي والانشاءات والطاقة | C20: -0.03871118083 | D20: 0.4101553789 | E20: 0.6867936342 | F20: 0.2286316135 | G20: 0.3278878802 | H20: 0.7981485236 | I20: -0.01411342456 | J20: 0.4025860862 | K20: 0.6970392084 | L20: Engineering, Construction & Energy
B21: أخرى | C21: -0.1143870462 | D21: 0.4213218118 | E21: 0.4479207544 | F21: -0.241770293 | G21: 0.5606948529 | H21: 0.5173506673 | I21: -0.1282545198 | J21: 0.4364945446 | K21: 0.4554791854 | L21: Other
B22: اعادة التأمين غير النسبية - المسؤوليات والممتلكات | C22: 0.649164839 | D22: 0.3205592895 | E22: 1.693276824 | I22: 0.649164839 | J22: 0.3205592895 | K22: 1.693276824 | L22: Reinsurance - Property & Liability
B23: المجموع - تأمين الممتلكات والمسؤوليات | C23: 0.02081206955 | D23: 0.2969670315 | E23: 0.8529827264 | F23: 0.1451430554 | G23: 0.2354294257 | H23: 1.021836465 | I23: 0.04645458225 | J23: 0.2842752731 | K23: 0.8878077872 | L23: Total - Property & Liability Insurance
B25: المجموع - تأمين صحي | C25: 0.02612927404 | D25: 0.1023541565 | E25: 0.9835310759 | F25: 0.10136442 | G25: 0.1816995456 | H25: 1.04734444 | I25: 0.03416339106 | J25: 0.1108271931 | K25: 0.9903454978 | L25: Total - Health Insurance
B27: تأمين حياة جماعي | C27: 0.09504627092 | D27: 0.2221703495 | E27: 0.8012455962 | F27: 0.309944482 | G27: 0.4696758828 | H27: 1.031863472 | I27: 0.1130845213 | J27: 0.2429456121 | K27: 0.8206033329 | L27: Group Life
B28: تأمين ائتمان حياة جماعي | C28: 0.01162653163 | D28: 0.4198911199 | E28: 0.4090530514 | F28: 0.5763231966 | G28: 0.3653682353 | H28: 1.047128768 | I28: 0.3035927239 | J28: 0.391701049 | K28: 0.7389585544 | L28: Group Credit Life
B29: تأمين حياة فردي | C29: 0.07542831304 | D29: 0.08965368207 | E29: 1.335748238 | F29: 0.3729035339 | G29: 0.09890984912 | H29: 0.7743006094 | I29: 0.1575014142 | J29: 0.09220744884 | K29: 1.180845427 | L29: Individual Life
B30: دفعات الحياة وتكوين الأموال | F30: 0 | G30: 0 | H30: 0 | I30: 0 | J30: 0 | K30: 0 | L30: Annuities & Fund Accumulation
B31: المجموع - تأمين الأشخاص وعمليات تكوين الأموال | C31: 0.07410894493 | D31: 0.1486410698 | E31: 1.133977473 | F31: 0.4208860819 | G31: 0.1862425653 | H31: 0.8571280892 | I31: 0.169240381 | J31: 0.158956295 | K31: 1.058029331 | L31: Total - Insurance of Persons & Fund Accumulation
B33: المجموع - كافة فروع التأمين | C33: 0.02861732273 | D33: 0.1607931177 | E33: 0.9593843434 | F33: 0.1746147753 | G33: 0.2042069904 | H33: 1.003961318 | I33: 0.0509248322 | J33: 0.1674264894 | K33: 0.96619543 | L33: TOTAL - All Types of Business Combined

Sheet 18
B6: تحليل الربحية للتأمين على المركبات
B7: Motor Profitability Analysis
B8: (2023)
B11: جدول رقم 18 | G11: TABLE 18
B12: بالألف درهم | G12: AED in 000's
B13: البيــــــــان | C13: تأمين المركبات الشامل - أفراد | D13: تأمين المركبات المسؤولية المدنية - أفراد | E13: تأمين المركبات - تجاري | F13: الاجمالي | G13: DESCRIPTION
C14: Personal Motor - Comprehensive | D14: Personal Motor - Third Party Liability | E14: Commercial Motor | F14: TOTAL
B15: Gross of Reinsurance (إجمالي من إعادة التأمين)
B16: الأقساط المكتسبة | C16: 2958682.463 | D16: 784562.8913 | E16: 1186549.373 | F16: =C16+D16+E16 -> 4929794.727 | G16: Earned Premium
B17: المطالبات المتكبدة | C17: 2654107.633 | D17: 701672.0908 | E17: 1015328.41 | F17: =C17+D17+E17 -> 4371108.133 | G17: Losses Incurred
B18: العمولات | C18: 468880.8317 | D18: 145763.9148 | E18: 162037.5827 | F18: 776682.3292 | G18: Commission
B19: المصاريف | C19: 394015.2901 | D19: 97755.08543 | E19: 128460.8209 | F19: 620231.1964 | G19: Expenses
B20: الأرباح / (الخسائر) | C20: =C16-C17-C18-C19 -> -558321.2921 | D20: -160628.1997 | E20: -119277.4407 | F20: -838226.9325 | G20: Profit / (Loss)
B21: نسبة الخسارة | C21: 0.8970572768 | D21: 0.8943477936 | E21: 0.8556984085 | F21: =F17/F16 -> 0.8866714287 | G21: Loss Ratio
B22: نسبة العمولات | C22: 0.1584762264 | D22: 0.1857899684 | E22: 0.136562023 | F22: =F18/F16 -> 0.1575486145 | G22: Commission Ratio
B23: نسبة المصاريف | C23: 0.1331725507 | D23: 0.1245981508 | E23: 0.1082642019 | F23: =F19/F16 -> 0.1258127835 | G23: Expense Ratio
B24: النسبة المجمعة | C24: =SUM(C21:C23) -> 1.188706054 | D24: =SUM(D21:D23) -> 1.204735913 | E24: =SUM(E21:E23) -> 1.100524633 | F24: =SUM(F21:F23) -> 1.170032827 | G24: Combined Ratio
B25: Net of Reinsurance (صافي من إعادة التأمين)
B26: الأقساط المكتسبة | C26: 2444115.629 | D26: 650233.8332 | E26: 911355.4002 | F26: =C26+D26+E26 -> 4005704.862 | G26: Earned Premium
B27: المطالبات المتكبدة | C27: 1907939.136 | D27: 446240.5693 | E27: 808630.972 | F27: =C27+D27+E27 -> 3162810.677 | G27: Losses Incurred
B28: العمولات | C28: 340336.2925 | D28: 144744.2611 | E28: 182992.8786 | F28: =C28+D28+E28 -> 668073.4321 | G28: Commission
B29: المصاريف | C29: 394015.2901 | D29: 97755.08543 | E29: 128460.8209 | F29: =C29+D29+E29 -> 620231.1964 | G29: Expenses
B30: الأرباح / (الخسائر) | C30: =C26-C27-C28-C29 -> -198175.0902 | D30: -38506.08255 | E30: -208729.2712 | F30: -445410.4439 | G30: Profit / (Loss)
B31: نسبة الخسارة | C31: 0.780625562 | D31: 0.6862770691 | E31: 0.887283898 | F31: =F27/F26 -> 0.789576563 | G31: Loss Ratio
B32: نسبة العمولات | C32: 0.1392472142 | D32: 0.2226033985 | E32: 0.2007920055 | F32: =F28/F26 -> 0.1667804931 | G32: Commission Ratio
B33: نسبة المصاريف | C33: 0.1612097585 | D33: 0.1503383559 | E33: 0.1409557905 | F33: =F29/F26 -> 0.1548369682 | G33: Expense Ratio
B34: النسبة المجمعة | C34: =SUM(C31:C33) -> 1.081082535 | D34: 1.059218823 | E34: 1.229031694 | F34: 1.111194024 | G34: Combined Ratio

Sheet 19
B6: تحليل الربحية للتأمين الصحي
B7: Health Profitability Analysis
B8: (2023)
B11: جدول رقم 19 | G11: TABLE 19
B12: بالألف درهم | G12: AED in 000's
B13: البيــــــــان | C13: التأمين الصحي الفردي | D13: التأمين الصحي الجماعي | E13: تأمين الحوادث الشخصية | F13: الاجمالي | G13: DESCRIPTION
C14: Health Insurance, Individual | D14: Health Insurance, Group | E14: Personal Accident Insurance | F14: TOTAL
B15: Gross of Reinsurance (إجمالي من إعادة التأمين)
B16: الأقساط المكتسبة | C16: 860190.149 | D16: 23348245.18 | E16: 355285.0788 | F16: =SUM(C16:E16) -> 24563720.41 | G16: Earned Premium
B17: المطالبات المتكبدة | C17: 628205.8526 | D17: 20266780.62 | E17: 133913.4721 | F17: =SUM(C17:E17) -> 21028899.94 | G17: Losses Incurred
B18: العمولات | C18: 47032.80975 | D18: 1164972.891 | E18: 60086.70113 | F18: =SUM(C18:E18) -> 1272092.402 | G18: Commission
B19: المصاريف | C19: 90836.0862 | D19: 1695669.932 | E19: 90563.11149 | F19: =SUM(C19:E19) -> 1877069.13 | G19: Expenses
B20: الأرباح / (الخسائر) | C20: =C16-C17-C18-C19 -> 94115.4004 | D20: =D16-D17-D18-D19 -> 220821.7396 | E20: 70721.79402 | F20: =F16-F17-F18-F19 -> 385658.934 | G20: Profit / (Loss)
B21: نسبة الخسارة | C21: =C17/C16 -> 0.7303104475 | D21: 0.8680215777 | E21: 0.3769183682 | F21: =F17/F16 -> 0.8560958842 | G21: Loss Ratio
B22: نسبة العمولات | C22: =C18/C16 -> 0.05467722434 | D22: =D18/D16 -> 0.04989552243 | E22: 0.1691225011 | F22: =F18/F16 -> 0.05178744835 | G22: Commission Ratio
B23: نسبة المصاريف | C23: =C19/C16 -> 0.1056000075 | D23: 0.07262515529 | E23: 0.2549026596 | F23: =F19/F16 -> 0.07641632043 | G23: Expense Ratio
B24: النسبة المجمعة | C24: =SUM(C21:C23) -> 0.8905876793 | D24: =SUM(D21:D23) -> 0.9905422554 | E24: =SUM(E21:E23) -> 0.8009435289 | F24: =SUM(F21:F23) -> 0.984299653 | G24: Combined Ratio
B25: Net of Reinsurance (صافي من إعادة التأمين)
B26: الأقساط المكتسبة | C26: 452572.391 | D26: 13735462.78 | E26: 212875.1269 | F26: =SUM(C26:E26) -> 14400910.3 | G26: Earned Premium
B27: المطالبات المتكبدة | C27: 283663.0865 | D27: 11612125.53 | E27: 56201.05285 | F27: =SUM(C27:E27) -> 11951989.67 | G27: Losses Incurred
B28: العمولات | C28: 8893.797129 | D28: 497988.6428 | E28: 47432.65326 | F28: =SUM(C28:E28) -> 554315.0932 | G28: Commission
B29: المصاريف | C29: 90836.0862 | D29: 1695669.932 | E29: 90563.11149 | F29: =SUM(C29:E29) -> 1877069.13 | G29: Expenses
B30: الأرباح / (الخسائر) | C30: =C26-C27-C28-C29 -> 69179.42114 | D30: =D26-D27-D28-D29 -> -70321.32088 | E30: =E26-E27-E28-E29 -> 18678.3093 | F30: =F26-F27-F28-F29 -> 17536.40956 | G30: Profit / (Loss)
B31: نسبة الخسارة | C31: =C27/C26 -> 0.626779477 | D31: 0.845412034 | E31: 0.2640094861 | F31: =F27/F26 -> 0.8299468172 | G31: Loss Ratio
B32: نسبة العمولات | C32: =C28/C26 -> 0.01965165641 | D32: 0.03625568724 | E32: 0.2228191426 | F32: =F28/F26 -> 0.03849167042 | G32: Commission Ratio
B33: نسبة المصاريف | C33: =C29/C26 -> 0.2007106222 | D33: 0.1234519694 | E33: 0.4254283382 | F33: =F29/F26 -> 0.1303437831 | G33: Expense Ratio
B34: النسبة المجمعة | C34: =SUM(C31:C33) -> 0.8471417556 | D34: 1.005119691 | E34: 0.9122569669 | F34: =SUM(F31:F33) -> 0.9987822708 | G34: Combined Ratio

Sheet 20A
B6: الموجودات المستثمرة حسب الفئة
B7: الشركات الوطنية والاجنبية
B8: Invested Assets by Class
B9: National & Foreign Companies
B11: جدول رقم 20A | I11: TABLE 20A
B12: بالألف درهم | I12: AED in 000's
B13: فروع التأمين | C13: الشركات الوطنية | E13: الشركات الأجنبية | G13: الاجمالي | I13: Asset Class
C14: NATIONAL COMPANIES | E14: FOREIGN COMPANIES | G14: TOTAL
C15: 2022 | D15: 2023 | E15: 2022 | F15: 2023 | G15: 2022 | H15: 2023
B16: استثمارات عقارية | C16: 4160844.845 | D16: 4298236.377 | E16: 77332.63359 | F16: 71885.16966 | G16: =E16+C16 -> 4238177.479 | H16: =F16+D16 -> 4370121.546 | I16: Real estate investments
B17: الأوراق المالية وسندات الدين | C17: 12639258.76 | D17: 13509451.14 | E17: 17257173.76 | F17: 19343408.76 | G17: =E17+C17 -> 29896432.52 | H17: =F17+D17 -> 32852859.9 | I17: Equity and debt securities
B18: النقد والودائع | C18: 13043558.44 | D18: 15337469.93 | E18: 6975881.852 | F18: 6964189.05 | G18: =E18+C18 -> 20019440.29 | H18: 22301658.98 | I18: Cash and deposits
B19: قروض مضمونة بوثائق التأمين على الحياة | C19: 43959.658 | D19: 41341.08 | E19: 74812.79144 | F19: 69455.25155 | G19: 118772.4494 | H19: 110796.3315 | I19: Loans secured by Life policies
B20: قروض وودائع وأدوات مالية أخرى مصنفة A | C20: 1994701.745 | D20: 2033543.537 | E20: 1266825.465 | F20: 1064240.047 | G20: 3261527.21 | H20: 3097783.585 | I20: Loans, Deposits and Other Instruments that are A Rated
B21: الاستثمار في الشركات الزميلة | C21: 537733.1509 | D21: 291158.9281 | E21: 33835.67037 | F21: 47912.05085 | G21: =E21+C21 -> 571568.8213 | H21: 339070.979 | I21: Investment in associates
B22: موجودات مستثمرة أخرى | C22: 6153315.094 | D22: 6636711.712 | E22: 7171938.75 | F22: 7448057.873 | G22: =E22+C22 -> 13325253.84 | H22: =F22+D22 -> 14084769.58 | I22: Other invested assets
B23: إجمالي الموجودات المستثمرة | C23: =SUM(C16,C17:C22) -> 38573371.69 | D23: =SUM(D16,D17:D22) -> 42147912.7 | E23: 32857800.92 | F23: 35009148.2 | G23: =SUM(G16,G17:G22) -> 71431172.61 | H23: 77157060.9 | I23: Total Invested Assets
B25: Percent of Total (النسبة من الإجمالي)
B27: فروع التأمين | C27: الشركات الوطنية | E27: الشركات الأجنبية | G27: الاجمالي | I27: Asset Class
C28: NATIONAL COMPANIES | E28: FOREIGN COMPANIES | G28: TOTAL
C29: 2022 | D29: 2023 | E29: 2022 | F29: 2023 | G29: 2022 | H29: 2023
B30: استثمارات عقارية | C30: =C16/C$23 -> 0.1078683211 | D30: 0.1019798159 | E30: 0.002353554755 | F30: 0.002053325298 | G30: 0.05933232403 | H30: 0.05663929516 | I30: Real estate investments
B31: الأوراق المالية وسندات الدين | C31: =C17/C$23 -> 0.3276679794 | D31: 0.3205247964 | E31: 0.5252078129 | F31: 0.5525244044 | G31: 0.4185348136 | H31: 0.425792008 | I31: Equity and debt securities
B32: النقد والودائع | C32: =C18/C$23 -> 0.3381492949 | D32: 0.3638963106 | E32: 0.2123051956 | F32: 0.1989248356 | G32: 0.2802619579 | H32: 0.2890423601 | I32: Cash and deposits
B33: قروض مضمونة بوثائق التأمين على الحياة | C33: =C19/C$23 -> 0.001139637425 | D33: 0.0009808571137 | E33: 0.002276865443 | F33: 0.001983917208 | G33: 0.00166275374 | H33: 0.001435984345 | I33: Loans secured by Life policies
B34: قروض وودائع وأدوات مالية أخرى مصنفة A | C34: =C20/C$23 -> 0.05171188459 | D34: 0.04824778754 | E34: 0.03855478545 | F34: 0.03039891291 | G34: 0.04565971817 | H34: 0.04014906152 | I34: Loans, Deposits and Other Instruments that are A Rated
B35: الاستثمار في الشركات الزميلة | C35: =C21/C$23 -> 0.01394052755 | D35: =D21/D$23 -> 0.006908027219 | E35: 0.001029760648 | F35: 0.001368558029 | G35: 0.008001672105 | H35: 0.004394555405 | I35: Investment in associates
B36: موجودات مستثمرة أخرى | C36: =C22/C$23 -> 0.159522355 | D36: 0.1574624053 | E36: 0.2182720252 | F36: 0.2127460466 | G36: 0.1865467604 | H36: 0.1825467355 | I36: Other invested assets
B37: إجمالي الموجودات المستثمرة | C37: =C30+C31+C32+C33+C34+C35+C36 -> 1 | D37: =D30+D31+D32+D33+D34+D35+D36 -> 1 | E37: 1 | F37: 1 | G37: 1 | H37: 1 | I37: Total Invested Assets

Sheet 20B
B6: الموجودات المستثمرة حسب الفئة
B7: شركات التأمين التقليدي الوطنية وشركات التأمين التكافلي الوطنية
B8: Invested Assets by Class
B9: Traditional & Takaful National Companies
B11: جدول رقم 20B | I11: TABLE 20B
B12: بالألف درهم | I12: AED in 000's
B13: فروع التأمين | C13: شركات التأمين التقليدي الوطنية | E13: شركات التأمين التكافلي الوطنية | G13: الشركات الوطنية | I13: Asset Class
C14: TRADITIONAL COMPANIES | E14: TAKAFUL OPERATORS | G14: NATIONAL COMPANIES
C15: 2022 | D15: 2023 | E15: 2022 | F15: 2023 | G15: 2022 | H15: 2023
B16: استثمارات عقارية | C16: 3483968.359 | D16: 3638445.48 | E16: 676876.486 | F16: 659790.897 | G16: =E16+C16 -> 4160844.845 | H16: =F16+D16 -> 4298236.377 | I16: Real estate investments
B17: الأوراق المالية وسندات الدين | C17: 10738173.56 | D17: 11871726.41 | E17: 1901085.2 | F17: 1637724.722 | G17: =E17+C17 -> 12639258.76 | H17: =F17+D17 -> 13509451.14 | I17: Equity and debt securities
B18: النقد والودائع | C18: 11248488.03 | D18: 13406440.56 | E18: 1795070.405 | F18: 1931029.375 | G18: =E18+C18 -> 13043558.44 | H18: 15337469.93 | I18: Cash and deposits
B19: قروض مضمونة بوثائق التأمين على الحياة | C19: 43959.658 | D19: 41341.08 | E19: 0 | F19: 0 | G19: 43959.658 | H19: 41341.08 | I19: Loans secured by Life policies
B20: قروض وودائع وأدوات مالية أخرى مصنفة A | C20: 1864253.956 | D20: 1885154.164 | E20: 130447.7894 | F20: 148389.3732 | G20: 1994701.745 | H20: 2033543.537 | I20: Loans, Deposits and Other Instruments that are A Rated
B21: الاستثمار في الشركات الزميلة | C21: 287545.4749 | D21: 255807.1791 | E21: 250187.676 | F21: 35351.749 | G21: =E21+C21 -> 537733.1509 | H21: 291158.9281 | I21: Investment in associates
B22: موجودات مستثمرة أخرى | C22: 3461967.376 | D22: 3825915.877 | E22: 2691347.718 | F22: 2810795.834 | G22: =E22+C22 -> 6153315.094 | H22: =F22+D22 -> 6636711.712 | I22: Other invested assets
B23: إجمالي الموجودات المستثمرة | C23: =SUM(C16,C17:C22) -> 31128356.42 | D23: =SUM(D16,D17:D22) -> 34924830.75 | E23: =SUM(E16,E17:E22) -> 7445015.274 | F23: =SUM(F16,F17:F22) -> 7223081.95 | G23: 38573371.69 | H23: 42147912.7 | I23: Total Invested Assets
B25: Percent of Total (النسبة من الإجمالي)
B27: فروع التأمين | C27: شركات التأمين التقليدي الوطنية | E27: شركات التأمين التكافلي الوطنية | G27: الشركات الوطنية | I27: Asset Class
C28: TRADITIONAL COMPANIES | E28: TAKAFUL OPERATORS | G28: NATIONAL COMPANIES
C29: 2022 | D29: 2023 | E29: 2022 | F29: 2023 | G29: 2022 | H29: 2023
B30: استثمارات عقارية | C30: =C16/C$23 -> 0.111922657 | D30: 0.1041793303 | E30: 0.09091673571 | F30: 0.09134478905 | G30: 0.1078683211 | H30: 0.1019798159 | I30: Real estate investments
B31: الأوراق المالية وسندات الدين | C31: =C17/C$23 -> 0.3449643603 | D31: 0.3399222318 | E31: 0.2553500738 | F31: 0.2267348942 | G31: 0.3276679794 | H31: 0.3205247964 | I31: Equity and debt securities
B32: النقد والودائع | C32: =C18/C$23 -> 0.3613582382 | D32: 0.3838655841 | E32: 0.2411103724 | F32: 0.2673414739 | G32: 0.3381492949 | H32: 0.3638963106 | I32: Cash and deposits
B33: قروض مضمونة بوثائق التأمين على الحياة | C33: =C19/C$23 -> 0.001412206202 | D33: 0.001183715973 | E33: 0 | F33: 0 | G33: 0.001139637425 | H33: 0.0009808571137 | I33: Loans secured by Life policies
B34: قروض وودائع وأدوات مالية أخرى مصنفة A | C34: =C20/C$23 -> 0.05988925117 | D34: 0.05397747458 | E34: 0.01752149385 | F34: 0.0205437754 | G34: 0.05171188459 | H34: 0.04824778754 | I34: Loans, Deposits and Other Instruments that are A Rated
B35: الاستثمار في الشركات الزميلة | C35: =C21/C$23 -> 0.009237412701 | D35: 0.007324507339 | E35: 0.033604723 | F35: 0.004894274943 | G35: 0.01394052755 | H35: 0.006908027219 | I35: Investment in associates
B36: موجودات مستثمرة أخرى | C36: =C22/C$23 -> 0.1112158744 | D36: 0.1095471559 | E36: 0.3614966012 | F36: 0.3891407925 | G36: 0.159522355 | H36: 0.1574624053 | I36: Other invested assets
B37: إجمالي الموجودات المستثمرة | C37: =C30+C31+C32+C33+C34+C35+C36 -> 1 | D37: =D30+D31+D32+D33+D34+D35+D36 -> 1 | E37: 1 | F37: 1 | G37: 1 | H37: 1 | I37: Total Invested Assets

Sheet 21A
B6: قائمة المركز المالي
B7: الشركات الوطنية والاجنبية
B8: Statement of Financial Position
B9: National & Foreign Companies
B11: جدول رقم 21A | I11: TABLE 21A
B12: بالألف درهم | I12: AED in 000's
B13: البيــــــــان | C13: الشركات الوطنية | E13: الشركات الأجنبية | G13: الاجمالي | I13: DESCRIPTION
C14: NATIONAL COMPANIES | E14: FOREIGN COMPANIES | G14: TOTAL
C15: 2022 | D15: 2023 | E15: 2022 | F15: 2023 | G15: 2022 | H15: 2023
B16: الموجودات | I16: Assets
B17: إجمالي الموجودات المستثمرة | C17: 38573371.69 | D17: 42147912.7 | E17: 32857800.92 | F17: 35009148.2 | G17: =C17+E17 -> 71431172.6 | H17: =D17+F17 -> 77157060.9 | I17: Total Invested Assets
B18: مستردات إعادة التأمين | C18: 18664831.24 | D18: 21445311.59 | E18: 3770559.333 | F18: 3854294.548 | G18: =C18+E18 -> 22435390.57 | H18: =D18+F18 -> 25299606.14 | I18: Reinsurance recoverable
B19: ذمم إعادة التأمين المدينة | C19: 1382125.721 | D19: 1360452.459 | E19: 179644.038 | F19: 210119.4211 | G19: 1561769.759 | H19: 1570571.88 | I19: Reinsurance receivables
B20: ذمم تأمين مدينة | C20: 7431068.066 | D20: 8059898.903 | E20: 1888869.104 | F20: 2357884.851 | G20: 9319937.17 | H20: 10417783.75 | I20: Insurance receivables
B21: ذمم مدينة ودفعات مقدمة أخرى | C21: 5387257.225 | D21: 4653748.153 | E21: 552660.9498 | F21: 723486.6151 | G21: 5939918.174 | H21: 5377234.768 | I21: Other receivables and prepayments
B22: تكاليف الاستحواذ المؤجلة | C22: 833062.885 | D22: 1182972.778 | E22: 4264225.288 | F22: 4486845.411 | G22: 5097288.173 | H22: 5669818.189 | I22: Deferred policy acquisition costs
B23: الممتلكات والآلات والمعدات | C23: 1533597.574 | D23: 1604570.615 | E23: 148380.8164 | F23: 116896.1744 | G23: 1681978.39 | H23: 1721466.789 | I23: Property, machinery and equipment
B24: ودائع قانونية إلزامية | C24: 769999.474 | D24: 802550.4962 | E24: 293822.6433 | F24: 226341.7857 | G24: 1063822.117 | H24: 1028892.282 | I24: Statutory deposits
B25: الموجودات غير الملموسة | C25: 257556.7658 | D25: 212894.7038 | E25: 101613.017 | F25: 113978.5858 | G25: 359169.7827 | H25: 326873.2896 | I25: Intangible assets
B26: أخرى | C26: 1227829.705 | D26: 1739881.865 | E26: 0 | F26: 0 | G26: 1227829.705 | H26: 1739881.865 | I26: Others
B27: مجموع الموجودات | C27: =SUM(C17:C26) -> 76060700.34 | D27: 83210194.26 | E27: 44057576.11 | F27: 47098995.59 | G27: 120118276.4 | H27: 130309189.8 | I27: Total Assets
B29: المطلوبات | I29: Liabilities
B30: إجمالي المخصصات الفنية | C30: 35177217.11 | D30: 40584528.63 | E30: 33373895.38 | F30: 35693411.6 | G30: =C30+E30 -> 68551112.49 | H30: =D30+F30 -> 76277940.23 | I30: Total Technical Provisions
B31: أقساط تأمين مقبوضة مقدما | C31: 262071.6249 | D31: 292795.5224 | E31: 16458.21942 | F31: 24416.41768 | G31: 278529.8443 | H31: 317211.9401 | I31: Premiums collected in advance
B32: ذمم التأمين الدائنة | C32: 3973774.903 | D32: 4367779.906 | E32: 953768.2653 | F32: 958153.9763 | G32: 4927543.168 | H32: 5325933.882 | I32: Insurance payable
B33: ذمم اعادة التأمين الدائنة | C33: 5652180.951 | D33: 6004135.623 | E33: 420932.4763 | F33: 497204.07 | G33: 6073113.427 | H33: 6501339.693 | I33: Reinsurance payables
B34: عمولات اعادة التامين غير المكتسبة | C34: 336999.1872 | D34: 493778.8471 | E34: 78267.15521 | F34: 90141.64576 | G34: 415266.3424 | H34: 583920.4928 | I34: Unearned reinsurance commissions
B35: المصاريف المستحقة والمطلوبات الأخرى | C35: 7516771.569 | D35: 7305002.846 | E35: 4145355.139 | F35: 4535350.139 | G35: 11662126.71 | H35: 11840352.98 | I35: Accrued expenses and other liabilities
B36: ذمم الوكالة/المضاربة دائنة | C36: 113218.1845 | D36: 219977.1472 | E36: 0 | F36: 0 | G36: 113218.1845 | H36: 219977.1472 | I36: Wakala / Mudaraba Payable
B37: القروض | C37: 884390.2329 | D37: 733969.7044 | E37: 0 | F37: 0 | G37: 884390.2329 | H37: 733969.7044 | I37: Borrowings
B38: تعويضات مكافآت نهاية الخدمة للموظفين | C38: 378412.7359 | D38: 370803.8242 | E38: 71785.44793 | F38: 76564.84624 | G38: 450198.1838 | H38: 447368.6705 | I38: End of service indemnity
B39: أخرى | C39: 28479.5191 | D39: 22585.09273 | E39: 0 | F39: 0 | G39: 28479.5191 | H39: 22585.09273 | I39: Others
B40: مجموع المطلوبات | C40: =SUM(C30:C39) -> 54323516.02 | D40: =SUM(D30:D39) -> 60395357.15 | E40: 39060462.09 | F40: 41875242.69 | G40: 93383978.1 | H40: 102270599.8 | I40: Total Liabilities
B42: حقوق المساهمين العائدة لمساهمي الشركة الأُم | I42: Equity Attributable to Equityholders of Parent
B43: الرصيد الصافي في حساب المشتركين | C43: -4087.45678 | D43: 2114.475 | E43: 36882.10642 | F43: 39036.58174 | G43: =C43+E43 -> 32794.64964 | H43: =D43+F43 -> 41151.05674 | I43: Net balance in participants' funds
B44: رأس المال المصدر والمدفوع | C44: 7374631.767 | D44: 6681615.915 | E44: 100000 | F44: 100000 | G44: 7474631.767 | H44: 6781615.915 | I44: Issued and paid up share capital
B45: علاوة إصدار | C45: 110975.9346 | D45: 110925.311 | E45: 0 | F45: 0 | G45: 110975.9346 | H45: 110925.311 | I45: Share premium
B46: أسهم الخزينة | C46: -40633.285 | D46: -40633.285 | E46: 0 | F46: 0 | G46: -40633.285 | H46: -40633.285 | I46: Treasury shares
B47: رأس المال الإضافي المدفوع | C47: 15000 | D47: 15000 | E47: 38000 | F47: 38000 | G47: 53000 | H47: 53000 | I47: Additional paid in capital
B48: الأرباح/الخسائر المدورة | C48: 4092995.777 | D48: 5638091.53 | E48: -162858.7976 | F48: -825065.3305 | G48: 3930136.979 | H48: 4813026.199 | I48: Retained earnings/loss
B49: حساب الشركة الأم | C49: 0 | D49: -0.004831055146 | E49: 5074870.53 | F49: 5849177.978 | G49: 5074870.53 | H49: 5849177.973 | I49: Head Office Account
B50: حقوق الأقلية | C50: 108958.6144 | D50: 128835.1513 | E50: 0 | F50: 0 | G50: 108958.6144 | H50: 128835.1513 | I50: Minority interest
B51: الإحتياطيات | C51: 10079342.98 | D51: 10278888.03 | E51: -89779.81996 | F51: 22603.66881 | G51: 9989563.16 | H51: 10301491.7 | I51: Reserves
B52: مجموع حقوق المساهمين | C52: =SUM(C43:C51) -> 21737184.33 | D52: =SUM(D43:D51) -> 22814837.12 | E52: 4997114.019 | F52: 5223752.898 | G52: 26734298.35 | H52: 28038590.02 | I52: Total Equity
B54: مجموع حقوق المساهمين والمطلوبات | C54: =SUM(C40+C52) -> 76060700.35 | D54: =SUM(D40+D52) -> 83210194.27 | E54: 44057576.11 | F54: 47098995.59 | G54: 120118276.5 | H54: 130309189.9 | I54: Total Equity and Liabilities

Sheet 21B
B6: قائمة المركز المالي
B7: شركات التأمين التقليدي الوطنية وشركات التأمين التكافلي الوطنية
B8: Statement of Financial Position
B9: Traditional & Takaful National Companies
B11: جدول رقم 21B | I11: TABLE 21B
B12: بالألف درهم | I12: AED in 000's
B13: البيــــــــان | C13: شركات التأمين التقليدي الوطنية | E13: شركات التأمين التكافلي الوطنية | G13: الشركات الوطنية | I13: DESCRIPTION
C14: TRADITIONAL COMPANIES | E14: TAKAFUL OPERATORS | G14: NATIONAL COMPANIES
C15: 2022 | D15: 2023 | E15: 2022 | F15: 2023 | G15: 2022 | H15: 2023
B16: الموجودات | I16: Assets
B17: إجمالي الموجودات المستثمرة | C17: 31128356.41 | D17: 34924830.75 | E17: 7445015.273 | F17: 7223081.947 | G17: =E17+C17 -> 38573371.69 | H17: =F17+D17 -> 42147912.7 | I17: Total Invested Assets
B18: مستردات إعادة التأمين | C18: 16633833.51 | D18: 19134596.74 | E18: 2030997.725 | F18: 2310714.853 | G18: =E18+C18 -> 18664831.24 | H18: 21445311.59 | I18: Reinsurance recoverable
B19: ذمم إعادة التأمين المدينة | C19: 1036906.073 | D19: 1118022.895 | E19: 345219.6478 | F19: 242429.5635 | G19: 1382125.721 | H19: 1360452.459 | I19: Reinsurance receivables
B20: ذمم تأمين مدينة | C20: 6488332.847 | D20: 7123830.462 | E20: 942735.2182 | F20: 936068.4405 | G20: 7431068.066 | H20: 8059898.903 | I20: Insurance receivables
B21: ذمم مدينة ودفعات مقدمة أخرى | C21: 4003638.855 | D21: 3202939.551 | E21: 1383618.369 | F21: 1450808.602 | G21: 5387257.225 | H21: 4653748.153 | I21: Other receivables and prepayments
B22: تكاليف الاستحواذ المؤجلة | C22: 600299.6201 | D22: 913184.7395 | E22: 232763.2648 | F22: 269788.0385 | G22: 833062.885 | H22: 1182972.778 | I22: Deferred policy acquisition costs
B23: الممتلكات والآلات والمعدات | C23: 1441479.346 | D23: 1508283.428 | E23: 92118.22766 | F23: 96287.18666 | G23: 1533597.574 | H23: 1604570.615 | I23: Property, machinery and equipment
B24: ودائع قانونية إلزامية | C24: 426887.807 | D24: 457024.595 | E24: 343111.667 | F24: 345525.9012 | G24: 769999.474 | H24: 802550.4962 | I24: Statutory deposits
B25: الموجودات غير الملموسة | C25: 121917.6898 | D25: 143801.7378 | E25: 135639.076 | F25: 69092.966 | G25: 257556.7658 | H25: 212894.7038 | I25: Intangible assets
B26: أخرى | C26: 0 | D26: 0 | E26: 1227829.705 | F26: 1739881.865 | G26: =E26+C26 -> 1227829.705 | H26: =F26+D26 -> 1739881.865 | I26: Others
B27: مجموع الموجودات | C27: =SUM(C17:C26) -> 61881652.17 | D27: =SUM(D17:D26) -> 68526514.9 | E27: 14179048.17 | F27: 14683679.36 | G27: 76060700.34 | H27: 83210194.26 | I27: Total Assets
B29: المطلوبات | I29: Liabilities
B30: إجمالي المخصصات الفنية | C30: 28829908.64 | D30: 33699656.69 | E30: 6347308.466 | F30: 6884871.942 | G30: =E30+C30 -> 35177217.11 | H30: 40584528.63 | I30: Total Technical Provisions
B31: أقساط تأمين مقبوضة مقدما | C31: 230455.1272 | D31: 256828.1551 | E31: 31616.49773 | F31: 35967.36732 | G31: 262071.6249 | H31: 292795.5224 | I31: Premiums collected in advance
B32: ذمم التأمين الدائنة | C32: 3451163.504 | D32: 3914119.011 | E32: 522611.399 | F32: 453660.8945 | G32: 3973774.903 | H32: 4367779.906 | I32: Insurance payable
B33: ذمم اعادة التأمين الدائنة | C33: 4624942.735 | D33: 4953510.797 | E33: 1027238.216 | F33: 1050624.826 | G33: 5652180.951 | H33: 6004135.623 | I33: Reinsurance payables
B34: عمولات اعادة التامين غير المكتسبة | C34: 293404.6762 | D34: 413814.7921 | E34: 43594.51101 | F34: 79964.05498 | G34: 336999.1872 | H34: 493778.8471 | I34: Unearned reinsurance commissions
B35: المصاريف المستحقة والمطلوبات الأخرى | C35: 4262412.714 | D35: 3614986.19 | E35: 3254358.855 | F35: 3690016.656 | G35: 7516771.569 | H35: 7305002.846 | I35: Accrued expenses and other liabilities
B36: ذمم الوكالة/المضاربة دائنة | C36: 0 | D36: 0 | E36: 113218.1845 | F36: 219977.1472 | G36: 113218.1845 | H36: 219977.1472 | I36: Wakala / Mudaraba Payable
B37: القروض | C37: 683272.2329 | D37: 576215.7044 | E37: 201118 | F37: 157754 | G37: 884390.2329 | H37: 733969.7044 | I37: Borrowings
B38: تعويضات مكافآت نهاية الخدمة للموظفين | C38: 334155.3682 | D38: 334703.986 | E38: 44257.36771 | F38: 36099.83822 | G38: 378412.7359 | H38: 370803.8242 | I38: End of service indemnity
B39: أخرى | C39: 0 | D39: 0 | E39: 28479.5191 | F39: 22585.09273 | G39: 28479.5191 | H39: 22585.09273 | I39: Others
B40: مجموع المطلوبات | C40: =SUM(C30:C39) -> 42709715 | D40: =SUM(D30:D39) -> 47763835.33 | E40: 11613801.02 | F40: 12631521.82 | G40: 54323516.02 | H40: 60395357.15 | I40: Total Liabilities
B42: حقوق المساهمين العائدة لمساهمي الشركة الأُم | I42: Equity Attributable to Equityholders of Parent
B43: الرصيد الصافي في حساب المشتركين | C43: 0 | D43: 0 | E43: -4087.45678 | F43: 2114.475 | G43: =E43+C43 -> -4087.45678 | H43: 2114.475 | I43: Net balance in participants' funds
B44: رأس المال المصدر والمدفوع | C44: 4356869.517 | D44: 4194420.917 | E44: 3017762.25 | F44: 2487194.998 | G44: 7374631.767 | H44: 6681615.915 | I44: Issued and paid up share capital
B45: علاوة إصدار | C45: 109777.5446 | D45: 109726.921 | E45: 1198.39 | F45: 1198.39 | G45: 110975.9346 | H45: 110925.311 | I45: Share premium
B46: أسهم الخزينة | C46: -4660.318 | D46: -4660.318 | E46: -35972.967 | F46: -35972.967 | G46: -40633.285 | H46: -40633.285 | I46: Treasury shares
B47: رأس المال الإضافي المدفوع | C47: 15000 | D47: 15000 | E47: 0 | F47: 0 | G47: =E47+C47 -> 15000 | H47: =F47+D47 -> 15000 | I47: Additional paid in capital
B48: الأرباح/الخسائر المدورة | C48: 4756437.485 | D48: 6109352.524 | E48: -663441.7086 | F48: -471260.9946 | G48: 4092995.777 | H48: 5638091.53 | I48: Retained earnings/loss
B49: حساب الشركة الأم | C49: 0 | D49: -0.004831055146 | E49: 0 | F49: 0 | G49: 0 | H49: -0.004831055146 | I49: Head Office Account
B50: حقوق الأقلية | C50: 42497 | D50: 62346.818 | E50: 66461.61444 | F50: 66488.33326 | G50: 108958.6144 | H50: 128835.1513 | I50: Minority interest
B51: الإحتياطيات | C51: 9896015.94 | D51: 10276492.72 | E51: 183327.0397 | F51: 2395.314196 | G51: 10079342.98 | H51: 10278888.03 | I51: Reserves
B52: مجموع حقوق المساهمين | C52: =SUM(C43:C51) -> 19171937.17 | D52: =SUM(D43:D51) -> 20762679.57 | E52: 2565247.162 | F52: 2052157.548 | G52: 21737184.33 | H52: 22814837.12 | I52: Total Equity
B54: مجموع حقوق المساهمين والمطلوبات | C54: =SUM(C40+C52) -> 61881652.17 | D54: 68526514.9 | E54: 14179048.18 | F54: 14683679.37 | G54: 76060700.35 | H54: 83210194.27 | I54: Total Equity and Liabilities

Sheet 22A
B6: قائمة الدخل
B7: الشركات الوطنية والاجنبية
B8: Income Statement
B9: National & Foreign Companies
B11: جدول رقم 22A | I11: TABLE 22A
B12: بالألف درهم | I12: AED in 000's
B13: البيــــــــان | C13: الشركات الوطنية | E13: الشركات الأجنبية | G13: الاجمالي | I13: DESCRIPTION
C14: NATIONAL COMPANIES | E14: FOREIGN COMPANIES | G14: TOTAL
C15: 2022 | D15: 2023 | E15: 2022 | F15: 2023 | G15: 2022 | H15: 2023
B16: الدخل الاكتتابي | I16: Underwriting Income
B17: اجمالي الأقساط المكتتبة | C17: 33727738.21 | D17: 39140025.21 | E17: 13518707.22 | F17: 14237817.61 | G17: =E17+C17 -> 47246445.43 | H17: =F17+D17 -> 53377842.82 | I17: Gross Written Premium
B18: صافي الأقساط المكتتبة | C18: 15260603.93 | D18: 17854051.89 | E18: 10661822 | F18: 10922832.21 | G18: =E18+C18 -> 25922425.93 | H18: 28776884.1 | I18: Net Written Premium
B19: صافي الأقساط المكتسبة | C19: 14645681.88 | D19: 16427823.28 | E19: 10634194.92 | F19: 10451662.32 | G19: 25279876.8 | H19: 26879485.6 | I19: Net Premiums Earned
B20: صافي المطالبات ومصاريف تسوية المطالبات المدفوعة | C20: 9622169.418 | D20: 10992851.1 | E20: 6906243.152 | F20: 7382033.901 | G20: 16528412.57 | H20: 18374885 | I20: Net Claims & Claim Related Expenses Paid
B21: صافي المطالبات ومصاريف تسوية المطالبات المتكبدة | C21: 10351534.04 | D21: 12285450.87 | E21: -490547.8935 | F21: 9099550.997 | G21: 9860986.148 | H21: 21385001.86 | I21: Net Claims & Claim Related Expenses Incurred
B22: أجر الوكالة/حصة المضاربة المكتسبة | C22: 651.445035 | D22: 2236.891453 | E22: 0 | F22: 0 | G22: =E22+C22 -> 651.445035 | H22: =F22+D22 -> 2236.891453 | I22: Wakala / Mudaraba Fees Earned
B23: صافي العمولات المدفوعة | C23: 842192.8213 | D23: 1072090.167 | E23: 843952.3481 | F23: 864268.4412 | G23: 1686145.169 | H23: 1936358.608 | I23: Net Commissions Paid
B24: صافي العمولات المتكبدة | C24: 722391.8679 | D24: 836584.1404 | E24: 1377379.942 | F24: 695127.5121 | G24: 2099771.81 | H24: 1531711.652 | I24: Net Commissions Incurred
B25: تكاليف الاستحواذ الأخرى | C25: 501525.1879 | D25: 664979.5881 | E25: 314947.2355 | F25: 302925.3253 | G25: 816472.4234 | H25: 967904.9134 | I25: Other Acquisition Expenses
B26: مصاريف عمومية | C26: 2224949.535 | D26: 2148011.046 | E26: 1216225.411 | F26: 1340920.517 | G26: 3441174.946 | H26: 3488931.563 | I26: General Expenses
B27: الضرائب والتراخيص والرسوم | C27: 196981.9902 | D27: 223620.2055 | E27: 86204.27255 | F27: 99638.21924 | G27: 283186.2627 | H27: 323258.4247 | I27: Taxes, Licenses and Fees
B28: تكاليف الإكتتاب الاخرى | C28: =SUM(C25:C27) -> 2923456.714 | D28: 3036610.84 | E28: =SUM(E25:E27) -> 1617376.919 | F28: 1743484.061 | G28: =SUM(G25:G27) -> 4540833.632 | H28: 4780094.901 | I28: Other Underwriting Expenses
B29: صافي دخل / (خسارة) الاكتتاب | C29: =C19-C21-C24-C28 -> 648299.2618 | D29: 269177.4391 | E29: 8129985.952 | F29: -1086500.254 | G29: 8778285.214 | H29: -817322.8148 | I29: Net Underwriting Income / (Loss)
B31: الدخل الاستثماري | I31: Investment Income
B32: دخل مكتسب من الاستثمارات العقارية | C32: 110108.1438 | D32: 126692.2882 | E32: 2135.611931 | F32: 3550.68508 | G32: =E32+C32 -> 112243.7557 | H32: 130242.9733 | I32: Earned Income from Real Estate Investments
B33: دخل مكتسب من الاستثمارات الاخرى | C33: 1024616.488 | D33: 1462091.836 | E33: 344723.3047 | F33: 521384.9838 | G33: 1369339.792 | H33: 1983476.82 | I33: Earned Income from Other Investments
B34: صافي الربح / (الخسارة) المحققة على الاستثمارات | C34: 84376.92698 | D34: 160462.8903 | E34: -1601619.746 | F34: 137133.3447 | G34: -1517242.819 | H34: 297596.235 | I34: Net Realized Gain / (Loss) on Investments
B35: صافي الربح / (الخسارة) غير المحققة على الاستثمارات | C35: -58355.90766 | D35: 427253.3434 | E35: -4893871.686 | F35: 2779391.644 | G35: -4952227.594 | H35: 3206644.988 | I35: Net Unrealized Gain / (Loss) on Investments
B36: تعديلات في الاستثمارات متدنية القيمة | C36: 8235.10067 | D36: 26280.01134 | E36: -66550.85285 | F36: -1485.767225 | G36: -58315.75218 | H36: 24794.24411 | I36: Adjustment for Impaired Investments
B37: ربح / (خسارة) صرف العملات الأجنبية على الاستثمارات | C37: -1729.48448 | D37: -882.76567 | E37: 376637.0795 | F37: -217770.8149 | G37: 374907.5951 | H37: -218653.5806 | I37: Foreign Exchange Gain / (Loss) on Investments
B38: إجمالي دخل الاستثمار | C38: =SUM(C32:C37) -> 1167251.267 | D38: 2201897.603 | E38: -5838546.288 | F38: 3222204.076 | G38: -4671295.021 | H38: 5424101.679 | I38: Gross Investment Income
B39: مصاريف الاستثمار | C39: 312796.843 | D39: 299466.4517 | E39: 12469.95094 | F39: 13935.76952 | G39: 325266.794 | H39: 313402.2212 | I39: Investment Expenses
B40: صافي دخل الاستثمار | C40: =C38-C39 -> 854454.424 | D40: 1902431.152 | E40: -5851016.239 | F40: 3208268.306 | G40: -4996561.815 | H40: 5110699.458 | I40: Net Investment Income
B41: دخل تشغيلي آخر | C41: 578075.8067 | D41: 558789.5302 | E41: -267657.6125 | F41: 606878.3908 | G41: 310418.1942 | H41: 1165667.921 | I41: Other Operating Income
B42: مصاريف تشغيلية أخرى | C42: 313284.8618 | D42: 601113.8306 | E42: 1791695.595 | F42: 2313350.81 | G42: =E42+C42 -> 2104980.457 | H42: =F42+D42 -> 2914464.641 | I42: Other Operating Expenses
B43: إجمالي الربح / الخسارة قبل حساب القروض وتوزيعات الأرباح | C43: =C29+C40+C41-C42 -> 1767544.631 | D43: 2129284.29 | E43: 219616.5046 | F43: 415295.6328 | G43: 1987161.135 | H43: 2544579.923 | I43: Total Profit / (Loss) prior to Loans & Dividends
B44: أخرى | C44: 9341 | D44: 0 | G44: =E44+C44 -> 9341 | H44: =F44+D44 -> 0 | I44: Others
B45: إجمالي الربح / الخسارة قبل توزيعات الأرباح على حاملي الوثائق | C45: =C43-C44 -> 1758203.631 | D45: 2129284.29 | E45: 219616.5046 | F45: 415295.6328 | G45: 1977820.135 | H45: 2544579.923 | I45: Total Profit / (Loss) prior to Policyholder Dividends
B46: توزيعات الأرباح على حاملي الوثائق | C46: 22051.269 | D46: 23949.229 | E46: 0 | F46: 0 | G46: =E46+C46 -> 22051.269 | H46: =F46+D46 -> 23949.229 | I46: Policyholder Dividends
B47: إجمالي الربح / (الخسارة) | C47: =C45-C46 -> 1736152.362 | D47: =D45-D46 -> 2105335.061 | E47: 219616.5046 | F47: 415295.6328 | G47: 1955768.866 | H47: 2520630.694 | I47: Total Profit / (Loss)

Sheet 22B
B6: قائمة الدخل
B7: شركات التأمين التقليدي الوطنية وشركات التأمين التكافلي الوطنية
B8: Income Statement
B9: Traditional & Takaful National Companies
B11: جدول رقم 22B | I11: TABLE 22B
B12: بالألف درهم | I12: AED in 000's
B13: البيــــــــان | C13: شركات التأمين التقليدي الوطنية | E13: شركات التأمين التكافلي الوطنية | G13: الشركات الوطنية | I13: DESCRIPTION
C14: TRADITIONAL COMPANIES | E14: TAKAFUL OPERATORS | G14: NATIONAL COMPANIES
C15: 2022 | D15: 2023 | E15: 2022 | F15: 2023 | G15: 2022 | H15: 2023
B16: الدخل الاكتتابي | I16: Underwriting Income
B17: اجمالي الأقساط المكتتبة | C17: 29557889.53 | D17: 34285474.79 | E17: 4169848.679 | F17: 4854550.427 | G17: =E17+C17 -> 33727738.21 | H17: =F17+D17 -> 39140025.21 | I17: Gross Written Premium
B18: صافي الأقساط المكتتبة | C18: 12854346.74 | D18: 15240682.12 | E18: 2406257.193 | F18: 2613369.765 | G18: =E18+C18 -> 15260603.93 | H18: 17854051.89 | I18: Net Written Premium
B19: صافي الأقساط المكتسبة | C19: 12452106.41 | D19: 13917753.3 | E19: 2193575.473 | F19: 2510069.984 | G19: 14645681.88 | H19: 16427823.28 | I19: Net Premiums Earned
B20: صافي المطالبات ومصاريف تسوية المطالبات المدفوعة | C20: 8289006.591 | D20: 9581213.631 | E20: 1333162.827 | F20: 1411637.467 | G20: 9622169.418 | H20: 10992851.1 | I20: Net Claims & Claim Related Expenses Paid
B21: صافي المطالبات ومصاريف تسوية المطالبات المتكبدة | C21: 9203003.854 | D21: 10716306.84 | E21: 1148530.187 | F21: 1569144.028 | G21: 10351534.04 | H21: 12285450.87 | I21: Net Claims & Claim Related Expenses Incurred
B22: أجر الوكالة/حصة المضاربة المكتسبة | C22: -0.0007930227975 | D22: 0 | E22: 651.445828 | F22: 2236.891453 | G22: 651.445035 | H22: 2236.891453 | I22: Wakala / Mudaraba Fees Earned
B23: صافي العمولات المدفوعة | C23: 377728.2248 | D23: 598278.7381 | E23: 464464.5965 | F23: 473811.4287 | G23: 842192.8213 | H23: 1072090.167 | I23: Net Commissions Paid
B24: صافي العمولات المتكبدة | C24: 300272.3841 | D24: 398288.8348 | E24: 422119.4837 | F24: 438295.3056 | G24: 722391.8679 | H24: =F24+D24 -> 836584.1404 | I24: Net Commissions Incurred
B25: تكاليف الاستحواذ الأخرى | C25: 560283.0335 | D25: 591819.3459 | E25: -58757.84562 | F25: 73160.24218 | G25: 501525.1879 | H25: 664979.5881 | I25: Other Acquisition Expenses
B26: مصاريف عمومية | C26: 1775592.199 | D26: 1653283.595 | E26: 449357.3365 | F26: 494727.4509 | G26: 2224949.535 | H26: 2148011.046 | I26: General Expenses
B27: الضرائب والتراخيص والرسوم | C27: 170124.6957 | D27: 184878.1635 | E27: 26857.29444 | F27: 38742.04197 | G27: 196981.9902 | H27: 223620.2055 | I27: Taxes, Licenses and Fees
B28: تكاليف الإكتتاب الاخرى | C28: =SUM(C25:C27) -> 2505999.928 | D28: =SUM(D25:D27) -> 2429981.105 | E28: =SUM(E25:E27) -> 417456.7854 | F28: =SUM(F25:F27) -> 606629.735 | G28: =SUM(G25:G27) -> 2923456.714 | H28: 3036610.84 | I28: Other Underwriting Expenses
B29: صافي دخل / (خسارة) الاكتتاب | C29: =C19-C21-C24-C28 -> 442830.2452 | D29: 373176.5239 | E29: =E19-E21-E24-E28 -> 205469.0165 | F29: =F19-F21-F24-F28 -> -103999.0848 | G29: =G19-G21-G24-G28 -> 648299.2618 | H29: =H19-H21-H24-H28 -> 269177.4391 | I29: Net Underwriting Income / (Loss)
B31: الدخل الاستثماري | I31: Investment Income
B32: دخل مكتسب من الاستثمارات العقارية | C32: 103884.5502 | D32: 117538.8907 | E32: 6223.59363 | F32: 9153.39747 | G32: =E32+C32 -> 110108.1438 | H32: 126692.2882 | I32: Earned Income from Real Estate Investments
B33: دخل مكتسب من الاستثمارات الاخرى | C33: 780076.1477 | D33: 1234074.017 | E33: 244540.34 | F33: 228017.8189 | G33: 1024616.488 | H33: 1462091.836 | I33: Earned Income from Other Investments
B34: صافي الربح / (الخسارة) المحققة على الاستثمارات | C34: 58354.84317 | D34: 93457.34699 | E34: 26022.08381 | F34: 67005.54327 | G34: 84376.92698 | H34: 160462.8903 | I34: Net Realized Gain / (Loss) on Investments
B35: صافي الربح / (الخسارة) غير المحققة على الاستثمارات | C35: -67353.6971 | D35: 338679.6288 | E35: 8997.789439 | F35: 88573.71465 | G35: -58355.90766 | H35: 427253.3434 | I35: Net Unrealized Gain / (Loss) on Investments
B36: تعديلات في الاستثمارات متدنية القيمة | C36: 7035.10067 | D36: 194.948459 | E36: 1200 | F36: 26085.06288 | G36: 8235.10067 | H36: 26280.01134 | I36: Adjustment for Impaired Investments
B37: ربح / (خسارة) صرف العملات الأجنبية على الاستثمارات | C37: -1729.48448 | D37: -882.76567 | E37: 0 | F37: 0 | G37: -1729.48448 | H37: -882.76567 | I37: Foreign Exchange Gain / (Loss) on Investments
B38: إجمالي دخل الاستثمار | C38: =SUM(C32:C37) -> 880267.4602 | D38: =SUM(D32:D37) -> 1783062.066 | E38: =SUM(E32:E37) -> 286983.8069 | F38: 418835.5371 | G38: =SUM(G32:G37) -> 1167251.267 | H38: 2201897.603 | I38: Gross Investment Income
B39: مصاريف الاستثمار | C39: 124912.8901 | D39: 196262.4701 | E39: 187883.9529 | F39: 103203.9816 | G39: 312796.843 | H39: 299466.4517 | I39: Investment Expenses
B40: صافي دخل الاستثمار | C40: =C38-C39 -> 755354.57 | D40: 1586799.596 | E40: =E38-E39 -> 99099.85395 | F40: 315631.5555 | G40: =G38-G39 -> 854454.424 | H40: 1902431.152 | I40: Net Investment Income
B41: دخل تشغيلي آخر | C41: 499122.9383 | D41: 506400.1354 | E41: 78952.86841 | F41: 52389.39475 | G41: 578075.8067 | H41: 558789.5302 | I41: Other Operating Income
B42: مصاريف تشغيلية أخرى | C42: -75063.51825 | D42: 237728.864 | E42: 388348.38 | F42: 363384.9666 | G42: 313284.8618 | H42: 601113.8306 | I42: Other Operating Expenses
B43: إجمالي الربح / الخسارة قبل حساب القروض وتوزيعات الأرباح | C43: =C29+C40+C41-C42 -> 1772371.272 | D43: 2228647.391 | E43: =E29+E40+E41-E42 -> -4826.641142 | F43: -99363.10109 | G43: =G29+G40+G41-G42 -> 1767544.631 | H43: =H29+H40+H41-H42 -> 2129284.29 | I43: Total Profit / (Loss) prior to Loans & Dividends
B44: أخرى | C44: 0 | D44: 0 | E44: 9341 | F44: 0 | G44: =E44+C44 -> 9341 | H44: =F44+D44 -> 0 | I44: Others
B45: إجمالي الربح / الخسارة قبل توزيعات الأرباح على حاملي الوثائق | C45: =C43-C44 -> 1772371.272 | D45: 2228647.391 | E45: -14167.64114 | F45: -99363.10109 | G45: 1758203.631 | H45: =H43-H44 -> 2129284.29 | I45: Total Profit / (Loss) prior to Policyholder Dividends
B46: توزيعات الأرباح على حاملي الوثائق | C46: 22051.269 | D46: 23949.229 | E46: 0 | F46: 0 | G46: =E46+C46 -> 22051.269 | H46: 23949.229 | I46: Policyholder Dividends
B47: إجمالي الربح / (الخسارة) | C47: =C45-C46 -> 1750320.003 | D47: 2204698.162 | E47: =E45-E46 -> -14167.64114 | F47: -99363.10109 | G47: =G45-G46 -> 1736152.362 | H47: 2105335.061 | I47: Total Profit / (Loss)

Sheet 23A
B6: تحليل الملاءة المالية
B7: Solvency Analysis
B8: (2023)
B11: جدول رقم 23A | D11: TABLE 23A
B12: بالألف درهم | D12: AED in 000's
B13: البيــــــــان | C13: الاجمالي | D13: DESCRIPTION
C14: TOTAL
B15: متطلب الحد الأدنى لرأس المال (MCR) | C15: 5850000 | D15: Minimum Capital Requirement (MCR)
B16: مخاطر الإكتتاب - التأمينات العامة | C16: 1785848.577 | D16: Underwriting Risk - Property and Liability Insurance
B17: مخاطر الإكتتاب - التأمين على الحياة | C17: 355842.554 | D17: Underwriting Risk - Life Insurance
B18: مخاطر الإكتتاب - التأمين الصحي | C18: 1327574.564 | D18: Underwriting Risk - Health Insurance
B19: المخاطر الاستثمارية | C19: 4059233.714 | D19: Investment Risk
B20: مخاطر الائتمان | C20: 2734606.216 | D20: Credit Risk
B21: المتطلب الأساسي لملاءة رأس المال (BSCR) | C21: 7412120.791 | D21: Basic Solvency Capital Required (BSCR)
B22: المخاطر التشغيلية | C22: 2112378.65 | D22: Operational Risk
B23: متطلب ملاءة رأس المال (SCR) | C23: 9524499.441 | D23: Solvency Capital Requirement (SCR)
B24: المبلغ الأدنى للضمان (MGF) | C24: 6688849.704 | D24: Minimum Guarantee Fund (MGF)
B26: صافي الموجودات المقبولة مطروحا منها المطلوبات | C26: 19862945.25 | D26: Admissible Assets less Liabilities
B28: الفائض / (العجز) في هامش الحد الأدنى لرأس المال | C28: 14159494.2 | D28: MCR Solvency Margin - Surplus / (Deficit)
B29: الفائض / (العجز) في هامش ملاءة رأس المال | C29: 10410034.92 | D29: SCR Solvency Margin - Surplus / (Deficit)
B30: الفائض / (العجز) في هامش المبلغ الأدنى للضمان | C30: 13245684.65 | D30: MGF Solvency Margin - Surplus / (Deficit)
B32: نسبة الحد الأدنى لرأس المال | C32: 3.395375256 | D32: MCR Solvency Ratio
B33: نسبة ملاءة رأس المال | C33: 2.085458178 | D33: SCR Solvency Ratio
B34: نسبة المبلغ الأدنى للضمان | C34: 2.969560706 | D34: MGF Solvency Ratio

Sheet 23B
B6: تحليل الملاءة المالية للشركات الوطنية
B7: Solvency Analysis for National Companies
B8: (2023)
B11: جدول رقم 23B | D11: TABLE 23B
B12: بالألف درهم | D12: AED in 000's
B13: البيــــــــان | C13: الشركات الوطنية | D13: DESCRIPTION
C14: NATIONAL COMPANIES
B15: متطلب الحد الأدنى لرأس المال (MCR) | C15: 3100000 | D15: Minimum Capital Requirement (MCR)
B16: مخاطر الإكتتاب - التأمينات العامة | C16: 1365060.321 | D16: Underwriting Risk - Property and Liability Insurance
B17: مخاطر الإكتتاب - التأمين على الحياة | C17: 127953.7436 | D17: Underwriting Risk - Life Insurance
B18: مخاطر الإكتتاب - التأمين الصحي | C18: 949060.1687 | D18: Underwriting Risk - Health Insurance
B19: المخاطر الاستثمارية | C19: 3425360.539 | D19: Investment Risk
B20: مخاطر الائتمان | C20: 2148881.631 | D20: Credit Risk
B21: المتطلب الأساسي لملاءة رأس المال (BSCR) | C21: 5677263.771 | D21: Basic Solvency Capital Required (BSCR)
B22: المخاطر التشغيلية | C22: 1547944.98 | D22: Operational Risk
B23: متطلب ملاءة رأس المال (SCR) | C23: 7225208.751 | D23: Solvency Capital Requirement (SCR)
B24: المبلغ الأدنى للضمان (MGF) | C24: 4602262.059 | D24: Minimum Guarantee Fund (MGF)
B26: صافي الموجودات المقبولة مطروحا منها المطلوبات | C26: 15795719.13 | D26: Admissible Assets less Liabilities
B28: الفائض / (العجز) في هامش الحد الأدنى لرأس المال | C28: 12096818.89 | D28: MCR Solvency Margin - Surplus / (Deficit)
B29: الفائض / (العجز) في هامش ملاءة رأس المال | C29: 7873494.898 | D29: SCR Solvency Margin - Surplus / (Deficit)
B30: الفائض / (العجز) في هامش المبلغ الأدنى للضمان | C30: 10496441.59 | D30: MGF Solvency Margin - Surplus / (Deficit)
B32: نسبة الحد الأدنى لرأس المال | C32: 5.095393269 | D32: MCR Solvency Ratio
B33: نسبة ملاءة رأس المال | C33: 2.186195538 | D33: SCR Solvency Ratio
B34: نسبة المبلغ الأدنى للضمان | C34: 3.432164212 | D34: MGF Solvency Ratio

Sheet 24A
B6: إجمالي الأقساط المكتتبة حسب الإمارة
B7: Gross Written Premium by Emirate
B8: (2023)
B11: جدول رقم 24A | M11: TABLE 24A
B12: بالألف درهم | M12: AED in 000's
B13: فروع التأمين | C13: أم القيوين | D13: الشارقة | E13: رأس الخيمة | F13: الفجيرة | G13: دبي | H13: عجمان | I13: أبو ظبي | J13: داخل الدولة | K13: خارج الدولة | L13: جميع المواقع | M13: Line of Business
C14: Umm Al Quwain | D14: Sharjah | E14: Ras Al Khaimah | F14: Fujairah | G14: Dubai | H14: Ajman | I14: Abu Dhabi | J14: Within UAE | K14: Outside UAE | L14: All Locations
B15: تأمين الحريق | C15: 1319.80877 | D15: 106369.0836 | E15: 35029.73248 | F15: 18914.39685 | G15: 2487485.713 | H15: 10191.46646 | I15: 1086340.074 | J15: =C15+D15+E15+F15+G15+H15+I15 -> 3745650.275 | K15: 783992.7093 | L15: =J15+K15 -> 4529642.984 | M15: Fire
B16: التأمين البحري والطيران | C16: 130.10006 | D16: 81259.86401 | E16: 7665.969154 | F16: 13159.21999 | G16: 1223552.928 | H16: 5337.276001 | I16: 579355.9148 | J16: =C16+D16+E16+F16+G16+H16+I16 -> 1910461.273 | K16: 305331.608 | L16: =J16+K16 -> 2215792.881 | M16: Marine & Aviation
B17: تأمين السيارات والمركبات الأخرى | C17: 692.8403 | D17: 337988.7047 | E17: 209188.0239 | F17: 88489.80833 | G17: 3471837.464 | H17: 45412.12619 | I17: 1234480.431 | J17: 5388089.399 | K17: 498474.019 | L17: 5886563.418 | M17: Motor & Transportation
B18: التأمين الهندسي والانشاءات والطاقة | C18: 45.3559 | D18: 51056.12552 | E18: 11010.84638 | F18: 51864.32523 | G18: 1096832.13 | H18: 5385.962376 | I18: 1299835.937 | J18: 2516030.682 | K18: 800984.4575 | L18: 3317015.139 | M18: Engineering, Construction & Energy
B19: أخرى | C19: 130.15273 | D19: 48671.44526 | E19: 24776.20123 | F19: 10005.3193 | G19: 3595010.761 | H19: 7174.249324 | I19: 936750.5485 | J19: 4622518.677 | K19: 194446.302 | L19: 4816964.979 | M19: Other
B20: اعادة التأمين غير النسبية - المسؤوليات والممتلكات | C20: 0 | D20: 0 | E20: 0 | F20: 0 | G20: 0 | H20: 0 | I20: 5989.4324 | J20: 5989.4324 | K20: 0 | L20: 5989.4324 | M20: Reinsurance - Property & Liability
B21: المجموع - تأمين الممتلكات والمسؤوليات | C21: =C15+C16+C17+C18+C19+C20 -> 2318.25776 | D21: 625345.2231 | E21: 287670.7731 | F21: 182433.0697 | G21: 11874719 | H21: 73501.08036 | I21: 5142752.337 | J21: =J15+J16+J17+J18+J19+J20 -> 18188739.74 | K21: =K15+K16+K17+K18+K19+K20 -> 2583229.096 | L21: =L15+L16+L17+L18+L19+L20 -> 20771968.83 | M21: Total - Property & Liability Insurance
B23: المجموع - تأمين صحي | C23: 9044.370125 | D23: 1335993.797 | E23: 129457.4091 | F23: 39961.1792 | G23: 15264254.59 | H23: 77987.40007 | I23: 8756485.419 | J23: =C23+D23+E23+F23+G23+H23+I23 -> 25613184.16 | K23: 283859.1848 | L23: =J23+K23 -> 25897043.35 | M23: Total - Health Insurance
B25: تأمين حياة جماعي | C25: 1070.379597 | D25: 25574.25214 | E25: 5734.299915 | F25: 1721.963214 | G25: 636795.4414 | H25: 4144.069986 | I25: 263899.3573 | J25: =C25+D25+E25+F25+G25+H25+I25 -> 938939.7636 | K25: 81337.30932 | L25: =J25+K25 -> 1020277.073 | M25: Group Life
B26: تأمين ائتمان حياة جماعي | C26: 0 | D26: 250.83723 | E26: 80099.43439 | F26: 0 | G26: 355994.2092 | H26: 0 | I26: 124035.0407 | J26: 560379.5215 | K26: 805.6075822 | L26: 561185.1291 | M26: Group Credit Life
B27: تأمين حياة فردي | C27: 4048.021007 | D27: 102141.944 | E27: 13172.67981 | F27: 5225.051741 | G27: 4404860.72 | H27: 21171.4181 | I27: 508048.8729 | J27: 5058668.707 | K27: 20552.24091 | L27: 5079220.948 | M27: Individual Life
B28: دفعات الحياة وتكوين الأموال | C28: 0 | D28: 0 | E28: 0 | F28: 0 | G28: 47698.20646 | H28: 0 | I28: 449.2812148 | J28: 48147.48767 | K28: 0 | L28: 48147.48767 | M28: Annuities & Fund Accumulation
B29: المجموع - تأمين الأشخاص وعمليات تكوين الأموال | C29: =C25+C26+C27+C28 -> 5118.400603 | D29: 127967.0334 | E29: 99006.41411 | F29: 6947.014956 | G29: 5445348.577 | H29: 25315.48808 | I29: 896432.5521 | J29: =C29+D29+E29+F29+G29+H29+I29 -> 6606135.48 | K29: =K25+K26+K27+K28 -> 102695.1578 | L29: 6708830.638 | M29: Total - Insurance of Persons & Fund Accumulation
B31: المجموع - كافة فروع التأمين | C31: =C21+C23+C29 -> 16481.02849 | D31: 2089306.054 | E31: 516134.5964 | F31: 229341.2639 | G31: 32584322.16 | H31: 176803.9685 | I31: 14795670.31 | J31: =J21+J23+J29 -> 50408059.38 | K31: =K21+K23+K29 -> 2969783.438 | L31: 53377842.82 | M31: TOTAL - All Types of Business Combined
G88: ` | H88: ` | I88: `

Sheet 24B
B6: صافي الأقساط المكتتبة حسب الإمارة
B7: Net Written Premium by Emirate
B8: (2023)
B11: جدول رقم 24B | M11: TABLE 24B
B12: بالألف درهم | M12: AED in 000's
B13: فروع التأمين | C13: أم القيوين | D13: الشارقة | E13: رأس الخيمة | F13: الفجيرة | G13: دبي | H13: عجمان | I13: أبو ظبي | J13: داخل الدولة | K13: خارج الدولة | L13: جميع المواقع | M13: Line of Business
C14: Umm Al Quwain | D14: Sharjah | E14: Ras Al Khaimah | F14: Fujairah | G14: Dubai | H14: Ajman | I14: Abu Dhabi | J14: Within UAE | K14: Outside UAE | L14: All Locations
B15: تأمين الحريق | C15: -1283.080331 | D15: 15305.8491 | E15: 5116.388691 | F15: -22575.15799 | G15: 625797.2385 | H15: 2573.680062 | I15: -90968.47157 | J15: =C15+D15+E15+F15+G15+H15+I15 -> 533966.4465 | K15: 420495.2252 | L15: =J15+K15 -> 954461.6716 | M15: Fire
B16: التأمين البحري والطيران | C16: 39.030011 | D16: 15769.92508 | E16: 1035.704937 | F16: 4256.50904 | G16: 286589.2571 | H16: 1848.020584 | I16: -11721.24333 | J16: 297817.2035 | K16: 204617.0683 | L16: =J16+K16 -> 502434.2718 | M16: Marine & Aviation
B17: تأمين السيارات والمركبات الأخرى | C17: 688.3197509 | D17: 279025.3349 | E17: 169885.8037 | F17: 82679.05927 | G17: 2899611.041 | H17: 8742.952812 | I17: 971796.6731 | J17: 4412429.184 | K17: 326826.735 | L17: 4739255.919 | M17: Motor & Transportation
B18: التأمين الهندسي والانشاءات والطاقة | C18: -34.86601889 | D18: 5403.458181 | E18: 2711.278245 | F18: 1871.441711 | G18: 335306.0934 | H18: 878.0884228 | I18: -288826.3584 | J18: 57309.13559 | K18: 582835.7143 | L18: 640144.8499 | M18: Engineering, Construction & Energy
B19: أخرى | C19: 53.27820455 | D19: 16749.0022 | E19: 5048.903059 | F19: 2884.86442 | G19: 1056886.791 | H19: 3295.997951 | I19: 189095.674 | J19: 1274014.51 | K19: 51134.26986 | L19: 1325148.78 | M19: Other
B20: اعادة التأمين غير النسبية - المسؤوليات والممتلكات | C20: 0 | D20: 0 | E20: 0 | F20: 0 | G20: 0 | H20: 0 | I20: 1800.348215 | J20: 1800.348215 | K20: 0 | L20: 1800.348215 | M20: Reinsurance - Property & Liability
B21: المجموع - تأمين الممتلكات والمسؤوليات | C21: =C15+C16+C17+C18+C19+C20 -> -537.3183837 | D21: 332253.5695 | E21: 183798.0786 | F21: 69116.71645 | G21: 5204190.42 | H21: 17338.73983 | I21: 771176.622 | J21: =J15+J16+J17+J18+J19+J20 -> 6577336.828 | K21: =K15+K16+K17+K18+K19+K20 -> 1585909.013 | L21: 8163245.841 | M21: Total - Property & Liability Insurance
B23: المجموع - تأمين صحي | C23: 5442.44535 | D23: 525407.4992 | E23: 91505.939 | F23: 22000.7362 | G23: 8671272.067 | H23: 56941.44267 | I23: 6749264.866 | J23: =C23+D23+E23+F23+G23+H23+I23 -> 16121834.99 | K23: -934326.3563 | L23: =J23+K23 -> 15187508.64 | M23: Total - Health Insurance
B25: تأمين حياة جماعي | C25: 351.1233689 | D25: 6359.418998 | E25: 2141.465917 | F25: 723.2831974 | G25: 205916.412 | H25: -6.404687381 | I25: 70843.25967 | J25: =C25+D25+E25+F25+G25+H25+I25 -> 286328.5584 | K25: 78603.80151 | L25: =J25+K25 -> 364932.3599 | M25: Group Life
B26: تأمين ائتمان حياة جماعي | C26: 0 | D26: 83.4107 | E26: 43230.99474 | F26: 0 | G26: 141142.3526 | H26: 0 | I26: 27855.6204 | J26: =C26+D26+E26+F26+G26+H26+I26 -> 212312.3784 | K26: -453.5105875 | L26: 211858.8678 | M26: Group Credit Life
B27: تأمين حياة فردي | C27: 4029.688474 | D27: 98453.78627 | E27: 12959.10951 | F27: 5172.685074 | G27: 4148111.086 | H27: 21033.65079 | I27: 497638.028 | J27: =C27+D27+E27+F27+G27+H27+I27 -> 4787398.034 | K27: 13883.96515 | L27: 4801281.999 | M27: Individual Life
B28: دفعات الحياة وتكوين الأموال | C28: 0 | D28: 0 | E28: 0 | F28: 0 | G28: 47629.35426 | H28: 0 | I28: 427.0305055 | J28: =C28+D28+E28+F28+G28+H28+I28 -> 48056.38477 | K28: 0 | L28: 48056.38477 | M28: Annuities & Fund Accumulation
B29: المجموع - تأمين الأشخاص وعمليات تكوين الأموال | C29: =C25+C26+C27+C28 -> 4380.811843 | D29: 104896.616 | E29: 58331.57017 | F29: 5895.968271 | G29: 4542799.205 | H29: 21027.2461 | I29: 596763.9386 | J29: =J25+J26+J27+J28 -> 5334095.356 | K29: =K25+K26+K27+K28 -> 92034.25607 | L29: =L25+L26+L27+L28 -> 5426129.612 | M29: Total - Insurance of Persons & Fund Accumulation
B31: المجموع - كافة فروع التأمين | C31: =C21+C23+C29 -> 9285.938809 | D31: 962557.6846 | E31: 333635.5878 | F31: 97013.42093 | G31: 18418261.69 | H31: 95307.42861 | I31: 8117205.426 | J31: =J21+J23+J29 -> 28033267.18 | K31: =K21+K23+K29 -> 743616.9124 | L31: 28776884.09 | M31: TOTAL - All Types of Business Combined

Sheet 25
B6: عدد وثائق التأمين حسب الإمارة
B7: Number of Policies by Emirate
B8: (2023)
B11: جدول رقم 25 | M11: TABLE 25
B13: فروع التأمين | C13: أم القيوين | D13: الشارقة | E13: رأس الخيمة | F13: الفجيرة | G13: دبي | H13: عجمان | I13: أبو ظبي | J13: داخل الدولة | K13: خارج الدولة | L13: جميع المواقع | M13: Line of Business
C14: Umm Al Quwain | D14: Sharjah | E14: Ras Al Khaimah | F14: Fujairah | G14: Dubai | H14: Ajman | I14: Abu Dhabi | J14: Within UAE | K14: Outside UAE | L14: All Locations
B15: تأمين الحريق | C15: 128 | D15: 6718.774481 | E15: 1486.326563 | F15: 1178 | G15: 102464.6686 | H15: 874.4 | I15: 28195.98699 | J15: =C15+D15+E15+F15+G15+H15+I15 -> 141046.1566 | K15: 56696.84336 | L15: =J15+K15 -> 197743 | M15: Fire
B16: التأمين البحري والطيران | C16: 7 | D16: 20257.68738 | E16: 533.3259979 | F16: 332 | G16: 195401.8907 | H16: 656.8 | I16: 21846.37322 | J16: 239035.0773 | K16: 33162.92269 | L16: 272198 | M16: Marine & Aviation
B17: تأمين السيارات والمركبات الأخرى | C17: 528 | D17: 252922.3691 | E17: 524390.9862 | F17: 76904 | G17: 2235796.039 | H17: 26545 | I17: 1022102.44 | J17: 4139188.835 | K17: 710301.1655 | L17: 4849490 | M17: Motor & Transportation
B18: التأمين الهندسي والانشاءات والطاقة | C18: 4 | D18: 2334.079889 | E18: 911.3642252 | F18: 605 | G18: 27484.60681 | H18: 263.2 | I18: 14487.93273 | J18: 46090.18365 | K18: 21134.81635 | L18: 67225 | M18: Engineering, Construction & Energy
B19: أخرى | C19: 1635.254942 | D19: 351549.9119 | E19: 490945.1316 | F19: 76716.14246 | G19: 5869415.022 | H19: 35401.36337 | I19: 1585094.892 | J19: 8410757.719 | K19: 135026.392 | L19: 8545784.111 | M19: Other
B20: اعادة التأمين غير النسبية - المسؤوليات والممتلكات | C20: 0 | D20: 0 | E20: 0 | F20: 0 | G20: 4 | H20: 0 | I20: 1194 | J20: 1198 | K20: 0 | L20: 1198 | M20: Reinsurance - Property & Liability
B21: المجموع - تأمين الممتلكات والمسؤوليات | C21: =C15+C16+C17+C18+C19+C20 -> 2302.254942 | D21: =D15+D16+D17+D18+D19+D20 -> 633782.8228 | E21: =E15+E16+E17+E18+E19+E20 -> 1018267.135 | F21: =F15+F16+F17+F18+F19+F20 -> 155735.1425 | G21: =G15+G16+G17+G18+G19+G20 -> 8430566.228 | H21: =H15+H16+H17+H18+H19+H20 -> 63740.76337 | I21: =I15+I16+I17+I18+I19+I20 -> 2672921.625 | J21: =J15+J16+J17+J18+J19+J20 -> 12977315.97 | K21: =K15+K16+K17+K18+K19+K20 -> 956322.1398 | L21: =L15+L16+L17+L18+L19+L20 -> 13933638.11 | M21: Total - Property & Liability Insurance
B23: المجموع - تأمين صحي | C23: 819 | D23: 73197.41206 | E23: 11710.39502 | F23: 3546.021552 | G23: 686226.0515 | H23: 6451.6 | I23: 575097.3929 | J23: =C23+D23+E23+F23+G23+H23+I23 -> 1357047.873 | K23: 49805.12697 | L23: =J23+K23 -> 1406853 | M23: Total - Health Insurance
B25: تأمين حياة جماعي | C25: 13 | D25: 1664.037096 | E25: 110.0078634 | F25: 69 | G25: 8709.057939 | H25: 88.63261675 | I25: 1780.292296 | J25: =C25+D25+E25+F25+G25+H25+I25 -> 12434.02781 | K25: 203.9721888 | L25: =J25+K25 -> 12638 | M25: Group Life
B26: تأمين ائتمان حياة جماعي | C26: 0 | D26: 98.51397039 | E26: 42.02722015 | F26: 0 | G26: 1072.123442 | H26: 0 | I26: 240.8945967 | J26: 1453.559229 | K26: 25.44077054 | L26: =J26+K26 -> 1479 | M26: Group Credit Life
B27: تأمين حياة فردي | C27: 245 | D27: 7533.177213 | E27: 859.7048587 | F27: 349 | G27: 245077.6317 | H27: 1357 | I27: 30299.81722 | J27: 285721.331 | K27: 1954.668983 | L27: =J27+K27 -> 287676 | M27: Individual Life
B28: دفعات الحياة وتكوين الأموال | C28: 0 | D28: 0 | E28: 0 | F28: 0 | G28: 737 | H28: 0 | I28: 14 | J28: 751 | K28: 0 | L28: =J28+K28 -> 751 | M28: Annuities & Fund Accumulation
B29: المجموع - تأمين الأشخاص وعمليات تكوين الأموال | C29: =C25+C26+C27+C28 -> 258 | D29: =D25+D26+D27+D28 -> 9295.728279 | E29: =E25+E26+E27+E28 -> 1011.739942 | F29: =F25+F26+F27+F28 -> 418 | G29: =G25+G26+G27+G28 -> 255595.8131 | H29: =H25+H26+H27+H28 -> 1445.632617 | I29: =I25+I26+I27+I28 -> 32335.00412 | J29: =J25+J26+J27+J28 -> 300359.9181 | K29: =K25+K26+K27+K28 -> 2184.081942 | L29: =L25+L26+L27+L28 -> 302544 | M29: Total - Insurance of Persons & Fund Accumulation
B31: المجموع - كافة فروع التأمين | C31: =C21+C23+C29 -> 3379.254942 | D31: =D21+D23+D29 -> 716275.9631 | E31: 1030989.27 | F31: 159699.164 | G31: 9372388.092 | H31: 71637.99598 | I31: 3280354.022 | J31: 14634723.76 | K31: 1008311.349 | L31: 15643035.11 | M31: TOTAL - All Types of Business Combined

Sheet 26A
B6: إجمالي الأقساط غير المكتسبة حسب الإمارة
B7: Gross Unearned Premium Reserve by Emirate
B8: (2023)
B11: جدول رقم 26A | M11: TABLE 26A
B12: بالألف درهم | M12: AED in 000's
B13: فروع التأمين | C13: أم القيوين | D13: الشارقة | E13: رأس الخيمة | F13: الفجيرة | G13: دبي | H13: عجمان | I13: أبو ظبي | J13: داخل الدولة | K13: خارج الدولة | L13: جميع المواقع | M13: Line of Business
C14: Umm Al Quwain | D14: Sharjah | E14: Ras Al Khaimah | F14: Fujairah | G14: Dubai | H14: Ajman | I14: Abu Dhabi | J14: Within UAE | K14: Outside UAE | L14: All Locations
B15: تأمين الحريق | C15: 331.2220511 | D15: 36671.44114 | E15: 15050.11166 | F15: 6587.040144 | G15: 811830.3745 | H15: 3431.243706 | I15: 276633.6575 | J15: =C15+D15+E15+F15+G15+H15+I15 -> 1150535.091 | K15: 373786.8837 | L15: =J15+K15 -> 1524321.974 | M15: Fire
B16: التأمين البحري والطيران | C16: 26.018028 | D16: 26696.89749 | E16: 3371.315988 | F16: 2463.156469 | G16: 473240.4533 | H16: 1608.638129 | I16: 214722.1931 | J16: 722128.6725 | K16: 121589.3982 | L16: 843718.0708 | M16: Marine & Aviation
B17: تأمين السيارات والمركبات الأخرى | C17: 395.14842 | D17: 124350.5108 | E17: 110547.8005 | F17: 46661.07708 | G17: 1962518.953 | H17: 13807.7733 | I17: 654927.0135 | J17: 2913208.277 | K17: 151166.9802 | L17: 3064375.257 | M17: Motor & Transportation
B18: التأمين الهندسي والانشاءات والطاقة | C18: 33.68525978 | D18: 18368.66537 | E18: 7078.439386 | F18: 63003.82625 | G18: 597715.3746 | H18: 2442.512059 | I18: 550276.0193 | J18: 1238918.522 | K18: 540550.4301 | L18: 1779468.952 | M18: Engineering, Construction & Energy
B19: أخرى | C19: 65.10125573 | D19: 30925.78899 | E19: 11607.74872 | F19: 1995.184878 | G19: 2017510.153 | H19: 6179.05728 | I19: 447574.9495 | J19: 2515857.983 | K19: 78882.64065 | L19: 2594740.624 | M19: Other
B20: اعادة التأمين غير النسبية - المسؤوليات والممتلكات | C20: 0 | D20: 0 | E20: 0 | F20: 0 | G20: 0 | H20: 0 | I20: 2832.819799 | J20: 2832.819799 | K20: 0 | L20: 2832.819799 | M20: Reinsurance - Property & Liability
B21: المجموع - تأمين الممتلكات والمسؤوليات | C21: =C15+C16+C17+C18+C19+C20 -> 851.1750146 | D21: 237013.3038 | E21: 147655.4162 | F21: 120710.2848 | G21: 5862815.308 | H21: 27469.22447 | I21: 2146966.653 | J21: 8543481.365 | K21: 1265976.333 | L21: 9809457.698 | M21: Total - Property & Liability Insurance
B23: المجموع - تأمين صحي | C23: 766.0294087 | D23: 221800.5883 | E23: 40134.10075 | F23: 12247.09284 | G23: 5278680.517 | H23: 14971.437 | I23: 2793897.9 | J23: =C23+D23+E23+F23+G23+H23+I23 -> 8362497.665 | K23: 99885.16252 | L23: =J23+K23 -> 8462382.828 | M23: Total - Health Insurance
B25: تأمين حياة جماعي | C25: 189.2135682 | D25: 7919.112086 | E25: 1621.784666 | F25: 236.0566896 | G25: 131051.0571 | H25: 1262.858497 | I25: 68351.0781 | J25: =C25+D25+E25+F25+G25+H25+I25 -> 210631.1607 | K25: 19760.42035 | L25: =J25+K25 -> 230391.5811 | M25: Group Life
B26: تأمين ائتمان حياة جماعي | C26: 0 | D26: 0 | E26: 0 | F26: 0 | G26: 18962.17653 | H26: 0 | I26: 0 | J26: 18962.17653 | K26: 2805.80177 | L26: 21767.9783 | M26: Group Credit Life
B27: تأمين حياة فردي | C27: 0.2001857704 | D27: 195.0998584 | E27: 3.723314121 | F27: 0.3491061191 | G27: 415564.7369 | H27: 0.820035688 | I27: 658.7483277 | J27: 416423.6778 | K27: 28040.344 | L27: 444464.0218 | M27: Individual Life
B28: دفعات الحياة وتكوين الأموال | C28: 0 | D28: 0 | E28: 0 | F28: 0 | G28: 0 | H28: 0 | I28: 0 | J28: 0 | K28: 0 | L28: 0 | M28: Annuities & Fund Accumulation
B29: المجموع - تأمين الأشخاص وعمليات تكوين الأموال | C29: =C25+C26+C27+C28 -> 189.413754 | D29: 8114.211944 | E29: 1625.507981 | F29: 236.4057957 | G29: 565577.9706 | H29: 1263.678533 | I29: 69009.82643 | J29: 646017.015 | K29: 50606.56612 | L29: 696623.5811 | M29: Total - Insurance of Persons & Fund Accumulation
B31: المجموع - كافة فروع التأمين | C31: =C21+C23+C29 -> 1806.618177 | D31: 466928.104 | E31: 189415.0249 | F31: 133193.7835 | G31: 11707073.8 | H31: 43704.34001 | I31: 5009874.379 | J31: 17551996.05 | K31: 1416468.061 | L31: 18968464.11 | M31: TOTAL - All Types of Business Combined

Sheet 26B
B6: صافي الأقساط غير المكتسبة حسب الإمارة
B7: Net Unearned Premium Reserve by Emirate
B8: (2023)
B11: جدول رقم 26B | M11: TABLE 26B
B12: بالألف درهم | M12: AED in 000's
B13: فروع التأمين | C13: أم القيوين | D13: الشارقة | E13: رأس الخيمة | F13: الفجيرة | G13: دبي | H13: عجمان | I13: أبو ظبي | J13: داخل الدولة | K13: خارج الدولة | L13: جميع المواقع | M13: Line of Business
C14: Umm Al Quwain | D14: Sharjah | E14: Ras Al Khaimah | F14: Fujairah | G14: Dubai | H14: Ajman | I14: Abu Dhabi | J14: Within UAE | K14: Outside UAE | L14: All Locations
B15: تأمين الحريق | C15: 312.7417994 | D15: 7734.072228 | E15: 3938.7132 | F15: -36381.79867 | G15: 210493.5746 | H15: -603.744644 | I15: -60807.76037 | J15: =C15+D15+E15+F15+G15+H15+I15 -> 124685.7982 | K15: 225133.9284 | L15: =J15+K15 -> 349819.7266 | M15: Fire
B16: التأمين البحري والطيران | C16: 7.805408 | D16: 11778.66623 | E16: 632.081521 | F16: 1257.942467 | G16: 101360.3066 | H16: 980.5604576 | I16: -36228.97091 | J16: 79788.39174 | K16: 97172.62654 | L16: 176961.0183 | M16: Marine & Aviation
B17: تأمين السيارات والمركبات الأخرى | C17: -149.0092603 | D17: 101562.4013 | E17: 88170.2663 | F17: 42300.34153 | G17: 1620342.087 | H17: 11871.30478 | I17: 531372.3597 | J17: 2395469.751 | K17: 148871.0001 | L17: 2544340.752 | M17: Motor & Transportation
B18: التأمين الهندسي والانشاءات والطاقة | C18: 13.83568444 | D18: 3470.897151 | E18: 1718.629033 | F18: -65654.05848 | G18: 210523.8613 | H18: 488.1220788 | I18: -165416.1804 | J18: -14854.89359 | K18: 427431.2683 | L18: 412576.3748 | M18: Engineering, Construction & Energy
B19: أخرى | C19: -51.31706691 | D19: 7034.367356 | E19: 2213.121035 | F19: 1305.622838 | G19: 455479.0733 | H19: 1653.184094 | I19: 100560.5587 | J19: 568194.6103 | K19: 49987.55086 | L19: 618182.1611 | M19: Other
B20: اعادة التأمين غير النسبية - المسؤوليات والممتلكات | C20: 0 | D20: 0 | E20: 0 | F20: 0 | G20: 0 | H20: 0 | I20: 1360.324566 | J20: 1360.324566 | K20: 0 | L20: 1360.324566 | M20: Reinsurance - Property & Liability
B21: المجموع - تأمين الممتلكات والمسؤوليات | C21: =C15+C16+C17+C18+C19+C20 -> 134.0565646 | D21: =D15+D16+D17+D18+D19+D20 -> 131580.4042 | E21: 96672.81108 | F21: -57171.95031 | G21: 2598198.903 | H21: 14389.42677 | I21: 370840.3313 | J21: 3154643.983 | K21: 948596.3743 | L21: 4103240.357 | M21: Total - Property & Liability Insurance
B23: المجموع - تأمين صحي | C23: 634.0907588 | D23: 130757.741 | E23: 31861.22317 | F23: 5369.303273 | G23: 2918500.516 | H23: 10619.31324 | I23: 2137837.365 | J23: =C23+D23+E23+F23+G23+H23+I23 -> 5235579.553 | K23: -98597.77748 | L23: =J23+K23 -> 5136981.776 | M23: Total - Health Insurance
B25: تأمين حياة جماعي | C25: 126.9266432 | D25: 2554.389075 | E25: 820.9209547 | F25: 133.1933192 | G25: 47811.31393 | H25: 610.6709184 | I25: 35183.48514 | J25: =C25+D25+E25+F25+G25+H25+I25 -> 87240.89998 | K25: 17066.39501 | L25: =J25+K25 -> 104307.295 | M25: Group Life
B26: تأمين ائتمان حياة جماعي | C26: 0 | D26: 0 | E26: 0 | F26: 0 | G26: 5215.532563 | H26: 0 | I26: 0 | J26: 5215.532563 | K26: 2799.64282 | L26: 8015.175383 | M26: Group Credit Life
B27: تأمين حياة فردي | C27: 0.09985593389 | D27: 165.9237144 | E27: 1.857249933 | F27: 0.1741398376 | G27: 412627.8627 | H27: 0.4090472029 | I27: 379.4476561 | J27: 413175.7744 | K27: 28040.34431 | L27: 441216.1187 | M27: Individual Life
B28: دفعات الحياة وتكوين الأموال | C28: 0 | D28: 0 | E28: 0 | F28: 0 | G28: 0 | H28: 0 | I28: 0 | J28: 0 | K28: 0 | L28: 0 | M28: Annuities & Fund Accumulation
B29: المجموع - تأمين الأشخاص وعمليات تكوين الأموال | C29: =C25+C26+C27+C28 -> 127.0264991 | D29: =D25+D26+D27+D28 -> 2720.312789 | E29: 822.7782046 | F29: 133.3674591 | G29: 465654.7092 | H29: 611.0799656 | I29: 35562.93279 | J29: 505632.2069 | K29: 47906.38214 | L29: 553538.589 | M29: Total - Insurance of Persons & Fund Accumulation
B31: المجموع - كافة فروع التأمين | C31: =C21+C23+C29 -> 895.1738225 | D31: =D21+D23+D29 -> 265058.4581 | E31: 129356.8125 | F31: -51669.27958 | G31: 5982354.128 | H31: 25619.81997 | I31: 2544240.629 | J31: 8895855.743 | K31: 897904.9789 | L31: 9793760.722 | M31: TOTAL - All Types of Business Combined

Sheet 27A
B6: إجمالي المطالبات المدفوعة حسب الإمارة
B7: Gross Claims Paid by Emirate
B8: (2023)
B11: جدول رقم 27A | M11: TABLE 27A
B12: بالألف درهم | M12: AED in 000's
B13: فروع التأمين | C13: أم القيوين | D13: الشارقة | E13: رأس الخيمة | F13: الفجيرة | G13: دبي | H13: عجمان | I13: أبو ظبي | J13: داخل الدولة | K13: خارج الدولة | L13: جميع المواقع | M13: Line of Business
C14: Umm Al Quwain | D14: Sharjah | E14: Ras Al Khaimah | F14: Fujairah | G14: Dubai | H14: Ajman | I14: Abu Dhabi | J14: Within UAE | K14: Outside UAE | L14: All Locations
B15: تأمين الحريق | C15: -22887.56019 | D15: 23716.42575 | E15: 2205.134061 | F15: 30195.22808 | G15: 854514.2895 | H15: 2970.359021 | I15: 246894.9862 | J15: =C15+D15+E15+F15+G15+H15+I15 -> 1137608.862 | K15: 275789.2491 | L15: =J15+K15 -> 1413398.112 | M15: Fire
B16: التأمين البحري والطيران | C16: 1.01003 | D16: 24949.09389 | E16: 293.6913681 | F16: 2902.22832 | G16: 242893.3199 | H16: 195.6769597 | I16: 113855.3304 | J16: 385090.3508 | K16: 103282.8287 | L16: 488373.1795 | M16: Marine & Aviation
B17: تأمين السيارات والمركبات الأخرى | C17: 113.24179 | D17: 330357.5168 | E17: 114306.4444 | F17: 44647.35373 | G17: 2388048.806 | H17: 26232.66357 | I17: 879817.5775 | J17: 3783523.604 | K17: 218584.5288 | L17: 4002108.133 | M17: Motor & Transportation
B18: التأمين الهندسي والانشاءات والطاقة | C18: 3.772534782 | D18: 14356.01073 | E18: 7156.841507 | F18: 7891.295065 | G18: 430954.7792 | H18: 77.02656641 | I18: 299021.0505 | J18: 759460.7761 | K18: 270111.2667 | L18: 1029572.043 | M18: Engineering, Construction & Energy
B19: أخرى | C19: 18.26838 | D19: 5646.386937 | E19: 1849.173094 | F19: 4859.7359 | G19: 388352.1362 | H19: 3426.207643 | I19: 124853.3893 | J19: 529005.2975 | K19: 53167.11451 | L19: 582172.412 | M19: Other
B20: اعادة التأمين غير النسبية - المسؤوليات والممتلكات | C20: 0 | D20: 0 | E20: 0 | F20: 0 | G20: 1090.28 | H20: 0 | I20: 205.982 | J20: 1296.262 | K20: 0 | L20: 1296.262 | M20: Reinsurance - Property & Liability
B21: المجموع - تأمين الممتلكات والمسؤوليات | C21: =C15+C16+C17+C18+C19+C20 -> -22751.26746 | D21: 399025.4341 | E21: 125811.2845 | F21: 90495.84109 | G21: 4305853.611 | H21: 32901.93376 | I21: 1664648.316 | J21: 6595985.153 | K21: 920934.9879 | L21: 7516920.141 | M21: Total - Property & Liability Insurance
B23: المجموع - تأمين صحي | C23: 7057.142811 | D23: 1027462.466 | E23: 81080.67317 | F23: 30448.27611 | G23: 11579994.7 | H23: 35467.88068 | I23: 7001819.468 | J23: =C23+D23+E23+F23+G23+H23+I23 -> 19763330.6 | K23: 253938.484 | L23: =J23+K23 -> 20017269.09 | M23: Total - Health Insurance
B25: تأمين حياة جماعي | C25: 437.5482399 | D25: 13143.51623 | E25: 3422.035333 | F25: 1000.267213 | G25: 282355.6279 | H25: 2043.333478 | I25: 124001.4679 | J25: =C25+D25+E25+F25+G25+H25+I25 -> 426403.7963 | K25: 77663.86603 | L25: =J25+K25 -> 504067.6624 | M25: Group Life
B26: تأمين ائتمان حياة جماعي | C26: 0 | D26: 864.75154 | E26: 24975.87326 | F26: 0 | G26: 120053.7135 | H26: 0 | I26: 83638.56816 | J26: 229532.9065 | K26: 9727.142001 | L26: 239260.0485 | M26: Group Credit Life
B27: تأمين حياة فردي | C27: 3558.085683 | D27: 78461.52665 | E27: 19191.55106 | F27: 4621.88564 | G27: 2776678.296 | H27: 22612.82255 | I27: 284310.501 | J27: 3189434.669 | K27: 11793.72626 | L27: 3201228.395 | M27: Individual Life
B28: دفعات الحياة وتكوين الأموال | C28: 0 | D28: 0 | E28: 0 | F28: 0 | G28: 138297.392 | H28: 0 | I28: 404.1943456 | J28: 138701.5863 | K28: -0.0005684000207 | L28: 138701.5858 | M28: Annuities & Fund Accumulation
B29: المجموع - تأمين الأشخاص وعمليات تكوين الأموال | C29: =C25+C26+C27+C28 -> 3995.633922 | D29: 92469.79442 | E29: 47589.45965 | F29: 5622.152854 | G29: 3317385.03 | H29: 24656.15603 | I29: 492354.7314 | J29: 3984072.958 | K29: 99184.73373 | L29: 4083257.692 | M29: Total - Insurance of Persons & Fund Accumulation
B31: المجموع - كافة فروع التأمين | C31: =C21+C23+C29 -> -11698.49072 | D31: 1518957.694 | E31: 254481.4173 | F31: 126566.2701 | G31: 19203233.34 | H31: 93025.97047 | I31: 9158822.516 | J31: 30343388.71 | K31: 1274058.206 | L31: 31617446.92 | M31: TOTAL - All Types of Business Combined

Sheet 27B
B6: صافي المطالبات المدفوعة حسب الإمارة
B7: Net Claims Paid by Emirate
B8: (2023)
B11: جدول رقم 27B | M11: TABLE 27B
B12: بالألف درهم | M12: AED in 000's
B13: فروع التأمين | C13: أم القيوين | D13: الشارقة | E13: رأس الخيمة | F13: الفجيرة | G13: دبي | H13: عجمان | I13: أبو ظبي | J13: داخل الدولة | K13: خارج الدولة | L13: جميع المواقع | M13: Line of Business
C14: Umm Al Quwain | D14: Sharjah | E14: Ras Al Khaimah | F14: Fujairah | G14: Dubai | H14: Ajman | I14: Abu Dhabi | J14: Within UAE | K14: Outside UAE | L14: All Locations
B15: تأمين الحريق | C15: -1612.333637 | D15: 7614.491033 | E15: 810.5029583 | F15: 1920.605712 | G15: 221367.3817 | H15: 501.8243906 | I15: 22754.5965 | J15: =C15+D15+E15+F15+G15+H15+I15 -> 253357.0687 | K15: 60462.99853 | L15: =J15+K15 -> 313820.0672 | M15: Fire
B16: التأمين البحري والطيران | C16: 0.30302 | D16: 3925.316515 | E16: 203.7917649 | F16: 306.8136 | G16: 63690.72866 | H16: 38.27295507 | I16: -106.3060941 | J16: 68058.92042 | K16: 53718.9135 | L16: 121777.8339 | M16: Marine & Aviation
B17: تأمين السيارات والمركبات الأخرى | C17: 110.4975885 | D17: 232421.8717 | E17: 84668.90202 | F17: 36880.33032 | G17: 1884896.587 | H17: 740.4927571 | I17: 562189.1959 | J17: 2801907.877 | K17: 212514.5385 | L17: 3014422.416 | M17: Motor & Transportation
B18: التأمين الهندسي والانشاءات والطاقة | C18: -8.799089802 | D18: 3675.054006 | E18: 850.5740356 | F18: 1373.073244 | G18: 153144.2481 | H18: 17.38853414 | I18: 6700.63364 | J18: 165752.1725 | K18: 74778.56983 | L18: 240530.7423 | M18: Engineering, Construction & Energy
B19: أخرى | C19: 8.757785 | D19: 3386.368085 | E19: 289.5506577 | F19: 1441.526063 | G19: 98587.98817 | H19: 797.0772138 | I19: 20271.6135 | J19: 124782.8815 | K19: 20519.86066 | L19: 145302.7421 | M19: Other
B20: اعادة التأمين غير النسبية - المسؤوليات والممتلكات | C20: 0 | D20: 0 | E20: 0 | F20: 0 | G20: 1088.905 | H20: 0 | I20: -740.4295 | J20: 348.4755 | K20: 0 | L20: 348.4755 | M20: Reinsurance - Property & Liability
B21: المجموع - تأمين الممتلكات والمسؤوليات | C21: =C15+C16+C17+C18+C19+C20 -> -1501.574334 | D21: 251023.1013 | E21: 86823.32143 | F21: 41922.34894 | G21: 2422775.839 | H21: 2095.055851 | I21: 611069.3039 | J21: 3414207.396 | K21: 421994.881 | L21: 3836202.277 | M21: Total - Property & Liability Insurance
B23: المجموع - تأمين صحي | C23: 3839.966536 | D23: 374100.107 | E23: 51927.7193 | F23: 17176.89548 | G23: 6356804.098 | H23: 22679.73683 | I23: 5272246.41 | J23: =C23+D23+E23+F23+G23+H23+I23 -> 12098774.93 | K23: -613221.3358 | L23: =J23+K23 -> 11485553.6 | M23: Total - Health Insurance
B25: تأمين حياة جماعي | C25: 125.6742737 | D25: 2433.839798 | E25: 1020.159182 | F25: 480.4985999 | G25: 58644.62589 | H25: 29.94195589 | I25: 55166.70501 | J25: =C25+D25+E25+F25+G25+H25+I25 -> 117901.4447 | K25: 31793.00216 | L25: =J25+K25 -> 149694.4469 | M25: Group Life
B26: تأمين ائتمان حياة جماعي | C26: 0 | D26: 172.950306 | E26: 2493.632189 | F26: 0 | G26: 15759.96613 | H26: 0 | I26: 5501.986485 | J26: 23928.53511 | K26: 2302.063404 | L26: 26230.59852 | M26: Group Credit Life
B27: تأمين حياة فردي | C27: 3555.778403 | D27: 77024.30512 | E27: 18475.80224 | F27: 4619.40705 | G27: 2327072.95 | H27: 22587.03064 | I27: 279754.4507 | J27: 2733089.724 | K27: 5412.773916 | L27: 2738502.498 | M27: Individual Life
B28: دفعات الحياة وتكوين الأموال | C28: 0 | D28: 0 | E28: 0 | F28: 0 | G28: 138297.392 | H28: 0 | I28: 404.1943456 | J28: 138701.5863 | K28: -0.0005684000207 | L28: 138701.5858 | M28: Annuities & Fund Accumulation
B29: المجموع - تأمين الأشخاص وعمليات تكوين الأموال | C29: =C25+C26+C27+C28 -> 3681.452677 | D29: 79631.09522 | E29: 21989.59361 | F29: 5099.905649 | G29: 2539774.934 | H29: 22616.9726 | I29: 340827.3365 | J29: 3013621.29 | K29: 39507.83892 | L29: 3053129.129 | M29: Total - Insurance of Persons & Fund Accumulation
B31: المجموع - كافة فروع التأمين | C31: =C21+C23+C29 -> 6019.844879 | D31: 704754.3035 | E31: 160740.6343 | F31: 64199.15006 | G31: 11319354.87 | H31: 47391.76528 | I31: 6224143.051 | J31: 18526603.62 | K31: -151718.6159 | L31: 18374885 | M31: TOTAL - All Types of Business Combined

Sheet 28A
B6: البيانات بالإجمالي لإمارة دبي
B7: Gross Results for Dubai
B8: (2023)
B11: جدول رقم 28A | H11: TABLE 28A
B12: بالألف درهم | H12: AED in 000's
B13: فروع التأمين | C13: الأقساط المكتتبة | D13: أعداد الوثائق | E13: مخصص الأقساط غير المكتسبة | F13: المطالبات المدفوعة | G13: مخصص المطالبات تحت التسوية | H13: Line of Business
C14: Written Premium | D14: Number of Policies | E14: Unearned Premium Reserve | F14: Claims Paid | G14: Outstanding Claim Reserves
B15: تأمين الحريق | C15: 2487485.713 | D15: 102464.6686 | E15: 811830.3745 | F15: 854514.2895 | G15: 2370264.182 | H15: Fire
B16: التأمين البحري والطيران | C16: 1223552.928 | D16: 195401.8907 | E16: 473240.4533 | F16: 242893.3199 | G16: 1154412.698 | H16: Marine & Aviation
B17: تأمين السيارات والمركبات الأخرى | C17: 3471837.464 | D17: 2235796.039 | E17: 1962518.953 | F17: 2388048.806 | G17: 1365306.96 | H17: Motor & Transportation
B18: التأمين الهندسي والانشاءات والطاقة | C18: 1096832.13 | D18: 27484.60681 | E18: 597715.3746 | F18: 430954.7792 | G18: 2218238.028 | H18: Engineering, Construction & Energy
B19: أخرى | C19: 3595010.761 | D19: 5869415.022 | E19: 2017510.153 | F19: 388352.1362 | G19: 1219903.214 | H19: Other
B20: اعادة التأمين غير النسبية - المسؤوليات والممتلكات | C20: 0 | D20: 4 | E20: 0 | F20: 1090.28 | G20: 0 | H20: Reinsurance - Property & Liability
B21: المجموع - تأمين الممتلكات والمسؤوليات | C21: =C15+C16+C17+C18+C19+C20 -> 11874719 | D21: =D15+D16+D17+D18+D19+D20 -> 8430566.228 | E21: 5862815.308 | F21: 4305853.611 | G21: 8328125.082 | H21: Total - Property & Liability Insurance
B23: المجموع - تأمين صحي | C23: 15264254.59 | D23: 686226.0515 | E23: 5278680.517 | F23: 11579994.7 | G23: 2703568.216 | H23: Total - Health Insurance
B25: تأمين حياة جماعي | C25: 636795.4414 | D25: 8709.057939 | E25: 131051.0571 | F25: 282355.6279 | G25: 255734.1086 | H25: Group Life
B26: تأمين ائتمان حياة جماعي | C26: 355994.2092 | D26: 1072.123442 | E26: 18962.17653 | F26: 120053.7135 | G26: 251887.5098 | H26: Group Credit Life
B27: تأمين حياة فردي | C27: 4404860.72 | D27: 245077.6317 | E27: 415564.7369 | F27: 2776678.296 | G27: 31888980.62 | H27: Individual Life
B28: دفعات الحياة وتكوين الأموال | C28: 47698.20646 | D28: 737 | E28: 0 | F28: 138297.392 | G28: 528141.5952 | H28: Annuities & Fund Accumulation
B29: المجموع - تأمين الأشخاص وعمليات تكوين الأموال | C29: =C25+C26+C27+C28 -> 5445348.577 | D29: =D25+D26+D27+D28 -> 255595.8131 | E29: 565577.9706 | F29: 3317385.03 | G29: 32924743.83 | H29: Total - Insurance of Persons & Fund Accumulation
B31: المجموع - كافة فروع التأمين | C31: =C21+C23+C29 -> 32584322.16 | D31: =D21+D23+D29 -> 9372388.092 | E31: =E21+E23+E29 -> 11707073.8 | F31: =F21+F23+F29 -> 19203233.34 | G31: =G21+G23+G29 -> 43956437.13 | H31: TOTAL - All Types of Business Combined

Sheet 28B
B6: البيانات بالصافي لإمارة دبي
B7: Net Results for Dubai
B8: (2023)
B11: جدول رقم 28B | H11: TABLE 28B
B12: بالألف درهم | H12: AED in 000's
B13: فروع التأمين | C13: الأقساط المكتتبة | D13: أعداد الوثائق | E13: مخصص الأقساط غير المكتسبة | F13: المطالبات المدفوعة | G13: مخصص المطالبات تحت التسوية | H13: Line of Business
C14: Written Premium | D14: Number of Policies | E14: Unearned Premium Reserve | F14: Claims Paid | G14: Outstanding Claim Reserves
B15: تأمين الحريق | C15: 625797.2385 | D15: 102464.6686 | E15: 210493.5746 | F15: 221367.3817 | G15: 553031.8398 | H15: Fire
B16: التأمين البحري والطيران | C16: 286589.2571 | D16: 195401.8907 | E16: 101360.3066 | F16: 63690.72866 | G16: 282617.6026 | H16: Marine & Aviation
B17: تأمين السيارات والمركبات الأخرى | C17: 2899611.041 | D17: 2235796.039 | E17: 1620342.087 | F17: 1884896.587 | G17: 981721.414 | H17: Motor & Transportation
B18: التأمين الهندسي والانشاءات والطاقة | C18: 335306.0934 | D18: 27484.60681 | E18: 210523.8613 | F18: 153144.2481 | G18: 630056.8457 | H18: Engineering, Construction & Energy
B19: أخرى | C19: 1056886.791 | D19: 5869415.022 | E19: 455479.0733 | F19: 98587.98817 | G19: 224834.7417 | H19: Other
B20: اعادة التأمين غير النسبية - المسؤوليات والممتلكات | C20: 0 | D20: 4 | E20: 0 | F20: 1088.905 | G20: 0 | H20: Reinsurance - Property & Liability
B21: المجموع - تأمين الممتلكات والمسؤوليات | C21: =C15+C16+C17+C18+C19+C20 -> 5204190.42 | D21: =D15+D16+D17+D18+D19+D20 -> 8430566.228 | E21: =E15+E16+E17+E18+E19+E20 -> 2598198.903 | F21: =F15+F16+F17+F18+F19+F20 -> 2422775.839 | G21: =G15+G16+G17+G18+G19+G20 -> 2672262.444 | H21: Total - Property & Liability Insurance
B23: المجموع - تأمين صحي | C23: 8671272.067 | D23: 686226.0515 | E23: 2918500.516 | F23: 6356804.098 | G23: 1511916.868 | H23: Total - Health Insurance
B25: تأمين حياة جماعي | C25: 205916.412 | D25: 8709.057939 | E25: 47811.31393 | F25: 58644.62589 | G25: 38094.05814 | H25: Group Life
B26: تأمين ائتمان حياة جماعي | C26: 141142.3526 | D26: 1072.123442 | E26: 5215.532563 | F26: 15759.96613 | G26: 38611.84004 | H26: Group Credit Life
B27: تأمين حياة فردي | C27: 4148111.086 | D27: 245077.6317 | E27: 412627.8627 | F27: 2327072.95 | G27: 30225095.55 | H27: Individual Life
B28: دفعات الحياة وتكوين الأموال | C28: 47629.35426 | D28: 737 | E28: 0 | F28: 138297.392 | G28: 528141.5952 | H28: Annuities & Fund Accumulation
B29: المجموع - تأمين الأشخاص وعمليات تكوين الأموال | C29: =C25+C26+C27+C28 -> 4542799.205 | D29: =D25+D26+D27+D28 -> 255595.8131 | E29: =E25+E26+E27+E28 -> 465654.7092 | F29: =F25+F26+F27+F28 -> 2539774.934 | G29: =G25+G26+G27+G28 -> 30829943.04 | H29: Total - Insurance of Persons & Fund Accumulation
B31: المجموع - كافة فروع التأمين | C31: =C21+C23+C29 -> 18418261.69 | D31: =D21+D23+D29 -> 9372388.092 | E31: =E21+E23+E29 -> 5982354.128 | F31: =F21+F23+F29 -> 11319354.87 | G31: =G21+G23+G29 -> 35014122.35 | H31: TOTAL - All Types of Business Combined

Sheet 29A
B6: البيانات بالإجمالي لإمارة أبو ظبي
B7: Gross Results for Abu Dhabi
B8: (2023)
B11: جدول رقم 29A | H11: TABLE 29A
B12: بالألف درهم | H12: AED in 000's
B13: فروع التأمين | C13: الأقساط المكتتبة | D13: أعداد الوثائق | E13: مخصص الأقساط غير المكتسبة | F13: المطالبات المدفوعة | G13: مخصص المطالبات تحت التسوية | H13: Line of Business
C14: Written Premium | D14: Number of Policies | E14: Unearned Premium Reserve | F14: Claims Paid | G14: Outstanding Claim Reserves
B15: تأمين الحريق | C15: 1086340.074 | D15: 28195.98699 | E15: 276633.6575 | F15: 246894.9862 | G15: 910247.0354 | H15: Fire
B16: التأمين البحري والطيران | C16: 579355.9148 | D16: 21846.37322 | E16: 214722.1931 | F16: 113855.3304 | G16: 708068.6133 | H16: Marine & Aviation
B17: تأمين السيارات والمركبات الأخرى | C17: 1234480.431 | D17: 1022102.44 | E17: 654927.0135 | F17: 879817.5775 | G17: 612588.823 | H17: Motor & Transportation
B18: التأمين الهندسي والانشاءات والطاقة | C18: 1299835.937 | D18: 14487.93273 | E18: 550276.0193 | F18: 299021.0505 | G18: 923352.6885 | H18: Engineering, Construction & Energy
B19: أخرى | C19: 936750.5485 | D19: 1585094.892 | E19: 447574.9495 | F19: 124853.3893 | G19: 588246.6403 | H19: Other
B20: اعادة التأمين غير النسبية - المسؤوليات والممتلكات | C20: 5989.4324 | D20: 1194 | E20: 2832.819799 | F20: 205.982 | G20: 7485.0427 | H20: Reinsurance - Property & Liability
B21: المجموع - تأمين الممتلكات والمسؤوليات | C21: =C15+C16+C17+C18+C19+C20 -> 5142752.337 | D21: =D15+D16+D17+D18+D19+D20 -> 2672921.625 | E21: 2146966.653 | F21: 1664648.316 | G21: 3749988.843 | H21: Total - Property & Liability Insurance
B23: المجموع - تأمين صحي | C23: 8756485.419 | D23: 575097.3929 | E23: 2793897.9 | F23: 7001819.468 | G23: 1947551.335 | H23: Total - Health Insurance
B25: تأمين حياة جماعي | C25: 263899.3573 | D25: 1780.292296 | E25: 68351.0781 | F25: 124001.4679 | G25: 148493.6693 | H25: Group Life
B26: تأمين ائتمان حياة جماعي | C26: 124035.0407 | D26: 240.8945967 | E26: 0 | F26: 83638.56816 | G26: 628613.9727 | H26: Group Credit Life
B27: تأمين حياة فردي | C27: 508048.8729 | D27: 30299.81722 | E27: 658.7483277 | F27: 284310.501 | G27: 1217615.227 | H27: Individual Life
B28: دفعات الحياة وتكوين الأموال | C28: 449.2812148 | D28: 14 | E28: 0 | F28: 404.1943456 | G28: 0 | H28: Annuities & Fund Accumulation
B29: المجموع - تأمين الأشخاص وعمليات تكوين الأموال | C29: =C25+C26+C27+C28 -> 896432.5521 | D29: =D25+D26+D27+D28 -> 32335.00412 | E29: =E25+E26+E27+E28 -> 69009.82643 | F29: =F25+F26+F27+F28 -> 492354.7314 | G29: =G25+G26+G27+G28 -> 1994722.869 | H29: Total - Insurance of Persons & Fund Accumulation
B31: المجموع - كافة فروع التأمين | C31: =C21+C23+C29 -> 14795670.31 | D31: =D21+D23+D29 -> 3280354.022 | E31: 5009874.379 | F31: 9158822.516 | G31: 7692263.047 | H31: TOTAL - All Types of Business Combined

Sheet 29B
B6: البيانات بالصافي لإمارة أبو ظبي
B7: Net Results for Abu Dhabi
B8: (2023)
B11: جدول رقم 29B | H11: TABLE 29B
B12: بالألف درهم | H12: AED in 000's
B13: فروع التأمين | C13: الأقساط المكتتبة | D13: أعداد الوثائق | E13: مخصص الأقساط غير المكتسبة | F13: المطالبات المدفوعة | G13: مخصص المطالبات تحت التسوية | H13: Line of Business
C14: Written Premium | D14: Number of Policies | E14: Unearned Premium Reserve | F14: Claims Paid | G14: Outstanding Claim Reserves
B15: تأمين الحريق | C15: -90968.47157 | D15: 28195.98699 | E15: -60807.76037 | F15: 22754.5965 | G15: -178073.463 | H15: Fire
B16: التأمين البحري والطيران | C16: -11721.24333 | D16: 21846.37322 | E16: -36228.97091 | F16: -106.3060941 | G16: -3413.584698 | H16: Marine & Aviation
B17: تأمين السيارات والمركبات الأخرى | C17: 971796.6731 | D17: 1022102.44 | E17: 531372.3597 | F17: 562189.1959 | G17: 397865.2396 | H17: Motor & Transportation
B18: التأمين الهندسي والانشاءات والطاقة | C18: -288826.3584 | D18: 14487.93273 | E18: -165416.1804 | F18: 6700.63364 | G18: -453749.5125 | H18: Engineering, Construction & Energy
B19: أخرى | C19: 189095.674 | D19: 1585094.892 | E19: 100560.5587 | F19: 20271.6135 | G19: 140414.9127 | H19: Other
B20: اعادة التأمين غير النسبية - المسؤوليات والممتلكات | C20: 1800.348215 | D20: 1194 | E20: 1360.324566 | F20: -740.4295 | G20: 1874.786949 | H20: Reinsurance - Property & Liability
B21: المجموع - تأمين الممتلكات والمسؤوليات | C21: =C15+C16+C17+C18+C19+C20 -> 771176.622 | D21: =D15+D16+D17+D18+D19+D20 -> 2672921.625 | E21: =E15+E16+E17+E18+E19+E20 -> 370840.3313 | F21: =F15+F16+F17+F18+F19+F20 -> 611069.3039 | G21: =G15+G16+G17+G18+G19+G20 -> -95081.62088 | H21: Total - Property & Liability Insurance
B23: المجموع - تأمين صحي | C23: 6749264.866 | D23: 575097.3929 | E23: 2137837.365 | F23: 5272246.41 | G23: 1304599.093 | H23: Total - Health Insurance
B25: تأمين حياة جماعي | C25: 70843.25967 | D25: 1780.292296 | E25: 35183.48514 | F25: 55166.70501 | G25: 39709.27262 | H25: Group Life
B26: تأمين ائتمان حياة جماعي | C26: 27855.6204 | D26: 240.8945967 | E26: 0 | F26: 5501.986485 | G26: 412305.1585 | H26: Group Credit Life
B27: تأمين حياة فردي | C27: 497638.028 | D27: 30299.81722 | E27: 379.4476561 | F27: 279754.4507 | G27: 1208410.326 | H27: Individual Life
B28: دفعات الحياة وتكوين الأموال | C28: 427.0305055 | D28: 14 | E28: 0 | F28: 404.1943456 | G28: 0 | H28: Annuities & Fund Accumulation
B29: المجموع - تأمين الأشخاص وعمليات تكوين الأموال | C29: =C25+C26+C27+C28 -> 596763.9386 | D29: =D25+D26+D27+D28 -> 32335.00412 | E29: =E25+E26+E27+E28 -> 35562.93279 | F29: =F25+F26+F27+F28 -> 340827.3365 | G29: =G25+G26+G27+G28 -> 1660424.757 | H29: Total - Insurance of Persons & Fund Accumulation
B31: المجموع - كافة فروع التأمين | C31: =C21+C23+C29 -> 8117205.426 | D31: =D21+D23+D29 -> 3280354.022 | E31: =E21+E23+E29 -> 2544240.629 | F31: =F21+F23+F29 -> 6224143.051 | G31: =G21+G23+G29 -> 2869942.23 | H31: TOTAL - All Types of Business Combined

Sheet 30A
B6: البيانات بالإجمالي لإمارة عجمان
B7: Gross Results for Ajman
B8: (2023)
B11: جدول رقم 30A | H11: TABLE 30A
B12: بالألف درهم | H12: AED in 000's
B13: فروع التأمين | C13: الأقساط المكتتبة | D13: أعداد الوثائق | E13: مخصص الأقساط غير المكتسبة | F13: المطالبات المدفوعة | G13: مخصص المطالبات تحت التسوية | H13: Line of Business
C14: Written Premium | D14: Number of Policies | E14: Unearned Premium Reserve | F14: Claims Paid | G14: Outstanding Claim Reserves
B15: تأمين الحريق | C15: 10191.46646 | D15: 874.4 | E15: 3431.243706 | F15: 2970.359021 | G15: 40599.87652 | H15: Fire
B16: التأمين البحري والطيران | C16: 5337.276001 | D16: 656.8 | E16: 1608.638129 | F16: 195.6769597 | G16: 744.7453253 | H16: Marine & Aviation
B17: تأمين السيارات والمركبات الأخرى | C17: 45412.12619 | D17: 26545 | E17: 13807.7733 | F17: 26232.66357 | G17: 11611.54547 | H17: Motor & Transportation
B18: التأمين الهندسي والانشاءات والطاقة | C18: 5385.962376 | D18: 263.2 | E18: 2442.512059 | F18: 77.02656641 | G18: 4949.165254 | H18: Engineering, Construction & Energy
B19: أخرى | C19: 7174.249324 | D19: 35401.36337 | E19: 6179.05728 | F19: 3426.207643 | G19: 17074.91318 | H19: Other
B20: اعادة التأمين غير النسبية - المسؤوليات والممتلكات | C20: 0 | D20: 0 | E20: 0 | F20: 0 | G20: 0 | H20: Reinsurance - Property & Liability
B21: المجموع - تأمين الممتلكات والمسؤوليات | C21: =C15+C16+C17+C18+C19+C20 -> 73501.08036 | D21: =D15+D16+D17+D18+D19+D20 -> 63740.76337 | E21: 27469.22447 | F21: 32901.93376 | G21: 74980.24575 | H21: Total - Property & Liability Insurance
B23: المجموع - تأمين صحي | C23: 77987.40007 | D23: 6451.6 | E23: 14971.437 | F23: 35467.88068 | G23: 7936.784784 | H23: Total - Health Insurance
B25: تأمين حياة جماعي | C25: 4144.069986 | D25: 88.63261675 | E25: 1262.858497 | F25: 2043.333478 | G25: 1502.685034 | H25: Group Life
B26: تأمين ائتمان حياة جماعي | C26: 0 | D26: 0 | E26: 0 | F26: 0 | G26: 0 | H26: Group Credit Life
B27: تأمين حياة فردي | C27: 21171.4181 | D27: 1357 | E27: 0.820035688 | F27: 22612.82255 | G27: 109118.4097 | H27: Individual Life
B28: دفعات الحياة وتكوين الأموال | C28: 0 | D28: 0 | E28: 0 | F28: 0 | G28: 0 | H28: Annuities & Fund Accumulation
B29: المجموع - تأمين الأشخاص وعمليات تكوين الأموال | C29: =C25+C26+C27+C28 -> 25315.48808 | D29: =D25+D26+D27+D28 -> 1445.632617 | E29: 1263.678533 | F29: 24656.15603 | G29: 110621.0947 | H29: Total - Insurance of Persons & Fund Accumulation
B31: المجموع - كافة فروع التأمين | C31: =C21+C23+C29 -> 176803.9685 | D31: =D21+D23+D29 -> 71637.99598 | E31: 43704.34001 | F31: 93025.97047 | G31: 193538.1252 | H31: TOTAL - All Types of Business Combined

Sheet 30B
B6: البيانات بالصافي لإمارة عجمان
B7: Net Results for Ajman
B8: (2023)
B11: جدول رقم 30B | H11: TABLE 30B
B12: بالألف درهم | H12: AED in 000's
B13: فروع التأمين | C13: الأقساط المكتتبة | D13: أعداد الوثائق | E13: مخصص الأقساط غير المكتسبة | F13: المطالبات المدفوعة | G13: مخصص المطالبات تحت التسوية | H13: Line of Business
C14: Written Premium | D14: Number of Policies | E14: Unearned Premium Reserve | F14: Claims Paid | G14: Outstanding Claim Reserves
B15: تأمين الحريق | C15: 2573.680062 | D15: 874.4 | E15: -603.744644 | F15: 501.8243906 | G15: 15257.91379 | H15: Fire
B16: التأمين البحري والطيران | C16: 1848.020584 | D16: 656.8 | E16: 980.5604576 | F16: 38.27295507 | G16: 125.9842618 | H16: Marine & Aviation
B17: تأمين السيارات والمركبات الأخرى | C17: 8742.952812 | D17: 26545 | E17: 11871.30478 | F17: 740.4927571 | G17: 9416.252151 | H17: Motor & Transportation
B18: التأمين الهندسي والانشاءات والطاقة | C18: 878.0884228 | D18: 263.2 | E18: 488.1220788 | F18: 17.38853414 | G18: 844.8320807 | H18: Engineering, Construction & Energy
B19: أخرى | C19: 3295.997951 | D19: 35401.36337 | E19: 1653.184094 | F19: 797.0772138 | G19: 4392.425599 | H19: Other
B20: اعادة التأمين غير النسبية - المسؤوليات والممتلكات | C20: 0 | D20: 0 | E20: 0 | F20: 0 | G20: 0 | H20: Reinsurance - Property & Liability
B21: المجموع - تأمين الممتلكات والمسؤوليات | C21: =C15+C16+C17+C18+C19+C20 -> 17338.73983 | D21: =D15+D16+D17+D18+D19+D20 -> 63740.76337 | E21: 14389.42677 | F21: 2095.055851 | G21: 30037.40788 | H21: Total - Property & Liability Insurance
B23: المجموع - تأمين صحي | C23: 56941.44267 | D23: 6451.6 | E23: 10619.31324 | F23: 22679.73683 | G23: 4443.087862 | H23: Total - Health Insurance
B25: تأمين حياة جماعي | C25: -6.404687381 | D25: 88.63261675 | E25: 610.6709184 | F25: 29.94195589 | G25: 272.6831368 | H25: Group Life
B26: تأمين ائتمان حياة جماعي | C26: 0 | D26: 0 | E26: 0 | F26: 0 | G26: 0 | H26: Group Credit Life
B27: تأمين حياة فردي | C27: 21033.65079 | D27: 1357 | E27: 0.4090472029 | F27: 22587.03064 | G27: 108896.9666 | H27: Individual Life
B28: دفعات الحياة وتكوين الأموال | C28: 0 | D28: 0 | E28: 0 | F28: 0 | G28: 0 | H28: Annuities & Fund Accumulation
B29: المجموع - تأمين الأشخاص وعمليات تكوين الأموال | C29: =C25+C26+C27+C28 -> 21027.2461 | D29: =D25+D26+D27+D28 -> 1445.632617 | E29: 611.0799656 | F29: 22616.9726 | G29: 109169.6497 | H29: Total - Insurance of Persons & Fund Accumulation
B31: المجموع - كافة فروع التأمين | C31: =C21+C23+C29 -> 95307.42861 | D31: =D21+D23+D29 -> 71637.99598 | E31: 25619.81997 | F31: 47391.76528 | G31: 143650.1455 | H31: TOTAL - All Types of Business Combined

Sheet 31A
B6: البيانات بالإجمالي لإمارة أم القيوين
B7: Gross Results for Umm Al Quwain
B8: (2023)
B11: جدول رقم 31A | H11: TABLE 31A
B12: بالألف درهم | H12: AED in 000's
B13: فروع التأمين | C13: الأقساط المكتتبة | D13: أعداد الوثائق | E13: مخصص الأقساط غير المكتسبة | F13: المطالبات المدفوعة | G13: مخصص المطالبات تحت التسوية | H13: Line of Business
C14: Written Premium | D14: Number of Policies | E14: Unearned Premium Reserve | F14: Claims Paid | G14: Outstanding Claim Reserves
B15: تأمين الحريق | C15: 1319.80877 | D15: 128 | E15: 331.2220511 | F15: -22887.56019 | G15: 876.1293231 | H15: Fire
B16: التأمين البحري والطيران | C16: 130.10006 | D16: 7 | E16: 26.018028 | F16: 1.01003 | G16: 16.0716808 | H16: Marine & Aviation
B17: تأمين السيارات والمركبات الأخرى | C17: 692.8403 | D17: 528 | E17: 395.14842 | F17: 113.24179 | G17: 185.4897629 | H17: Motor & Transportation
B18: التأمين الهندسي والانشاءات والطاقة | C18: 45.3559 | D18: 4 | E18: 33.68525978 | F18: 3.772534782 | G18: 61.82536426 | H18: Engineering, Construction & Energy
B19: أخرى | C19: 130.15273 | D19: 1635.254942 | E19: 65.10125573 | F19: 18.26838 | G19: 173.818315 | H19: Other
B20: اعادة التأمين غير النسبية - المسؤوليات والممتلكات | C20: 0 | D20: 0 | E20: 0 | F20: 0 | G20: 0 | H20: Reinsurance - Property & Liability
B21: المجموع - تأمين الممتلكات والمسؤوليات | C21: =C15+C16+C17+C18+C19+C20 -> 2318.25776 | D21: =D15+D16+D17+D18+D19+D20 -> 2302.254942 | E21: 851.1750146 | F21: -22751.26746 | G21: 1313.334446 | H21: Total - Property & Liability Insurance
B23: المجموع - تأمين صحي | C23: 9044.370125 | D23: 819 | E23: 766.0294087 | F23: 7057.142811 | G23: 923.4980251 | H23: Total - Health Insurance
B25: تأمين حياة جماعي | C25: 1070.379597 | D25: 13 | E25: 189.2135682 | F25: 437.5482399 | G25: 330.350995 | H25: Group Life
B26: تأمين ائتمان حياة جماعي | C26: 0 | D26: 0 | E26: 0 | F26: 0 | G26: 0 | H26: Group Credit Life
B27: تأمين حياة فردي | C27: 4048.021007 | D27: 245 | E27: 0.2001857704 | F27: 3558.085683 | G27: 16960.53257 | H27: Individual Life
B28: دفعات الحياة وتكوين الأموال | C28: 0 | D28: 0 | E28: 0 | F28: 0 | G28: 0 | H28: Annuities & Fund Accumulation
B29: المجموع - تأمين الأشخاص وعمليات تكوين الأموال | C29: =C25+C26+C27+C28 -> 5118.400603 | D29: =D25+D26+D27+D28 -> 258 | E29: 189.413754 | F29: 3995.633922 | G29: 17290.88356 | H29: Total - Insurance of Persons & Fund Accumulation
B31: المجموع - كافة فروع التأمين | C31: =C21+C23+C29 -> 16481.02849 | D31: =D21+D23+D29 -> 3379.254942 | E31: 1806.618177 | F31: -11698.49072 | G31: 19527.71603 | H31: TOTAL - All Types of Business Combined

Sheet 31B
B6: البيانات بالصافي لإمارة أم القيوين
B7: Net Results for Umm Al Quwain
B8: (2023)
B11: جدول رقم 31B | H11: TABLE 31B
B12: بالألف درهم | H12: AED in 000's
B13: فروع التأمين | C13: الأقساط المكتتبة | D13: أعداد الوثائق | E13: مخصص الأقساط غير المكتسبة | F13: المطالبات المدفوعة | G13: مخصص المطالبات تحت التسوية | H13: Line of Business
C14: Written Premium | D14: Number of Policies | E14: Unearned Premium Reserve | F14: Claims Paid | G14: Outstanding Claim Reserves
B15: تأمين الحريق | C15: -1283.080331 | D15: 128 | E15: 312.7417994 | F15: -1612.333637 | G15: 762.3632311 | H15: Fire
B16: التأمين البحري والطيران | C16: 39.030011 | D16: 7 | E16: 7.805408 | F16: 0.30302 | G16: 4.175144664 | H16: Marine & Aviation
B17: تأمين السيارات والمركبات الأخرى | C17: 688.3197509 | D17: 528 | E17: -149.0092603 | F17: 110.4975885 | G17: -547.565889 | H17: Motor & Transportation
B18: التأمين الهندسي والانشاءات والطاقة | C18: -34.86601889 | D18: 4 | E18: 13.83568444 | F18: -8.799089802 | G18: 44.12587315 | H18: Engineering, Construction & Energy
B19: أخرى | C19: 53.27820455 | D19: 1635.254942 | E19: -51.31706691 | F19: 8.757785 | G19: 17.80856574 | H19: Other
B20: اعادة التأمين غير النسبية - المسؤوليات والممتلكات | C20: 0 | D20: 0 | E20: 0 | F20: 0 | G20: 0 | H20: Reinsurance - Property & Liability
B21: المجموع - تأمين الممتلكات والمسؤوليات | C21: =C15+C16+C17+C18+C19+C20 -> -537.3183837 | D21: =D15+D16+D17+D18+D19+D20 -> 2302.254942 | E21: 134.0565646 | F21: -1501.574334 | G21: 280.9069257 | H21: Total - Property & Liability Insurance
B23: المجموع - تأمين صحي | C23: 5442.44535 | D23: 819 | E23: 634.0907588 | F23: 3839.966536 | G23: 540.634142 | H23: Total - Health Insurance
B25: تأمين حياة جماعي | C25: 351.1233689 | D25: 13 | E25: 126.9266432 | F25: 125.6742737 | G25: 71.2727 | H25: Group Life
B26: تأمين ائتمان حياة جماعي | C26: 0 | D26: 0 | E26: 0 | F26: 0 | G26: 0 | H26: Group Credit Life
B27: تأمين حياة فردي | C27: 4029.688474 | D27: 245 | E27: 0.09985593389 | F27: 3555.778403 | G27: 16947.87293 | H27: Individual Life
B28: دفعات الحياة وتكوين الأموال | C28: 0 | D28: 0 | E28: 0 | F28: 0 | G28: 0 | H28: Annuities & Fund Accumulation
B29: المجموع - تأمين الأشخاص وعمليات تكوين الأموال | C29: =C25+C26+C27+C28 -> 4380.811843 | D29: =D25+D26+D27+D28 -> 258 | E29: 127.0264991 | F29: 3681.452677 | G29: 17019.14563 | H29: Total - Insurance of Persons & Fund Accumulation
B31: المجموع - كافة فروع التأمين | C31: =C21+C23+C29 -> 9285.938809 | D31: =D21+D23+D29 -> 3379.254942 | E31: 895.1738225 | F31: 6019.844879 | G31: 17840.6867 | H31: TOTAL - All Types of Business Combined

Sheet 32A
B6: البيانات بالإجمالي لإمارة الشارقة
B7: Gross Results for Sharjah
B8: (2023)
B11: جدول رقم 32A | H11: TABLE 32A
B12: بالألف درهم | H12: AED in 000's
B13: فروع التأمين | C13: الأقساط المكتتبة | D13: أعداد الوثائق | E13: مخصص الأقساط غير المكتسبة | F13: المطالبات المدفوعة | G13: مخصص المطالبات تحت التسوية | H13: Line of Business
C14: Written Premium | D14: Number of Policies | E14: Unearned Premium Reserve | F14: Claims Paid | G14: Outstanding Claim Reserves
B15: تأمين الحريق | C15: 106369.0836 | D15: 6718.774481 | E15: 36671.44114 | F15: 23716.42575 | G15: 104408.464 | H15: Fire
B16: التأمين البحري والطيران | C16: 81259.86401 | D16: 20257.68738 | E16: 26696.89749 | F16: 24949.09389 | G16: 54829.40848 | H16: Marine & Aviation
B17: تأمين السيارات والمركبات الأخرى | C17: 337988.7047 | D17: 252922.3691 | E17: 124350.5108 | F17: 330357.5168 | G17: 166094.7406 | H17: Motor & Transportation
B18: التأمين الهندسي والانشاءات والطاقة | C18: 51056.12552 | D18: 2334.079889 | E18: 18368.66537 | F18: 14356.01073 | G18: 43789.62995 | H18: Engineering, Construction & Energy
B19: أخرى | C19: 48671.44526 | D19: 351549.9119 | E19: 30925.78899 | F19: 5646.386937 | G19: 36046.77769 | H19: Other
B20: اعادة التأمين غير النسبية - المسؤوليات والممتلكات | C20: 0 | D20: 0 | E20: 0 | F20: 0 | G20: 0 | H20: Reinsurance - Property & Liability
B21: المجموع - تأمين الممتلكات والمسؤوليات | C21: =C15+C16+C17+C18+C19+C20 -> 625345.2231 | D21: =D15+D16+D17+D18+D19+D20 -> 633782.8228 | E21: 237013.3038 | F21: 399025.4341 | G21: 405169.0207 | H21: Total - Property & Liability Insurance
B23: المجموع - تأمين صحي | C23: 1335993.797 | D23: 73197.41206 | E23: 221800.5883 | F23: 1027462.466 | G23: 473568.2199 | H23: Total - Health Insurance
B25: تأمين حياة جماعي | C25: 25574.25214 | D25: 1664.037096 | E25: 7919.112086 | F25: 13143.51623 | G25: 17926.43908 | H25: Group Life
B26: تأمين ائتمان حياة جماعي | C26: 250.83723 | D26: 98.51397039 | E26: 0 | F26: 864.75154 | G26: 197.55284 | H26: Group Credit Life
B27: تأمين حياة فردي | C27: 102141.944 | D27: 7533.177213 | E27: 195.0998584 | F27: 78461.52665 | G27: 522747.1214 | H27: Individual Life
B28: دفعات الحياة وتكوين الأموال | C28: 0 | D28: 0 | E28: 0 | F28: 0 | G28: 0 | H28: Annuities & Fund Accumulation
B29: المجموع - تأمين الأشخاص وعمليات تكوين الأموال | C29: =C25+C26+C27+C28 -> 127967.0334 | D29: =D25+D26+D27+D28 -> 9295.728279 | E29: 8114.211944 | F29: 92469.79442 | G29: 540871.1133 | H29: Total - Insurance of Persons & Fund Accumulation
B31: المجموع - كافة فروع التأمين | C31: =C21+C23+C29 -> 2089306.054 | D31: =D21+D23+D29 -> 716275.9631 | E31: 466928.104 | F31: 1518957.694 | G31: 1419608.354 | H31: TOTAL - All Types of Business Combined

Sheet 32B
B6: البيانات بالصافي لإمارة الشارقة
B7: Net Results for Sharjah
B8: (2023)
B11: جدول رقم 32B | H11: TABLE 32B
B12: بالألف درهم | H12: AED in 000's
B13: فروع التأمين | C13: الأقساط المكتتبة | D13: أعداد الوثائق | E13: مخصص الأقساط غير المكتسبة | F13: المطالبات المدفوعة | G13: مخصص المطالبات تحت التسوية | H13: Line of Business
C14: Written Premium | D14: Number of Policies | E14: Unearned Premium Reserve | F14: Claims Paid | G14: Outstanding Claim Reserves
B15: تأمين الحريق | C15: 15305.8491 | D15: 6718.774481 | E15: 7734.072228 | F15: 7614.491033 | G15: 26424.04409 | H15: Fire
B16: التأمين البحري والطيران | C16: 15769.92508 | D16: 20257.68738 | E16: 11778.66623 | F16: 3925.316515 | G16: 21231.24871 | H16: Marine & Aviation
B17: تأمين السيارات والمركبات الأخرى | C17: 279025.3349 | D17: 252922.3691 | E17: 101562.4013 | F17: 232421.8717 | G17: 123103.5763 | H17: Motor & Transportation
B18: التأمين الهندسي والانشاءات والطاقة | C18: 5403.458181 | D18: 2334.079889 | E18: 3470.897151 | F18: 3675.054006 | G18: 8859.173756 | H18: Engineering, Construction & Energy
B19: أخرى | C19: 16749.0022 | D19: 351549.9119 | E19: 7034.367356 | F19: 3386.368085 | G19: 6325.353813 | H19: Other
B20: اعادة التأمين غير النسبية - المسؤوليات والممتلكات | C20: 0 | D20: 0 | E20: 0 | F20: 0 | G20: 0 | H20: Reinsurance - Property & Liability
B21: المجموع - تأمين الممتلكات والمسؤوليات | C21: =C15+C16+C17+C18+C19+C20 -> 332253.5695 | D21: =D15+D16+D17+D18+D19+D20 -> 633782.8228 | E21: 131580.4042 | F21: 251023.1013 | G21: 185943.3967 | H21: Total - Property & Liability Insurance
B23: المجموع - تأمين صحي | C23: 525407.4992 | D23: 73197.41206 | E23: 130757.741 | F23: 374100.107 | G23: 144959.8926 | H23: Total - Health Insurance
B25: تأمين حياة جماعي | C25: 6359.418998 | D25: 1664.037096 | E25: 2554.389075 | F25: 2433.839798 | G25: 3931.510946 | H25: Group Life
B26: تأمين ائتمان حياة جماعي | C26: 83.4107 | D26: 98.51397039 | E26: 0 | F26: 172.950306 | G26: 39.51057 | H26: Group Credit Life
B27: تأمين حياة فردي | C27: 98453.78627 | D27: 7533.177213 | E27: 165.9237144 | F27: 77024.30512 | G27: 518028.1108 | H27: Individual Life
B28: دفعات الحياة وتكوين الأموال | C28: 0 | D28: 0 | E28: 0 | F28: 0 | G28: 0 | H28: Annuities & Fund Accumulation
B29: المجموع - تأمين الأشخاص وعمليات تكوين الأموال | C29: =C25+C26+C27+C28 -> 104896.616 | D29: =D25+D26+D27+D28 -> 9295.728279 | E29: 2720.312789 | F29: 79631.09522 | G29: 521999.1323 | H29: Total - Insurance of Persons & Fund Accumulation
B31: المجموع - كافة فروع التأمين | C31: =C21+C23+C29 -> 962557.6846 | D31: =D21+D23+D29 -> 716275.9631 | E31: 265058.4581 | F31: 704754.3035 | G31: 852902.4216 | H31: TOTAL - All Types of Business Combined

Sheet 33A
B6: البيانات بالإجمالي لإمارة رأس الخيمة
B7: Gross Results for Ras Al Khaimah
B8: (2023)
B11: جدول رقم 33A | H11: TABLE 33A
B12: بالألف درهم | H12: AED in 000's
B13: فروع التأمين | C13: الأقساط المكتتبة | D13: أعداد الوثائق | E13: مخصص الأقساط غير المكتسبة | F13: المطالبات المدفوعة | G13: مخصص المطالبات تحت التسوية | H13: Line of Business
C14: Written Premium | D14: Number of Policies | E14: Unearned Premium Reserve | F14: Claims Paid | G14: Outstanding Claim Reserves
B15: تأمين الحريق | C15: 35029.73248 | D15: 1486.326563 | E15: 15050.11166 | F15: 2205.134061 | G15: 25432.98918 | H15: Fire
B16: التأمين البحري والطيران | C16: 7665.969154 | D16: 533.3259979 | E16: 3371.315988 | F16: 293.6913681 | G16: 1496.940743 | H16: Marine & Aviation
B17: تأمين السيارات والمركبات الأخرى | C17: 209188.0239 | D17: 524390.9862 | E17: 110547.8005 | F17: 114306.4444 | G17: 111433.3924 | H17: Motor & Transportation
B18: التأمين الهندسي والانشاءات والطاقة | C18: 11010.84638 | D18: 911.3642252 | E18: 7078.439386 | F18: 7156.841507 | G18: 5998.279016 | H18: Engineering, Construction & Energy
B19: أخرى | C19: 24776.20123 | D19: 490945.1316 | E19: 11607.74872 | F19: 1849.173094 | G19: 16341.97101 | H19: Other
B20: اعادة التأمين غير النسبية - المسؤوليات والممتلكات | C20: 0 | D20: 0 | E20: 0 | F20: 0 | G20: 0 | H20: Reinsurance - Property & Liability
B21: المجموع - تأمين الممتلكات والمسؤوليات | C21: =C15+C16+C17+C18+C19+C20 -> 287670.7731 | D21: =D15+D16+D17+D18+D19+D20 -> 1018267.135 | E21: =E15+E16+E17+E18+E19+E20 -> 147655.4162 | F21: =F15+F16+F17+F18+F19+F20 -> 125811.2845 | G21: =G15+G16+G17+G18+G19+G20 -> 160703.5724 | H21: Total - Property & Liability Insurance
B23: المجموع - تأمين صحي | C23: 129457.4091 | D23: 11710.39502 | E23: 40134.10075 | F23: 81080.67317 | G23: 34924.04622 | H23: Total - Health Insurance
B25: تأمين حياة جماعي | C25: 5734.299915 | D25: 110.0078634 | E25: 1621.784666 | F25: 3422.035333 | G25: 3598.835871 | H25: Group Life
B26: تأمين ائتمان حياة جماعي | C26: 80099.43439 | D26: 42.02722015 | E26: 0 | F26: 24975.87326 | G26: 14606.19552 | H26: Group Credit Life
B27: تأمين حياة فردي | C27: 13172.67981 | D27: 859.7048587 | E27: 3.723314121 | F27: 19191.55106 | G27: 86093.76827 | H27: Individual Life
B28: دفعات الحياة وتكوين الأموال | C28: 0 | D28: 0 | E28: 0 | F28: 0 | G28: 0 | H28: Annuities & Fund Accumulation
B29: المجموع - تأمين الأشخاص وعمليات تكوين الأموال | C29: =C25+C26+C27+C28 -> 99006.41411 | D29: =D25+D26+D27+D28 -> 1011.739942 | E29: =E25+E26+E27+E28 -> 1625.507981 | F29: =F25+F26+F27+F28 -> 47589.45965 | G29: =G25+G26+G27+G28 -> 104298.7997 | H29: Total - Insurance of Persons & Fund Accumulation
B31: المجموع - كافة فروع التأمين | C31: =C21+C23+C29 -> 516134.5964 | D31: =D21+D23+D29 -> 1030989.27 | E31: 189415.0249 | F31: 254481.4173 | G31: 299926.4183 | H31: TOTAL - All Types of Business Combined

Sheet 33B
B6: البيانات بالصافي لإمارة رأس الخيمة
B7: Net Results for Ras Al Khaimah
B8: (2023)
B11: جدول رقم 33B | H11: TABLE 33B
B12: بالألف درهم | H12: AED in 000's
B13: فروع التأمين | C13: الأقساط المكتتبة | D13: أعداد الوثائق | E13: مخصص الأقساط غير المكتسبة | F13: المطالبات المدفوعة | G13: مخصص المطالبات تحت التسوية | H13: Line of Business
C14: Written Premium | D14: Number of Policies | E14: Unearned Premium Reserve | F14: Claims Paid | G14: Outstanding Claim Reserves
B15: تأمين الحريق | C15: 5116.388691 | D15: 1486.326563 | E15: 3938.7132 | F15: 810.5029583 | G15: 3386.102538 | H15: Fire
B16: التأمين البحري والطيران | C16: 1035.704937 | D16: 533.3259979 | E16: 632.081521 | F16: 203.7917649 | G16: 248.8532708 | H16: Marine & Aviation
B17: تأمين السيارات والمركبات الأخرى | C17: 169885.8037 | D17: 524390.9862 | E17: 88170.2663 | F17: 84668.90202 | G17: 45348.58521 | H17: Motor & Transportation
B18: التأمين الهندسي والانشاءات والطاقة | C18: 2711.278245 | D18: 911.3642252 | E18: 1718.629033 | F18: 850.5740356 | G18: 1106.612324 | H18: Engineering, Construction & Energy
B19: أخرى | C19: 5048.903059 | D19: 490945.1316 | E19: 2213.121035 | F19: 289.5506577 | G19: 2257.147259 | H19: Other
B20: اعادة التأمين غير النسبية - المسؤوليات والممتلكات | C20: 0 | D20: 0 | E20: 0 | F20: 0 | G20: 0 | H20: Reinsurance - Property & Liability
B21: المجموع - تأمين الممتلكات والمسؤوليات | C21: =C15+C16+C17+C18+C19+C20 -> 183798.0786 | D21: =D15+D16+D17+D18+D19+D20 -> 1018267.135 | E21: =E15+E16+E17+E18+E19+E20 -> 96672.81108 | F21: =F15+F16+F17+F18+F19+F20 -> 86823.32143 | G21: =G15+G16+G17+G18+G19+G20 -> 52347.3006 | H21: Total - Property & Liability Insurance
B23: المجموع - تأمين صحي | C23: 91505.939 | D23: 11710.39502 | E23: 31861.22317 | F23: 51927.7193 | G23: 23420.0004 | H23: Total - Health Insurance
B25: تأمين حياة جماعي | C25: 2141.465917 | D25: 110.0078634 | E25: 820.9209547 | F25: 1020.159182 | G25: 763.585573 | H25: Group Life
B26: تأمين ائتمان حياة جماعي | C26: 43230.99474 | D26: 42.02722015 | E26: 0 | F26: 2493.632189 | G26: 2468.04665 | H26: Group Credit Life
B27: تأمين حياة فردي | C27: 12959.10951 | D27: 859.7048587 | E27: 1.857249933 | F27: 18475.80224 | G27: 85783.75711 | H27: Individual Life
B28: دفعات الحياة وتكوين الأموال | C28: 0 | D28: 0 | E28: 0 | F28: 0 | G28: 0 | H28: Annuities & Fund Accumulation
B29: المجموع - تأمين الأشخاص وعمليات تكوين الأموال | C29: =C25+C26+C27+C28 -> 58331.57017 | D29: =D25+D26+D27+D28 -> 1011.739942 | E29: 822.7782046 | F29: 21989.59361 | G29: 89015.38933 | H29: Total - Insurance of Persons & Fund Accumulation
B31: المجموع - كافة فروع التأمين | C31: =C21+C23+C29 -> 333635.5878 | D31: =D21+D23+D29 -> 1030989.27 | E31: 129356.8125 | F31: 160740.6343 | G31: 164782.6903 | H31: TOTAL - All Types of Business Combined

Sheet 34A
B6: البيانات بالإجمالي لإمارة الفجيرة
B7: Gross Results for Fujairah
B8: (2023)
B11: جدول رقم 34A | H11: TABLE 34A
B12: بالألف درهم | H12: AED in 000's
B13: فروع التأمين | C13: الأقساط المكتتبة | D13: أعداد الوثائق | E13: مخصص الأقساط غير المكتسبة | F13: المطالبات المدفوعة | G13: مخصص المطالبات تحت التسوية | H13: Line of Business
C14: Written Premium | D14: Number of Policies | E14: Unearned Premium Reserve | F14: Claims Paid | G14: Outstanding Claim Reserves
B15: تأمين الحريق | C15: 18914.39685 | D15: 1178 | E15: 6587.040144 | F15: 30195.22808 | G15: 27832.61691 | H15: Fire
B16: التأمين البحري والطيران | C16: 13159.21999 | D16: 332 | E16: 2463.156469 | F16: 2902.22832 | G16: 5745.895308 | H16: Marine & Aviation
B17: تأمين السيارات والمركبات الأخرى | C17: 88489.80833 | D17: 76904 | E17: 46661.07708 | F17: 44647.35373 | G17: 23404.88056 | H17: Motor & Transportation
B18: التأمين الهندسي والانشاءات والطاقة | C18: 51864.32523 | D18: 605 | E18: 63003.82625 | F18: 7891.295065 | G18: 19645.05219 | H18: Engineering, Construction & Energy
B19: أخرى | C19: 10005.3193 | D19: 76716.14246 | E19: 1995.184878 | F19: 4859.7359 | G19: 4761.696474 | H19: Other
B20: اعادة التأمين غير النسبية - المسؤوليات والممتلكات | C20: 0 | D20: 0 | E20: 0 | F20: 0 | G20: 0 | H20: Reinsurance - Property & Liability
B21: المجموع - تأمين الممتلكات والمسؤوليات | C21: =C15+C16+C17+C18+C19+C20 -> 182433.0697 | D21: =D15+D16+D17+D18+D19+D20 -> 155735.1425 | E21: =E15+E16+E17+E18+E19+E20 -> 120710.2848 | F21: =F15+F16+F17+F18+F19+F20 -> 90495.84109 | G21: =G15+G16+G17+G18+G19+G20 -> 81390.14144 | H21: Total - Property & Liability Insurance
B23: المجموع - تأمين صحي | C23: 39961.1792 | D23: 3546.021552 | E23: 12247.09284 | F23: 30448.27611 | G23: 6083.597621 | H23: Total - Health Insurance
B25: تأمين حياة جماعي | C25: 1721.963214 | D25: 69 | E25: 236.0566896 | F25: 1000.267213 | G25: 314.4982551 | H25: Group Life
B26: تأمين ائتمان حياة جماعي | C26: 0 | D26: 0 | E26: 0 | F26: 0 | G26: 0 | H26: Group Credit Life
B27: تأمين حياة فردي | C27: 5225.051741 | D27: 349 | E27: 0.3491061191 | F27: 4621.88564 | G27: 23270.62477 | H27: Individual Life
B28: دفعات الحياة وتكوين الأموال | C28: 0 | D28: 0 | E28: 0 | F28: 0 | G28: 0 | H28: Annuities & Fund Accumulation
B29: المجموع - تأمين الأشخاص وعمليات تكوين الأموال | C29: =C25+C26+C27+C28 -> 6947.014956 | D29: =D25+D26+D27+D28 -> 418 | E29: =E25+E26+E27+E28 -> 236.4057957 | F29: =F25+F26+F27+F28 -> 5622.152854 | G29: =G25+G26+G27+G28 -> 23585.12302 | H29: Total - Insurance of Persons & Fund Accumulation
B31: المجموع - كافة فروع التأمين | C31: =C21+C23+C29 -> 229341.2639 | D31: =D21+D23+D29 -> 159699.164 | E31: 133193.7835 | F31: 126566.2701 | G31: 111058.8621 | H31: TOTAL - All Types of Business Combined

Sheet 34B
B6: البيانات بالصافي لإمارة الفجيرة
B7: Net Results for Fujairah
B8: (2023)
B11: جدول رقم 34B | H11: TABLE 34B
B12: بالألف درهم | H12: AED in 000's
B13: فروع التأمين | C13: الأقساط المكتتبة | D13: أعداد الوثائق | E13: مخصص الأقساط غير المكتسبة | F13: المطالبات المدفوعة | G13: مخصص المطالبات تحت التسوية | H13: Line of Business
C14: Written Premium | D14: Number of Policies | E14: Unearned Premium Reserve | F14: Claims Paid | G14: Outstanding Claim Reserves
B15: تأمين الحريق | C15: -22575.15799 | D15: 1178 | E15: -36381.79867 | F15: 1920.605712 | G15: -120915.1094 | H15: Fire
B16: التأمين البحري والطيران | C16: 4256.50904 | D16: 332 | E16: 1257.942467 | F16: 306.8136 | G16: 4110.040098 | H16: Marine & Aviation
B17: تأمين السيارات والمركبات الأخرى | C17: 82679.05927 | D17: 76904 | E17: 42300.34153 | F17: 36880.33032 | G17: 16240.54466 | H17: Motor & Transportation
B18: التأمين الهندسي والانشاءات والطاقة | C18: 1871.441711 | D18: 605 | E18: -65654.05848 | F18: 1373.073244 | G18: -64723.48233 | H18: Engineering, Construction & Energy
B19: أخرى | C19: 2884.86442 | D19: 76716.14246 | E19: 1305.622838 | F19: 1441.526063 | G19: 958.2998244 | H19: Other
B20: اعادة التأمين غير النسبية - المسؤوليات والممتلكات | C20: 0 | D20: 0 | E20: 0 | F20: 0 | G20: 0 | H20: Reinsurance - Property & Liability
B21: المجموع - تأمين الممتلكات والمسؤوليات | C21: =C15+C16+C17+C18+C19+C20 -> 69116.71645 | D21: =D15+D16+D17+D18+D19+D20 -> 155735.1425 | E21: =E15+E16+E17+E18+E19+E20 -> -57171.95031 | F21: =F15+F16+F17+F18+F19+F20 -> 41922.34894 | G21: =G15+G16+G17+G18+G19+G20 -> -164329.7071 | H21: Total - Property & Liability Insurance
B23: المجموع - تأمين صحي | C23: 22000.7362 | D23: 3546.021552 | E23: 5369.303273 | F23: 17176.89548 | G23: 2519.257153 | H23: Total - Health Insurance
B25: تأمين حياة جماعي | C25: 723.2831974 | D25: 69 | E25: 133.1933192 | F25: 480.4985999 | G25: 70.24859625 | H25: Group Life
B26: تأمين ائتمان حياة جماعي | C26: 0 | D26: 0 | E26: 0 | F26: 0 | G26: 0 | H26: Group Credit Life
B27: تأمين حياة فردي | C27: 5172.685074 | D27: 349 | E27: 0.1741398376 | F27: 4619.40705 | G27: 23250.23729 | H27: Individual Life
B28: دفعات الحياة وتكوين الأموال | C28: 0 | D28: 0 | E28: 0 | F28: 0 | G28: 0 | H28: Annuities & Fund Accumulation
B29: المجموع - تأمين الأشخاص وعمليات تكوين الأموال | C29: =C25+C26+C27+C28 -> 5895.968271 | D29: =D25+D26+D27+D28 -> 418 | E29: =E25+E26+E27+E28 -> 133.3674591 | F29: =F25+F26+F27+F28 -> 5099.905649 | G29: =G25+G26+G27+G28 -> 23320.48589 | H29: Total - Insurance of Persons & Fund Accumulation
B31: المجموع - كافة فروع التأمين | C31: =C21+C23+C29 -> 97013.42093 | D31: =D21+D23+D29 -> 159699.164 | E31: =E21+E23+E29 -> -51669.27958 | F31: =F21+F23+F29 -> 64199.15006 | G31: =G21+G23+G29 -> -138489.9641 | H31: TOTAL - All Types of Business Combined

Sheet Ins. Companies
A3: دليل شركات التأمين في دولة الإمارات العربية المتحدة
A4: Directory of insurance companies in the UAE
A7: رقم القيد | B7: الاسم | C7: الشكل القانوني | D7: جنسية الشركة | E7: تأمين تقليدي / تأمين تكافلي | F7: أنواع التأمين | G7: الموقع الالكتروني | H7: تاريخ القيد | I7: Insurance Type | J7: Traditional Insurance / Takaful Insurance | K7: Company Nationality | L7: Legal Type | M7: Name | N7: Registration Number
G8: Web Site | H8: Registration Date
A9: 1 | B9: شركة أبوظبي الوطنية للتامين | C9: شركة مساهمة عامة | D9: الإمارات العربية المتحدة | E9: تأمين تقليدي | F9: تأمين الممتلكات والمسؤوليات + تأمين الأشخاص وعمليات تكوين الأموال | G9: www.adnic.ae | H9: 1984-07-22 | I9: Property and Liability Insurance + Insurance of Persons and Fund Accumulation Operations | J9: Traditional Insurance | K9: United Arab Emirate | L9: Public Joint Stock | M9: Abu Dhabi National Insurance Company | N9: 1
A10: 2 | B10: شركة الامارات للتأمين (ش.م.ع) | C10: شركة مساهمة عامة | D10: الإمارات العربية المتحدة | E10: تأمين تقليدي | F10: تأمين الممتلكات والمسؤوليات + تأمين الأشخاص وعمليات تكوين الأموال | G10: www.eminsco.com | H10: 1985-08-26 | I10: Property and Liability Insurance + Insurance of Persons and Fund Accumulation Operations | J10: Traditional Insurance | K10: United Arab Emirate | L10: Public Joint Stock | M10: Emirates Insurance Company (PSC) | N10: 2
A11: 3 | B11: شركة العين الاهلية للتأمين | C11: شركة مساهمة عامة | D11: الإمارات العربية المتحدة | E11: تأمين تقليدي | F11: تأمين الممتلكات والمسؤوليات + تأمين الأشخاص وعمليات تكوين الأموال | G11: www.alaininsurance.com | H11: 1984-08-08 | I11: Property and Liability Insurance + Insurance of Persons and Fund Accumulation Operations | J11: Traditional Insurance | K11: United Arab Emirate | L11: Public Joint Stock | M11: Al Ain Ahlia Insurance Company | N11: 3
A12: 4 | B12: شركة دبي للتأمين شركة مساهمة عامة | C12: شركة مساهمة عامة | D12: الإمارات العربية المتحدة | E12: تأمين تقليدي | F12: تأمين الممتلكات والمسؤوليات + تأمين الأشخاص وعمليات تكوين الأموال | G12: www.dubins.ae | H12: 1984-11-13 | I12: Property and Liability Insurance + Insurance of Persons and Fund Accumulation Operations | J12: Traditional Insurance | K12: United Arab Emirate | L12: Public Joint Stock | M12: Dubai Insurance Company (PSC) | N12: 4
A13: 5 | B13: شركة الظفرة للتأمين | C13: شركة مساهمة عامة | D13: الإمارات العربية المتحدة | E13: تأمين تقليدي | F13: تأمين الممتلكات والمسؤوليات + تأمين الأشخاص وعمليات تكوين الأموال | G13: www.aldhafrainsurance.ae | H13: 1984-11-14 | I13: Property and Liability Insurance + Insurance of Persons and Fund Accumulation Operations | J13: Traditional Insurance | K13: United Arab Emirate | L13: Public Joint Stock | M13: Al dhafra Insurance Company | N13: 5
A14: 6 | B14: الشركة العربية الاسكندنافية للتأمين (ش.م.ع) - تكافل - اسكانا للتأمين | C14: شركة مساهمة عامة | D14: الإمارات العربية المتحدة | E14: تأمين تكافلي | F14: تأمين الممتلكات والمسؤوليات + تأمين الأشخاص وعمليات تكوين الأموال | G14: www.ascanatakaful.ae | H14: 1984-12-15 | I14: Property and Liability Insurance + Insurance of Persons and Fund Accumulation Operations | J14: Takaful Insurance | K14: United Arab Emirate | L14: Public Joint Stock | M14: Arabian Scandinavian Insurance | N14: 6
A15: 7 | B15: شركة رأس الخيمة الوطنية للتأمين | C15: شركة مساهمة عامة | D15: الإمارات العربية المتحدة | E15: تأمين تقليدي | F15: تأمين الممتلكات والمسؤوليات + تأمين الأشخاص وعمليات تكوين الأموال | G15: www.rakinsurance.com | H15: 1998-12-20 | I15: Property and Liability Insurance + Insurance of Persons and Fund Accumulation Operations | J15: Traditional Insurance | K15: United Arab Emirate | L15: Public Joint Stock | M15: Ras Al Khaimah National Insurance Company P.S.C | N15: 7
A16: 8 | B16: شركة التأمين فيدلتي المتحدة | C16: شركة مساهمة عامة | D16: الإمارات العربية المتحدة | E16: تأمين تقليدي | F16: تأمين الممتلكات والمسؤوليات + تأمين الأشخاص وعمليات تكوين الأموال | G16: www.fidelityunited.ae | H16: 1984-12-22 | I16: Property and Liability Insurance + Insurance of Persons and Fund Accumulation Operations | J16: Traditional Insurance | K16: United Arab Emirate | L16: Public Joint Stock | M16: United Fidelity Insurance Company | N16: 8
A17: 9 | B17: شركة سكون للتأمين (مساهمة عامة) | C17: شركة مساهمة عامة | D17: الإمارات العربية المتحدة | E17: تأمين تقليدي | F17: تأمين الممتلكات والمسؤوليات + تأمين الأشخاص وعمليات تكوين الأموال | G17: www.sukoon.com | H17: 1984-12-24 | I17: Property and Liability Insurance + Insurance of Persons and Fund Accumulation Operations | J17: Traditional Insurance | K17: United Arab Emirate | L17: Public Joint Stock | M17: Sukoon Insurance Company (PJSC) | N17: 9
A18: 10 | B18: شركة الوثبة الوطنية للتأمين | C18: شركة مساهمة عامة | D18: الإمارات العربية المتحدة | E18: تأمين تقليدي | F18: تأمين الممتلكات والمسؤوليات | G18: www.awnic.com | H18: 1984-12-24 | I18: Property and Liability Insurance | J18: Traditional Insurance | K18: United Arab Emirate | L18: Public Joint Stock | M18: Al Wathba National Insurance Company | N18: 10
A19: 11 | B19: شركة الفجيرة الوطنية للتأمين - ش . م . ع | C19: شركة مساهمة عامة | D19: الإمارات العربية المتحدة | E19: تأمين تقليدي | F19: تأمين الممتلكات والمسؤوليات + تأمين الأشخاص وعمليات تكوين الأموال | G19: www.afnic.ae | H19: 1984-12-25 | I19: Property and Liability Insurance + Insurance of Persons and Fund Accumulation Operations | J19: Traditional Insurance | K19: United Arab Emirate | L19: Public Joint Stock | M19: Al Fujairah National Insurance Company PSC | N19: 11
A20: 12 | B20: شركة الشارقة للتأمين | C20: شركة مساهمة عامة | D20: الإمارات العربية المتحدة | E20: تأمين تقليدي | F20: تأمين الممتلكات والمسؤوليات + تأمين الأشخاص وعمليات تكوين الأموال | G20: www.sharjahinsurance.co.ae | H20: 1984-12-25 | I20: Property and Liability Insurance + Insurance of Persons and Fund Accumulation Operations | J20: Traditional Insurance | K20: United Arab Emirate | L20: Public Joint Stock | M20: Sharjah Insurance Company (P.S.C) | N20: 12
A21: 14 | B21: شركة أورينت للتأمين | C21: شركة مساهمة عامة | D21: الإمارات العربية المتحدة | E21: تأمين تقليدي | F21: تأمين الممتلكات والمسؤوليات + تأمين الأشخاص وعمليات تكوين الأموال | G21: www.insuranceuae.com | H21: 1984-12-29 | I21: Property and Liability Insurance + Insurance of Persons and Fund Accumulation Operations | J21: Traditional Insurance | K21: United Arab Emirate | L21: Public Joint Stock | M21: Orient Insurance Company | N21: 14
A22: 15 | B22: شركة البحيرة الوطنية للتأمين | C22: شركة مساهمة عامة | D22: الإمارات العربية المتحدة | E22: تأمين تقليدي | F22: تأمين الممتلكات والمسؤوليات + تأمين الأشخاص وعمليات تكوين الأموال | G22: www.albuhaira.com | H22: 1984-12-30 | I22: Property and Liability Insurance + Insurance of Persons and Fund Accumulation Operations | J22: Traditional Insurance | K22: United Arab Emirate | L22: Public Joint Stock | M22: Al Buharia National Insurance Company | N22: 15
A23: 16 | B23: شركة الصقر الوطنية للتأمين (شركة مساهمة عامة) | C23: شركة مساهمة عامة | D23: الإمارات العربية المتحدة | E23: تأمين تقليدي | F23: تأمين الممتلكات والمسؤوليات + تأمين الأشخاص وعمليات تكوين الأموال | G23: www.alsagrins.ae | H23: 1989-10-26 | I23: Property and Liability Insurance + Insurance of Persons and Fund Accumulation Operations | J23: Traditional Insurance | K23: United Arab Emirate | L23: Public Joint Stock | M23: Al Sagr National Insurance Company (PSC) | N23: 16
A24: 17 | B24: الشركة الإسلامية العربية للتأمين (سلامة) | C24: شركة مساهمة عامة | D24: الإمارات العربية المتحدة | E24: تأمين تكافلي | F24: تأمين الممتلكات والمسؤوليات + تأمين الأشخاص وعمليات تكوين الأموال | G24: www.salama.ae | H24: 1984-12-25 | I24: Property and Liability Insurance + Insurance of Persons and Fund Accumulation Operations | J24: Takaful Insurance | K24: United Arab Emirate | L24: Public Joint Stock | M24: Islamic Arab Insurance Company "SALAMA" | N24: 17
A25: 18 | B25: اللاينس للتأمين | C25: شركة مساهمة عامة | D25: الإمارات العربية المتحدة | E25: تأمين تقليدي | F25: تأمين الممتلكات والمسؤوليات + تأمين الأشخاص وعمليات تكوين الأموال | G25: www.alliance-uae.com | H25: 1984-12-31 | I25: Property and Liability Insurance + Insurance of Persons and Fund Accumulation Operations | J25: Traditional Insurance | K25: United Arab Emirate | L25: Public Joint Stock | M25: Alliance Insurance Company | N25: 18
A26: 20 | B26: شركة التأمين العربية ش م ل | C26: فرع شركة أجنبية | D26: لبنان | E26: تأمين تقليدي | F26: تأمين الممتلكات والمسؤوليات + تأمين الأشخاص وعمليات تكوين الأموال | G26: www.arabiainsurance.com | H26: 1984-11-01 | I26: Property and Liability Insurance + Insurance of Persons and Fund Accumulation Operations | J26: Traditional Insurance | K26: Lebanon | L26: Foreign Company Branch | M26: Arabia Insurance Company sal | N26: 20
A27: 21 | B27: شركة التأمين الأردنية المساهمة المحدودة | C27: فرع شركة أجنبية | D27: الأردن | E27: تأمين تقليدي | F27: تأمين الممتلكات والمسؤوليات | G27: www.jicjo.com | H27: 1984-12-01 | I27: Property and Liability Insurance | J27: Traditional Insurance | K27: Jordan | L27: Foreign Company Branch | M27: Jordan Insurance Company Ltd | N27: 21
A28: 22 | B28: شركة التأمين العربية السعودية ش . م . ب(م) | C28: فرع شركة خليجية | D28: البحرين | E28: تأمين تقليدي | F28: تأمين الممتلكات والمسؤوليات | G28: www.damana.com | H28: 1984-12-13 | I28: Property and Liability Insurance | J28: Traditional Insurance | K28: Bahrain | L28: GCC Company Branch | M28: Saudi Arabian Insurance Company B.S.C (C) | N28: 22
A29: 30 | B29: شركة سهامي بيمة ايران | C29: فرع شركة أجنبية | D29: ايران | E29: تأمين تقليدي | F29: تأمين الممتلكات والمسؤوليات | G29: www.bimehir.ae | H29: 1984-12-19 | I29: Property and Liability Insurance | J29: Traditional Insurance | K29: Iran, Islamic Republic of | L29: Foreign Company Branch | M29: Iran Insurance Company | N29: 30
A30: 32 | B30: ميتسوى سوميتومو انشورانس كومبانى ليمتد | C30: فرع شركة أجنبية | D30: اليابان | E30: تأمين تقليدي | F30: تأمين الممتلكات والمسؤوليات | G30: www.ms-ins.com | H30: 1984-12-22 | I30: Property and Liability Insurance | J30: Traditional Insurance | K30: Japan | L30: Foreign Company Branch | M30: Mitsui Sumitomo Insurance Company Ltd | N30: 32
A31: 34 | B31: اميركان لايف انشورنس كومباني | C31: فرع شركة أجنبية | D31: الولايات المتحدة الامريكية | E31: تأمين تقليدي | F31: تأمين الممتلكات والمسؤوليات + تأمين الأشخاص وعمليات تكوين الأموال | G31: www.metlife.com | H31: 1984-12-23 | I31: Property and Liability Insurance + Insurance of Persons and Fund Accumulation Operations | J31: Traditional Insurance | K31: United States of America | L31: Foreign Company Branch | M31: American Life Insurance Company | N31: 34
A32: 37 | B32: ذي أورينتال أنشورانس كومباني ليمتد | C32: فرع شركة أجنبية | D32: الهند | E32: تأمين تقليدي | F32: تأمين الممتلكات والمسؤوليات | G32: www.orientalinsurance.org.in | H32: 1984-12-29 | I32: Property and Liability Insurance | J32: Traditional Insurance | K32: India | L32: Foreign Company Branch | M32: The Oriental Insurance Company Limited | N32: 37
A33: 38 | B33: شركة قطر للتأمين | C33: فرع شركة أجنبية | D33: قطر | E33: تأمين تقليدي | F33: تأمين الممتلكات والمسؤوليات | G33: www.qatarinsurance.com | H33: 1984-12-29 | I33: Property and Liability Insurance | J33: Traditional Insurance | K33: Qatar | L33: Foreign Company Branch | M33: Qatar Insurance Company | N33: 38
A34: 42 | B34: الإتحاد الوطني - شركة الضمان العامة للشرق الأدنى | C34: فرع شركة أجنبية | D34: لبنان | E34: تأمين تقليدي | F34: تأمين الممتلكات والمسؤوليات + تأمين الأشخاص وعمليات تكوين الأموال | G34: www.unic.ae | H34: 1984-12-29 | I34: Property and Liability Insurance + Insurance of Persons and Fund Accumulation Operations | J34: Traditional Insurance | K34: Lebanon | L34: Foreign Company Branch | M34: Al Ittihad Al Watani - General Insurance Company for the Near East | N34: 42
A35: 43 | B35: الشركة القطرية العامة للتأمين وإعادة التأمين ش.م.ق | C35: فرع شركة أجنبية | D35: قطر | E35: تأمين تقليدي | F35: تأمين الممتلكات والمسؤوليات + تأمين الأشخاص وعمليات تكوين الأموال | G35: www.qgirco.com | H35: 1984-12-29 | I35: Property and Liability Insurance + Insurance of Persons and Fund Accumulation Operations | J35: Traditional Insurance | K35: Qatar | L35: Foreign Company Branch | M35: Qatar General Insurance & Reinsurance Company S.A.Q | N35: 43
A36: 44 | B36: أدمجي أنشورنس كومباني ليمتد | C36: فرع شركة أجنبية | D36: باكستان | E36: تأمين تقليدي | F36: تأمين الممتلكات والمسؤوليات | G36: www.adamjeeinsurance.com | H36: 1984-12-29 | I36: Property and Liability Insurance | J36: Traditional Insurance | K36: Pakistan | L36: Foreign Company Branch | M36: Adamjee Insurance Company Limited | N36: 44
A37: 45 | B37: طوكيو مارين اند نيتشيدو فايرانشورانس كومباني ليمتد | C37: فرع شركة أجنبية | D37: اليابان | E37: تأمين تقليدي | F37: تأمين الممتلكات والمسؤوليات | G37: www.tmnf.ae | H37: 1984-12-29 | I37: Property and Liability Insurance | J37: Traditional Insurance | K37: Japan | L37: Foreign Company Branch | M37: Tokio Marine & Nichido Fire Insurance Company Ltd | N37: 45
A38: 48 | B38: سيغنا الشرق الأوسط للتأمين ش.م.ل | C38: فرع شركة أجنبية | D38: لبنان | E38: تأمين تقليدي | F38: تأمين الممتلكات والمسؤوليات | G38: www.cigna.com | H38: 1984-12-30 | I38: Property and Liability Insurance | J38: Traditional Insurance | K38: Lebanon | L38: Foreign Company Branch | M38: Cigna Insurance Middle East S.A.L | N38: 48
A39: 49 | B39: ذي نيو انديا اشورانس كومباني ليمتد | C39: فرع شركة أجنبية | D39: الهند | E39: تأمين تقليدي | F39: تأمين الممتلكات والمسؤوليات | G39: www.nia-dubai.com | H39: 1984-12-30 | I39: Property and Liability Insurance | J39: Traditional Insurance | K39: India | L39: Foreign Company Branch | M39: The New India Assurance Company Limited | N39: 49
A40: 54 | B40: ستيت لايف أنشورانس كوربوريشن أوف باكستان | C40: فرع شركة أجنبية | D40: باكستان | E40: تأمين تقليدي | F40: تأمين الأشخاص وعمليات تكوين الأموال | G40: www.statelifegulf.ae | H40: 1984-12-30 | I40: Insurance of Persons and Fund Accumulation Operations | J40: Traditional Insurance | K40: Pakistan | L40: Foreign Company Branch | M40: State Life Insurance Corporation Of Pakistan | N40: 54
A41: 59 | B41: أسيكورازيوني جنرالي أس .بي .ايه | C41: فرع شركة أجنبية | D41: إيطاليا | E41: تأمين تقليدي | F41: تأمين الممتلكات والمسؤوليات + تأمين الأشخاص وعمليات تكوين الأموال | G41: www.generali-uae.com | H41: 1984-12-31 | I41: Property and Liability Insurance + Insurance of Persons and Fund Accumulation Operations | J41: Traditional Insurance | K41: Italy | L41: Foreign Company Branch | M41: Assicurazioni Generali S.P.A | N41: 59
A42: 61 | B42: الشركة الوطنية للتأمينات العامة | C42: شركة مساهمة عامة | D42: الإمارات العربية المتحدة | E42: تأمين تقليدي | F42: تأمين الممتلكات والمسؤوليات + تأمين الأشخاص وعمليات تكوين الأموال | G42: www.ngiuae.com | H42: 1984-12-31 | I42: Property and Liability Insurance + Insurance of Persons and Fund Accumulation Operations | J42: Traditional Insurance | K42: United Arab Emirate | L42: Public Joint Stock | M42: National General Insurance Company | N42: 61
A43: 62 | B43: زيوريخ لايف أنشورانس كومباني ليمتد | C43: فرع شركة أجنبية | D43: سويسرا | E43: تأمين تقليدي | F43: تأمين الأشخاص وعمليات تكوين الأموال | G43: www.zurich.com | H43: 1988-04-04 | I43: Insurance of Persons and Fund Accumulation Operations | J43: Traditional Insurance | K43: Switzerland | L43: Foreign Company Branch | M43: Zurich Life Insurance Company Limited | N43: 62
A44: 63 | B44: زيوريخ إنترناشيونال لايف ليمتد | C44: فرع شركة أجنبية | D44: المملكة المتحدة | E44: تأمين تقليدي | F44: تأمين الأشخاص وعمليات تكوين الأموال | G44: www.zurich.com | H44: 1991-06-07 | I44: Insurance of Persons and Fund Accumulation Operations | J44: Traditional Insurance | K44: United Kingdom | L44: Foreign Company Branch | M44: Zurich International Life Limited | N44: 63
A45: 64 | B45: دبي الوطنية للتأمين واعادة التأمين ش.م.ع | C45: شركة مساهمة عامة | D45: الإمارات العربية المتحدة | E45: تأمين تقليدي | F45: تأمين الممتلكات والمسؤوليات | G45: www.dnirc.com | H45: 1992-01-06 | I45: Property and Liability Insurance | J45: Traditional Insurance | K45: United Arab Emirate | L45: Public Joint Stock | M45: Dubai National Insurance & Reinsurance Company P.S.C | N45: 64
A46: 65 | B46: ليفا للتأمين (الشرق الاوسط) ش . م . ب(م) | C46: فرع شركة أجنبية | D46: البحرين | E46: تأمين تقليدي | F46: تأمين الممتلكات والمسؤوليات | G46: www.rsadirect.ae | H46: 1992-10-21 | I46: Property and Liability Insurance | J46: Traditional Insurance | K46: bahrain | L46: Foreign Company Branch | M46: LIVA Insurance B.S.C. © | N46: 65
A47: 66 | B47: شركة الخزنة للتأمين | C47: شركة مساهمة عامة | D47: الإمارات العربية المتحدة | E47: تأمين تقليدي | F47: تأمين الممتلكات والمسؤوليات + تأمين الأشخاص وعمليات تكوين الأموال | G47: www.akic.ae | H47: 1997-01-27 | I47: Property and Liability Insurance + Insurance of Persons and Fund Accumulation Operations | J47: Traditional Insurance | K47: United Arab Emirate | L47: Public Joint Stock | M47: Al Khazna Insurance Company P.S.C | N47: 66
A48: 67 | B48: شركة الاتحاد للتأمين | C48: شركة مساهمة عامة | D48: الإمارات العربية المتحدة | E48: تأمين تقليدي | F48: تأمين الممتلكات والمسؤوليات + تأمين الأشخاص وعمليات تكوين الأموال | G48: www.unioninsurance.ae | H48: 1998-04-26 | I48: Property and Liability Insurance + Insurance of Persons and Fund Accumulation Operations | J48: Traditional Insurance | K48: United Arab Emirate | L48: Public Joint Stock | M48: Union Insurance | N48: 67
A49: 69 | B49: مجموعة الخليج للتأمين (الخليج) ش.م.ب مقفله | C49: فرع شركة خليجية | D49: البحرين | E49: تأمين تقليدي | F49: تأمين الممتلكات والمسؤوليات + تأمين الأشخاص وعمليات تكوين الأموال | G49: www.GIG-Gulf.com | H49: 2002-01-22 | I49: Property and Liability Insurance + Insurance of Persons and Fund Accumulation Operations | J49: Traditional Insurance | K49: bahrain | L49: GCC Company Branch | M49: Gulf Insurance Group (Gulf) B.S.C Closed | N49: 69
A50: 70 | B50: شركة دبى الإسلامية للتأمين وإعادة التأمين (أمان) | C50: شركة مساهمة عامة | D50: الإمارات العربية المتحدة | E50: تأمين تكافلي | F50: تأمين الممتلكات والمسؤوليات + تأمين الأشخاص وعمليات تكوين الأموال | G50: www.aman.ae | H50: 2003-09-16 | I50: Property and Liability Insurance + Insurance of Persons and Fund Accumulation Operations | J50: Takaful Insurance | K50: United Arab Emirate | L50: Public Joint Stock | M50: Dubai Islamic Insurance & Reinsurance Co. (Aman) P.S.C | N50: 70
A51: 71 | B51: شركة أبوظبي الوطنية للتكافل - ش م ع - تكافل | C51: شركة مساهمة عامة | D51: الإمارات العربية المتحدة | E51: تأمين تكافلي | F51: تأمين الممتلكات والمسؤوليات + تأمين الأشخاص وعمليات تكوين الأموال | G51: www.takaful.ae | H51: 2003-11-23 | I51: Property and Liability Insurance + Insurance of Persons and Fund Accumulation Operations | J51: Takaful Insurance | K51: United Arab Emirate | L51: Public Joint Stock | M51: Abu Dhabi National Takaful Company - P S C - Takaful. | N51: 71
A52: 72 | B52: شركة التأمين على الحياة (العالمية) ش.م.ب (مقفلة) | C52: فرع شركة خليجية | D52: الإمارات العربية المتحدة | E52: تأمين تقليدي | F52: تأمين الممتلكات والمسؤوليات + تأمين الأشخاص وعمليات تكوين الأموال | G52: www.licinternational.com | H52: 2005-10-25 | I52: Property and Liability Insurance + Insurance of Persons and Fund Accumulation Operations | J52: Traditional Insurance | K52: United Arab Emirate | L52: GCC Company Branch | M52: Life Insurance Corporation Company (International) B.S.C(C) | N52: 72
A53: 73 | B53: الشركة الوطنية للضمان الصحي (ضمان | C53: شركة مساهمة عامة | D53: الإمارات العربية المتحدة | E53: تأمين تقليدي | F53: تأمين صحي | G53: www.damanhealth.ae | H53: 2006-12-06 | I53: Health Insurance | J53: Traditional Insurance | K53: United Arab Emirate | L53: Public Joint Stock | M53: The National Health Insurance Company (Daman) PJS | N53: 73
A54: 74 | B54: جنرال انشورانس كوربوريشن اوف انديا | C54: فرع شركة أجنبية | D54: الهند | E54: تأمين تقليدي | F54: تأمين الممتلكات والمسؤوليات | G54: www.gicdubai.com | H54: 2006-07-03 | I54: Property and Liability Insurance | J54: Traditional Insurance | K54: India | L54: Foreign Company Branch | M54: General Insurance Corporation Of India | N54: 74
A55: 76 | B55: فريندز بروفيدنت انترناشيونال ليمتد | C55: فرع شركة أجنبية | D55: المملكة المتحدة | E55: تأمين تقليدي | F55: تأمين الأشخاص وعمليات تكوين الأموال | G55: www.fpinternational.com | H55: 2007-04-18 | I55: Insurance of Persons and Fund Accumulation Operations | J55: Traditional Insurance | K55: United Kingdom | L55: Foreign Company Branch | M55: Friends Provident International Limited | N55: 76
A56: 77 | B56: الشركة الوطنية للتأمين على الحياة والعام ش م ع ع | C56: فرع شركة أجنبية | D56: عُمان | E56: تأمين تقليدي | F56: تأمين الأشخاص وعمليات تكوين الأموال | G56: www.nlicgulf.com | H56: 2007-05-13 | I56: Insurance of Persons and Fund Accumulation Operations | J56: Traditional Insurance | K56: Oman | L56: Foreign Company Branch | M56: National Life and General Insurance Company SAOG | N56: 77
A57: 78 | B57: شركة وطنية للتكافل العائلي ش م ع | C57: شركة مساهمة عامة | D57: الإمارات العربية المتحدة | E57: تأمين تكافلي | F57: تأمين الأشخاص وعمليات تكوين الأموال | G57: www.watania.ae | H57: 2008-05-15 | I57: Insurance of Persons and Fund Accumulation Operations | J57: Takaful Insurance | K57: United Arab Emirate | L57: Public Joint Stock | M57: Watania Takaful Family | N57: 78
A58: 79 | B58: أميريكان هوم أشورانس كومباني (فرع دبي | C58: فرع شركة أجنبية | D58: الولايات المتحدة الامريكية | E58: تأمين تقليدي | F58: تأمين الممتلكات والمسؤوليات | G58: www.aig.com | H58: 2008-07-14 | I58: Property and Liability Insurance | J58: Traditional Insurance | K58: United States of America | L58: Foreign Company Branch | M58: American Home Insurance Company (Dubai Br.) | N58: 79
A59: 81 | B59: تشب تيمبست لايف ري انشورانس ليمتد | C59: فرع شركة أجنبية | D59: المملكة المتحدة | E59: تأمين تقليدي | F59: تأمين الأشخاص وعمليات تكوين الأموال | G59: www.chubb.com | H59: 2008-08-24 | I59: Insurance of Persons and Fund Accumulation Operations | J59: Traditional Insurance | K59: United Kingdom | L59: Foreign Company Branch | M59: CHUBB Tempest Life ReInsurance Ltd | N59: 81
A60: 82 | B60: شركة ميثاق للتأمين التكافلي | C60: شركة مساهمة عامة | D60: الإمارات العربية المتحدة | E60: تأمين تكافلي | F60: تأمين الممتلكات والمسؤوليات | G60: www.methaq.ae | H60: 2008-09-10 | I60: Property and Liability Insurance | J60: Takaful Insurance | K60: United Arab Emirate | L60: Public Joint Stock | M60: Methaq Takaful Insurance | N60: 82
A61: 83 | B61: شركة حياه للتأمين | C61: شركة مساهمة عامة | D61: الإمارات العربية المتحدة | E61: تأمين تقليدي | F61: تأمين الأشخاص وعمليات تكوين الأموال | G61: www.hayah.com | H61: 2008-09-16 | I61: Insurance of Persons and Fund Accumulation Operations | J61: Traditional Insurance | K61: United Arab Emirate | L61: Public Joint Stock | M61: HAYAH Insurance Company | N61: 83
A62: 84 | B62: ياس تكافل | C62: شركة مساهمة عامة | D62: الإمارات العربية المتحدة | E62: تأمين تكافلي | F62: تأمين الممتلكات والمسؤوليات + تأمين الأشخاص وعمليات تكوين الأموال | G62: www.yastakaful.ae | H62: 2009-01-05 | I62: Property and Liability Insurance + Insurance of Persons and Fund Accumulation Operations | J62: Takaful Insurance | K62: United Arab Emirate | L62: Public Joint Stock | M62: YAS TAKAFUL | N62: 84
A63: 85 | B63: شركة وطنية للتكافل العام مساهمة عامة | C63: شركة مساهمة عامة | D63: الإمارات العربية المتحدة | E63: تأمين تكافلي | F63: تأمين الممتلكات والمسؤوليات + تأمين الأشخاص وعمليات تكوين الأموال | G63: www.watania.ae | H63: 2009-01-06 | I63: Property and Liability Insurance + Insurance of Persons and Fund Accumulation Operations | J63: Takaful Insurance | K63: United Arab Emirate | L63: Public Joint Stock | M63: Watania Takaful General PJSC | N63: 85
A64: 86 | B64: تكافل الامارات - تأمين (ش.م.ع) | C64: شركة مساهمة عامة | D64: الإمارات العربية المتحدة | E64: تأمين تكافلي | F64: تأمين الأشخاص وعمليات تكوين الأموال | G64: www.takafulemarat.com | H64: 2008-10-14 | I64: Insurance of Persons and Fund Accumulation Operations | J64: Takaful Insurance | K64: United Arab Emirate | L64: Public Joint Stock | M64: Takaful Emarat - Insurance PSC | N64: 86
A65: 87 | B65: شركة الإمارات لتأمين ائتمان الصادرات | C65: شركة مساهمة عامة | D65: الإمارات العربية المتحدة | E65: تأمين تقليدي | F65: تأمين الممتلكات والمسؤوليات | G65: www.ecie.ae | H65: 2009-06-01 | I65: Property and Liability Insurance | J65: Traditional Insurance | K65: United Arab Emirate | L65: Public Joint Stock | M65: Export Credit Insurance Company of The Emirates | N65: 87
A66: 89 | B66: دار التأمين ش.م.ع | C66: شركة مساهمة عامة | D66: الإمارات العربية المتحدة | E66: تأمين تكافلي | F66: تأمين الممتلكات والمسؤوليات | G66: www.insurancehouse.ae | H66: 2011-05-02 | I66: Property and Liability Insurance | J66: Takaful Insurance | K66: United Arab Emirate | L66: Public Joint Stock | M66: Insurance House | N66: 89
A67: 91 | B67: شركة المتوسط والخليج للتأمين وإعادة التأمين "ميد غلف" ش م ب مقفلة | C67: فرع شركة أجنبية | D67: البحرين | E67: تأمين تقليدي | F67: تأمين صحي | G67: www.medgulf.ae | H67: 2015-11-30 | I67: health insurance | J67: Traditional Insurance | K67: Bahrain | L67: Foreign Company Branch | M67: The Mediterranean & Gulf Insurance & Reinsurance Company BSC (c) - Medgulf | N67: 91
A68: 92 | B68: شركة اورينت تكافل مساهمة عامة | C68: شركة مساهمة عامة | D68: الإمارات العربية المتحدة | E68: تأمين تكافلي | F68: تأمين الممتلكات والمسؤوليات | G68: www.orientunbtakaful.ae | H68: 2017-07-16 | I68: Property and Liability Insurance | J68: Takaful Insurance | K68: United Arab Emirate | L68: Public Joint Stock | M68: Orient Takaful(PJSC) | N68: 92

Sheet Glossary
A3: قائمة مصطلحات التأمين المُستخدمة في التقرير
A4: Glossary of Insurance Terms Used in The Report
A8: المُصطلح | B8: التعريف | C8: Definition | D8: Term
A9: الشركة (المؤمن): | B9: شركة التأمين المؤسسة في دولة الإمارات العربية المتحدة، وشركة التأمين الأجنبية المُرخص لها بمباشرة النشاط في الدولة، إما عن طريق فرع أو عن طريق وكيل التأمين. | C9: The insurance company incorporated in the UAE and the foreign insurance company licensed to carry out insurance activities in the UAE either through a branch or through an insurance agent. | D9: Company (Insurer)
A10: قسط التأمين | B10: مبلغ من المال تتقاضاه الشركة من المؤمن له لتوفير التغطية التأمينية المُحددة في وثيقة التأمين. | C10: An amount of many that the company receives from the insured to provide | D10: Insurance Premium
